Workbook

Sheet Contents
C6: Zero Emission Energy for Transport: | D6: National Demand Forecasts for Electricity and Hydrogen - Excel Tool
C13: Tab | D13: Description
B14: Key Assumptions | C14: Key Assumptions > | D14: Section Tab containing overview of the policy assumptions and scenario framework.
C15: Transport Demand Forecasts | D15: Description of the key assumptions for transport demand (to determine number of journeys, length and frequecy) and other relevant information, by mode.
C16: Technology Transition Scenarios | D16: Description of the key assumptions for each of the six technology transition scenarios, by mode.
C17: Energy Demand Analysis | D17: Description of the key assumptions for energy demand calculations, by mode.
B18: Result Tools | C18: Results Tools > | D18: Section Tab containing overview of the energy demand for transport versus estimated production.
C19: Total Energy Demand | D19: Total electricity and hydrogen demand forecasts according to each technology scenario by year (with scenario viewing and updating tool).
C20: Scenario Dashboard | D20: Total electricity and hydrogen demand forecasts for each technology transition scenario explorer by year, stacked by mode (Road, Rail, Maritime and Aviation).
C21: Energy Demand by Mode | D21: Total electricity and hydrogen forecasts for each technology transition scenario explorer by year, stacked by mode (Road, Rail, Maritime and Aviation) and table of sub-mode breakdown (with scenario viewing and updating tool).
B23: Energy Demand Tables | C23: Energy Demand Tables > | D23: Section Tab
C24: Full Results | D24: Tables of the total electricity and hydrogen demand by year, mode and vehicle, vessel, rolling stock and aircraft categories.
C27: Notes: | D27: Clicking on Transport Scotland logo will return user to the contents page.
D28: The results in this dataset are driven by separate models compiled by mode which form the data and calculations behind the results.
D29: Electricity includes all energy demand for this source across modes, vehicle, vessel, rolling stock or aircraft type (electric, battery electric, plug-in electric etc).
D30: Hydrogen includes all energy demand for this source across modes, vehicle, vessel, rolling stock or aircraft type (hydrogen, fuel cell, included within ammonia etc).
C32: Copyright Notice: | D32: The material in this excel spreadsheet has been prepared by Jacobs, copyright 2021 Jacobs Engineering Group Inc. All rights reserved.
D33: This excel spreadsheet is protected by U.S. and International Copyright Laws. Reproduction and resdistribution without written permission is prohibited.
D34: Jacobs, the Jacobs logo, and all other Jacobs trademarks are the property of Jacobs Engineering Group Inc.
D35: Jacobs is a trademark of Jacobs Engineering Group Inc.

Sheet Key Assumptions >
C3: Key Assumptions: Overview and Section Tab >
B8: Overarching Energy Demand Forecast Parameters
B9: Assumptions common to all scenarios | C9: While scenarios are consistent across all transport modes, the assumptions for high, medium and low transition to electric (or battery) and hydrogen (or fuel-cell) vary. This is because the consensus of technological readiness and suitability of different energy sources varies both across and even within each mode (e.g. shipping versus ferries). Where applicable, Policy Scenario 3 is applied to guide Transport Demand.
B10: Alignment to Scottish Government Targets and Policy Commitments | C10: GHG targets: All forecasts align to 100% emissions reduction relative to 1990 by 2045. Road: 20% reduction in distance travelled by car by 2030; phase out of new petrol and diesel cars and vans by 2030 and heavy vehicles by 2035; majority of public service buses zero emission by 2023 Rail: Passenger rail decarbonisation by 2035; and UK commitment to Net Zero emission rail network by 2050. Aviation: Decarbonisation of intra-Scotland scheduled flights by 2040. Maritime: 2032 low emission solutions at Scottish Ports, proportion of low emission Scottish Ferries 30% by 2032, IMO and UK commitment for annual emissions from international shipping reduced by 50% by 2050.
B13: Technology Transition Scenario Framework
B14: Six scenarios have been adopted as suggested by Transport Scotland to enable flexibility, they build on those developed for future transport demand, and whole system energy modelling. They are grounded in plans/expectations for relevant technologies being rolled-out at scale:
B15: 1. Low transition to electric, high transition to hydrogen (LH)
B16: 2. Medium transition to electric, low transition to hydrogen (ML)
B17: 3. Medium transition to electric and high transition to hydrogen (MH)
B18: 4. High transition to electric and low transition to hydrogen (HL)
B19: 5. High transition to electric and high transition to hydrogen fuel cell (HH)
B20: 6. Medium transition to electric and medium transition to hydrogen (MM)

Sheet Transport Demand
C3: Key Assumptions: Transport Demand
B8: Road Demand
C9: Cars | D9: Vans/LGV | E9: Coaches & Scheduled Buses | F9: HGV
B10: Vehicle specific assumptions | C10: As per Transport Model for Scotland (TMfS:18 STPR2 Low Growth Do Minimum) for trunk and principal roads. Department for Transport Statistics for 2019 have been used to estimate the non modelled demand on minor roads not represented in TMfS. Car demand on minor roads is assumed to fall to 80% of the 2019 demand by 2030. | D10: As per Transport Model for Scotland (TMfS:18 STPR2 Low Growth Do Minimum) for trunk and principal roads. Department for Transport Statistics for 2019 have been used to estimate the non modelled demand on minor roads not represented in TMfS. LGV demand on minor roads is assumed to be unchanged through to 2045. | E10: Buses: As per Transport Model for Scotland (TMfS:18 STPR2 Low Growth Do Minimum) for trunk and principal roads. Department for Transport Statistics for 2019 have been used to estimate the non modelled demand on minor roads not represented in TMfS:18. This data is for scheduled services, assumed as an approximation to be served entirely by buses. Coaches: Department for Transport Vehicle Licensing Statistics have identified additional vehicles not included in the above demand and it has been assumed that these are all coaches. Total distance travelled by bus and coach is approximately constant, rising slightly throughout the period to 2045. | F10: As per Transport Model for Scotland (TMfS:18 STPR2 Low Growth Do Minimum). No minor road adjustment required.
B11: All vehicles | C11: As agreed with Transport Scotland, the TMfS:18 model was utilised to estimate demand for road transport, which assumes: Reduce Private Demand and increased public transport demand under the Low Scenario as it reflects the current policy ambitions of the Scottish Government and is consistent with STPR2 and other recent modelling undertaken on behalf of the Scottish Government by external consultants.
B15: Rail Demand
B16: All Scenarios | C16: Year | D16: Electricification Complete | E16: Service Introdutions | F16: Rolling Stock Notes
C17: 2023 | D17: Glasgow Central to Barrhead
C18: 2024 | D18: Glasgow Central to East Kilbride | E18: Glasgow Central to Barrhead | F18: Using existing EMUs - Class 156 units withdrawn
C19: 2025 | E19: Glasgow Central to East Kilbride | F19: Some services use existing EMUs - Class 156 units withdrawn
C20: 2026 | D20: Edinburgh to Tweedbank | E20: Edinburgh to Tweedbank (Battery Electric for Scenarios 4 and 5) | F20: Class 158 units transferred to West Highland lines; all Class 156 units withdrawn from West Highland
C21: 2027 | D21: Fife Circle / Dundee / Perth; and Barrhead to Kilmarnock | E21: Edinburgh / Glasgow to Perth / Dundee and Fife Circle (Battery Electric for scenarios 4 and 5) | F21: Class 158 units transferred to South West Scotland; all Class 156 units withdrawn from South West Scotland
C22: 2028 | E22: In 2028 it is assumed that all Diesel Multiple Units running under overhead electric wires are removed from Glasgow Queen Street to Cumbernauld, Falkirk, Alloa and Dunblane and from Edinburgh Waverley to Dunblane
E23: Inverness to Wick / Thurso (Hydrogen in all Scenarios) | F23: Class 158 units withdrawn
C24: 2029 | D24: Glasgow Queen Street / Edinburgh Waverley to Perth / Dundee / Arbroath | E24: In 2029 it is assumed that all Diesel Multiple Units running under overhead electric wires are removed from Edinburgh to Glasgow, North Electrics, South Electrics, Argyle Line, Paisley Canal, Inverclyde, Glasgow Central to Ardrossan, Largs and Ayr and Edinburgh Waverley to North Berwick and Dunbar.
E25: Glasgow Queen Street / Edinburgh Waverley to Dundee / Arbroath (Battery Electric for Scenarios 4 and 5) | F25: Some Class 158 units withdrawn / Class 170 units cascaded north
E26: Glasgow Queen Street to Anniesland (Battery Electric for Scenarios 4 and 5) | F26: Class 158 units withdrawn
E27: Inverness to Kyle of Lochalsh (Hydrogen in all Scenarios) | F27: Class 158 units withdrawn
C28: 2030 | D28: Montrose to Aberdeen | E28: Aberdeen to Montrose (Battery Electric for Scenarios 4 and 5) | F28: Class 158 units withdrawn / 170 units cascaded to Southwest Scotland
E29: Glasgow Queen Street / Edinburgh Waverley to Aberdeen (Battery Electric for Scenarios 4 and 5) | F29: HST Fleet Withdrawn / Class 170 units cascaded north
E30: West Highland Line (Hydrogen in all Scenarios) | F30: Class 158 units withdrawn
C31: 2035 | D31: Perth to Inverness | E31: Glasgow Queen Street / Edinburgh Waverley to Aberdeen / Inverness (Battery Electric for Scenarios 4 and 5) | F31: Class 170 units withdrawn
D32: Ayr to Girvan & Kilmarnock to Carlisle via Dumfries | E32: Glasgow Central to Stranraer, Dumfries and Carlisle via Kilmarnock | F32: Remaining Class 158 and class Class 170 units withdrawn
B33: Other Notes | C33: Cross Country train services from Berwick-upon-Tweed to Edinburgh Waverley, Glasgow Central and Aberdeen remain as Class 221 Voyager Diesel Multiple Units until after 2035. By 2040 these will be replaced by 5-car Class 800 units operating as per 2021 timetable. London North Eastern Services will continue operating 9-car Class 800 units that will draw power from the 25 kV overhead line where available before switching to diesel. The date at which the service to Inverness and services to Aberdeen switch to electric haulage is dependent on the date of electrification of the relevant route (2027 as far as Perth / Dundee, 2030 to Aberdeen and 2035 to Inverness). All other cross-border Train Operating Companies (TOCs) will continue to use the same amount of electricity each year as they used in 2019/20. All ScotRail services currently operated by Electric Multiple Units (EMUs) will continue to be operated by EMUs. Following implementation of the May 2022 timetable, vehicle miles is anticipated to be approximately 92% of 2019/20 service levels, and this is assumed to increase at 1% per annum, returning to 2019/20 levels by 2030. All electric hauled freight services, across all Freight Operating Companies (FOCs) will continue to operate and use the same amount of electricity as these services used in 2019/20. Existing cross-border rail freight services, via both the East Coast Mainline (ECML) and the West Coast Mainline (WCML), that are hauled by diesel traction, are assumed to start transferring to electric traction from 2022, with all existing diesel hauled freight services switching to electric traction by 2045. Existing rail freight services from the Scottish Central Belt terminals to Aberdeen and Inverness will remain diesel hauled until after 2030. These services will then gradually transition to electric traction, with all existing diesel hauled freight services to Aberdeen and Inverness switching to electric traction by 2045. Existing diesel paths in Network Rail's Working Timetable for December 2021 are assumed to switch to electric on all days specified, unless marked as 'Runs as Required' in which case it was assumed that the path is used half of the time. All these new electric services assumed to be Class 92 with 1,800 tonne trailing load (even although most existing diesel services operate with a reduced load).
B37: Maritime
B38: All Scenarios | C38: Shipping | E38: Ferries
C39: Scottish Greenhouse Gas statistics: 1990-2019 2019 UK greenhouse gas emissions: final figures – dataset of emissions by source Greenhouse gas reporting: Conversion factors 2021 UK Port Freight Traffic – 2019 forecasts | E39: Ferry demand was kept constant across the period and compiled from publicly available data on length, journey time and number of trips (according to current timetables for each Ferry route).
B45: Notes | C45: Shipping: For shipping a top-down approach was adopted to estimate transport demand (for fuel) based on the Scottish government reporting on GHG emissions from all sectors on an annual basis and broken down by type of water-borne navigation. This data was then split using the UK Government's reporting on emissions by type of fuel on an annual basis - also broken down by type of water-borne navigation. The CO2e Emission factors for each type of fuel is applied to convert CO2e emissions to fuel consumption The tonnage growth forecasted for UK ports was applied to the 2019 Scotland reported emissions to forecast future emissions Fuel Source: All the fuel used for deep sea fishing in non-UK waters is assumed to be gas oil sourced in the UK. Type and share of fuel as per UK (no Scotland specific). Shipping Movements: All emissions will be used to calculate fuel requirements and assumes ships will refuel at Scottish ports. Energy demand from ferries is subtracted at the end. International Accounting: Bunker Fuel Sales are the currently agreed basis by which countries report international shipping emissions to the UN. Types of Journeys and Vessels: Classified according to the Scottish government reports on GHG emissions. Forecasted Emissions: Scottish future emissions growth as per the UK tonnage forecasted annual growth. Ferries: For Ferries, total distance travelled by the vessel operating each route was determined and summer deadweight and average operating capacity was estimated for the primary vessel operating each of the routs withing the full domestic ferry dataset. Due to a lack of information on efficiencies for Fuel Cell and Battery powered ferries, the assumption was made to maintain the same energy demand requirements as currently required, but adjusted for different route operating requirements
B48: Aviation
B49: All Scenarios | C49: Air Traffic Movements | D49: Average Fleet Mix | E49: Average Sector Distance | F49: Average Fleet Mix
C50: OAG and Department for Transport – Aviation Forecast data was used to inform 2019 Air Traffic Movements taken as baseline. The Aviation Forecast from the DfT used to forecast future movements for Scottish Airports. Annual growth assumed as per the “Other Regional – Central Demand” | D50: OAG 2019 aircraft fleet by airport taken as baseline. Future aircraft mix based on FlyZero assumptions: modest growth in NB and WB services, flat growth or large turboprops and regional services and smaller airports remain 100% small turboprops served | E50: OAG and FlyZero data informed the average distance flown in 2019 by each aircraft type from each airport taken as baseline. Future average distance remains almost the same, only with a modest growth in Narrow Body and Wide Body distances | F50: The ICAO fuel consumption per formula was used to calculate the total tonnes of fuel burnt by aircraft type and airport. The kerosene energy density was then used to convert into kWh
B51: Notes | C51: 2019 baseline Air Traffic Movements are assumed to be recovered by 2025 2019 Baseline fleet mix by airport, forecast for modest growth in narrow body and wide body services. 2019 average distance by aircraft type and airport forecast modest growth in narrow body and wide body distances.

Sheet Technology Scenarios
C3: Key Assumptions: Technology Transition Scenarios
B8: Road
B9: Scenarios | C9: Cars | D9: Vans/LGV | E9: Buses | F9: HGV
B10: 1. Low transition to electric, high transition to hydrogen | C10: BEV uptake follows lower boundary of ZEV uptake rate in UK wide transition Car fleet is assumed to follow the hydrogen uptake rates specified in PS3. | D10: BEV uptake follows lower boundary of ZEV uptake rate in UK wide transition Van fleet follows the hydrogen uptake rates specified in PS3 capped at total ZEV rate | E10: Vehicle replacement rates as high battery cost, low fuel cell cost scenario. | F10: Early lock-in of Hydrogen as fuel source for HGVs
B11: 2. Medium transition to electric, low transition to hydrogen | C11: BEV uptake follows middle boundary of ZEV uptake rate in UK wide transition Car fleet is assumed to follow 1/3 the hydrogen uptake rates specified in PS3. | D11: BEV uptake follows middle boundary of ZEV uptake rate in UK wide transition Van fleet is assumed to follow 1/3 the hydrogen uptake rates specified in PS3. | E11: Vehicle replacement rates as baseline battery cost, high fuel cell cost scenario.
B12: 3. Medium transition to electric and high transition to hydrogen | C12: BEV uptake follows middle boundary of ZEV uptake rate in UK wide transition Car fleet is assumed to follow the hydrogen uptake rates specified in PS3. | D12: BEV uptake follows medium boundary of ZEV uptake rate in UK wide transition Van fleet follows the hydrogen uptake rates specified in PS3 capped at total ZEV rate | E12: Vehicle replacement rates as baseline battery cost, low fuel cell cost scenario.
B13: 4. High transition to electric and low transition to hydrogen | C13: BEV uptake follows upper boundary of ZEV uptake rate in UK wide transition Car fleet is assumed to follow 1/3 the hydrogen uptake rates specified in PS3. | D13: BEV uptake follows upper boundary of ZEV uptake rate in UK wide transition Van fleet is assumed to follow 1/3 the hydrogen uptake rates specified in PS3. | E13: Vehicle replacement rates as low battery cost, high fuel cell cost scenario. Removes the majority of fossil fuel buses by 2023. | F13: Early lock-in of batteries as fuel source for HGVs
B14: 5. High transition to electric and high transition to hydrogen | C14: BEV uptake follows Upper boundary of ZEV uptake rate in UK wide transition Car fleet is assumed to follow the hydrogen uptake rates specified in PS3. | D14: BEV uptake follows Upper boundary of ZEV uptake rate in UK wide transition Van fleet is assumed to follow the hydrogen uptake rates specified in PS3. | E14: Vehicle replacement rates as low battery cost, low fuel cell cost scenario. Removes the majority of fossil fuel buses by 2023. All buses zero emission by 2030.
B15: 6. Medium transition to electric and medium transition to hydrogen | C15: BEV uptake follows middle boundary of ZEV uptake rate in UK wide transition Car fleet is assumed to follow 2/3 the hydrogen uptake rates specified in PS3. | D15: BEV uptake follows middle boundary of ZEV uptake rate in UK wide transition Van fleet is assumed to follow 2/3 the hydrogen uptake rates specified in PS3. | E15: Vehicle replacement rates as baseline scenario. | F15: Mixed trajectory where Hydrogen and Battery are allowed to compete
B16: Other Notes | C16: For cars, due to the expected low hydrogen numbers, the expected ZEV vehicle numbers are calculated and then split into BEV and hydrogen, using the hydrogen figure from PS3 as a base line. The hydrogen figure vary by scenario Due to the widely differing future implementation rates of the potential technologies, there is a different definition of High/Medium/Low across the modes HGV only contains three scenarios, High BEV – Low hydrogen, Medium BEV- Medium hydrogen, Low BEV – High hydrogen. This represents the assumptions in the Analysis to provide costs, efficiencies and roll-out trajectories for zero emission HGVs, buses and coaches. There is a different probability for the most likely scenario across the different modes. This is most likely to be High BEV-Low hydrogen for both Cars and Vans, and, potentially, Medium-Medium for HGVs Buses and coaches are scrapped on average after 15 years of operation, unless other incentives or policies cause them to be removed from service sooner. Van fleet is assumed to follow car fleet hydrogen uptake rates specified in PS3 capped at total ZEV rate - assumptions above for vans are based on this overarching assumption.
B20: Rail
B21: Scenarios
B22: 1. Low transition to electric, high transition to hydrogen | C22: Hydrogen – Far North (2028 to Wick, 2029 to Kyleof Lochalsh), West Highland (2030), Stranraer & Inverness to Aberdeen (2035) Battery - None
B23: 2. Medium transition to electric, low transition to hydrogen | C23: Hydrogen – Far North (2028 to Wick, 2029 to Kyle of Lochalsh) & West Highland (2030) only Battery – Inverness to Aberdeen & Stranraer (2035)
B24: 3. Medium transition to electric and high transition to hydrogen | C24: Hydrogen – Far North (2028 to Wick, 2029 to Kyle of Lochalsh), West Highland (2030), Stranraer & Inverness to Aberdeen (2035) Battery - None
B25: 4. High transition to electric and low transition to hydrogen | C25: Hydrogen – Far North (2028 to Wick, 2029 to Kyle of Lochalsh) & West Highland (2030) only Battery – Edinburgh to Tweedbank (2026), Fife Circle, Glasgow Central to Kilmarnock (2027), GLQ/EDB to Perth, Dundee and Arbroath (50% in 2027, 100% in 2029), Glasgow Queen Street to Anniesland (2029), Aberdeen to Montrose, GLQ/EDB to Aberdeen (2030), GLQ/EDB to Inverness, Inverness to Aberdeen & Stranraer (2035)
B26: 5. High transition to electric and high transition to hydrogen fuel cell | C26: Hydrogen – Far North (2028 to Wick, 2029 to Kyle of Lochalsh), West Highland (2030), Stranraer & Inverness to Aberdeen (2035) Battery - Edinburgh to Tweedbank (2026), Fife Circle, Glasgow Central to Kilmarnock (2027), GLQ/EDB to Perth, Dundee and Arbroath (50% in 2027, 100% in 2029), Glasgow Queen Street to Anniesland (2029), Aberdeen to Montrose & GLQ/EDB to Aberdeen (2030) and GLQ/EDB to Inverness (2035)
B27: 6. Medium transition to electric and medium transition to hydrogen | C27: Hydrogen – Far North (2028 to Wick, 2029 to Kyle of Lochalsh), West Highland (2030) & Stranraer (2035) Battery – Inverness to Aberdeen (2035)
B28: Other Notes | C28: All other lines are assumed to be overhead electric
B32: Maritime
B33: Scenarios | C33: Shipping | D33: Ferries
B34: 1. Low transition to electric, high transition to hydrogen | C34: Electric + Shore Power: 2% (2% / 2%) Ammonia: 73% (77% / 53%) Fossil Fuel: 25% (21% / 45%) | E34: 30% Battery Electric by 2032, 100% Battery Electric by 2045 Straight line uptake 2022 -> 2032 (0%->30%) Straight line uptake 2032 -> 2045 (30%->100%) 0% Hydrogen by 2030, 100% Hydrogen by 2045* Rapid uptake rate 2030 -> 2045, E.g. 87% by 2040
B35: 2. Medium transition to electric, low transition to hydrogen | C35: Electric + Shore Power: 5% (6% / 3%) Ammonia: 17% (18% / 8%) Fossil Fuel: 78% (75% / 89%) | E35: 65% Battery Electric by 2032, 100% Battery Electric by 2045 Straight line uptake 2022 -> 2032 (0%->65%) Straight line uptake 2032 -> 2045 (65%->100%) 0% Hydrogen by 2030, 100% Hydrogen by 2045* Low uptake rate 2030 -> 2045, E.g. 67% by 2040
B36: 3. Medium transition to electric and high transition to hydrogen | C36: Electric + Shore Power: 5% (6% / 3%) Ammonia: 73% (76% / 45%) Fossil Fuel: 22% (18% / 45%) | E36: 65% Battery Electric by 2032, 100% Battery Electric by 2045 Straight line uptake 2022 -> 2032 (0%->65%) Straight line uptake 2032 -> 2045 (65%->100%) 0% Hydrogen by 2030, 100% Hydrogen by 2045* Rapid uptake rate 2030 -> 2045, E.g. 87% by 2040
B37: 4. High transition to electric and low transition to hydrogen | C37: Electric + Shore Power: 10% (11% / 6%) Ammonia: 17% (18% / 8%) Fossil Fuel: 73% (71% / 86%) | E37: 65% Battery Electric by 2032, 100% Battery Electric by 2045 Straight line uptake 2022 -> 2032 (0%->65%) Straight line uptake 2032 -> 2045 (65%->100%) 0% Hydrogen by 2030, 100% Hydrogen by 2045* Moderate uptake rate 2030 -> 2045, E.g. 77% by 2040
B38: 5. High transition to electric and high transition to hydrogen fuel cell | C38: Electric + Shore Power: 10% (11% / 6%) Ammonia: 71% (74% / 52%) Fossil Fuel: 19% (15% / 43%) | E38: 65% Battery Electric by 2032, 100% Battery Electric by 2045 Straight line uptake 2022 -> 2032 (0%->65%) Straight line uptake 2032 -> 2045 (65%->100%) 0% Hydrogen by 2030, 100% Hydrogen by 2045* Moderate uptake rate 2030 -> 2045, E.g. 77% by 2040
B39: 6. Medium transition to electric and medium transition to hydrogen | C39: Electric + Shore Power: 5% (6% / 3%) Ammonia: 38% (39% / 32%) Fossil Fuel: 57% (55% / 65%) | E39: 65% Battery Electric by 2032, 100% Battery Electric by 2045 Straight line uptake 2022 -> 2032 (0%->65%) Straight line uptake 2032 -> 2045 (65%->100%) 0% Hydrogen by 2030, 100% Hydrogen by 2045* Moderate uptake rate 2030 -> 2045, E.g. 77% by 2040
B40: Notes | C40: * % of energy (TWh) demand at 2045 (Domestic / International) The uptake of battery electric vessels and shore power is relatively modest, between 2% and10% of the energy demand by 2045. The high electric scenarios present similar electricity uptake as the 6th Carbon Budget scenarios. High electric scenarios assume a higher battery electric uptake and lower shore power demand, while low electric scenarios assume a higher shore power demand than battery electric demand. Ammonia has been chosen as zero-carbon fuel. It represents between 17% and 73% of the total energy demand by 2045. The high ammonia scenarios present similar ammonia uptake as the 6th Carbon Budget scenarios. It has been assumed a higher uptake of battery electric and ammonia technology and an earlier transition to zero-emission alternatives for the domestic shipping due to the usage of smaller vessels and shorter routes. Shipping Entry into Service Battery electric vessels (and shore power): The earliest battery electric vessels are assumed to entry into service is from 2025. Ammonia vessels: Ammonia powered vessels are considered to entry into service from 2030. Retirement Cycle: A 15 year retirement cycle of existing vessels has been considered.
C41: Shipping Emissions International Emissions: IMO targets annual emissions from international emissions to be reduced by at least 50% by 2050 (compared to 2008 emissions). Jacobs Medium-Low Scenario reduces by ~ 60% the 2008 international emissions by 2050. Jacobs High-High Scenario reduces by ~ 88% the 2008 international emissions and by 98% the total emissions. Ferries Only routes with a length of <40km will be serviced by battery electric ferries. Therefore, the percentages are the % of total mileage, for routes <40km, which are covered by battery electric vessels. It is assumed that due to the tonnage of the Vessels used for the Cairnryan to Larne and Loch Ryan to Belfast that Ammonia will be the zero-carbon fuel
B45: Aviation
B46: Scenarios
B47: 1. Low transition to electric, high transition to hydrogen | C47: Electric: 4% (1%) Hydrogen: 47% (56%) Kerosene**: 49% (43%)
B48: 2. Medium transition to electric, low transition to hydrogen | C48: Electric: 16% (7%) Hydrogen: 20% (25%) Kerosene**: 64% (68%)
B49: 3. Medium transition to electric and high transition to hydrogen | C49: Electric: 16% (5%) Hydrogen: 47% (56%) Kerosene**: 37% (39%)
B50: 4. High transition to electric and low transition to hydrogen | C50: Electric: 20% (12%) Hydrogen: 28% (25%) Kerosene**: 52% (63%)
B51: 5. High transition to electric and high transition to hydrogen fuel cell | C51: Electric: 28% (9%) Hydrogen: 47% (56%) Kerosene**: 25% (35%)
B52: 6. Medium transition to electric and medium transition to hydrogen | C52: Electric: 16% (6%) Hydrogen: 35% (42%) Kerosene**: 48% (52%)
B53: Notes | C53: * % of ATMs by 2050 (% of Kms by 2050). ** (Part of) the kerosene could be replaced by Sustainable Aviation Fuels (SAF). SAFs are out of the scope of this study.

Sheet Energy Demand
C4: Key Assumptions: Energy Demand Analysis
B10: General | H10: Other Notes:
B11: Parameter | C11: Value | D11: Units | E11: Notes | H11: This tab contains key metrics used in parralel with the mileage and route data to analyse current energy demands and convert this to future predictions. A brief summary of the data sources are provided here for reference. More detail will be provided in the final report Refer to the main report for links to reports listed
B12: Hydrogen to Electricity Conversion | C12: 0.03 | D12: kg/kWh | E12: Based on the LHV of Hydrogen (33.46kWh/kg)
B13: Electrolyser Efficiency | C13: 0.654 | E13: Based on UK Hydrogen Production Costs 2021 and comparison to standard data sheets
B14: Current Renewables Utilisation | C14: 0.305 | E14: Based on comparison of current capacity and output from Scottish Energy Statistics Hub
B15: Future Hydrogen Capacity - 2030 | C15: 5 | D15: GW | E15: 50/50 mix of Green and Blue in 2030 with a 27.5TWh output. 107.5TWh output in 2045 from 5 GW Blue and 20GW Green. Based on Draft Hydrogen Action Plan
B16: Future Hydrogen Capacity - 2045 | C16: 25 | D16: GW
B17: Current Renewables Capacity | C17: 11.9 | D17: GW | E17: Based on Scottish Energy Statistics Hub and estimations from Onshore and Offshore Wind Policy Statements. 8 GW onshore wind by 2030 and upper estimate of 12 GW by 2045 8GW offshore wind by 2030 and 11 GW by 2045 Small increase in other sources but considered negligible
B18: Future Renewables Capacity - 2030 | C18: 27 | D18: GW
B19: Future Renewables Capacity - 2045 | C19: 34 | D19: GW
B21: Rail
B22: Parameter | C22: Value | D22: Units | E22: Notes
B23: Hydrogen Consumption | C23: 0.386 | D23: kg/mile | E23: Based on values for Concordia iLint and ARUP route to market study
B24: Overhead Electric (Existing Routes) | C24: 3.23 | D24: kWh/mile | E24: Scotrail services, based on ScotRail's energy draw 2019/20
B25: Overhead Electric (New Routes) | C25: 4.47 | D25: kWh/mile | E25: Scotrail services, based on figures provided by Network Rail across different 4-car Classes
B26: Battery Electric | C26: 5.6 | D26: kWh/mile | E26: Scotrail services, based on Vivarail modelling of Class 365
B27: Cross country services | C27: 18.04 | D27: kWh/mile | E27: Network Rail data for a 5-car Class 800
B28: LNER Services | C28: 31.99 | D28: kWh/mile | E28: Network Rail data for a 9-car Class 800
B29: Freight Trains | C29: 79.53 | D29: kWh/mile | E29: Network Rail data for a Class 92 locomotive hauling 1,800 tonnes
B31: Road
B32: Parameter | C32: Value | D32: Units | E32: Notes
B33: Car BEV Energy Demand | C33: 0.22 | D33: kWh/km | E33: Derived from TAG data book
B34: Car PHEV Energy Demand | C34: 0.073 | D34: kWh/km | E34: Based on assumptions from Real-world usage of PHEVs
B35: Car Hydrogen Utilisation | C35: 0.011 | D35: kg H2/km | E35: From Toyota Mirai
B36: Car Annual Mileage | C36: 13900 | D36: km | E36: TMfS:18 Data
B37: EV Van Energy Demand | C37: 0.26 | D37: kWh/km | E37: Derived from TAG data book
B38: Van PHEV Energy Demand | C38: 0.087 | D38: kWh/km | E38: Based on assumptions from ICCT Real-world usage of PHEVs Report
B39: Van Hydrogen Utilisation | C39: 0.012987 | D39: kg H2/km | E39: Assumption that H2 efficiency scales as EV
B40: Van Annual Mileage | C40: 29185 | D40: km | E40: TMfS:18 Data
B41: Electric HGV Energy Demand | C41: 1.44 | D41: kWh/km | E41: Collation of varied sources
B42: HGV Hydrogen Utilisation | C42: 0.071928 | D42: kg H2/km | E42: Assumption that H2 efficiency scales as EV
B43: HGV Annual Mileage | C43: 77856 | D43: km | E43: TMfS:18 Data
B44: Single Decker Electric Bus Energy Demand | C44: 1.1 | D44: kWh/km | E44: Based on input data from Energy - HDV,HGV and buses Based on data from Scottish Bus electrification
B45: Single Decker Bus Hydrogen Utilisation | C45: 0.055 | D45: kg H2/km | E45: Calculated based on electricity figures and Fuel Cell 60% efficiency
B46: Single Decker Bus Annual Mileage | C46: 80467 | D46: km | E46: Based on data from Scottish Bus electrification
B47: Double Decker Electric Bus Energy Demand | C47: 1.4 | D47: kWh/km | E47: Based on input data from Energy - HDV,HGV and buses
B48: Double Decker Bus Hydrogen Utilisation | C48: 0.07 | D48: kg H2/km | E48: As above for SD Bus
B49: Double Decker Bus Annual Mileage | C49: 80467 | D49: km | E49: Based on data from Scottish Bus electrification
B50: Coach Energy Demand | C50: 1.1 | D50: kWh/km | E50: Based on input data from Energy - HDV,HGV and buses
B51: Coach Hydrogen Utilisation | C51: 0.055 | D51: kg H2/km | E51: As above for SD Bus
B52: Coach Annual Mileage | C52: 80467 | D52: km | E52: Based on data from Scottish Bus electrification
B54: Shipping
B55: Parameter | C55: Value | D55: Units | E55: Notes
B56: Marine Fuel Oil CO₂e emissions | C56: 3159.51 | D56: kg/tonne of fuel | E56: UK Greenhouse gas reporting: conversion factors 2021
B57: Marine Gas Oil CO₂e emissions | C57: 3249.99 | D57: kg/tonne of fuel
B58: Diesel | C58: 2969.07 | D58: kg/tonne of fuel
B59: Motor Spirit | C59: 2947.62 | D59: kg/tonne of fuel
B60: Current Shipping Fuel Efficiency | C60: 0.5 | E60: Based on IEEE: Electric Container Ships Are Stuck on the Horizon
B61: Ammonia Engine Efficiency | C61: 0.5 | E61: Based on estimation from MAN Energy Solutions data
B62: Battery Efficiency | C62: 0.92 | E62: Based on The Future of Batteries in the Marine Sector
B63: Battery Energy Density | C63: 0.3 | D63: MJ/Kg | E63: Based on IEEE: Electric Container Ships Are Stuck on the Horizon
B64: Ammonia Energy Density | C64: 22.5 | D64: MJ/Kg | E64: Ammonia HHV value
B65: Hydrogen Energy Density | C65: 120 | D65: MJ/Kg | E65: Hydrogen LHV value
B66: Hydrogen to Ammonia Conversion Efficiency | C66: 0.85 | E66: Based on data in Sailing on Solar, EDF
B68: Ferries
B69: Parameter | C69: Value | D69: Units | E69: Notes
B70: Marine Fuel Oil CO₂e emissions | C70: 0.262 | D70: kg CO₂e/kWh(gross CV) | E70: UK Greenhouse gas reporting: conversion factors 2021
B71: Ferry CO₂e Emissions | C71: 0.05166 | D71: kg CO₂e/tonne.km
B72: Large RoPax Ferry CO₂e Emissions | C72: 0.37667 | D72: kg CO₂e/tonne.km
B73: Energy Demand per km on each Route | C73: N/A | D73: kWh/km | E73: Each route was determined to have a different energy demand per route. This is based on an analysis of the individual ferry routes, then applying the operating capacity assumptions.
B75: Aviation
B76: Parameter | C76: Value | D76: Units | E76: Notes
B77: Specific Energy of Baseline Fuel | C77: 42.8 | D77: MJ/kg | E77: Hypertextbook: Energy Density of Aviation Fuel
B78: Specific energy of LH₂ | C78: 120 | D78: MJ/kg | E78: Hydrogen LHV value
B79: Increase in efficiency of using LH₂ | C79: 0.57 | E79: Based on detailed analysis in FlyZero study
B80: Kerosene use Efficiency | C80: 0.27 | E80: Leeham - Article: The true cost of electric aircraft
B81: Battery Efficiency | C81: 0.92
B82: Battery Energy Density - Existing | C82: 0.146 | D82: kWh/kg | E82: Roland Berger - Aircraft Electrical Propulsion - The next chapter of aviation? Energies - Study: Assessment of All-Electric General Aviation Aircraft
B83: Battery Energy Density - Future | C83: 0.5 | D83: kWh/kg

Sheet Results Tools >
H1: Hydrogen Lookup | K1: 2022 | L1: 2023 | M1: 2024 | N1: 2025 | O1: 2026 | P1: 2027 | Q1: 2028 | R1: 2029 | S1: 2030 | T1: 2035 | U1: 2040 | V1: 2045
H2: ='Results Tools >'!B22 -> Scenario 1: Low Electric + High Hydrogen | I2: Forecast Hydrogen Transport Demand | J2: TWh | K2: =INDEX('Capacity Summary'!D12:D17,MATCH($H$2,'Capacity Summary'!$B$12:$B$17,0)) -> 0.009900893466 | L2: =INDEX('Capacity Summary'!E12:E17,MATCH($H$2,'Capacity Summary'!$B$12:$B$17,0)) -> 0.01516070107 | M2: =INDEX('Capacity Summary'!F12:F17,MATCH($H$2,'Capacity Summary'!$B$12:$B$17,0)) -> 0.02148804604 | N2: =INDEX('Capacity Summary'!G12:G17,MATCH($H$2,'Capacity Summary'!$B$12:$B$17,0)) -> 0.03063555002 | O2: =INDEX('Capacity Summary'!H12:H17,MATCH($H$2,'Capacity Summary'!$B$12:$B$17,0)) -> 0.1196650421 | P2: =INDEX('Capacity Summary'!I12:I17,MATCH($H$2,'Capacity Summary'!$B$12:$B$17,0)) -> 0.2234660949 | Q2: =INDEX('Capacity Summary'!J12:J17,MATCH($H$2,'Capacity Summary'!$B$12:$B$17,0)) -> 0.3485725974 | R2: =INDEX('Capacity Summary'!K12:K17,MATCH($H$2,'Capacity Summary'!$B$12:$B$17,0)) -> 0.472431892 | S2: =INDEX('Capacity Summary'!L12:L17,MATCH($H$2,'Capacity Summary'!$B$12:$B$17,0)) -> 1.17391099 | T2: =INDEX('Capacity Summary'!M12:M17,MATCH($H$2,'Capacity Summary'!$B$12:$B$17,0)) -> 5.572741815 | U2: =INDEX('Capacity Summary'!N12:N17,MATCH($H$2,'Capacity Summary'!$B$12:$B$17,0)) -> 10.20418588 | V2: =INDEX('Capacity Summary'!O12:O17,MATCH($H$2,'Capacity Summary'!$B$12:$B$17,0)) -> 14.85800573
H3: =H2 -> Scenario 1: Low Electric + High Hydrogen | I3: Estimated Excess Hydrogen Production | J3: TWh | K3: =INDEX('Capacity Summary'!D20:D25,MATCH($H$3,'Capacity Summary'!$B$20:$B$25,0)) -> 1.135637568 | L3: =INDEX('Capacity Summary'!E20:E25,MATCH($H$3,'Capacity Summary'!$B$20:$B$25,0)) -> 1.703146991 | M3: =INDEX('Capacity Summary'!F20:F25,MATCH($H$3,'Capacity Summary'!$B$20:$B$25,0)) -> 4.274281185 | N3: =INDEX('Capacity Summary'!G20:G25,MATCH($H$3,'Capacity Summary'!$B$20:$B$25,0)) -> 7.128979835 | O3: =INDEX('Capacity Summary'!H20:H25,MATCH($H$3,'Capacity Summary'!$B$20:$B$25,0)) -> 10.19018111 | P3: =INDEX('Capacity Summary'!I20:I25,MATCH($H$3,'Capacity Summary'!$B$20:$B$25,0)) -> 14.09576467 | Q3: =INDEX('Capacity Summary'!J20:J25,MATCH($H$3,'Capacity Summary'!$B$20:$B$25,0)) -> 18.2664274 | R3: =INDEX('Capacity Summary'!K20:K25,MATCH($H$3,'Capacity Summary'!$B$20:$B$25,0)) -> 23.01110657 | S3: =INDEX('Capacity Summary'!L20:L25,MATCH($H$3,'Capacity Summary'!$B$20:$B$25,0)) -> 26.32608901 | T3: =INDEX('Capacity Summary'!M20:M25,MATCH($H$3,'Capacity Summary'!$B$20:$B$25,0)) -> 43.42725819 | U3: =INDEX('Capacity Summary'!N20:N25,MATCH($H$3,'Capacity Summary'!$B$20:$B$25,0)) -> 65.49581412 | V3: =INDEX('Capacity Summary'!O20:O25,MATCH($H$3,'Capacity Summary'!$B$20:$B$25,0)) -> 92.64199427
H4: =H3 -> Scenario 1: Low Electric + High Hydrogen | I4: Forecast Hydrogen Transport Demand | J4: % | K4: =INDEX('Capacity Summary'!D$28:D$33,MATCH($H$4,'Capacity Summary'!$B$28:$B$33,0)) -> 0.008643003966 | L4: =INDEX('Capacity Summary'!E$28:E$33,MATCH($H$4,'Capacity Summary'!$B$28:$B$33,0)) -> 0.008823042077 | M4: =INDEX('Capacity Summary'!F$28:F$33,MATCH($H$4,'Capacity Summary'!$B$28:$B$33,0)) -> 0.005002141616 | N4: =INDEX('Capacity Summary'!G$28:G$33,MATCH($H$4,'Capacity Summary'!$B$28:$B$33,0)) -> 0.004278937956 | O4: =INDEX('Capacity Summary'!H$28:H$33,MATCH($H$4,'Capacity Summary'!$B$28:$B$33,0)) -> 0.01160686981 | P4: =INDEX('Capacity Summary'!I$28:I$33,MATCH($H$4,'Capacity Summary'!$B$28:$B$33,0)) -> 0.01560601254 | Q4: =INDEX('Capacity Summary'!J$28:J$33,MATCH($H$4,'Capacity Summary'!$B$28:$B$33,0)) -> 0.01872536113 | R4: =INDEX('Capacity Summary'!K$28:K$33,MATCH($H$4,'Capacity Summary'!$B$28:$B$33,0)) -> 0.02011757695 | S4: =INDEX('Capacity Summary'!L$28:L$33,MATCH($H$4,'Capacity Summary'!$B$28:$B$33,0)) -> 0.04268767236 | T4: =INDEX('Capacity Summary'!M$28:M$33,MATCH($H$4,'Capacity Summary'!$B$28:$B$33,0)) -> 0.1137294248 | U4: =INDEX('Capacity Summary'!N$28:N$33,MATCH($H$4,'Capacity Summary'!$B$28:$B$33,0)) -> 0.1347976999 | V4: =INDEX('Capacity Summary'!O$28:O$33,MATCH($H$4,'Capacity Summary'!$B$28:$B$33,0)) -> 0.1382140068
H5: Scenario 1: Low Electric + High Hydrogen | I5: Estimated Excess Hydrogen Production | J5: % | K5: =INDEX('Capacity Summary'!D$36:D$41,MATCH($H$5,'Capacity Summary'!$B$20:$B$25,0)) -> 0.991356996 | L5: =INDEX('Capacity Summary'!E$36:E$41,MATCH($H$5,'Capacity Summary'!$B$20:$B$25,0)) -> 0.9911769579 | M5: =INDEX('Capacity Summary'!F$36:F$41,MATCH($H$5,'Capacity Summary'!$B$20:$B$25,0)) -> 0.9949978584 | N5: =INDEX('Capacity Summary'!G$36:G$41,MATCH($H$5,'Capacity Summary'!$B$20:$B$25,0)) -> 0.995721062 | O5: =INDEX('Capacity Summary'!H$36:H$41,MATCH($H$5,'Capacity Summary'!$B$20:$B$25,0)) -> 0.9883931302 | P5: =INDEX('Capacity Summary'!I$36:I$41,MATCH($H$5,'Capacity Summary'!$B$20:$B$25,0)) -> 0.9843939875 | Q5: =INDEX('Capacity Summary'!J$36:J$41,MATCH($H$5,'Capacity Summary'!$B$20:$B$25,0)) -> 0.9812746389 | R5: =INDEX('Capacity Summary'!K$36:K$41,MATCH($H$5,'Capacity Summary'!$B$20:$B$25,0)) -> 0.9798824231 | S5: =INDEX('Capacity Summary'!L$36:L$41,MATCH($H$5,'Capacity Summary'!$B$20:$B$25,0)) -> 0.9573123276 | T5: =INDEX('Capacity Summary'!M$36:M$41,MATCH($H$5,'Capacity Summary'!$B$20:$B$25,0)) -> 0.8862705752 | U5: =INDEX('Capacity Summary'!N$36:N$41,MATCH($H$5,'Capacity Summary'!$B$20:$B$25,0)) -> 0.8652023001 | V5: =INDEX('Capacity Summary'!O$36:O$41,MATCH($H$5,'Capacity Summary'!$B$20:$B$25,0)) -> 0.8617859932
C6: Results Tools - Overview and Section Tab >
H7: Electricity Lookup | K7: 2022 | L7: 2023 | M7: 2024 | N7: 2025 | O7: 2026 | P7: 2027 | Q7: 2028 | R7: 2029 | S7: 2030 | T7: 2035 | U7: 2040 | V7: 2045
H8: ='Results Tools >'!B22 -> Scenario 1: Low Electric + High Hydrogen | I8: Forecast Electricity Transport Demand | J8: TWh | K8: =INDEX('Capacity Summary'!D$46:D$51,MATCH($H8,'Capacity Summary'!$B$46:$B$51,0)) -> 0.5776948601 | L8: =INDEX('Capacity Summary'!E$46:E$51,MATCH($H$8,'Capacity Summary'!$B$46:$B$51,0)) -> 0.7320389262 | M8: =INDEX('Capacity Summary'!F$46:F$51,MATCH($H$8,'Capacity Summary'!$B$46:$B$51,0)) -> 0.9267645017 | N8: =INDEX('Capacity Summary'!G$46:G$51,MATCH($H$8,'Capacity Summary'!$B$46:$B$51,0)) -> 1.167331503 | O8: =INDEX('Capacity Summary'!H$46:H$51,MATCH($H$8,'Capacity Summary'!$B$46:$B$51,0)) -> 1.375694663 | P8: =INDEX('Capacity Summary'!I$46:I$51,MATCH($H$8,'Capacity Summary'!$B$46:$B$51,0)) -> 1.651520537 | Q8: =INDEX('Capacity Summary'!J$46:J$51,MATCH($H$8,'Capacity Summary'!$B$46:$B$51,0)) -> 1.954143725 | R8: =INDEX('Capacity Summary'!K$46:K$51,MATCH($H$8,'Capacity Summary'!$B$46:$B$51,0)) -> 2.311141858 | S8: =INDEX('Capacity Summary'!L$46:L$51,MATCH($H$8,'Capacity Summary'!$B$46:$B$51,0)) -> 2.816915823 | T8: =INDEX('Capacity Summary'!M$46:M$51,MATCH($H$8,'Capacity Summary'!$B$46:$B$51,0)) -> 5.683640769 | U8: =INDEX('Capacity Summary'!N$46:N$51,MATCH($H$8,'Capacity Summary'!$B$46:$B$51,0)) -> 9.045974124 | V8: =INDEX('Capacity Summary'!O$46:O$51,MATCH($H$8,'Capacity Summary'!$B$46:$B$51,0)) -> 11.20471969
H9: =H8 -> Scenario 1: Low Electric + High Hydrogen | I9: Forecast Hydrogen Transport Demand | K9: =INDEX('Capacity Summary'!D$54:D$59,MATCH($H9,'Capacity Summary'!$B$54:$B$59,0)) -> 0.01514254295 | L9: =INDEX('Capacity Summary'!E$54:E$59,MATCH($H9,'Capacity Summary'!$B$54:$B$59,0)) -> 0.02318695458 | M9: =INDEX('Capacity Summary'!F$54:F$59,MATCH($H9,'Capacity Summary'!$B$54:$B$59,0)) -> 0.03286407042 | N9: =INDEX('Capacity Summary'!G$54:G$59,MATCH($H9,'Capacity Summary'!$B$54:$B$59,0)) -> 0.04685437061 | O9: =INDEX('Capacity Summary'!H$54:H$59,MATCH($H9,'Capacity Summary'!$B$54:$B$59,0)) -> 0.1830171232 | P9: =INDEX('Capacity Summary'!I$54:I$59,MATCH($H9,'Capacity Summary'!$B$54:$B$59,0)) -> 0.3417716745 | Q9: =INDEX('Capacity Summary'!J$54:J$59,MATCH($H9,'Capacity Summary'!$B$54:$B$59,0)) -> 0.5331110313 | R9: =INDEX('Capacity Summary'!K$54:K$59,MATCH($H9,'Capacity Summary'!$B$54:$B$59,0)) -> 0.7225428937 | S9: =INDEX('Capacity Summary'!L$54:L$59,MATCH($H9,'Capacity Summary'!$B$54:$B$59,0)) -> 1.795393279 | T9: =INDEX('Capacity Summary'!M$54:M$59,MATCH($H9,'Capacity Summary'!$B$54:$B$59,0)) -> 8.523016893 | U9: =INDEX('Capacity Summary'!N$54:N$59,MATCH($H9,'Capacity Summary'!$B$54:$B$59,0)) -> 15.60640194 | V9: =INDEX('Capacity Summary'!O$54:O$59,MATCH($H9,'Capacity Summary'!$B$54:$B$59,0)) -> 22.72400876
H10: =H9 -> Scenario 1: Low Electric + High Hydrogen | I10: Estimated Excess Electricity Capacity | J10: TWh | K10: =INDEX('Capacity Summary'!D$62:D$67,MATCH($H10,'Capacity Summary'!$B$62:$B$67,0)) -> 39.34114831 | L10: =INDEX('Capacity Summary'!E$62:E$67,MATCH($H10,'Capacity Summary'!$B$62:$B$67,0)) -> 43.21442034 | M10: =INDEX('Capacity Summary'!F$62:F$67,MATCH($H10,'Capacity Summary'!$B$62:$B$67,0)) -> 47.04567815 | N10: =INDEX('Capacity Summary'!G$62:G$67,MATCH($H10,'Capacity Summary'!$B$62:$B$67,0)) -> 50.82678135 | O10: =INDEX('Capacity Summary'!H$62:H$67,MATCH($H10,'Capacity Summary'!$B$62:$B$67,0)) -> 54.51791594 | P10: =INDEX('Capacity Summary'!I$62:I$67,MATCH($H10,'Capacity Summary'!$B$62:$B$67,0)) -> 58.11899602 | Q10: =INDEX('Capacity Summary'!J$62:J$67,MATCH($H10,'Capacity Summary'!$B$62:$B$67,0)) -> 61.66069398 | R10: =INDEX('Capacity Summary'!K$62:K$67,MATCH($H10,'Capacity Summary'!$B$62:$B$67,0)) -> 65.14992449 | S10: =INDEX('Capacity Summary'!L$62:L$67,MATCH($H10,'Capacity Summary'!$B$62:$B$67,0)) -> 67.60696065 | T10: =INDEX('Capacity Summary'!M$62:M$67,MATCH($H10,'Capacity Summary'!$B$62:$B$67,0)) -> 64.2479062 | U10: =INDEX('Capacity Summary'!N$62:N$67,MATCH($H10,'Capacity Summary'!$B$62:$B$67,0)) -> 60.03748192 | V10: =INDEX('Capacity Summary'!O$62:O$67,MATCH($H10,'Capacity Summary'!$B$62:$B$67,0)) -> 56.99642365
H11: Scenario 1: Low Electric + High Hydrogen | I11: Forecast Electricity Transport Demand | K11: =INDEX('Capacity Summary'!D$70:D$75,MATCH($H11,'Capacity Summary'!$B$70:$B$75,0)) -> 0.01446624597 | L11: =INDEX('Capacity Summary'!E$70:E$75,MATCH($H11,'Capacity Summary'!$B$70:$B$75,0)) -> 0.0166487336 | M11: =INDEX('Capacity Summary'!F$70:F$75,MATCH($H11,'Capacity Summary'!$B$70:$B$75,0)) -> 0.01930545944 | N11: =INDEX('Capacity Summary'!G$70:G$75,MATCH($H11,'Capacity Summary'!$B$70:$B$75,0)) -> 0.0224310109 | O11: =INDEX('Capacity Summary'!H$70:H$75,MATCH($H11,'Capacity Summary'!$B$70:$B$75,0)) -> 0.02453240716 | P11: =INDEX('Capacity Summary'!I$70:I$75,MATCH($H11,'Capacity Summary'!$B$70:$B$75,0)) -> 0.02747392564 | Q11: =INDEX('Capacity Summary'!J$70:J$75,MATCH($H11,'Capacity Summary'!$B$70:$B$75,0)) -> 0.03046307424 | R11: =INDEX('Capacity Summary'!K$70:K$75,MATCH($H11,'Capacity Summary'!$B$70:$B$75,0)) -> 0.03389585685 | S11: =INDEX('Capacity Summary'!L$70:L$75,MATCH($H11,'Capacity Summary'!$B$70:$B$75,0)) -> 0.0390050444 | T11: =INDEX('Capacity Summary'!M$70:M$75,MATCH($H11,'Capacity Summary'!$B$70:$B$75,0)) -> 0.07244499859 | U11: =INDEX('Capacity Summary'!N$70:N$75,MATCH($H11,'Capacity Summary'!$B$70:$B$75,0)) -> 0.1068129566 | V11: =INDEX('Capacity Summary'!O$70:O$75,MATCH($H11,'Capacity Summary'!$B$70:$B$75,0)) -> 0.1232301452
H12: Scenario 1: Low Electric + High Hydrogen | I12: Forecast Hydrogen Transport Demand | K12: =INDEX('Capacity Summary'!D$78:D$83,MATCH($H12,'Capacity Summary'!$B$78:$B$83,0)) -> 0.0003791893716 | L12: =INDEX('Capacity Summary'!E$78:E$83,MATCH($H12,'Capacity Summary'!$B$78:$B$83,0)) -> 0.0005273400305 | M12: =INDEX('Capacity Summary'!F$78:F$83,MATCH($H12,'Capacity Summary'!$B$78:$B$83,0)) -> 0.0006845924474 | N12: =INDEX('Capacity Summary'!G$78:G$83,MATCH($H12,'Capacity Summary'!$B$78:$B$83,0)) -> 0.0009003362756 | O12: =INDEX('Capacity Summary'!H$78:H$83,MATCH($H12,'Capacity Summary'!$B$78:$B$83,0)) -> 0.003263697027 | P12: =INDEX('Capacity Summary'!I$78:I$83,MATCH($H12,'Capacity Summary'!$B$78:$B$83,0)) -> 0.005685554228 | Q12: =INDEX('Capacity Summary'!J$78:J$83,MATCH($H12,'Capacity Summary'!$B$78:$B$83,0)) -> 0.008310648147 | R12: =INDEX('Capacity Summary'!K$78:K$83,MATCH($H12,'Capacity Summary'!$B$78:$B$83,0)) -> 0.0105970174 | S12: =INDEX('Capacity Summary'!L$78:L$83,MATCH($H12,'Capacity Summary'!$B$78:$B$83,0)) -> 0.02486030785 | T12: =INDEX('Capacity Summary'!M$78:M$83,MATCH($H12,'Capacity Summary'!$B$78:$B$83,0)) -> 0.1086363428 | U12: =INDEX('Capacity Summary'!N$78:N$83,MATCH($H12,'Capacity Summary'!$B$78:$B$83,0)) -> 0.184277106 | V12: =INDEX('Capacity Summary'!O$78:O$83,MATCH($H12,'Capacity Summary'!$B$78:$B$83,0)) -> 0.2499199422
H13: =H12 -> Scenario 1: Low Electric + High Hydrogen | I13: Estimated Excess Electricity Generation Capacity | K13: =INDEX('Capacity Summary'!D$86:D$91,MATCH($H13,'Capacity Summary'!$B$86:$B$91,0)) -> 0.9851545647 | L13: =INDEX('Capacity Summary'!E$86:E$91,MATCH($H13,'Capacity Summary'!$B$86:$B$91,0)) -> 0.9828239264 | M13: =INDEX('Capacity Summary'!F$86:F$91,MATCH($H13,'Capacity Summary'!$B$86:$B$91,0)) -> 0.9800099481 | N13: =INDEX('Capacity Summary'!G$86:G$91,MATCH($H13,'Capacity Summary'!$B$86:$B$91,0)) -> 0.9766686528 | O13: =INDEX('Capacity Summary'!H$86:H$91,MATCH($H13,'Capacity Summary'!$B$86:$B$91,0)) -> 0.9722038958 | P13: =INDEX('Capacity Summary'!I$86:I$91,MATCH($H13,'Capacity Summary'!$B$86:$B$91,0)) -> 0.9668405201 | Q13: =INDEX('Capacity Summary'!J$86:J$91,MATCH($H13,'Capacity Summary'!$B$86:$B$91,0)) -> 0.9612262776 | R13: =INDEX('Capacity Summary'!K$86:K$91,MATCH($H13,'Capacity Summary'!$B$86:$B$91,0)) -> 0.9555071258 | S13: =INDEX('Capacity Summary'!L$86:L$91,MATCH($H13,'Capacity Summary'!$B$86:$B$91,0)) -> 0.9361346478 | T13: =INDEX('Capacity Summary'!M$86:M$91,MATCH($H13,'Capacity Summary'!$B$86:$B$91,0)) -> 0.8189186586 | U13: =INDEX('Capacity Summary'!N$86:N$91,MATCH($H13,'Capacity Summary'!$B$86:$B$91,0)) -> 0.7089099374 | V13: =INDEX('Capacity Summary'!O$86:O$91,MATCH($H13,'Capacity Summary'!$B$86:$B$91,0)) -> 0.6268499126
B22: Scenario 1: Low Electric + High Hydrogen

Sheet Total Energy Demand
B6: Total Energy Demand Excel Tool
A10: Energy Units Selector | B10: TWh
A11: (Drop down filter)
A16: Sum of Electricity | B16: Column Labels
A17: Row Labels | B17: Scenario 1: Low Electric + High Hydrogen | C17: Scenario 2: Medium Electric + Low Hydrogen | D17: Scenario 3: Medium Electric + High Hydrogen | E17: Scenario 4: High Electric + Low Hydrogen | F17: Scenario 5: High Electric + High Hydrogen | G17: Scenario 6: Medium Electric + Medium Hydrogen | H17: Grand Total
A18: 2022 | B18: 577694860.1 | C18: 598170536 | D18: 606722799.9 | E18: 715225850.7 | F18: 714659548.8 | G18: 606980004.2 | H18: 3819453600
A19: 2023 | B19: 732038926.2 | C19: 780909494.2 | D19: 797636243.2 | E19: 1012419327 | F19: 1011325848 | G19: 800857571.4 | H19: 5135187409
A20: 2024 | B20: 926764501.7 | C20: 1013238859 | D20: 1020645064 | E20: 1276830761 | F20: 1275213757 | G20: 1026823244 | H20: 6539516186
A21: 2025 | B21: 1167331503 | C21: 1307906249 | D21: 1312366893 | E21: 1626479851 | F21: 1623741769 | G21: 1313521592 | H21: 8351347858
A22: 2026 | B22: 1375694663 | C22: 1591309558 | D22: 1595936075 | E22: 1997142295 | F22: 1992836603 | G22: 1586062298 | H22: 1.013898149e+10
A23: 2027 | B23: 1651520537 | C23: 1944073080 | D23: 1954819799 | E23: 2458803766 | F23: 2453058356 | G23: 1929377357 | H23: 1.23916529e+10
A24: 2028 | B24: 1954143725 | C24: 2325760771 | D24: 2348956508 | E24: 2950322251 | F24: 2943231660 | G24: 2317705266 | H24: 1.484012018e+10
A25: 2029 | B25: 2311141858 | C25: 2782686742 | D25: 2805963808 | E25: 3552886737 | F25: 3594269262 | G25: 2773524270 | H25: 1.782047268e+10
A26: 2030 | B26: 2816915823 | C26: 3394302232 | D26: 3432566791 | E26: 4363863963 | F26: 4444709283 | G26: 3412883546 | H26: 2.186524164e+10
A27: 2035 | B27: 5683640769 | C27: 6744773193 | D27: 6985800900 | E27: 8615252381 | F27: 8474118954 | G27: 7029920119 | H27: 4.353350632e+10
A28: 2040 | B28: 9045974124 | C28: 1.024341124e+10 | D28: 1.011456076e+10 | E28: 1.21246077e+10 | F28: 1.187480086e+10 | G28: 1.024448588e+10 | H28: 6.364784056e+10
A29: 2045 | B29: 1.120471969e+10 | C29: 1.245059424e+10 | D29: 1.215835398e+10 | E29: 1.416773989e+10 | F29: 1.383762587e+10 | G29: 1.229565551e+10 | H29: 7.611468918e+10
A30: Grand Total | B30: 3.944758098e+10 | C30: 4.51771362e+10 | D30: 4.513432962e+10 | E30: 5.486157477e+10 | F30: 5.423959177e+10 | G30: 4.533779666e+10 | H30: 2.8419801e+11
A73: Sum of Hydrogen | B73: Column Labels
A74: Row Labels | B74: Scenario 1: Low Electric + High Hydrogen | C74: Scenario 2: Medium Electric + Low Hydrogen | D74: Scenario 3: Medium Electric + High Hydrogen | E74: Scenario 4: High Electric + Low Hydrogen | F74: Scenario 5: High Electric + High Hydrogen | G74: Scenario 6: Medium Electric + Medium Hydrogen | H74: Grand Total
A75: 2022 | B75: 9900893.466 | C75: 3919432.014 | D75: 13375821.88 | E75: 4788231.192 | F75: 13550290.27 | G75: 9083030.987 | H75: 54617699.81
A76: 2023 | B76: 15160701.07 | C76: 5154229.05 | D76: 23326490.87 | E76: 7065527.293 | F76: 23327983.32 | G76: 15197966.61 | H76: 89232898.22
A77: 2024 | B77: 21488046.04 | C77: 6648789.92 | D77: 27222570.5 | E77: 7865474.843 | F77: 27224721.19 | G77: 17720322.27 | H77: 108169924.8
A78: 2025 | B78: 30635550.02 | C78: 8617707.543 | D78: 33244087.52 | E78: 9139816.008 | F78: 33247008.62 | G78: 21283793.13 | H78: 136167962.8
A79: 2026 | B79: 119665042.1 | C79: 87485465.67 | D79: 120862038.7 | E79: 46875190.83 | F79: 76368991.7 | G79: 101696960.1 | H79: 552953689
A80: 2027 | B80: 223466094.9 | C80: 181713824.7 | D80: 225332591.4 | E80: 90334920.13 | F80: 125729304.1 | G80: 197575668.6 | H80: 1044152404
A81: 2028 | B81: 348572597.4 | C81: 297572710.7 | D81: 353134775.6 | E81: 151900910.9 | F81: 192982530.2 | G81: 318628812.5 | H81: 1662792337
A82: 2029 | B82: 472431892 | C82: 416209917 | D82: 478642128.6 | E82: 209680379.4 | F82: 260488474.5 | G82: 440665220 | H82: 2278118012
A83: 2030 | B83: 1173910990 | C83: 700416028.5 | D83: 1186087818 | E83: 429992897.7 | F83: 905273711.2 | G83: 890689479.3 | H83: 5286370924
A84: 2035 | B84: 5572741815 | C84: 2563120884 | D84: 5567449105 | E84: 1499510194 | F84: 4534060199 | G84: 3765925775 | H84: 2.350280797e+10
A85: 2040 | B85: 1.020418588e+10 | C85: 4413508204 | D85: 1.001914873e+10 | E85: 2869513253 | F85: 8579267864 | G85: 6783274766 | H85: 4.28688987e+10
A86: 2045 | B86: 1.485800573e+10 | C86: 6173294660 | D86: 1.445211585e+10 | E86: 4474073208 | F86: 1.274577619e+10 | G86: 9586132000 | H86: 6.228939764e+10
A87: Grand Total | B87: 3.305016523e+10 | C87: 1.485766185e+10 | D87: 3.249994201e+10 | E87: 9800740003 | F87: 2.751729727e+10 | G87: 2.214787379e+10 | H87: 1.398736802e+11

Sheet Energy Demand by Mode
B6: Energy Demand by Mode Excel Tool
A11: Energy Units Selector | B11: TWh
A12: (Drop down filter)

Sheet Energy Demand Explorer
B6: Energy Demand Explorer Excel Tool
A14: Mode (Drop down filter) | B14: Maritime
A15: Scenarios to compare (Drop down filter) | B15: Scenario 5: High Electric + High Hydrogen
B16: Scenario 6: Medium Electric + Medium Hydrogen
A17: Energy Units Selector | B17: GWh
A18: (Drop down filter)
F30: 2022 | G30: 2023 | H30: 2024 | I30: 2025 | J30: 2026 | K30: 2027 | L30: 2028 | M30: 2029 | N30: 2030 | O30: 2035 | P30: 2040 | Q30: 2045
D31: Scenario 5: High Electric + High Hydrogen | E31: Ferries - Hydrogen | F31: 0 | G31: 0 | H31: 0 | I31: 0 | J31: 0 | K31: 0 | L31: 0 | M31: 0 | N31: 0 | O31: 754302155.5 | P31: 1352541796 | Q31: 1560625149
E32: Shipping - Hydrogen | F32: 0 | G32: 0 | H32: 0 | I32: 0 | J32: 0 | K32: 0 | L32: 0 | M32: 0 | N32: 525064397.8 | O32: 2427482577 | P32: 4553890217 | Q32: 7154126208
E33: Total Hydrogen | F33: 0 | G33: 0 | H33: 0 | I33: 0 | J33: 0 | K33: 0 | L33: 0 | M33: 0 | N33: 525064397.8 | O33: 3181784732 | P33: 5906432013 | Q33: 8714751358
E34: Ferries - Electric | F34: 0 | G34: 7837364.952 | H34: 15674729.9 | I34: 23512094.86 | J34: 31349459.81 | K34: 39186824.76 | L34: 47024189.71 | M34: 54861554.66 | N34: 62698919.62 | O34: 78373649.52 | P34: 78373649.52 | Q34: 78373649.52
E35: Shipping - Electric | F35: 0 | G35: 0 | H35: 0 | I35: 22080491.88 | J35: 62585511.57 | K35: 103090531.3 | L35: 143595551 | M35: 184100570.6 | N35: 224605590.3 | O35: 455837353.5 | P35: 708293798.1 | Q35: 968055761.9
E36: Shipping - Shore Power | F36: 0 | G36: 0 | H36: 0 | I36: 3919474.076 | J36: 5115690.7 | K36: 6311907.325 | L36: 7508123.949 | M36: 8704340.574 | N36: 24698808.71 | O36: 45924706.78 | P36: 67627719.5 | Q36: 89958768.38
E37: Total Electricity | F37: 0 | G37: 7837364.952 | H37: 15674729.9 | I37: 49512060.81 | J37: 99050662.08 | K37: 148589263.3 | L37: 198127864.6 | M37: 247666465.9 | N37: 312003318.7 | O37: 580135709.8 | P37: 854295167.1 | Q37: 1136388180
D38: Scenario 6: Medium Electric + Medium Hydrogen | E38: Ferries - Hydrogen | F38: 0 | G38: 0 | H38: 0 | I38: 0 | J38: 0 | K38: 0 | L38: 0 | M38: 0 | N38: 0 | O38: 645058395.1 | P38: 1196479281 | Q38: 1560625149
E39: Shipping - Hydrogen | F39: 0 | G39: 0 | H39: 0 | I39: 0 | J39: 0 | K39: 0 | L39: 0 | M39: 0 | N39: 281565346.7 | O39: 1056904957 | P39: 1962484279 | Q39: 3099818513
E40: Total Hydrogen | F40: 0 | G40: 0 | H40: 0 | I40: 0 | J40: 0 | K40: 0 | L40: 0 | M40: 0 | N40: 281565346.7 | O40: 1701963353 | P40: 3158963560 | Q40: 4660443662
E41: Ferries - Electric | F41: 0 | G41: 5094287.219 | H41: 10188574.44 | I41: 15282861.66 | J41: 20377148.88 | K41: 25471436.09 | L41: 30565723.31 | M41: 35660010.53 | N41: 40754297.75 | O41: 57273051.57 | P41: 67823350.55 | Q41: 78373649.52
E42: Shipping - Electric | F42: 0 | G42: 0 | H42: 0 | I42: 7530079.928 | J42: 26624637.34 | K42: 45719194.75 | L42: 64813752.17 | M42: 83908309.58 | N42: 103002867 | O42: 210027518 | P42: 325797626.3 | Q42: 445223161.8
E43: Shipping - Shore Power | F43: 0 | G43: 0 | H43: 0 | I43: 5365745.54 | J43: 6911601.598 | K43: 8457457.656 | L43: 10003313.71 | M43: 11549169.77 | N43: 33812577.95 | O43: 62870754.04 | P43: 92582098.34 | Q43: 123153221.8
E44: Total Electricity | F44: 0 | G44: 5094287.219 | H44: 10188574.44 | I44: 28178687.12 | J44: 53913387.81 | K44: 79648088.5 | L44: 105382789.2 | M44: 131117489.9 | N44: 177569742.7 | O44: 330171323.7 | P44: 486203075.2 | Q44: 646750033.1

Sheet Energy Demand Tables >
C6: Energy Demand Tables - Section Tab >

Sheet Full Results
C3: Full Results Tables
A8: Units | B8: MWh | C8: 2022 | D8: 2023 | E8: 2024 | F8: 2025 | G8: 2026 | H8: 2027 | I8: 2028 | J8: 2029 | K8: 2030 | L8: 2035 | M8: 2040 | N8: 2045
A9: (Drop down filter)
A13: Aviation
A14: Scenario 1: Low Electric + High Hydrogen
A15: Electricity | B15: Total | C15: =SUM(C16:C18) -> 0 | D15: 0 | E15: 0 | F15: 0 | G15: 0 | H15: 0 | I15: 0 | J15: 0 | K15: 0 | L15: 4.841940546e-09 | M15: 1620667.323 | N15: 10972891.07
A16: Elec Regional | C16: ='Aviation Summary'!G133 -> 0 | D16: ='Aviation Summary'!H133 -> 0 | E16: ='Aviation Summary'!I133 -> 0 | F16: ='Aviation Summary'!J133 -> 0 | G16: ='Aviation Summary'!K133 -> 0 | H16: ='Aviation Summary'!L133 -> 0 | I16: ='Aviation Summary'!M133 -> 0 | J16: ='Aviation Summary'!N133 -> 0 | K16: ='Aviation Summary'!O133 -> 0 | L16: ='Aviation Summary'!P133 -> 3.895051763e-09 | M16: ='Aviation Summary'!Q133 -> 0 | N16: ='Aviation Summary'!R133 -> 0
A17: Elec Small Turbo | C17: ='Aviation Summary'!G134 -> 0 | D17: ='Aviation Summary'!H134 -> 0 | E17: ='Aviation Summary'!I134 -> 0 | F17: ='Aviation Summary'!J134 -> 0 | G17: ='Aviation Summary'!K134 -> 0 | H17: ='Aviation Summary'!L134 -> 0 | I17: ='Aviation Summary'!M134 -> 0 | J17: ='Aviation Summary'!N134 -> 0 | K17: ='Aviation Summary'!O134 -> 0 | L17: ='Aviation Summary'!P134 -> 0 | M17: ='Aviation Summary'!Q134 -> 1620667.323 | N17: ='Aviation Summary'!R134 -> 10972891.07
A18: Elec Large Turbo | C18: ='Aviation Summary'!G135 -> 0 | D18: ='Aviation Summary'!H135 -> 0 | E18: ='Aviation Summary'!I135 -> 0 | F18: ='Aviation Summary'!J135 -> 0 | G18: ='Aviation Summary'!K135 -> 0 | H18: ='Aviation Summary'!L135 -> 0 | I18: ='Aviation Summary'!M135 -> 0 | J18: ='Aviation Summary'!N135 -> 0 | K18: ='Aviation Summary'!O135 -> 0 | L18: ='Aviation Summary'!P135 -> 9.468887828e-10 | M18: ='Aviation Summary'!Q135 -> 2.700277336e-08 | N18: ='Aviation Summary'!R135 -> 2.410679219e-08
A19: Hydrogen | B19: Total | C19: =SUM(C20:C22) -> 0 | D19: 0 | E19: 0 | F19: 0 | G19: 0 | H19: 0 | I19: 0 | J19: 0 | K19: 5633868.877 | L19: 359247189.7 | M19: 1085026127 | N19: 1969437720
A20: LH2 Narrow Body | C20: ='Aviation Summary'!G79 -> 0 | D20: ='Aviation Summary'!H79 -> 0 | E20: ='Aviation Summary'!I79 -> 0 | F20: ='Aviation Summary'!J79 -> 0 | G20: ='Aviation Summary'!K79 -> 0 | H20: ='Aviation Summary'!L79 -> 0 | I20: ='Aviation Summary'!M79 -> 0 | J20: ='Aviation Summary'!N79 -> 0 | K20: ='Aviation Summary'!O79 -> 0 | L20: ='Aviation Summary'!P79 -> 302754244.3 | M20: ='Aviation Summary'!Q79 -> 876468155.5 | N20: ='Aviation Summary'!R79 -> 1571044704
A21: LH2 Regional | C21: ='Aviation Summary'!G80 -> 0 | D21: ='Aviation Summary'!H80 -> 0 | E21: ='Aviation Summary'!I80 -> 0 | F21: ='Aviation Summary'!J80 -> 0 | G21: ='Aviation Summary'!K80 -> 0 | H21: ='Aviation Summary'!L80 -> 0 | I21: ='Aviation Summary'!M80 -> 0 | J21: ='Aviation Summary'!N80 -> 0 | K21: ='Aviation Summary'!O80 -> 5633868.877 | L21: ='Aviation Summary'!P80 -> 35665278 | M21: ='Aviation Summary'!Q80 -> 68584681.92 | N21: ='Aviation Summary'!R80 -> 108682648.5
A22: LH2 Wide Body | C22: ='Aviation Summary'!G81 -> 0 | D22: ='Aviation Summary'!H81 -> 0 | E22: ='Aviation Summary'!I81 -> 0 | F22: ='Aviation Summary'!J81 -> 0 | G22: ='Aviation Summary'!K81 -> 0 | H22: ='Aviation Summary'!L81 -> 0 | I22: ='Aviation Summary'!M81 -> 0 | J22: ='Aviation Summary'!N81 -> 0 | K22: ='Aviation Summary'!O81 -> 0 | L22: ='Aviation Summary'!P81 -> 20827667.38 | M22: ='Aviation Summary'!Q81 -> 139973289.2 | N22: ='Aviation Summary'!R81 -> 289710367.7
A23: Scenario 2: Medium Electric + Low Hydrogen
A24: Electricity | B24: Total | C24: =SUM(C25:C27) -> 0 | D24: 0 | E24: 0 | F24: 0 | G24: 0 | H24: 0 | I24: 0 | J24: 0 | K24: 0 | L24: 3.671420968e-08 | M24: 11668804.72 | N24: 57172124.49
A25: Elec Regional | C25: ='Aviation Summary'!G137 -> 0 | D25: ='Aviation Summary'!H137 -> 0 | E25: ='Aviation Summary'!I137 -> 0 | F25: ='Aviation Summary'!J137 -> 0 | G25: ='Aviation Summary'!K137 -> 0 | H25: ='Aviation Summary'!L137 -> 0 | I25: ='Aviation Summary'!M137 -> 0 | J25: ='Aviation Summary'!N137 -> 0 | K25: ='Aviation Summary'!O137 -> 0 | L25: ='Aviation Summary'!P137 -> 3.202780815e-08 | M25: ='Aviation Summary'!Q137 -> 6.691970219e-09 | N25: ='Aviation Summary'!R137 -> 9104743.276
A26: Elec Small Turbo | C26: ='Aviation Summary'!G138 -> 0 | D26: ='Aviation Summary'!H138 -> 0 | E26: ='Aviation Summary'!I138 -> 0 | F26: ='Aviation Summary'!J138 -> 0 | G26: ='Aviation Summary'!K138 -> 0 | H26: ='Aviation Summary'!L138 -> 0 | I26: ='Aviation Summary'!M138 -> 0 | J26: ='Aviation Summary'!N138 -> 0 | K26: ='Aviation Summary'!O138 -> 0 | L26: ='Aviation Summary'!P138 -> 0 | M26: ='Aviation Summary'!Q138 -> 11668804.72 | N26: ='Aviation Summary'!R138 -> 29626805.89
A27: Elec Large Turbo | C27: ='Aviation Summary'!G139 -> 0 | D27: ='Aviation Summary'!H139 -> 0 | E27: ='Aviation Summary'!I139 -> 0 | F27: ='Aviation Summary'!J139 -> 0 | G27: ='Aviation Summary'!K139 -> 0 | H27: ='Aviation Summary'!L139 -> 0 | I27: ='Aviation Summary'!M139 -> 0 | J27: ='Aviation Summary'!N139 -> 0 | K27: ='Aviation Summary'!O139 -> 0 | L27: ='Aviation Summary'!P139 -> 4.686401529e-09 | M27: ='Aviation Summary'!Q139 -> 2.745991587e-09 | N27: ='Aviation Summary'!R139 -> 18440575.33
A28: Hydrogen | B28: Total | C28: =SUM(C29:C31) -> 0 | D28: 0 | E28: 0 | F28: 0 | G28: 0 | H28: 0 | I28: 0 | J28: 0 | K28: 0 | L28: 2929268.93 | M28: 242457037.7 | N28: 736422100.9
A29: LH2 Narrow Body | C29: ='Aviation Summary'!G83 -> 0 | D29: ='Aviation Summary'!H83 -> 0 | E29: ='Aviation Summary'!I83 -> 0 | F29: ='Aviation Summary'!J83 -> 0 | G29: ='Aviation Summary'!K83 -> 0 | H29: ='Aviation Summary'!L83 -> 0 | I29: ='Aviation Summary'!M83 -> 0 | J29: ='Aviation Summary'!N83 -> 0 | K29: ='Aviation Summary'!O83 -> 0 | L29: ='Aviation Summary'!P83 -> 0 | M29: ='Aviation Summary'!Q83 -> 213425687.2 | N29: ='Aviation Summary'!R83 -> 627790091.5
A30: LH2 Regional | C30: ='Aviation Summary'!G84 -> 0 | D30: ='Aviation Summary'!H84 -> 0 | E30: ='Aviation Summary'!I84 -> 0 | F30: ='Aviation Summary'!J84 -> 0 | G30: ='Aviation Summary'!K84 -> 0 | H30: ='Aviation Summary'!L84 -> 0 | I30: ='Aviation Summary'!M84 -> 0 | J30: ='Aviation Summary'!N84 -> 0 | K30: ='Aviation Summary'!O84 -> 0 | L30: ='Aviation Summary'!P84 -> 2929268.93 | M30: ='Aviation Summary'!Q84 -> 18427313.42 | N30: ='Aviation Summary'!R84 -> 36802992.57
A31: LH2 Wide Body | C31: ='Aviation Summary'!G85 -> 0 | D31: ='Aviation Summary'!H85 -> 0 | E31: ='Aviation Summary'!I85 -> 0 | F31: ='Aviation Summary'!J85 -> 0 | G31: ='Aviation Summary'!K85 -> 0 | H31: ='Aviation Summary'!L85 -> 0 | I31: ='Aviation Summary'!M85 -> 0 | J31: ='Aviation Summary'!N85 -> 0 | K31: ='Aviation Summary'!O85 -> 0 | L31: ='Aviation Summary'!P85 -> 0 | M31: ='Aviation Summary'!Q85 -> 10604037.06 | N31: ='Aviation Summary'!R85 -> 71829016.79
A32: Scenario 3: Medium Electric + High Hydrogen
A33: Electricity | B33: Total | C33: =SUM(C34:C36) -> 0 | D33: 0 | E33: 0 | F33: 0 | G33: 0 | H33: 0 | I33: 0 | J33: 0 | K33: 0 | L33: 4.841940546e-09 | M33: 11668804.72 | N33: 49415749.85
A34: Elec Regional | C34: ='Aviation Summary'!G141 -> 0 | D34: ='Aviation Summary'!H141 -> 0 | E34: ='Aviation Summary'!I141 -> 0 | F34: ='Aviation Summary'!J141 -> 0 | G34: ='Aviation Summary'!K141 -> 0 | H34: ='Aviation Summary'!L141 -> 0 | I34: ='Aviation Summary'!M141 -> 0 | J34: ='Aviation Summary'!N141 -> 0 | K34: ='Aviation Summary'!O141 -> 0 | L34: ='Aviation Summary'!P141 -> 3.895051763e-09 | M34: ='Aviation Summary'!Q141 -> 0 | N34: ='Aviation Summary'!R141 -> 4338142.384
A35: Elec Small Turbo | C35: ='Aviation Summary'!G142 -> 0 | D35: ='Aviation Summary'!H142 -> 0 | E35: ='Aviation Summary'!I142 -> 0 | F35: ='Aviation Summary'!J142 -> 0 | G35: ='Aviation Summary'!K142 -> 0 | H35: ='Aviation Summary'!L142 -> 0 | I35: ='Aviation Summary'!M142 -> 0 | J35: ='Aviation Summary'!N142 -> 0 | K35: ='Aviation Summary'!O142 -> 0 | L35: ='Aviation Summary'!P142 -> 0 | M35: ='Aviation Summary'!Q142 -> 11668804.72 | N35: ='Aviation Summary'!R142 -> 29626805.89
A36: Elec Large Turbo | C36: ='Aviation Summary'!G143 -> 0 | D36: ='Aviation Summary'!H143 -> 0 | E36: ='Aviation Summary'!I143 -> 0 | F36: ='Aviation Summary'!J143 -> 0 | G36: ='Aviation Summary'!K143 -> 0 | H36: ='Aviation Summary'!L143 -> 0 | I36: ='Aviation Summary'!M143 -> 0 | J36: ='Aviation Summary'!N143 -> 0 | K36: ='Aviation Summary'!O143 -> 0 | L36: ='Aviation Summary'!P143 -> 9.468887828e-10 | M36: ='Aviation Summary'!Q143 -> 2.700277336e-08 | N36: ='Aviation Summary'!R143 -> 15450801.58
A37: Hydrogen | B37: Total | C37: ='Aviation Summary'!G38 -> 0 | D37: ='Aviation Summary'!H38 -> 0 | E37: ='Aviation Summary'!I38 -> 0 | F37: ='Aviation Summary'!J38 -> 0 | G37: ='Aviation Summary'!K38 -> 0 | H37: ='Aviation Summary'!L38 -> 0 | I37: ='Aviation Summary'!M38 -> 0 | J37: ='Aviation Summary'!N38 -> 0 | K37: ='Aviation Summary'!O38 -> 5633868.877 | L37: ='Aviation Summary'!P38 -> 359247189.7 | M37: ='Aviation Summary'!Q38 -> 1085026127 | N37: ='Aviation Summary'!R38 -> 1969437720
A38: LH2 Narrow Body | C38: ='Aviation Summary'!G87 -> 0 | D38: ='Aviation Summary'!H87 -> 0 | E38: ='Aviation Summary'!I87 -> 0 | F38: ='Aviation Summary'!J87 -> 0 | G38: ='Aviation Summary'!K87 -> 0 | H38: ='Aviation Summary'!L87 -> 0 | I38: ='Aviation Summary'!M87 -> 0 | J38: ='Aviation Summary'!N87 -> 0 | K38: ='Aviation Summary'!O87 -> 0 | L38: ='Aviation Summary'!P87 -> 302754244.3 | M38: ='Aviation Summary'!Q87 -> 876468155.5 | N38: ='Aviation Summary'!R87 -> 1571044704
A39: LH2 Regional | C39: ='Aviation Summary'!G88 -> 0 | D39: ='Aviation Summary'!H88 -> 0 | E39: ='Aviation Summary'!I88 -> 0 | F39: ='Aviation Summary'!J88 -> 0 | G39: ='Aviation Summary'!K88 -> 0 | H39: ='Aviation Summary'!L88 -> 0 | I39: ='Aviation Summary'!M88 -> 0 | J39: ='Aviation Summary'!N88 -> 0 | K39: ='Aviation Summary'!O88 -> 5633868.877 | L39: ='Aviation Summary'!P88 -> 35665278 | M39: ='Aviation Summary'!Q88 -> 68584681.92 | N39: ='Aviation Summary'!R88 -> 108682648.5
A40: LH2 Wide Body | C40: ='Aviation Summary'!G89 -> 0 | D40: ='Aviation Summary'!H89 -> 0 | E40: ='Aviation Summary'!I89 -> 0 | F40: ='Aviation Summary'!J89 -> 0 | G40: ='Aviation Summary'!K89 -> 0 | H40: ='Aviation Summary'!L89 -> 0 | I40: ='Aviation Summary'!M89 -> 0 | J40: ='Aviation Summary'!N89 -> 0 | K40: ='Aviation Summary'!O89 -> 0 | L40: ='Aviation Summary'!P89 -> 20827667.38 | M40: ='Aviation Summary'!Q89 -> 139973289.2 | N40: ='Aviation Summary'!R89 -> 289710367.7
A41: Scenario 4: High Electric + Low Hydrogen
A42: Electricity | B42: Total | C42: =SUM(C43:C45) -> 0 | D42: 0 | E42: 0 | F42: 0 | G42: 0 | H42: 0 | I42: 0 | J42: 0 | K42: 0 | L42: 2916361.188 | M42: 48599166.1 | N42: 222337063.5
A43: Elec Regional | C43: ='Aviation Summary'!G145 -> 0 | D43: ='Aviation Summary'!H145 -> 0 | E43: ='Aviation Summary'!I145 -> 0 | F43: ='Aviation Summary'!J145 -> 0 | G43: ='Aviation Summary'!K145 -> 0 | H43: ='Aviation Summary'!L145 -> 0 | I43: ='Aviation Summary'!M145 -> 0 | J43: ='Aviation Summary'!N145 -> 0 | K43: ='Aviation Summary'!O145 -> 0 | L43: ='Aviation Summary'!P145 -> 3.202780815e-08 | M43: ='Aviation Summary'!Q145 -> 9652232.935 | N43: ='Aviation Summary'!R145 -> 54628459.66
A44: Elec Small Turbo | C44: ='Aviation Summary'!G146 -> 0 | D44: ='Aviation Summary'!H146 -> 0 | E44: ='Aviation Summary'!I146 -> 0 | F44: ='Aviation Summary'!J146 -> 0 | G44: ='Aviation Summary'!K146 -> 0 | H44: ='Aviation Summary'!L146 -> 0 | I44: ='Aviation Summary'!M146 -> 0 | J44: ='Aviation Summary'!N146 -> 0 | K44: ='Aviation Summary'!O146 -> 0 | L44: ='Aviation Summary'!P146 -> 2916361.188 | M44: ='Aviation Summary'!Q146 -> 18670087.56 | N44: ='Aviation Summary'!R146 -> 38624576.56
A45: Elec Large Turbo | C45: ='Aviation Summary'!G147 -> 0 | D45: ='Aviation Summary'!H147 -> 0 | E45: ='Aviation Summary'!I147 -> 0 | F45: ='Aviation Summary'!J147 -> 0 | G45: ='Aviation Summary'!K147 -> 0 | H45: ='Aviation Summary'!L147 -> 0 | I45: ='Aviation Summary'!M147 -> 0 | J45: ='Aviation Summary'!N147 -> 0 | K45: ='Aviation Summary'!O147 -> 0 | L45: ='Aviation Summary'!P147 -> 4.686401529e-09 | M45: ='Aviation Summary'!Q147 -> 20276845.61 | N45: ='Aviation Summary'!R147 -> 129084027.3
A46: Hydrogen | B46: Total | C46: =SUM(C47:C49) -> 0 | D46: 0 | E46: 0 | F46: 0 | G46: 0 | H46: 0 | I46: 0 | J46: 0 | K46: 0 | L46: 2929268.93 | M46: 242457037.7 | N46: 736422100.9
A47: LH2 Narrow Body | C47: ='Aviation Summary'!G91 -> 0 | D47: ='Aviation Summary'!H91 -> 0 | E47: ='Aviation Summary'!I91 -> 0 | F47: ='Aviation Summary'!J91 -> 0 | G47: ='Aviation Summary'!K91 -> 0 | H47: ='Aviation Summary'!L91 -> 0 | I47: ='Aviation Summary'!M91 -> 0 | J47: ='Aviation Summary'!N91 -> 0 | K47: ='Aviation Summary'!O91 -> 0 | L47: ='Aviation Summary'!P91 -> 0 | M47: ='Aviation Summary'!Q91 -> 213425687.2 | N47: ='Aviation Summary'!R91 -> 627790091.5
A48: LH2 Regional | C48: ='Aviation Summary'!G92 -> 0 | D48: ='Aviation Summary'!H92 -> 0 | E48: ='Aviation Summary'!I92 -> 0 | F48: ='Aviation Summary'!J92 -> 0 | G48: ='Aviation Summary'!K92 -> 0 | H48: ='Aviation Summary'!L92 -> 0 | I48: ='Aviation Summary'!M92 -> 0 | J48: ='Aviation Summary'!N92 -> 0 | K48: ='Aviation Summary'!O92 -> 0 | L48: ='Aviation Summary'!P92 -> 2929268.93 | M48: ='Aviation Summary'!Q92 -> 18427313.42 | N48: ='Aviation Summary'!R92 -> 36802992.57
A49: LH2 Wide Body | C49: ='Aviation Summary'!G93 -> 0 | D49: ='Aviation Summary'!H93 -> 0 | E49: ='Aviation Summary'!I93 -> 0 | F49: ='Aviation Summary'!J93 -> 0 | G49: ='Aviation Summary'!K93 -> 0 | H49: ='Aviation Summary'!L93 -> 0 | I49: ='Aviation Summary'!M93 -> 0 | J49: ='Aviation Summary'!N93 -> 0 | K49: ='Aviation Summary'!O93 -> 0 | L49: ='Aviation Summary'!P93 -> 0 | M49: ='Aviation Summary'!Q93 -> 10604037.06 | N49: ='Aviation Summary'!R93 -> 71829016.79
A50: Scenario 5: High Electric + High Hydrogen
A51: Electricity | B51: Total | C51: =SUM(C52:C54) -> 0 | D51: 0 | E51: 0 | F51: 0 | G51: 0 | H51: 0 | I51: 0 | J51: 0 | K51: 0 | L51: 2916361.188 | M51: 42806475.25 | N51: 172809041.9
A52: Elec Regional | C52: ='Aviation Summary'!G149 -> 0 | D52: ='Aviation Summary'!H149 -> 0 | E52: ='Aviation Summary'!I149 -> 0 | F52: ='Aviation Summary'!J149 -> 0 | G52: ='Aviation Summary'!K149 -> 0 | H52: ='Aviation Summary'!L149 -> 0 | I52: ='Aviation Summary'!M149 -> 0 | J52: ='Aviation Summary'!N149 -> 0 | K52: ='Aviation Summary'!O149 -> 0 | L52: ='Aviation Summary'!P149 -> 3.895051763e-09 | M52: ='Aviation Summary'!Q149 -> 6236827.435 | N52: ='Aviation Summary'!R149 -> 26028854.31
A53: Elec Small Turbo | C53: ='Aviation Summary'!G150 -> 0 | D53: ='Aviation Summary'!H150 -> 0 | E53: ='Aviation Summary'!I150 -> 0 | F53: ='Aviation Summary'!J150 -> 0 | G53: ='Aviation Summary'!K150 -> 0 | H53: ='Aviation Summary'!L150 -> 0 | I53: ='Aviation Summary'!M150 -> 0 | J53: ='Aviation Summary'!N150 -> 0 | K53: ='Aviation Summary'!O150 -> 0 | L53: ='Aviation Summary'!P150 -> 2916361.188 | M53: ='Aviation Summary'!Q150 -> 18670087.56 | N53: ='Aviation Summary'!R150 -> 38624576.56
A54: Elec Large Turbo | C54: ='Aviation Summary'!G151 -> 0 | D54: ='Aviation Summary'!H151 -> 0 | E54: ='Aviation Summary'!I151 -> 0 | F54: ='Aviation Summary'!J151 -> 0 | G54: ='Aviation Summary'!K151 -> 0 | H54: ='Aviation Summary'!L151 -> 0 | I54: ='Aviation Summary'!M151 -> 0 | J54: ='Aviation Summary'!N151 -> 0 | K54: ='Aviation Summary'!O151 -> 0 | L54: ='Aviation Summary'!P151 -> 9.468887828e-10 | M54: ='Aviation Summary'!Q151 -> 17899560.26 | N54: ='Aviation Summary'!R151 -> 108155611.1
A55: Hydrogen | B55: Total | C55: ='Aviation Summary'!G44 -> 0 | D55: ='Aviation Summary'!H44 -> 0 | E55: ='Aviation Summary'!I44 -> 0 | F55: ='Aviation Summary'!J44 -> 0 | G55: ='Aviation Summary'!K44 -> 0 | H55: ='Aviation Summary'!L44 -> 0 | I55: ='Aviation Summary'!M44 -> 0 | J55: ='Aviation Summary'!N44 -> 0 | K55: ='Aviation Summary'!O44 -> 5633868.877 | L55: ='Aviation Summary'!P44 -> 359247189.7 | M55: ='Aviation Summary'!Q44 -> 1085026127 | N55: ='Aviation Summary'!R44 -> 1969437720
A56: LH2 Narrow Body | C56: ='Aviation Summary'!G95 -> 0 | D56: ='Aviation Summary'!H95 -> 0 | E56: ='Aviation Summary'!I95 -> 0 | F56: ='Aviation Summary'!J95 -> 0 | G56: ='Aviation Summary'!K95 -> 0 | H56: ='Aviation Summary'!L95 -> 0 | I56: ='Aviation Summary'!M95 -> 0 | J56: ='Aviation Summary'!N95 -> 0 | K56: ='Aviation Summary'!O95 -> 0 | L56: ='Aviation Summary'!P95 -> 302754244.3 | M56: ='Aviation Summary'!Q95 -> 876468155.5 | N56: ='Aviation Summary'!R95 -> 1571044704
A57: LH2 Regional | C57: ='Aviation Summary'!G96 -> 0 | D57: ='Aviation Summary'!H96 -> 0 | E57: ='Aviation Summary'!I96 -> 0 | F57: ='Aviation Summary'!J96 -> 0 | G57: ='Aviation Summary'!K96 -> 0 | H57: ='Aviation Summary'!L96 -> 0 | I57: ='Aviation Summary'!M96 -> 0 | J57: ='Aviation Summary'!N96 -> 0 | K57: ='Aviation Summary'!O96 -> 5633868.877 | L57: ='Aviation Summary'!P96 -> 35665278 | M57: ='Aviation Summary'!Q96 -> 68584681.92 | N57: ='Aviation Summary'!R96 -> 108682648.5
A58: LH2 Wide Body | C58: ='Aviation Summary'!G97 -> 0 | D58: ='Aviation Summary'!H97 -> 0 | E58: ='Aviation Summary'!I97 -> 0 | F58: ='Aviation Summary'!J97 -> 0 | G58: ='Aviation Summary'!K97 -> 0 | H58: ='Aviation Summary'!L97 -> 0 | I58: ='Aviation Summary'!M97 -> 0 | J58: ='Aviation Summary'!N97 -> 0 | K58: ='Aviation Summary'!O97 -> 0 | L58: ='Aviation Summary'!P97 -> 20827667.38 | M58: ='Aviation Summary'!Q97 -> 139973289.2 | N58: ='Aviation Summary'!R97 -> 289710367.7
A59: Scenario 6: Medium Electric + Medium Hydrogen
A60: Electricity | B60: Total | C60: =SUM(C61:C63) -> 0 | D60: 0 | E60: 0 | F60: 0 | G60: 0 | H60: 0 | I60: 0 | J60: 0 | K60: 0 | L60: 1.525125493e-08 | M60: 11668804.72 | N60: 52944814.03
A61: Elec Regional | C61: ='Aviation Summary'!G153 -> 0 | D61: ='Aviation Summary'!H153 -> 0 | E61: ='Aviation Summary'!I153 -> 0 | F61: ='Aviation Summary'!J153 -> 0 | G61: ='Aviation Summary'!K153 -> 0 | H61: ='Aviation Summary'!L153 -> 0 | I61: ='Aviation Summary'!M153 -> 0 | J61: ='Aviation Summary'!N153 -> 0 | K61: ='Aviation Summary'!O153 -> 0 | L61: ='Aviation Summary'!P153 -> 6.146443836e-11 | M61: ='Aviation Summary'!Q153 -> 2.286792898e-08 | N61: ='Aviation Summary'!R153 -> 6426877.607
A62: Elec Small Turbo | C62: ='Aviation Summary'!G154 -> 0 | D62: ='Aviation Summary'!H154 -> 0 | E62: ='Aviation Summary'!I154 -> 0 | F62: ='Aviation Summary'!J154 -> 0 | G62: ='Aviation Summary'!K154 -> 0 | H62: ='Aviation Summary'!L154 -> 0 | I62: ='Aviation Summary'!M154 -> 0 | J62: ='Aviation Summary'!N154 -> 0 | K62: ='Aviation Summary'!O154 -> 0 | L62: ='Aviation Summary'!P154 -> 0 | M62: ='Aviation Summary'!Q154 -> 11668804.72 | N62: ='Aviation Summary'!R154 -> 29626805.89
A63: Elec Large Turbo | C63: ='Aviation Summary'!G155 -> 0 | D63: ='Aviation Summary'!H155 -> 0 | E63: ='Aviation Summary'!I155 -> 0 | F63: ='Aviation Summary'!J155 -> 0 | G63: ='Aviation Summary'!K155 -> 0 | H63: ='Aviation Summary'!L155 -> 0 | I63: ='Aviation Summary'!M155 -> 0 | J63: ='Aviation Summary'!N155 -> 0 | K63: ='Aviation Summary'!O155 -> 0 | L63: ='Aviation Summary'!P155 -> 1.518979049e-08 | M63: ='Aviation Summary'!Q155 -> 5.347888361e-09 | N63: ='Aviation Summary'!R155 -> 16891130.54
A64: Hydrogen | B64: Total | C64: =SUM(C65:C67) -> 0 | D64: 0 | E64: 0 | F64: 0 | G64: 0 | H64: 0 | I64: 0 | J64: 0 | K64: 0 | L64: 105419884.1 | M64: 678072410.9 | N64: 1392868595
A65: LH2 Narrow Body | C65: ='Aviation Summary'!G99 -> 0 | D65: ='Aviation Summary'!H99 -> 0 | E65: ='Aviation Summary'!I99 -> 0 | F65: ='Aviation Summary'!J99 -> 0 | G65: ='Aviation Summary'!K99 -> 0 | H65: ='Aviation Summary'!L99 -> 0 | I65: ='Aviation Summary'!M99 -> 0 | J65: ='Aviation Summary'!N99 -> 0 | K65: ='Aviation Summary'!O99 -> 0 | L65: ='Aviation Summary'!P99 -> 86501212.65 | M65: ='Aviation Summary'!Q99 -> 563443814.3 | N65: ='Aviation Summary'!R99 -> 1139439016
A66: LH2 Regional | C66: ='Aviation Summary'!G100 -> 0 | D66: ='Aviation Summary'!H100 -> 0 | E66: ='Aviation Summary'!I100 -> 0 | F66: ='Aviation Summary'!J100 -> 0 | G66: ='Aviation Summary'!K100 -> 0 | H66: ='Aviation Summary'!L100 -> 0 | I66: ='Aviation Summary'!M100 -> 0 | J66: ='Aviation Summary'!N100 -> 0 | K66: ='Aviation Summary'!O100 -> 0 | L66: ='Aviation Summary'!P100 -> 18918671.43 | M66: ='Aviation Summary'!Q100 -> 44641951.96 | N66: ='Aviation Summary'!R100 -> 75652762.11
A67: LH2 Wide Body | C67: ='Aviation Summary'!G101 -> 0 | D67: ='Aviation Summary'!H101 -> 0 | E67: ='Aviation Summary'!I101 -> 0 | F67: ='Aviation Summary'!J101 -> 0 | G67: ='Aviation Summary'!K101 -> 0 | H67: ='Aviation Summary'!L101 -> 0 | I67: ='Aviation Summary'!M101 -> 0 | J67: ='Aviation Summary'!N101 -> 0 | K67: ='Aviation Summary'!O101 -> 0 | L67: ='Aviation Summary'!P101 -> 0 | M67: ='Aviation Summary'!Q101 -> 69986644.62 | N67: ='Aviation Summary'!R101 -> 177776816.6
A68: Maritime
A69: Scenario 1: Low Electric + High Hydrogen
A70: Electricity | B70: Total | C70: =SUM(C71:C73) -> 0 | D70: 2351209.486 | E70: 4702418.971 | F70: 14892576.61 | G70: 19636219.34 | H70: 26338659.66 | I70: 33391063.63 | J70: 40443467.59 | K70: 77092374.59 | L70: 143344755.6 | M70: 211086354.2 | N70: 280788241.7
A71: Ferries - Electric | C71: ='Ferries Summary'!D33 -> 0 | D71: ='Ferries Summary'!E33 -> 2351209.486 | E71: ='Ferries Summary'!F33 -> 4702418.971 | F71: ='Ferries Summary'!G33 -> 7053628.457 | G71: ='Ferries Summary'!H33 -> 9404837.942 | H71: ='Ferries Summary'!I33 -> 11756047.43 | I71: ='Ferries Summary'!J33 -> 14107256.91 | J71: ='Ferries Summary'!K33 -> 16458466.4 | K71: ='Ferries Summary'!L33 -> 18809675.88 | L71: ='Ferries Summary'!M33 -> 36172453.62 | M71: ='Ferries Summary'!N33 -> 57273051.57 | N71: ='Ferries Summary'!O33 -> 78373649.52
A72: Shipping - Electric | C72: ='Shipping Summary'!H87 -> 0 | D72: ='Shipping Summary'!I87 -> 0 | E72: ='Shipping Summary'!J87 -> 0 | F72: ='Shipping Summary'!K87 -> 0 | G72: ='Shipping Summary'!L87 -> 0 | H72: ='Shipping Summary'!M87 -> 1958797.582 | I72: ='Shipping Summary'!N87 -> 4267558.814 | J72: ='Shipping Summary'!O87 -> 6576320.045 | K72: ='Shipping Summary'!P87 -> 8885081.277 | L72: ='Shipping Summary'!Q87 -> 15322888.38 | M72: ='Shipping Summary'!R87 -> 18557863.62 | N72: ='Shipping Summary'!S87 -> 22497055.37
A73: Shipping - Shore Power | C73: ='Shipping Summary'!H88 -> 0 | D73: ='Shipping Summary'!I88 -> 0 | E73: ='Shipping Summary'!J88 -> 0 | F73: ='Shipping Summary'!K88 -> 7838948.151 | G73: ='Shipping Summary'!L88 -> 10231381.4 | H73: ='Shipping Summary'!M88 -> 12623814.65 | I73: ='Shipping Summary'!N88 -> 15016247.9 | J73: ='Shipping Summary'!O88 -> 17408681.15 | K73: ='Shipping Summary'!P88 -> 49397617.43 | L73: ='Shipping Summary'!Q88 -> 91849413.56 | M73: ='Shipping Summary'!R88 -> 135255439 | N73: ='Shipping Summary'!S88 -> 179917536.8
A74: Hydrogen | B74: Total | C74: =SUM(C75:C76) -> 0 | D74: 0 | E74: 0 | F74: 0 | G74: 0 | H74: 0 | I74: 0 | J74: 0 | K74: 525064397.8 | L74: 3181784732 | M74: 5906432013 | N74: 8714751358
A75: Ferries | C75: ='Ferries Summary'!D51 -> 0 | D75: ='Ferries Summary'!E51 -> 0 | E75: ='Ferries Summary'!F51 -> 0 | F75: ='Ferries Summary'!G51 -> 0 | G75: ='Ferries Summary'!H51 -> 0 | H75: ='Ferries Summary'!I51 -> 0 | I75: ='Ferries Summary'!J51 -> 0 | J75: ='Ferries Summary'!K51 -> 0 | K75: ='Ferries Summary'!L51 -> 0 | L75: ='Ferries Summary'!M51 -> 754302155.5 | M75: ='Ferries Summary'!N51 -> 1352541796 | N75: ='Ferries Summary'!O51 -> 1560625149
A76: Shipping | C76: ='Shipping Summary'!H89 -> 0 | D76: ='Shipping Summary'!I89 -> 0 | E76: ='Shipping Summary'!J89 -> 0 | F76: ='Shipping Summary'!K89 -> 0 | G76: ='Shipping Summary'!L89 -> 0 | H76: ='Shipping Summary'!M89 -> 0 | I76: ='Shipping Summary'!N89 -> 0 | J76: ='Shipping Summary'!O89 -> 0 | K76: ='Shipping Summary'!P89 -> 525064397.8 | L76: ='Shipping Summary'!Q89 -> 2427482577 | M76: ='Shipping Summary'!R89 -> 4553890217 | N76: ='Shipping Summary'!S89 -> 7154126208
A77: Scenario 2: Medium Electric + Low Hydrogen
A78: Electricity | B78: Total | C78: =SUM(C79:C81) -> 0 | D78: 5094287.219 | E78: 10188574.44 | F78: 28178687.12 | G78: 53913387.81 | H78: 79648088.5 | I78: 105382789.2 | J78: 131117489.9 | K78: 177569742.7 | L78: 330171323.7 | M78: 486203075.2 | N78: 646750033.1
A79: Ferries - Electric | C79: ='Ferries Summary'!D34 -> 0 | D79: ='Ferries Summary'!E34 -> 5094287.219 | E79: ='Ferries Summary'!F34 -> 10188574.44 | F79: ='Ferries Summary'!G34 -> 15282861.66 | G79: ='Ferries Summary'!H34 -> 20377148.88 | H79: ='Ferries Summary'!I34 -> 25471436.09 | I79: ='Ferries Summary'!J34 -> 30565723.31 | J79: ='Ferries Summary'!K34 -> 35660010.53 | K79: ='Ferries Summary'!L34 -> 40754297.75 | L79: ='Ferries Summary'!M34 -> 57273051.57 | M79: ='Ferries Summary'!N34 -> 67823350.55 | N79: ='Ferries Summary'!O34 -> 78373649.52
A80: Shipping - Electric | C80: ='Shipping Summary'!H91 -> 0 | D80: ='Shipping Summary'!I91 -> 0 | E80: ='Shipping Summary'!J91 -> 0 | F80: ='Shipping Summary'!K91 -> 7530079.928 | G80: ='Shipping Summary'!L91 -> 26624637.34 | H80: ='Shipping Summary'!M91 -> 45719194.75 | I80: ='Shipping Summary'!N91 -> 64813752.17 | J80: ='Shipping Summary'!O91 -> 83908309.58 | K80: ='Shipping Summary'!P91 -> 103002867 | L80: ='Shipping Summary'!Q91 -> 210027518 | M80: ='Shipping Summary'!R91 -> 325797626.3 | N80: ='Shipping Summary'!S91 -> 445223161.8
A81: Shipping - Shore Power | C81: ='Shipping Summary'!H92 -> 0 | D81: ='Shipping Summary'!I92 -> 0 | E81: ='Shipping Summary'!J92 -> 0 | F81: ='Shipping Summary'!K92 -> 5365745.54 | G81: ='Shipping Summary'!L92 -> 6911601.598 | H81: ='Shipping Summary'!M92 -> 8457457.656 | I81: ='Shipping Summary'!N92 -> 10003313.71 | J81: ='Shipping Summary'!O92 -> 11549169.77 | K81: ='Shipping Summary'!P92 -> 33812577.95 | L81: ='Shipping Summary'!Q92 -> 62870754.04 | M81: ='Shipping Summary'!R92 -> 92582098.34 | N81: ='Shipping Summary'!S92 -> 123153221.8
A82: Hydrogen | B82: Total | C82: =SUM(C83:C84) -> 0 | D82: 0 | E82: 0 | F82: 0 | G82: 0 | H82: 0 | I82: 0 | J82: 0 | K82: 131773799.8 | L82: 792654649.4 | M82: 1469888354 | N82: 2166384575
A83: Ferries | C83: ='Ferries Summary'!D52 -> 0 | D83: ='Ferries Summary'!E52 -> 0 | E83: ='Ferries Summary'!F52 -> 0 | F83: ='Ferries Summary'!G52 -> 0 | G83: ='Ferries Summary'!H52 -> 0 | H83: ='Ferries Summary'!I52 -> 0 | I83: ='Ferries Summary'!J52 -> 0 | J83: ='Ferries Summary'!K52 -> 0 | K83: ='Ferries Summary'!L52 -> 0 | L83: ='Ferries Summary'!M52 -> 520208383.1 | M83: ='Ferries Summary'!N52 -> 1040416766 | N83: ='Ferries Summary'!O52 -> 1560625149
A84: Shipping | C84: ='Shipping Summary'!H93 -> 0 | D84: ='Shipping Summary'!I93 -> 0 | E84: ='Shipping Summary'!J93 -> 0 | F84: ='Shipping Summary'!K93 -> 0 | G84: ='Shipping Summary'!L93 -> 0 | H84: ='Shipping Summary'!M93 -> 0 | I84: ='Shipping Summary'!N93 -> 0 | J84: ='Shipping Summary'!O93 -> 0 | K84: ='Shipping Summary'!P93 -> 131773799.8 | L84: ='Shipping Summary'!Q93 -> 272446266.2 | M84: ='Shipping Summary'!R93 -> 429471587.9 | N84: ='Shipping Summary'!S93 -> 605759425.7
A85: Scenario 3: Medium Electric + High Hydrogen
A86: Electricity | B86: Total | C86: =SUM(C87:C89) -> 0 | D86: 2351209.486 | E86: 4702418.971 | F86: 28178687.12 | G86: 53913387.81 | H86: 79648088.5 | I86: 105382789.2 | J86: 131117489.9 | K86: 177569742.7 | L86: 330171323.7 | M86: 486203075.2 | N86: 646750033.1
A87: Ferries - Electric | C87: ='Ferries Summary'!D35 -> 0 | D87: ='Ferries Summary'!E35 -> 2351209.486 | E87: ='Ferries Summary'!F35 -> 4702418.971 | F87: ='Ferries Summary'!G35 -> 7053628.457 | G87: ='Ferries Summary'!H35 -> 9404837.942 | H87: ='Ferries Summary'!I35 -> 11756047.43 | I87: ='Ferries Summary'!J35 -> 14107256.91 | J87: ='Ferries Summary'!K35 -> 16458466.4 | K87: ='Ferries Summary'!L35 -> 18809675.88 | L87: ='Ferries Summary'!M35 -> 36172453.62 | M87: ='Ferries Summary'!N35 -> 57273051.57 | N87: ='Ferries Summary'!O35 -> 78373649.52
A88: Shipping - Electric | C88: ='Shipping Summary'!H95 -> 0 | D88: ='Shipping Summary'!I95 -> 0 | E88: ='Shipping Summary'!J95 -> 0 | F88: ='Shipping Summary'!K95 -> 15759313.13 | G88: ='Shipping Summary'!L95 -> 37596948.27 | H88: ='Shipping Summary'!M95 -> 59434583.42 | I88: ='Shipping Summary'!N95 -> 81272218.57 | J88: ='Shipping Summary'!O95 -> 103109853.7 | K88: ='Shipping Summary'!P95 -> 124947488.9 | L88: ='Shipping Summary'!Q95 -> 231128116 | M88: ='Shipping Summary'!R95 -> 336347925.3 | N88: ='Shipping Summary'!S95 -> 445223161.8
A89: Shipping - Shore Power | C89: ='Shipping Summary'!H96 -> 0 | D89: ='Shipping Summary'!I96 -> 0 | E89: ='Shipping Summary'!J96 -> 0 | F89: ='Shipping Summary'!K96 -> 5365745.54 | G89: ='Shipping Summary'!L96 -> 6911601.598 | H89: ='Shipping Summary'!M96 -> 8457457.656 | I89: ='Shipping Summary'!N96 -> 10003313.71 | J89: ='Shipping Summary'!O96 -> 11549169.77 | K89: ='Shipping Summary'!P96 -> 33812577.95 | L89: ='Shipping Summary'!Q96 -> 62870754.04 | M89: ='Shipping Summary'!R96 -> 92582098.34 | N89: ='Shipping Summary'!S96 -> 123153221.8
A90: Hydrogen | B90: Total | C90: =SUM(C91:C92) -> 0 | D90: 0 | E90: 0 | F90: 0 | G90: 0 | H90: 0 | I90: 0 | J90: 0 | K90: 525064397.8 | L90: 3072540972 | M90: 5750369498 | N90: 8714751358
A91: Ferries | C91: ='Ferries Summary'!D53 -> 0 | D91: ='Ferries Summary'!E53 -> 0 | E91: ='Ferries Summary'!F53 -> 0 | F91: ='Ferries Summary'!G53 -> 0 | G91: ='Ferries Summary'!H53 -> 0 | H91: ='Ferries Summary'!I53 -> 0 | I91: ='Ferries Summary'!J53 -> 0 | J91: ='Ferries Summary'!K53 -> 0 | K91: ='Ferries Summary'!L53 -> 0 | L91: ='Ferries Summary'!M53 -> 645058395.1 | M91: ='Ferries Summary'!N53 -> 1196479281 | N91: ='Ferries Summary'!O53 -> 1560625149
A92: Shipping | C92: ='Shipping Summary'!H97 -> 0 | D92: ='Shipping Summary'!I97 -> 0 | E92: ='Shipping Summary'!J97 -> 0 | F92: ='Shipping Summary'!K97 -> 0 | G92: ='Shipping Summary'!L97 -> 0 | H92: ='Shipping Summary'!M97 -> 0 | I92: ='Shipping Summary'!N97 -> 0 | J92: ='Shipping Summary'!O97 -> 0 | K92: ='Shipping Summary'!P97 -> 525064397.8 | L92: ='Shipping Summary'!Q97 -> 2427482577 | M92: ='Shipping Summary'!R97 -> 4553890217 | N92: ='Shipping Summary'!S97 -> 7154126208
A93: Scenario 4: High Electric + Low Hydrogen
A94: Electricity | B94: Total | C94: =SUM(C95:C97) -> 0 | D94: 7837364.952 | E94: 15674729.9 | F94: 49512060.81 | G94: 99050662.08 | H94: 148589263.3 | I94: 198127864.6 | J94: 247666465.9 | K94: 312003318.7 | L94: 580135709.8 | M94: 854295167.1 | N94: 1136388180
A95: Ferries - Electric | C95: ='Ferries Summary'!D36 -> 0 | D95: ='Ferries Summary'!E36 -> 7837364.952 | E95: ='Ferries Summary'!F36 -> 15674729.9 | F95: ='Ferries Summary'!G36 -> 23512094.86 | G95: ='Ferries Summary'!H36 -> 31349459.81 | H95: ='Ferries Summary'!I36 -> 39186824.76 | I95: ='Ferries Summary'!J36 -> 47024189.71 | J95: ='Ferries Summary'!K36 -> 54861554.66 | K95: ='Ferries Summary'!L36 -> 62698919.62 | L95: ='Ferries Summary'!M36 -> 78373649.52 | M95: ='Ferries Summary'!N36 -> 78373649.52 | N95: ='Ferries Summary'!O36 -> 78373649.52
A96: Shipping - Electric | C96: ='Shipping Summary'!H99 -> 0 | D96: ='Shipping Summary'!I99 -> 0 | E96: ='Shipping Summary'!J99 -> 0 | F96: ='Shipping Summary'!K99 -> 22080491.88 | G96: ='Shipping Summary'!L99 -> 62585511.57 | H96: ='Shipping Summary'!M99 -> 103090531.3 | I96: ='Shipping Summary'!N99 -> 143595551 | J96: ='Shipping Summary'!O99 -> 184100570.6 | K96: ='Shipping Summary'!P99 -> 224605590.3 | L96: ='Shipping Summary'!Q99 -> 455837353.5 | M96: ='Shipping Summary'!R99 -> 708293798.1 | N96: ='Shipping Summary'!S99 -> 968055761.9
A97: Shipping - Shore Power | C97: ='Shipping Summary'!H100 -> 0 | D97: ='Shipping Summary'!I100 -> 0 | E97: ='Shipping Summary'!J100 -> 0 | F97: ='Shipping Summary'!K100 -> 3919474.076 | G97: ='Shipping Summary'!L100 -> 5115690.7 | H97: ='Shipping Summary'!M100 -> 6311907.325 | I97: ='Shipping Summary'!N100 -> 7508123.949 | J97: ='Shipping Summary'!O100 -> 8704340.574 | K97: ='Shipping Summary'!P100 -> 24698808.71 | L97: ='Shipping Summary'!Q100 -> 45924706.78 | M97: ='Shipping Summary'!R100 -> 67627719.5 | N97: ='Shipping Summary'!S100 -> 89958768.38
A98: Hydrogen | B98: Total | C98: =SUM(C99:C100) -> 0 | D98: 0 | E98: 0 | F98: 0 | G98: 0 | H98: 0 | I98: 0 | J98: 0 | K98: 131773799.8 | L98: 792654649.4 | M98: 1469888354 | N98: 2166384575
A99: Ferries | C99: ='Ferries Summary'!D54 -> 0 | D99: ='Ferries Summary'!E54 -> 0 | E99: ='Ferries Summary'!F54 -> 0 | F99: ='Ferries Summary'!G54 -> 0 | G99: ='Ferries Summary'!H54 -> 0 | H99: ='Ferries Summary'!I54 -> 0 | I99: ='Ferries Summary'!J54 -> 0 | J99: ='Ferries Summary'!K54 -> 0 | K99: ='Ferries Summary'!L54 -> 0 | L99: ='Ferries Summary'!M54 -> 520208383.1 | M99: ='Ferries Summary'!N54 -> 1040416766 | N99: ='Ferries Summary'!O54 -> 1560625149
A100: Shipping | C100: ='Shipping Summary'!H101 -> 0 | D100: ='Shipping Summary'!I101 -> 0 | E100: ='Shipping Summary'!J101 -> 0 | F100: ='Shipping Summary'!K101 -> 0 | G100: ='Shipping Summary'!L101 -> 0 | H100: ='Shipping Summary'!M101 -> 0 | I100: ='Shipping Summary'!N101 -> 0 | J100: ='Shipping Summary'!O101 -> 0 | K100: ='Shipping Summary'!P101 -> 131773799.8 | L100: ='Shipping Summary'!Q101 -> 272446266.2 | M100: ='Shipping Summary'!R101 -> 429471587.9 | N100: ='Shipping Summary'!S101 -> 605759425.7
A101: Scenario 5: High Electric + High Hydrogen
A102: Electricity | B102: Total | C102: =SUM(C103:C105) -> 0 | D102: 7837364.952 | E102: 15674729.9 | F102: 49512060.81 | G102: 99050662.08 | H102: 148589263.3 | I102: 198127864.6 | J102: 247666465.9 | K102: 312003318.7 | L102: 580135709.8 | M102: 854295167.1 | N102: 1136388180
A103: Ferries - Electric | C103: ='Ferries Summary'!D37 -> 0 | D103: ='Ferries Summary'!E37 -> 7837364.952 | E103: ='Ferries Summary'!F37 -> 15674729.9 | F103: ='Ferries Summary'!G37 -> 23512094.86 | G103: ='Ferries Summary'!H37 -> 31349459.81 | H103: ='Ferries Summary'!I37 -> 39186824.76 | I103: ='Ferries Summary'!J37 -> 47024189.71 | J103: ='Ferries Summary'!K37 -> 54861554.66 | K103: ='Ferries Summary'!L37 -> 62698919.62 | L103: ='Ferries Summary'!M37 -> 78373649.52 | M103: ='Ferries Summary'!N37 -> 78373649.52 | N103: ='Ferries Summary'!O37 -> 78373649.52
A104: Shipping - Electric | C104: ='Shipping Summary'!H103 -> 0 | D104: ='Shipping Summary'!I103 -> 0 | E104: ='Shipping Summary'!J103 -> 0 | F104: ='Shipping Summary'!K103 -> 22080491.88 | G104: ='Shipping Summary'!L103 -> 62585511.57 | H104: ='Shipping Summary'!M103 -> 103090531.3 | I104: ='Shipping Summary'!N103 -> 143595551 | J104: ='Shipping Summary'!O103 -> 184100570.6 | K104: ='Shipping Summary'!P103 -> 224605590.3 | L104: ='Shipping Summary'!Q103 -> 455837353.5 | M104: ='Shipping Summary'!R103 -> 708293798.1 | N104: ='Shipping Summary'!S103 -> 968055761.9
A105: Shipping - Shore Power | C105: ='Shipping Summary'!H104 -> 0 | D105: ='Shipping Summary'!I104 -> 0 | E105: ='Shipping Summary'!J104 -> 0 | F105: ='Shipping Summary'!K104 -> 3919474.076 | G105: ='Shipping Summary'!L104 -> 5115690.7 | H105: ='Shipping Summary'!M104 -> 6311907.325 | I105: ='Shipping Summary'!N104 -> 7508123.949 | J105: ='Shipping Summary'!O104 -> 8704340.574 | K105: ='Shipping Summary'!P104 -> 24698808.71 | L105: ='Shipping Summary'!Q104 -> 45924706.78 | M105: ='Shipping Summary'!R104 -> 67627719.5 | N105: ='Shipping Summary'!S104 -> 89958768.38
A106: Hydrogen | B106: Total | C106: =SUM(C107:C108) -> 0 | D106: 0 | E106: 0 | F106: 0 | G106: 0 | H106: 0 | I106: 0 | J106: 0 | K106: 525064397.8 | L106: 3181784732 | M106: 5906432013 | N106: 8714751358
A107: Ferries | C107: ='Ferries Summary'!D55 -> 0 | D107: ='Ferries Summary'!E55 -> 0 | E107: ='Ferries Summary'!F55 -> 0 | F107: ='Ferries Summary'!G55 -> 0 | G107: ='Ferries Summary'!H55 -> 0 | H107: ='Ferries Summary'!I55 -> 0 | I107: ='Ferries Summary'!J55 -> 0 | J107: ='Ferries Summary'!K55 -> 0 | K107: ='Ferries Summary'!L55 -> 0 | L107: ='Ferries Summary'!M55 -> 754302155.5 | M107: ='Ferries Summary'!N55 -> 1352541796 | N107: ='Ferries Summary'!O55 -> 1560625149
A108: Shipping | C108: ='Shipping Summary'!H105 -> 0 | D108: ='Shipping Summary'!I105 -> 0 | E108: ='Shipping Summary'!J105 -> 0 | F108: ='Shipping Summary'!K105 -> 0 | G108: ='Shipping Summary'!L105 -> 0 | H108: ='Shipping Summary'!M105 -> 0 | I108: ='Shipping Summary'!N105 -> 0 | J108: ='Shipping Summary'!O105 -> 0 | K108: ='Shipping Summary'!P105 -> 525064397.8 | L108: ='Shipping Summary'!Q105 -> 2427482577 | M108: ='Shipping Summary'!R105 -> 4553890217 | N108: ='Shipping Summary'!S105 -> 7154126208
A109: Scenario 6: Medium Electric + Medium Hydrogen
A110: Electricity | B110: Total | C110: =SUM(C111:C113) -> 0 | D110: 5094287.219 | E110: 10188574.44 | F110: 28178687.12 | G110: 53913387.81 | H110: 79648088.5 | I110: 105382789.2 | J110: 131117489.9 | K110: 177569742.7 | L110: 330171323.7 | M110: 486203075.2 | N110: 646750033.1
A111: Ferries - Electric | C111: ='Ferries Summary'!D38 -> 0 | D111: ='Ferries Summary'!E38 -> 5094287.219 | E111: ='Ferries Summary'!F38 -> 10188574.44 | F111: ='Ferries Summary'!G38 -> 15282861.66 | G111: ='Ferries Summary'!H38 -> 20377148.88 | H111: ='Ferries Summary'!I38 -> 25471436.09 | I111: ='Ferries Summary'!J38 -> 30565723.31 | J111: ='Ferries Summary'!K38 -> 35660010.53 | K111: ='Ferries Summary'!L38 -> 40754297.75 | L111: ='Ferries Summary'!M38 -> 57273051.57 | M111: ='Ferries Summary'!N38 -> 67823350.55 | N111: ='Ferries Summary'!O38 -> 78373649.52
A112: Shipping - Electric | C112: ='Shipping Summary'!H107 -> 0 | D112: ='Shipping Summary'!I107 -> 0 | E112: ='Shipping Summary'!J107 -> 0 | F112: ='Shipping Summary'!K107 -> 7530079.928 | G112: ='Shipping Summary'!L107 -> 26624637.34 | H112: ='Shipping Summary'!M107 -> 45719194.75 | I112: ='Shipping Summary'!N107 -> 64813752.17 | J112: ='Shipping Summary'!O107 -> 83908309.58 | K112: ='Shipping Summary'!P107 -> 103002867 | L112: ='Shipping Summary'!Q107 -> 210027518 | M112: ='Shipping Summary'!R107 -> 325797626.3 | N112: ='Shipping Summary'!S107 -> 445223161.8
A113: Shipping - Shore Power | C113: ='Shipping Summary'!H108 -> 0 | D113: ='Shipping Summary'!I108 -> 0 | E113: ='Shipping Summary'!J108 -> 0 | F113: ='Shipping Summary'!K108 -> 5365745.54 | G113: ='Shipping Summary'!L108 -> 6911601.598 | H113: ='Shipping Summary'!M108 -> 8457457.656 | I113: ='Shipping Summary'!N108 -> 10003313.71 | J113: ='Shipping Summary'!O108 -> 11549169.77 | K113: ='Shipping Summary'!P108 -> 33812577.95 | L113: ='Shipping Summary'!Q108 -> 62870754.04 | M113: ='Shipping Summary'!R108 -> 92582098.34 | N113: ='Shipping Summary'!S108 -> 123153221.8
A114: Hydrogen | B114: Total | C114: =SUM(C115:C116) -> 0 | D114: 0 | E114: 0 | F114: 0 | G114: 0 | H114: 0 | I114: 0 | J114: 0 | K114: 281565346.7 | L114: 1701963353 | M114: 3158963560 | N114: 4660443662
A115: Ferries | C115: ='Ferries Summary'!D56 -> 0 | D115: ='Ferries Summary'!E56 -> 0 | E115: ='Ferries Summary'!F56 -> 0 | F115: ='Ferries Summary'!G56 -> 0 | G115: ='Ferries Summary'!H56 -> 0 | H115: ='Ferries Summary'!I56 -> 0 | I115: ='Ferries Summary'!J56 -> 0 | J115: ='Ferries Summary'!K56 -> 0 | K115: ='Ferries Summary'!L56 -> 0 | L115: ='Ferries Summary'!M56 -> 645058395.1 | M115: ='Ferries Summary'!N56 -> 1196479281 | N115: ='Ferries Summary'!O56 -> 1560625149
A116: Shipping | C116: ='Shipping Summary'!H109 -> 0 | D116: ='Shipping Summary'!I109 -> 0 | E116: ='Shipping Summary'!J109 -> 0 | F116: ='Shipping Summary'!K109 -> 0 | G116: ='Shipping Summary'!L109 -> 0 | H116: ='Shipping Summary'!M109 -> 0 | I116: ='Shipping Summary'!N109 -> 0 | J116: ='Shipping Summary'!O109 -> 0 | K116: ='Shipping Summary'!P109 -> 281565346.7 | L116: ='Shipping Summary'!Q109 -> 1056904957 | M116: ='Shipping Summary'!R109 -> 1962484279 | N116: ='Shipping Summary'!S109 -> 3099818513
A117: Road
A118: Scenario 1: Low Electric + High Hydrogen
A119: Electricity | B119: Total | C119: =SUM(C120:C124) -> 195640590.5 | D119: =SUM(D120:D124) -> 339165168.1 | E119: 520493643.3 | F119: 736915834.9 | G119: 922230942.8 | H119: 1151319543 | I119: 1436368213 | J119: 1768893956 | K119: 2163674165 | L119: 4894211790 | M119: 8139198590 | N119: 1.017801738e+10
A120: Car | C120: ='Car Summary'!E11 -> 121124185.5 | D120: ='Car Summary'!F11 -> 204643513.3 | E120: ='Car Summary'!G11 -> 305498916.8 | F120: ='Car Summary'!H11 -> 414294476.7 | G120: ='Car Summary'!I11 -> 537457789.4 | H120: ='Car Summary'!J11 -> 675618080 | I120: ='Car Summary'!K11 -> 833557179.3 | J120: ='Car Summary'!L11 -> 1014852810 | K120: ='Car Summary'!M11 -> 1240593892 | L120: ='Car Summary'!N11 -> 2962100861 | M120: ='Car Summary'!O11 -> 4858901179 | N120: ='Car Summary'!P11 -> 6043634235
A121: LGV | C121: ='Van Summary'!E11 -> 14461627.65 | D121: ='Van Summary'!F11 -> 22251389.73 | E121: ='Van Summary'!G11 -> 36027368.23 | F121: ='Van Summary'!H11 -> 62910885.79 | G121: ='Van Summary'!I11 -> 87456231.14 | H121: ='Van Summary'!J11 -> 119487147.6 | I121: ='Van Summary'!K11 -> 157643015.4 | J121: ='Van Summary'!L11 -> 197795450.4 | K121: ='Van Summary'!M11 -> 250921678.6 | L121: ='Van Summary'!N11 -> 634297559.4 | M121: ='Van Summary'!O11 -> 1028159055 | N121: ='Van Summary'!P11 -> 1344315770
A122: HGV | C122: ='HGV Summary'!E11 -> 53592816.03 | D122: ='HGV Summary'!F11 -> 102264647.6 | E122: ='HGV Summary'!G11 -> 164375832.9 | F122: ='HGV Summary'!H11 -> 239490787.1 | G122: ='HGV Summary'!I11 -> 267821195.8 | H122: ='HGV Summary'!J11 -> 313481990.7 | I122: ='HGV Summary'!K11 -> 385551214.6 | J122: ='HGV Summary'!L11 -> 483809194.5 | K122: ='HGV Summary'!M11 -> 599722093.7 | L122: ='HGV Summary'!N11 -> 1140329120 | M122: ='HGV Summary'!O11 -> 1801262827 | N122: ='HGV Summary'!P11 -> 2279053917
A123: Bus | C123: ='Bus Summary'!E34 -> 4690133.172 | D123: ='Bus Summary'!F34 -> 7087312.349 | E123: ='Bus Summary'!G34 -> 10214067.8 | F123: ='Bus Summary'!H34 -> 13966174.33 | G123: ='Bus Summary'!I34 -> 20428135.59 | H123: ='Bus Summary'!J34 -> 28453474.58 | I123: ='Bus Summary'!K34 -> 38875992.74 | J123: ='Bus Summary'!L34 -> 51695690.07 | K123: ='Bus Summary'!M34 -> 51695690.07 | L123: ='Bus Summary'!N34 -> 136743438.3 | M123: ='Bus Summary'!O34 -> 341855990 | N123: ='Bus Summary'!P34 -> 348317951.3
A124: Coach | C124: ='Bus Summary'!E56 -> 1771828.087 | D124: ='Bus Summary'!F56 -> 2918305.085 | E124: ='Bus Summary'!G56 -> 4377457.627 | F124: ='Bus Summary'!H56 -> 6253510.896 | G124: ='Bus Summary'!I56 -> 9067590.799 | H124: ='Bus Summary'!J56 -> 14278849.88 | I124: ='Bus Summary'!K56 -> 20740811.14 | J124: ='Bus Summary'!L56 -> 20740811.14 | K124: ='Bus Summary'!M56 -> 20740811.14 | L124: ='Bus Summary'!N56 -> 20740811.14 | M124: ='Bus Summary'!O56 -> 109019540 | N124: ='Bus Summary'!P56 -> 162695508.5
A125: Hydrogen | B125: Total | C125: =SUM(C126:C130) -> 9900893.466 | D125: =SUM(D126:D130) -> 15160701.07 | E125: 21488046.04 | F125: 30635550.02 | G125: 119665042.1 | H125: 223466094.9 | I125: 332520096.5 | J125: 450819289.2 | K125: 598376545.8 | L125: 1902964225 | M125: 3083982074 | N125: 4045070980
A126: Car | C126: ='Car Summary'!E12 -> 4156287.561 | D126: ='Car Summary'!F12 -> 5705978.036 | E126: ='Car Summary'!G12 -> 7042996.836 | F126: ='Car Summary'!H12 -> 9812782.29 | G126: ='Car Summary'!I12 -> 13546837.3 | H126: ='Car Summary'!J12 -> 16632968.84 | I126: ='Car Summary'!K12 -> 19365250 | J126: ='Car Summary'!L12 -> 22269453.14 | K126: ='Car Summary'!M12 -> 43231607.76 | L126: ='Car Summary'!N12 -> 201797186.3 | M126: ='Car Summary'!O12 -> 409516150.2 | N126: ='Car Summary'!P12 -> 503437779
A127: LGV | C127: ='Van Summary'!E12 -> 281469.3035 | D127: ='Van Summary'!F12 -> 517413.713 | E127: ='Van Summary'!G12 -> 817606.7103 | F127: ='Van Summary'!H12 -> 1289231.609 | G127: ='Van Summary'!I12 -> 1954363.444 | H127: ='Van Summary'!J12 -> 2693526.126 | I127: ='Van Summary'!K12 -> 3446090.592 | J127: ='Van Summary'!L12 -> 4095475.688 | K127: ='Van Summary'!M12 -> 9275363.836 | L127: ='Van Summary'!N12 -> 36354259.17 | M127: ='Van Summary'!O12 -> 58030903.61 | N127: ='Van Summary'!P12 -> 71759090.11
A128: HGV | C128: ='HGV Summary'!E12 -> 0 | D128: ='HGV Summary'!F12 -> 0 | E128: ='HGV Summary'!G12 -> 0 | F128: ='HGV Summary'!H12 -> 0 | G128: ='HGV Summary'!I12 -> 77827875.03 | H128: ='HGV Summary'!J12 -> 169813036.4 | I128: ='HGV Summary'!K12 -> 266693286.3 | J128: ='HGV Summary'!L12 -> 376502091.4 | K128: ='HGV Summary'!M12 -> 497917305.2 | L128: ='HGV Summary'!N12 -> 1593583553 | M128: ='HGV Summary'!O12 -> 2499872183 | N128: ='HGV Summary'!P12 -> 3358522533
A129: Bus | C129: ='Bus Summary'!E33 -> 2779338.176 | D129: ='Bus Summary'!F33 -> 4690133.172 | E129: ='Bus Summary'!G33 -> 7122054.076 | F129: ='Bus Summary'!H33 -> 10248809.52 | G129: ='Bus Summary'!I33 -> 14006127.32 | H129: ='Bus Summary'!J33 -> 18001425.95 | I129: ='Bus Summary'!K33 -> 22517850.48 | J129: ='Bus Summary'!L33 -> 27454649.92 | K129: ='Bus Summary'!M33 -> 27454649.92 | L129: ='Bus Summary'!N33 -> 50731607.14 | M129: ='Bus Summary'!O33 -> 75915016.65 | N129: ='Bus Summary'!P33 -> 65145081.21
A130: Coach | C130: ='Bus Summary'!E55 -> 2683798.426 | D130: ='Bus Summary'!F55 -> 4247176.15 | E130: ='Bus Summary'!G55 -> 6505388.418 | F130: ='Bus Summary'!H55 -> 9284726.594 | G130: ='Bus Summary'!I55 -> 12329838.98 | H130: ='Bus Summary'!J55 -> 16325137.61 | I130: ='Bus Summary'!K55 -> 20497619.05 | J130: ='Bus Summary'!L55 -> 20497619.05 | K130: ='Bus Summary'!M55 -> 20497619.05 | L130: ='Bus Summary'!N55 -> 20497619.05 | M130: ='Bus Summary'!O55 -> 40647820.82 | N130: ='Bus Summary'!P55 -> 46206497.18
A131: Scenario 2: Medium Electric + Low Hydrogen
A132: Electricity | B132: Total | C132: =SUM(C133:C137) -> 216116266.4 | D132: =SUM(D133:D137) -> 385292658.4 | E132: 601481844.7 | F132: 864204470.3 | G132: 1101109038 | H132: 1385792616 | I132: 1731174317 | J132: 2144896425 | K132: 2635665638 | L132: 5727079886 | M132: 9010033086 | N132: 1.097029315e+10
A133: Car | C133: ='Car Summary'!E14 -> 134170007.8 | D133: ='Car Summary'!F14 -> 237327200.6 | E133: ='Car Summary'!G14 -> 363777308.7 | F133: ='Car Summary'!H14 -> 505015452.2 | G133: ='Car Summary'!I14 -> 663429191.4 | H133: ='Car Summary'!J14 -> 840841295.1 | I133: ='Car Summary'!K14 -> 1041388066 | J133: ='Car Summary'!L14 -> 1277397517 | K133: ='Car Summary'!M14 -> 1576453661 | L133: ='Car Summary'!N14 -> 3665302552 | M133: ='Car Summary'!O14 -> 5569393368 | N133: ='Car Summary'!P14 -> 6469928464
A134: LGV | C134: ='Van Summary'!E14 -> 16471771.86 | D134: ='Van Summary'!F14 -> 26940277.49 | E134: ='Van Summary'!G14 -> 45500579.61 | F134: ='Van Summary'!H14 -> 80613787.9 | G134: ='Van Summary'!I14 -> 114401786.2 | H134: ='Van Summary'!J14 -> 158838157.5 | I134: ='Van Summary'!K14 -> 211446759.9 | J134: ='Van Summary'!L14 -> 267351846.4 | K134: ='Van Summary'!M14 -> 342561490.6 | L134: ='Van Summary'!N14 -> 829107806.7 | M134: ='Van Summary'!O14 -> 1194613166 | N134: ='Van Summary'!P14 -> 1442908516
A135: HGV | C135: ='HGV Summary'!E14 -> 53592816.03 | D135: ='HGV Summary'!F14 -> 102264647.6 | E135: ='HGV Summary'!G14 -> 164375832.9 | F135: ='HGV Summary'!H14 -> 239490787.1 | G135: ='HGV Summary'!I14 -> 269289415.9 | H135: ='HGV Summary'!J14 -> 315656940.3 | I135: ='HGV Summary'!K14 -> 388184709.1 | J135: ='HGV Summary'!L14 -> 486958514.4 | K135: ='HGV Summary'!M14 -> 603461938.9 | L135: ='HGV Summary'!N14 -> 1119480979 | M135: ='HGV Summary'!O14 -> 1827770898 | N135: ='HGV Summary'!P14 -> 2504961084
A136: Bus | C136: ='Bus Summary'!E37 -> 8233789.346 | D136: ='Bus Summary'!F37 -> 12923922.52 | E136: ='Bus Summary'!G37 -> 19073208.23 | F136: ='Bus Summary'!H37 -> 26577421.31 | G136: ='Bus Summary'!I37 -> 36791489.1 | H136: ='Bus Summary'!J37 -> 48152033.9 | I136: ='Bus Summary'!K37 -> 61909757.87 | J136: ='Bus Summary'!L37 -> 78064661.02 | K136: ='Bus Summary'!M37 -> 78064661.02 | L136: ='Bus Summary'!N37 -> 78064661.02 | M136: ='Bus Summary'!O37 -> 290371355.9 | N136: ='Bus Summary'!P37 -> 373331994.9
A137: Coach | C137: ='Bus Summary'!E59 -> 3647881.356 | D137: ='Bus Summary'!F59 -> 5836610.169 | E137: ='Bus Summary'!G59 -> 8754915.254 | F137: ='Bus Summary'!H59 -> 12507021.79 | G137: ='Bus Summary'!I59 -> 17197154.96 | H137: ='Bus Summary'!J59 -> 22304188.86 | I137: ='Bus Summary'!K59 -> 28245024.21 | J137: ='Bus Summary'!L59 -> 35123886.2 | K137: ='Bus Summary'!M59 -> 35123886.2 | L137: ='Bus Summary'!N59 -> 35123886.2 | M137: ='Bus Summary'!O59 -> 127884297.8 | N137: ='Bus Summary'!P59 -> 179163087.2
A138: Hydrogen | B138: Total | C138: =SUM(C139:C143) -> 3919432.014 | D138: =SUM(D139:D143) -> 5154229.05 | E138: 6648789.92 | F138: 8617707.543 | G138: 87485465.67 | H138: 181713824.7 | I138: 281520209.7 | J138: 394597314.2 | K138: 523806051.3 | L138: 1722700788 | M138: 2656326634 | N138: 3225651806
A139: Car | C139: ='Car Summary'!E15 -> 3051845.711 | D139: ='Car Summary'!F15 -> 3686136.004 | E139: ='Car Summary'!G15 -> 4211431.107 | F139: ='Car Summary'!H15 -> 5153826.838 | G139: ='Car Summary'!I15 -> 6377758.291 | H139: ='Car Summary'!J15 -> 7357643.811 | I139: ='Car Summary'!K15 -> 8205780.73 | J139: ='Car Summary'!L15 -> 9112752.119 | K139: ='Car Summary'!M15 -> 16161180.33 | L139: ='Car Summary'!N15 -> 70209361.35 | M139: ='Car Summary'!O15 -> 141910362.7 | N139: ='Car Summary'!P15 -> 175970753.7
A140: LGV | C140: ='Van Summary'!E15 -> 94582.87239 | D140: ='Van Summary'!F15 -> 173963.7084 | E140: ='Van Summary'!G15 -> 274686.2944 | F140: ='Van Summary'!H15 -> 432665.0071 | G140: ='Van Summary'!I15 -> 656111.8728 | H140: ='Van Summary'!J15 -> 904164.943 | I140: ='Van Summary'!K15 -> 1156407.847 | J140: ='Van Summary'!L15 -> 1373709.528 | K140: ='Van Summary'!M15 -> 3126333.144 | L140: ='Van Summary'!N15 -> 12384077.89 | M140: ='Van Summary'!O15 -> 19854509.22 | N140: ='Van Summary'!P15 -> 24737667.7
A141: HGV | C141: ='HGV Summary'!E15 -> 0 | D141: ='HGV Summary'!F15 -> 0 | E141: ='HGV Summary'!G15 -> 0 | F141: ='HGV Summary'!H15 -> 0 | G141: ='HGV Summary'!I15 -> 75829208.7 | H141: ='HGV Summary'!J15 -> 166745125.5 | I141: ='HGV Summary'!K15 -> 262845501.2 | J141: ='HGV Summary'!L15 -> 371768854 | K141: ='HGV Summary'!M15 -> 492176539.2 | L141: ='HGV Summary'!N15 -> 1627765351 | M141: ='HGV Summary'!O15 -> 2455294925 | N141: ='HGV Summary'!P15 -> 2982727844
A142: Bus | C142: ='Bus Summary'!E36 -> 694834.544 | D142: ='Bus Summary'!F36 -> 1042251.816 | E142: ='Bus Summary'!G36 -> 1563377.724 | F142: ='Bus Summary'!H36 -> 2258212.268 | G142: ='Bus Summary'!I36 -> 3409900.525 | H142: ='Bus Summary'!J36 -> 4973278.249 | I142: ='Bus Summary'!K36 -> 6884073.245 | J142: ='Bus Summary'!L36 -> 9215243.14 | K142: ='Bus Summary'!M36 -> 9215243.14 | L142: ='Bus Summary'!N36 -> 9215243.14 | M142: ='Bus Summary'!O36 -> 23459351.29 | N142: ='Bus Summary'!P36 -> 23455008.58
A143: Coach | C143: ='Bus Summary'!E58 -> 78168.8862 | D143: ='Bus Summary'!F58 -> 251877.5222 | E143: ='Bus Summary'!G58 -> 599294.7942 | F143: ='Bus Summary'!H58 -> 773003.4302 | G143: ='Bus Summary'!I58 -> 1212486.279 | H143: ='Bus Summary'!J58 -> 1733612.187 | I143: ='Bus Summary'!K58 -> 2428446.731 | J143: ='Bus Summary'!L58 -> 3126755.448 | K143: ='Bus Summary'!M58 -> 3126755.448 | L143: ='Bus Summary'!N58 -> 3126755.448 | M143: ='Bus Summary'!O58 -> 15807485.88 | N143: ='Bus Summary'!P58 -> 18760532.69
A144: Scenario 3: Medium Electric + High Hydrogen
A145: Electricity | B145: Total | C145: =SUM(C146:C150) -> 224668530.3 | D145: =SUM(D146:D150) -> 404762485.1 | E145: 614374205.8 | F145: 868665114.6 | G145: 1105735555 | H145: 1396539334 | I145: 1754370054 | J145: 2168173490 | K145: 2673930197 | L145: 6004627785 | M145: 8917702797 | N145: 1.072232945e+10
A146: Car | C146: ='Car Summary'!E17 -> 133743128.1 | D146: ='Car Summary'!F17 -> 236523417.9 | E146: ='Car Summary'!G17 -> 362628946.9 | F146: ='Car Summary'!H17 -> 503065120.7 | G146: ='Car Summary'!I17 -> 660364588.3 | H146: ='Car Summary'!J17 -> 836800704.1 | I146: ='Car Summary'!K17 -> 1036447029 | J146: ='Car Summary'!L17 -> 1271456823 | K146: ='Car Summary'!M17 -> 1563887736 | L146: ='Car Summary'!N17 -> 3595126959 | M146: ='Car Summary'!O17 -> 5417252497 | N146: ='Car Summary'!P17 -> 6273272017
A147: LGV | C147: ='Van Summary'!E17 -> 16383324.72 | D147: ='Van Summary'!F17 -> 26785751.43 | E147: ='Van Summary'!G17 -> 45262452.75 | F147: ='Van Summary'!H17 -> 80250126.87 | G147: ='Van Summary'!I17 -> 113859116.9 | H147: ='Van Summary'!J17 -> 158095915 | I147: ='Van Summary'!K17 -> 210504707.9 | J147: ='Van Summary'!L17 -> 266240078.2 | K147: ='Van Summary'!M17 -> 340028682.5 | L147: ='Van Summary'!N17 -> 817150197.6 | M147: ='Van Summary'!O17 -> 1173857682 | N147: ='Van Summary'!P17 -> 1414632427
A148: HGV | C148: ='HGV Summary'!E17 -> 53592816.03 | D148: ='HGV Summary'!F17 -> 102264647.6 | E148: ='HGV Summary'!G17 -> 164375832.9 | F148: ='HGV Summary'!H17 -> 239490787.1 | G148: ='HGV Summary'!I17 -> 269289415.9 | H148: ='HGV Summary'!J17 -> 315656940.3 | I148: ='HGV Summary'!K17 -> 388184709.1 | J148: ='HGV Summary'!L17 -> 486958514.4 | K148: ='HGV Summary'!M17 -> 603461938.9 | L148: ='HGV Summary'!N17 -> 1119480979 | M148: ='HGV Summary'!O17 -> 1827770898 | N148: ='HGV Summary'!P17 -> 2504961084
A149: Bus | C149: ='Bus Summary'!E40 -> 17301380.15 | D149: ='Bus Summary'!F40 -> 33352058.11 | E149: ='Bus Summary'!G40 -> 33352058.11 | F149: ='Bus Summary'!H40 -> 33352058.11 | G149: ='Bus Summary'!I40 -> 45025278.45 | H149: ='Bus Summary'!J40 -> 61180181.6 | I149: ='Bus Summary'!K40 -> 85464648.91 | J149: ='Bus Summary'!L40 -> 109749116.2 | K149: ='Bus Summary'!M40 -> 132782881.4 | L149: ='Bus Summary'!N40 -> 334145932.2 | M149: ='Bus Summary'!O40 -> 339148740.9 | N149: ='Bus Summary'!P40 -> 352072663.4
A150: Coach | C150: ='Bus Summary'!E62 -> 3647881.356 | D150: ='Bus Summary'!F62 -> 5836610.169 | E150: ='Bus Summary'!G62 -> 8754915.254 | F150: ='Bus Summary'!H62 -> 12507021.79 | G150: ='Bus Summary'!I62 -> 17197154.96 | H150: ='Bus Summary'!J62 -> 24805593.22 | I150: ='Bus Summary'!K62 -> 33768958.84 | J150: ='Bus Summary'!L62 -> 33768958.84 | K150: ='Bus Summary'!M62 -> 33768958.84 | L150: ='Bus Summary'!N62 -> 138723716.7 | M150: ='Bus Summary'!O62 -> 159672978.2 | N150: ='Bus Summary'!P62 -> 177391259.1
A151: Hydrogen | B151: Total | C151: =SUM(C152:C156) -> 13375821.88 | D151: =SUM(D152:D156) -> 23326490.87 | E151: 27222570.5 | F151: 33244087.52 | G151: 120862038.7 | H151: 225332591.4 | I151: 337082274.6 | J151: 457029525.8 | K151: 610553373.6 | L151: 2006915276 | M151: 3055007439 | N151: 3639181106
A152: Car | C152: ='Car Summary'!E18 -> 4156287.561 | D152: ='Car Summary'!F18 -> 5705978.036 | E152: ='Car Summary'!G18 -> 7042996.836 | F152: ='Car Summary'!H18 -> 9812782.29 | G152: ='Car Summary'!I18 -> 13546837.3 | H152: ='Car Summary'!J18 -> 16632968.84 | I152: ='Car Summary'!K18 -> 19365250 | J152: ='Car Summary'!L18 -> 22269453.14 | K152: ='Car Summary'!M18 -> 43231607.76 | L152: ='Car Summary'!N18 -> 201797186.3 | M152: ='Car Summary'!O18 -> 409516150.2 | N152: ='Car Summary'!P18 -> 503437779
A153: LGV | C153: ='Van Summary'!E18 -> 282224.9951 | D153: ='Van Summary'!F18 -> 518897.6231 | E153: ='Van Summary'!G18 -> 819746.1788 | F153: ='Van Summary'!H18 -> 1292139.569 | G153: ='Van Summary'!I18 -> 1958998.743 | H153: ='Van Summary'!J18 -> 2699819.481 | I153: ='Van Summary'!K18 -> 3453767.22 | J153: ='Van Summary'!L18 -> 4103991.094 | K153: ='Van Summary'!M18 -> 9309653.617 | L153: ='Van Summary'!N18 -> 36616414.47 | M153: ='Van Summary'!O18 -> 58525217.47 | N153: ='Van Summary'!P18 -> 72414675.82
A154: HGV | C154: ='HGV Summary'!E18 -> 0 | D154: ='HGV Summary'!F18 -> 0 | E154: ='HGV Summary'!G18 -> 0 | F154: ='HGV Summary'!H18 -> 0 | G154: ='HGV Summary'!I18 -> 75829208.7 | H154: ='HGV Summary'!J18 -> 166745125.5 | I154: ='HGV Summary'!K18 -> 262845501.2 | J154: ='HGV Summary'!L18 -> 371768854 | K154: ='HGV Summary'!M18 -> 492176539.2 | L154: ='HGV Summary'!N18 -> 1627765351 | M154: ='HGV Summary'!O18 -> 2455294925 | N154: ='HGV Summary'!P18 -> 2982727844
A155: Bus | C155: ='Bus Summary'!E39 -> 6427219.532 | D155: ='Bus Summary'!F39 -> 12854439.06 | E155: ='Bus Summary'!G39 -> 12854439.06 | F155: ='Bus Summary'!H39 -> 12854439.06 | G155: ='Bus Summary'!I39 -> 17197154.96 | H155: ='Bus Summary'!J39 -> 22755831.32 | I155: ='Bus Summary'!K39 -> 30746428.57 | J155: ='Bus Summary'!L39 -> 38215899.92 | K155: ='Bus Summary'!M39 -> 45164245.36 | L155: ='Bus Summary'!N39 -> 88765112.99 | M155: ='Bus Summary'!O39 -> 80427098.47 | N155: ='Bus Summary'!P39 -> 58887227.6
A156: Coach | C156: ='Bus Summary'!E61 -> 2510089.79 | D156: ='Bus Summary'!F61 -> 4247176.15 | E156: ='Bus Summary'!G61 -> 6505388.418 | F156: ='Bus Summary'!H61 -> 9284726.594 | G156: ='Bus Summary'!I61 -> 12329838.98 | H156: ='Bus Summary'!J61 -> 16498846.25 | I156: ='Bus Summary'!K61 -> 20671327.68 | J156: ='Bus Summary'!L61 -> 20671327.68 | K156: ='Bus Summary'!M61 -> 20671327.68 | L156: ='Bus Summary'!N61 -> 51971211.27 | M156: ='Bus Summary'!O61 -> 51244047.62 | N156: ='Bus Summary'!P61 -> 21713579.5
A157: Scenario 4: High Electric + Low Hydrogen
A158: Electricity | B158: Total | C158: =SUM(C159:C163) -> 381843412.6 | D158: =SUM(D159:D163) -> 676170598.4 | E158: 934702546.1 | F158: 1214616719 | G158: 1537683731 | H158: 1931027397 | I158: 2392853843 | J158: 2947670435 | K158: 4449329896 | L158: 8300814351 | M158: 1.122240076e+10 | N158: 8488689465
A159: Car | C159: ='Car Summary'!E20 -> 146829227.4 | D159: ='Car Summary'!F20 -> 269315443.3 | E159: ='Car Summary'!G20 -> 421088256.4 | F159: ='Car Summary'!H20 -> 594130250.7 | G159: ='Car Summary'!I20 -> 786906373.1 | H159: ='Car Summary'!J20 -> 1002802209 | I159: ='Car Summary'!K20 -> 1245245149 | J159: ='Car Summary'!L20 -> 1535200475 | K159: ='Car Summary'!M20 -> 1902345190 | L159: ='Car Summary'!N20 -> 4050170682 | M159: ='Car Summary'!O20 -> 5861093692 | N159: ='Car Summary'!P20 -> 6469928464
A160: LGV | C160: ='Van Summary'!E20 -> 18414513.46 | D160: ='Van Summary'!F20 -> 31527554.7 | E160: ='Van Summary'!G20 -> 54833720.47 | F160: ='Van Summary'!H20 -> 98111360.53 | G160: ='Van Summary'!I20 -> 141058249.6 | H160: ='Van Summary'!J20 -> 197812052 | I160: ='Van Summary'!K20 -> 264784760.2 | J160: ='Van Summary'!L20 -> 336371619.9 | K160: ='Van Summary'!M20 -> 433010407.2 | L160: ='Van Summary'!N20 -> 952183628.8 | M160: ='Van Summary'!O20 -> 1286013200 | N160: ='Van Summary'!P20 -> 1455788683
A161: HGV | C161: ='HGV Summary'!F20 -> 102264647.6 | D161: ='HGV Summary'!G20 -> 164375832.9 | E161: ='HGV Summary'!H20 -> 239490787.1 | F161: ='HGV Summary'!I20 -> 292662807.6 | G161: ='HGV Summary'!J20 -> 368542038.6 | H161: ='HGV Summary'!K20 -> 472664262.2 | I161: ='HGV Summary'!L20 -> 607252553.8 | J161: ='HGV Summary'!M20 -> 763318570.7 | K161: ='HGV Summary'!N20 -> 1764090365 | L161: ='HGV Summary'!O20 -> 2749401784 | M161: ='HGV Summary'!P20 -> 3514770844 | N161: ='HGV Summary'!Q20 -> 0
A162: Bus | C162: ='Bus Summary'!E43 -> 104329406.8 | D162: ='Bus Summary'!F43 -> 194692639.2 | E162: ='Bus Summary'!G43 -> 194692639.2 | F162: ='Bus Summary'!H43 -> 194692639.2 | G162: ='Bus Summary'!I43 -> 194692639.2 | H162: ='Bus Summary'!J43 -> 194692639.2 | I162: ='Bus Summary'!K43 -> 194692639.2 | J162: ='Bus Summary'!L43 -> 231901029.1 | K162: ='Bus Summary'!M43 -> 269005193.7 | L162: ='Bus Summary'!N43 -> 380213462.5 | M162: ='Bus Summary'!O43 -> 376774031.5 | N162: ='Bus Summary'!P43 -> 377503607.7
A163: Coach | C163: ='Bus Summary'!E65 -> 10005617.43 | D163: ='Bus Summary'!F65 -> 16259128.33 | E163: ='Bus Summary'!G65 -> 24597142.86 | F163: ='Bus Summary'!H65 -> 35019661.02 | G163: ='Bus Summary'!I65 -> 46484430.99 | H163: ='Bus Summary'!J65 -> 63056234.87 | I163: ='Bus Summary'!K65 -> 80878740.92 | J163: ='Bus Summary'!L65 -> 80878740.92 | K163: ='Bus Summary'!M65 -> 80878740.92 | L163: ='Bus Summary'!N65 -> 168844794.2 | M163: ='Bus Summary'!O65 -> 183748995.2 | N163: ='Bus Summary'!P65 -> 185468710.7
A164: Hydrogen | B164: Total | C164: =SUM(C165:C169) -> 4788231.192 | D164: =SUM(D165:D169) -> 7340938.059 | E164: 8299122.407 | F164: 9797495.179 | G164: 11933554.33 | H164: 14109596.46 | I164: 16300042.02 | J164: 20923118.93 | K164: 40981114.18 | L164: 123519746.5 | M164: 215745548.4 | N164: 225695673.9
A165: Car | C165: ='Car Summary'!E21 -> 3051845.711 | D165: ='Car Summary'!F21 -> 3686136.004 | E165: ='Car Summary'!G21 -> 4211431.107 | F165: ='Car Summary'!H21 -> 5153826.838 | G165: ='Car Summary'!I21 -> 6377758.291 | H165: ='Car Summary'!J21 -> 7357643.811 | I165: ='Car Summary'!K21 -> 8205780.73 | J165: ='Car Summary'!L21 -> 9112752.119 | K165: ='Car Summary'!M21 -> 16161180.33 | L165: ='Car Summary'!N21 -> 70209361.35 | M165: ='Car Summary'!O21 -> 141910362.7 | N165: ='Car Summary'!P21 -> 175970753.7
A166: LGV | C166: ='Van Summary'!E21 -> 94838.87133 | D166: ='Van Summary'!F21 -> 174466.9553 | E166: ='Van Summary'!G21 -> 275410.7658 | F166: ='Van Summary'!H21 -> 433647.5645 | G166: ='Van Summary'!I21 -> 657679.1705 | H166: ='Van Summary'!J21 -> 906292.4134 | I166: ='Van Summary'!K21 -> 1159001.232 | J166: ='Van Summary'!L21 -> 1376583.704 | K166: ='Van Summary'!M21 -> 3138020.398 | L166: ='Van Summary'!N21 -> 12475355.74 | M166: ='Van Summary'!O21 -> 20028112.52 | N166: ='Van Summary'!P21 -> 24971439.58
A167: HGV | C167: ='HGV Summary'!F21 -> 0 | D167: ='Van Summary'!G21 -> 275410.7658 | E167: ='Van Summary'!H21 -> 433647.5645 | F167: ='Van Summary'!I21 -> 657679.1705 | G167: ='Van Summary'!J21 -> 906292.4134 | H167: ='Van Summary'!K21 -> 1159001.232 | I167: ='Van Summary'!L21 -> 1376583.704 | J167: ='Van Summary'!M21 -> 3138020.398 | K167: ='Van Summary'!N21 -> 12475355.74 | L167: ='Van Summary'!O21 -> 20028112.52 | M167: ='Van Summary'!P21 -> 24971439.58 | N167: ='Van Summary'!Q21 -> 0
A168: Bus | C168: ='Bus Summary'!E42 -> 1215960.452 | D168: ='Bus Summary'!F42 -> 2605629.54 | E168: ='Bus Summary'!G42 -> 2605629.54 | F168: ='Bus Summary'!H42 -> 2605629.54 | G168: ='Bus Summary'!I42 -> 2605629.54 | H168: ='Bus Summary'!J42 -> 2605629.54 | I168: ='Bus Summary'!K42 -> 2605629.54 | J168: ='Bus Summary'!L42 -> 4342715.9 | K168: ='Bus Summary'!M42 -> 6253510.896 | L168: ='Bus Summary'!N42 -> 11985895.88 | M168: ='Bus Summary'!O42 -> 17718280.87 | N168: ='Bus Summary'!P42 -> 16502320.42
A169: Coach | C169: ='Bus Summary'!E64 -> 425586.1582 | D169: ='Bus Summary'!F64 -> 599294.7942 | E169: ='Bus Summary'!G64 -> 773003.4302 | F169: ='Bus Summary'!H64 -> 946712.0662 | G169: ='Bus Summary'!I64 -> 1386194.915 | H169: ='Bus Summary'!J64 -> 2081029.459 | I169: ='Bus Summary'!K64 -> 2953046.812 | J169: ='Bus Summary'!L64 -> 2953046.812 | K169: ='Bus Summary'!M64 -> 2953046.812 | L169: ='Bus Summary'!N64 -> 8821021.041 | M169: ='Bus Summary'!O64 -> 11117352.7 | N169: ='Bus Summary'!P64 -> 8251160.21
A170: Scenario 5: High Electric + High Hydrogen
A171: Electricity | B171: Total | C171: =SUM(C172:C176) -> 332605279.2 | D171: =SUM(D172:D176) -> 612965934 | E171: 857970587.7 | F171: 1158706617 | G171: 1457498809 | H171: 1821159763 | I171: 2251174961 | J171: 2832986944 | K171: 3529403422 | L171: 7210889697 | M171: 1.024953774e+10 | N171: 1.175939451e+10
A172: Car | C172: ='Car Summary'!E23 -> 146362070.6 | D172: ='Car Summary'!F23 -> 268403322.4 | E172: ='Car Summary'!G23 -> 419758977 | F172: ='Car Summary'!H23 -> 591835764.7 | G172: ='Car Summary'!I23 -> 783271387.3 | H172: ='Car Summary'!J23 -> 997983328.3 | I172: ='Car Summary'!K23 -> 1239336879 | J172: ='Car Summary'!L23 -> 1528060836 | K172: ='Car Summary'!M23 -> 1887181580 | L172: ='Car Summary'!N23 -> 3972626433 | M172: ='Car Summary'!O23 -> 5700378740 | N172: ='Car Summary'!P23 -> 6273272017
A173: LGV | C173: ='Van Summary'!E23 -> 18315368.35 | D173: ='Van Summary'!F23 -> 31346196.47 | E173: ='Van Summary'!G23 -> 54545995.81 | F173: ='Van Summary'!H23 -> 97667764.72 | G173: ='Van Summary'!I23 -> 140387543.6 | H173: ='Van Summary'!J23 -> 196885521.7 | I173: ='Van Summary'!K23 -> 263602439.3 | J173: ='Van Summary'!L23 -> 334969922.3 | K173: ='Van Summary'!M23 -> 429796964.4 | L173: ='Van Summary'!N23 -> 938351240.9 | M173: ='Van Summary'!O23 -> 1263310207 | N173: ='Van Summary'!P23 -> 1426879299
A174: HGV | C174: ='HGV Summary'!E23 -> 53592816.03 | D174: ='HGV Summary'!F23 -> 102264647.6 | E174: ='HGV Summary'!G23 -> 164375832.9 | F174: ='HGV Summary'!H23 -> 239490787.1 | G174: ='HGV Summary'!I23 -> 292662807.6 | H174: ='HGV Summary'!J23 -> 368542038.6 | I174: ='HGV Summary'!K23 -> 472664262.2 | J174: ='HGV Summary'!L23 -> 607252553.8 | K174: ='HGV Summary'!M23 -> 763318570.7 | L174: ='HGV Summary'!N23 -> 1764090365 | M174: ='HGV Summary'!O23 -> 2749401784 | N174: ='HGV Summary'!P23 -> 3514770844
A175: Bus | C175: ='Bus Summary'!E46 -> 104329406.8 | D175: ='Bus Summary'!F46 -> 194692639.2 | E175: ='Bus Summary'!G46 -> 194692639.2 | F175: ='Bus Summary'!H46 -> 194692639.2 | G175: ='Bus Summary'!I46 -> 194692639.2 | H175: ='Bus Summary'!J46 -> 194692639.2 | I175: ='Bus Summary'!K46 -> 194692639.2 | J175: ='Bus Summary'!L46 -> 281824891 | K175: ='Bus Summary'!M46 -> 368227566.6 | L175: ='Bus Summary'!N46 -> 368227566.6 | M175: ='Bus Summary'!O46 -> 366768414 | N175: ='Bus Summary'!P46 -> 371354322
A176: Coach | C176: ='Bus Summary'!E68 -> 10005617.43 | D176: ='Bus Summary'!F68 -> 16259128.33 | E176: ='Bus Summary'!G68 -> 24597142.86 | F176: ='Bus Summary'!H68 -> 35019661.02 | G176: ='Bus Summary'!I68 -> 46484430.99 | H176: ='Bus Summary'!J68 -> 63056234.87 | I176: ='Bus Summary'!K68 -> 80878740.92 | J176: ='Bus Summary'!L68 -> 80878740.92 | K176: ='Bus Summary'!M68 -> 80878740.92 | L176: ='Bus Summary'!N68 -> 167594092 | M176: ='Bus Summary'!O68 -> 169678595.6 | N176: ='Bus Summary'!P68 -> 173118026.6
A177: Hydrogen | B177: Total | C177: =SUM(C178:C182) -> 13550290.27 | D177: =SUM(D178:D182) -> 23327983.32 | E177: 27224721.19 | F177: 33247008.62 | G177: 76368991.7 | H177: 125729304.1 | I177: 176930029.3 | J177: 238875871.7 | K177: 329739267.1 | L177: 864282608.8 | M177: 1459064056 | N177: 1932841448
A178: Car | C178: ='Car Summary'!E24 -> 4156287.561 | D178: ='Car Summary'!F24 -> 5705978.036 | E178: ='Car Summary'!G24 -> 7042996.836 | F178: ='Car Summary'!H24 -> 9812782.29 | G178: ='Car Summary'!I24 -> 13546837.3 | H178: ='Car Summary'!J24 -> 16632968.84 | I178: ='Car Summary'!K24 -> 19365250 | J178: ='Car Summary'!L24 -> 22269453.14 | K178: ='Car Summary'!M24 -> 43231607.76 | L178: ='Car Summary'!N24 -> 201797186.3 | M178: ='Car Summary'!O24 -> 409516150.2 | N178: ='Car Summary'!P24 -> 503437779
A179: LGV | C179: ='Van Summary'!E24 -> 282984.7553 | D179: ='Van Summary'!F24 -> 520390.0692 | E179: ='Van Summary'!G24 -> 821896.8736 | F179: ='Van Summary'!H24 -> 1295060.676 | G179: ='Van Summary'!I24 -> 1963656.082 | H179: ='Van Summary'!J24 -> 2706142.312 | I179: ='Van Summary'!K24 -> 3461478.126 | J179: ='Van Summary'!L24 -> 4112541.986 | K179: ='Van Summary'!M24 -> 9344197.867 | L179: ='Van Summary'!N24 -> 36882378.11 | M179: ='Van Summary'!O24 -> 59028003.18 | N179: ='Van Summary'!P24 -> 73082224.67
A180: HGV | C180: ='HGV Summary'!E24 -> 0 | D180: ='HGV Summary'!F24 -> 0 | E180: ='HGV Summary'!G24 -> 0 | F180: ='HGV Summary'!H24 -> 0 | G180: ='HGV Summary'!I24 -> 35847928.91 | H180: ='HGV Summary'!J24 -> 77384324.91 | I180: ='HGV Summary'!K24 -> 120924951.7 | J180: ='HGV Summary'!L24 -> 170282678.1 | K180: ='HGV Summary'!M24 -> 224877162.1 | L180: ='HGV Summary'!N24 -> 555598464 | M180: ='HGV Summary'!O24 -> 921557574.6 | N180: ='HGV Summary'!P24 -> 1300734681
A181: Bus | C181: ='Bus Summary'!E45 -> 6427219.532 | D181: ='Bus Summary'!F45 -> 12854439.06 | E181: ='Bus Summary'!G45 -> 12854439.06 | F181: ='Bus Summary'!H45 -> 12854439.06 | G181: ='Bus Summary'!I45 -> 12854439.06 | H181: ='Bus Summary'!J45 -> 12854439.06 | I181: ='Bus Summary'!K45 -> 12854439.06 | J181: ='Bus Summary'!L45 -> 21887288.14 | K181: ='Bus Summary'!M45 -> 31962389.02 | L181: ='Bus Summary'!N45 -> 31962389.02 | M181: ='Bus Summary'!O45 -> 34394309.93 | N181: ='Bus Summary'!P45 -> 26751129.94
A182: Coach | C182: ='Bus Summary'!E67 -> 2683798.426 | D182: ='Bus Summary'!F67 -> 4247176.15 | E182: ='Bus Summary'!G67 -> 6505388.418 | F182: ='Bus Summary'!H67 -> 9284726.594 | G182: ='Bus Summary'!I67 -> 12156130.35 | H182: ='Bus Summary'!J67 -> 16151428.97 | I182: ='Bus Summary'!K67 -> 20323910.41 | J182: ='Bus Summary'!L67 -> 20323910.41 | K182: ='Bus Summary'!M67 -> 20323910.41 | L182: ='Bus Summary'!N67 -> 38042191.28 | M182: ='Bus Summary'!O67 -> 34568018.56 | N182: ='Bus Summary'!P67 -> 28835633.58
A183: Scenario 6: Medium Electric + Medium Hydrogen
A184: Electricity | B184: Total | C184: =SUM(C185:C189) -> 224925734.6 | D184: =SUM(D185:D189) -> 405240735.6 | E184: 615066230.1 | F184: 869819813.1 | G184: 1095861778 | H184: 1371096893 | I184: 1723118812 | J184: 2135733953 | K184: 2654246952 | L184: 6029678041 | M184: 9028558955 | N184: 1.083703296e+10
A185: Car | C185: ='Car Summary'!E26 -> 133956227.9 | D185: ='Car Summary'!F26 -> 236924627.5 | E185: ='Car Summary'!G26 -> 363202220.1 | F185: ='Car Summary'!H26 -> 504038399.8 | G185: ='Car Summary'!I26 -> 661893342.6 | H185: ='Car Summary'!J26 -> 838816133.8 | I185: ='Car Summary'!K26 -> 1038911673 | J185: ='Car Summary'!L26 -> 1274420247 | K185: ='Car Summary'!M26 -> 1570145558 | L185: ='Car Summary'!N26 -> 3629875615 | M185: ='Car Summary'!O26 -> 5492286759 | N185: ='Car Summary'!P26 -> 6369736956
A186: LGV | C186: ='Van Summary'!E26 -> 16427429.24 | D186: ='Van Summary'!F26 -> 26862792.24 | E186: ='Van Summary'!G26 -> 45381203.8 | F186: ='Van Summary'!H26 -> 80431546.33 | G186: ='Van Summary'!I26 -> 114129806.5 | H186: ='Van Summary'!J26 -> 158466167.1 | I186: ='Van Summary'!K26 -> 210974682.3 | J186: ='Van Summary'!L26 -> 266794804.1 | K186: ='Van Summary'!M26 -> 341290387.4 | L186: ='Van Summary'!N26 -> 823085575 | M186: ='Van Summary'!O26 -> 1184144409 | N186: ='Van Summary'!P26 -> 1428597764
A187: HGV | C187: ='HGV Summary'!E26 -> 53592816.03 | D187: ='HGV Summary'!F26 -> 102264647.6 | E187: ='HGV Summary'!G26 -> 164375832.9 | F187: ='HGV Summary'!H26 -> 239490787.1 | G187: ='HGV Summary'!I26 -> 269289415.9 | H187: ='HGV Summary'!J26 -> 315656940.3 | I187: ='HGV Summary'!K26 -> 388184709.1 | J187: ='HGV Summary'!L26 -> 486958514.4 | K187: ='HGV Summary'!M26 -> 603461938.9 | L187: ='HGV Summary'!N26 -> 1119480979 | M187: ='HGV Summary'!O26 -> 1827770898 | N187: ='HGV Summary'!P26 -> 2504961084
A188: Bus | C188: ='Bus Summary'!E49 -> 17301380.15 | D188: ='Bus Summary'!F49 -> 33352058.11 | E188: ='Bus Summary'!G49 -> 33352058.11 | F188: ='Bus Summary'!H49 -> 33352058.11 | G188: ='Bus Summary'!I49 -> 33352058.11 | H188: ='Bus Summary'!J49 -> 33352058.11 | I188: ='Bus Summary'!K49 -> 51278789.35 | J188: ='Bus Summary'!L49 -> 73791428.57 | K188: ='Bus Summary'!M49 -> 105580109 | L188: ='Bus Summary'!N49 -> 352385339 | M188: ='Bus Summary'!O49 -> 355095193.7 | N188: ='Bus Summary'!P49 -> 362078280.9
A189: Coach | C189: ='Bus Summary'!E71 -> 3647881.356 | D189: ='Bus Summary'!F71 -> 5836610.169 | E189: ='Bus Summary'!G71 -> 8754915.254 | F189: ='Bus Summary'!H71 -> 12507021.79 | G189: ='Bus Summary'!I71 -> 17197154.96 | H189: ='Bus Summary'!J71 -> 24805593.22 | I189: ='Bus Summary'!K71 -> 33768958.84 | J189: ='Bus Summary'!L71 -> 33768958.84 | K189: ='Bus Summary'!M71 -> 33768958.84 | L189: ='Bus Summary'!N71 -> 104850532.7 | M189: ='Bus Summary'!O71 -> 169261694.9 | N189: ='Bus Summary'!P71 -> 171658874.1
A190: Hydrogen | B190: Total | C190: =SUM(C191:C195) -> 9083030.987 | D190: =SUM(D191:D195) -> 15197966.61 | E190: 17720322.27 | F190: 21283793.13 | G190: 101696960.1 | H190: 197575668.6 | I190: 302576311.6 | J190: 419052617.2 | K190: 564287955.3 | L190: 1873610083 | M190: 2861306340 | N190: =SUM(N191:N195) -> 3447887288
A191: Car | C191: ='Car Summary'!E27 -> 3604946.518 | D191: ='Car Summary'!F27 -> 4697770.127 | E191: ='Car Summary'!G27 -> 5629452.156 | F191: ='Car Summary'!H27 -> 7487811.4 | G191: ='Car Summary'!I27 -> 9970596.06 | H191: ='Car Summary'!J27 -> 12006476.11 | I191: ='Car Summary'!K27 -> 13798783.83 | J191: ='Car Summary'!L27 -> 15706434.99 | K191: ='Car Summary'!M27 -> 29750554.55 | L191: ='Car Summary'!N27 -> 136639204.1 | M191: ='Car Summary'!O27 -> 277539005.9 | N191: ='Car Summary'!P27 -> 342812393.4
A192: LGV | C192: ='Van Summary'!E27 -> 188656.5035 | D192: ='Van Summary'!F27 -> 346926.7128 | E192: ='Van Summary'!G27 -> 547931.2491 | F192: ='Van Summary'!H27 -> 863373.7841 | G192: ='Van Summary'!I27 -> 1309104.055 | H192: ='Van Summary'!J27 -> 1804094.875 | I192: ='Van Summary'!K27 -> 2307652.084 | J192: ='Van Summary'!L27 -> 2741694.657 | K192: ='Van Summary'!M27 -> 6229465.245 | L192: ='Van Summary'!N27 -> 24588252.07 | M192: ='Van Summary'!O27 -> 39359878.6 | N192: ='Van Summary'!P27 -> 48868298.37
A193: HGV | C193: ='HGV Summary'!E27 -> 0 | D193: ='HGV Summary'!F27 -> 0 | E193: ='HGV Summary'!G27 -> 0 | F193: ='HGV Summary'!H27 -> 0 | G193: ='HGV Summary'!I27 -> 75829208.7 | H193: ='HGV Summary'!J27 -> 166745125.5 | I193: ='HGV Summary'!K27 -> 262845501.2 | J193: ='HGV Summary'!L27 -> 371768854 | K193: ='HGV Summary'!M27 -> 492176539.2 | L193: ='HGV Summary'!N27 -> 1627765351 | M193: ='HGV Summary'!O27 -> 2455294925 | N193: ='HGV Summary'!P27 -> 2982727844
A194: Bus | C194: ='Bus Summary'!E48 -> 3821589.992 | D194: ='Bus Summary'!F48 -> 7643179.984 | E194: ='Bus Summary'!G48 -> 7643179.984 | F194: ='Bus Summary'!H48 -> 7643179.984 | G194: ='Bus Summary'!I48 -> 7643179.984 | H194: ='Bus Summary'!J48 -> 7643179.984 | I194: ='Bus Summary'!K48 -> 11812187.25 | J194: ='Bus Summary'!L48 -> 17023446.33 | K194: ='Bus Summary'!M48 -> 24319209.04 | L194: ='Bus Summary'!N48 -> 58366101.69 | M194: ='Bus Summary'!O48 -> 53849677.16 | N194: ='Bus Summary'!P48 -> 42211198.55
A195: Coach | C195: ='Bus Summary'!E70 -> 1467837.974 | D195: ='Bus Summary'!F70 -> 2510089.79 | E195: ='Bus Summary'!G70 -> 3899758.878 | F195: ='Bus Summary'!H70 -> 5289427.966 | G195: ='Bus Summary'!I70 -> 6944871.267 | H195: ='Bus Summary'!J70 -> 9376792.171 | I195: ='Bus Summary'!K70 -> 11812187.25 | J195: ='Bus Summary'!L70 -> 11812187.25 | K195: ='Bus Summary'!M70 -> 11812187.25 | L195: ='Bus Summary'!N70 -> 26251174.78 | M195: ='Bus Summary'!O70 -> 35262853.11 | N195: ='Bus Summary'!P70 -> 31267554.48
A196: Rail
A197: Scenario 1: Low Electric + High Hydrogen
A198: Electricity | B198: Total | C198: =SUM(C199:C200) -> 382054269.6 | D198: 390522548.6 | E198: 401568439.4 | F198: 415523091.7 | G198: 433827501.4 | H198: 473862334.8 | I198: 484384448.1 | J198: 501804434.9 | K198: 576149283.1 | L198: 646084223 | M198: 694068512.2 | N198: 734941177.5
A199: Overhead Electric | C199: =SUM('Rail Summary'!D121:D124) -> 382054269.6 | D199: =SUM('Rail Summary'!E121:E124) -> 390522548.6 | E199: =SUM('Rail Summary'!F121:F124) -> 401568439.4 | F199: =SUM('Rail Summary'!G121:G124) -> 415523091.7 | G199: =SUM('Rail Summary'!H121:H124) -> 433827501.4 | H199: =SUM('Rail Summary'!I121:I124) -> 473862334.8 | I199: =SUM('Rail Summary'!J121:J124) -> 484384448.1 | J199: =SUM('Rail Summary'!K121:K124) -> 501804434.9 | K199: =SUM('Rail Summary'!L121:L124) -> 576149283.1 | L199: =SUM('Rail Summary'!M121:M124) -> 646084223 | M199: =SUM('Rail Summary'!N121:N124) -> 694068512.2 | N199: =SUM('Rail Summary'!O121:O124) -> 734941177.5
A200: Battery Electric | C200: =SUM('Rail Summary'!D128:D131) -> 0 | D200: =SUM('Rail Summary'!E128:E131) -> 0 | E200: =SUM('Rail Summary'!F128:F131) -> 0 | F200: =SUM('Rail Summary'!G128:G131) -> 0 | G200: =SUM('Rail Summary'!H128:H131) -> 0 | H200: =SUM('Rail Summary'!I128:I131) -> 0 | I200: =SUM('Rail Summary'!J128:J131) -> 0 | J200: =SUM('Rail Summary'!K128:K131) -> 0 | K200: =SUM('Rail Summary'!L128:L131) -> 0 | L200: =SUM('Rail Summary'!M128:M131) -> 0 | M200: =SUM('Rail Summary'!N128:N131) -> 0 | N200: =SUM('Rail Summary'!O128:O131) -> 0
A201: Hydrogen | B201: Total | C201: ='Rail Summary'!D80 -> 0 | D201: ='Rail Summary'!E80 -> 0 | E201: ='Rail Summary'!F80 -> 0 | F201: ='Rail Summary'!G80 -> 0 | G201: ='Rail Summary'!H80 -> 0 | H201: ='Rail Summary'!I80 -> 0 | I201: ='Rail Summary'!J80 -> 16052500.94 | J201: ='Rail Summary'!K80 -> 21612602.81 | K201: ='Rail Summary'!L80 -> 44836177.4 | L201: ='Rail Summary'!M80 -> 128745668 | M201: ='Rail Summary'!N80 -> 128745668 | N201: ='Rail Summary'!O80 -> 128745668
A202: Hydrogen | C202: ='Rail Summary'!D80 -> 0 | D202: ='Rail Summary'!E80 -> 0 | E202: ='Rail Summary'!F80 -> 0 | F202: ='Rail Summary'!G80 -> 0 | G202: ='Rail Summary'!H80 -> 0 | H202: ='Rail Summary'!I80 -> 0 | I202: ='Rail Summary'!J80 -> 16052500.94 | J202: ='Rail Summary'!K80 -> 21612602.81 | K202: ='Rail Summary'!L80 -> 44836177.4 | L202: ='Rail Summary'!M80 -> 128745668 | M202: ='Rail Summary'!N80 -> 128745668 | N202: ='Rail Summary'!O80 -> 128745668
A203: Scenario 2: Medium Electric + Low Hydrogen
A204: Electricity | B204: Total | C204: =SUM(C205:C206) -> 382054269.6 | D204: 390522548.6 | E204: 401568439.4 | F204: 415523091.7 | G204: 436287132.5 | H204: 478632375.9 | I204: 489203665 | J204: 506672827.5 | K204: 581066851.3 | L204: 687521984 | M204: 735506273.3 | N204: 776378938.5
A205: Overhead Electric | C205: =SUM('Rail Summary'!D152:D155) -> 382054269.6 | D205: =SUM('Rail Summary'!E152:E155) -> 390522548.6 | E205: =SUM('Rail Summary'!F152:F155) -> 401568439.4 | F205: =SUM('Rail Summary'!G152:G155) -> 415523091.7 | G205: =SUM('Rail Summary'!H152:H155) -> 424065145.9 | H205: =SUM('Rail Summary'!I152:I155) -> 454929887.4 | I205: =SUM('Rail Summary'!J152:J155) -> 465256820.9 | J205: =SUM('Rail Summary'!K152:K155) -> 482481627.8 | K205: =SUM('Rail Summary'!L152:L155) -> 556631296.1 | L205: =SUM('Rail Summary'!M152:M155) -> 626566236 | M205: =SUM('Rail Summary'!N152:N155) -> 674550525.3 | N205: =SUM('Rail Summary'!O152:O155) -> 715423190.5
A206: Battery Electric | C206: =SUM('Rail Summary'!D159:D162) -> 0 | D206: =SUM('Rail Summary'!E159:E162) -> 0 | E206: =SUM('Rail Summary'!F159:F162) -> 0 | F206: =SUM('Rail Summary'!G159:G162) -> 0 | G206: =SUM('Rail Summary'!H159:H162) -> 12221986.56 | H206: =SUM('Rail Summary'!I159:I162) -> 23702488.54 | I206: =SUM('Rail Summary'!J159:J162) -> 23946844.1 | J206: =SUM('Rail Summary'!K159:K162) -> 24191199.65 | K206: =SUM('Rail Summary'!L159:L162) -> 24435555.2 | L206: =SUM('Rail Summary'!M159:M162) -> 60955748 | M206: =SUM('Rail Summary'!N159:N162) -> 60955748 | N206: =SUM('Rail Summary'!O159:O162) -> 60955748
A207: Hydrogen | B207: Total | C207: ='Rail Summary'!D81 -> 0 | D207: ='Rail Summary'!E81 -> 0 | E207: ='Rail Summary'!F81 -> 0 | F207: ='Rail Summary'!G81 -> 0 | G207: ='Rail Summary'!H81 -> 0 | H207: ='Rail Summary'!I81 -> 0 | I207: ='Rail Summary'!J81 -> 16052500.94 | J207: ='Rail Summary'!K81 -> 21612602.81 | K207: ='Rail Summary'!L81 -> 44836177.4 | L207: ='Rail Summary'!M81 -> 44836177.4 | M207: ='Rail Summary'!N81 -> 44836177.4 | N207: ='Rail Summary'!O81 -> 44836177.4
A208: Hydrogen | C208: ='Rail Summary'!D81 -> 0 | D208: ='Rail Summary'!E81 -> 0 | E208: ='Rail Summary'!F81 -> 0 | F208: ='Rail Summary'!G81 -> 0 | G208: ='Rail Summary'!H81 -> 0 | H208: ='Rail Summary'!I81 -> 0 | I208: ='Rail Summary'!J81 -> 16052500.94 | J208: ='Rail Summary'!K81 -> 21612602.81 | K208: ='Rail Summary'!L81 -> 44836177.4 | L208: ='Rail Summary'!M81 -> 44836177.4 | M208: ='Rail Summary'!N81 -> 44836177.4 | N208: ='Rail Summary'!O81 -> 44836177.4
A209: Scenario 3: Medium Electric + High Hydrogen
... 24 more rows

Sheet Shipping Summary (hidden)
B1: 0
C2: ZEEfT - ZEEfT - Shipping
C5: Summary Tables for Zero Emission Shipping
C7: Summary Tables
C9: Total | D9: Units | E9: 2019 | F9: 2020 | G9: 2021 | H9: 2022 | I9: 2023 | J9: 2024 | K9: 2025 | L9: 2026 | M9: 2027 | N9: 2028 | O9: 2029 | P9: 2030 | Q9: 2035 | R9: 2040 | S9: 2045
B10: Scenario 1: Low Electric + High Hydrogen | C10: Total
C11: Battery Electric | D11: GWh
C12: Shore Power | D12: GWh
C13: Hydrogen | D13: GWh
B14: Scenario 2: Medium Electric + Low Hydrogen | C14: Total
C15: Electricity | D15: GWh
C16: Shore Power | D16: GWh
C17: Hydrogen | D17: GWh
B18: Scenario 3: Medium Electric + High Hydrogen | C18: Total
C19: Battery Electric | D19: GWh
C20: Shore Power | D20: GWh
C21: Hydrogen | D21: GWh
B22: Scenario 4: High Electric + Low Hydrogen | C22: Total
C23: Battery Electric | D23: GWh
C24: Shore Power | D24: GWh
C25: Hydrogen | D25: GWh
B26: Scenario 5: High Electric + High Hydrogen | C26: Total
C27: Battery Electric | D27: GWh
C28: Shore Power | D28: GWh
C29: Hydrogen | D29: GWh
B30: Scenario 6: Medium Electric + Medium Hydrogen | C30: Total
C31: Battery Electric | D31: GWh
C32: Shore Power | D32: GWh
C33: Hydrogen | D33: GWh
C35: Domestic - Hydrogen | D35: Units | E35: 2019 | F35: 2020 | G35: 2021 | H35: 2022 | I35: 2023 | J35: 2024 | K35: 2025 | L35: 2026 | M35: 2027 | N35: 2028 | O35: 2029 | P35: 2030 | Q35: 2035 | R35: 2040 | S35: 2045
C36: Scenario 1: Low Electric + High Hydrogen | D36: GWh | E36: 0 | F36: 0 | G36: 0 | H36: 0 | I36: 0 | J36: 0 | K36: 0 | L36: 0 | M36: 0 | N36: 0 | O36: 0 | P36: 466.5067199 | Q36: 2071.14301 | R36: 3892.501876 | S36: 6179.12921
C37: Scenario 2: Medium Electric + Low Hydrogen | D37: GWh | E37: 0 | F37: 0 | G37: 0 | H37: 0 | I37: 0 | J37: 0 | K37: 0 | L37: 0 | M37: 0 | N37: 0 | O37: 0 | P37: 122.7649263 | Q37: 217.6247945 | R37: 327.7195354 | S37: 455.7598875
C38: Scenario 3: Medium Electric + High Hydrogen | D38: GWh | E38: 0 | F38: 0 | G38: 0 | H38: 0 | I38: 0 | J38: 0 | K38: 0 | L38: 0 | M38: 0 | N38: 0 | O38: 0 | P38: 466.5067199 | Q38: 2071.14301 | R38: 3892.501876 | S38: 6179.12921
C39: Scenario 4: High Electric + Low Hydrogen | D39: GWh | E39: 0 | F39: 0 | G39: 0 | H39: 0 | I39: 0 | J39: 0 | K39: 0 | L39: 0 | M39: 0 | N39: 0 | O39: 0 | P39: 122.7649263 | Q39: 217.6247945 | R39: 327.7195354 | S39: 455.7598875
C40: Scenario 5: High Electric + High Hydrogen | D40: GWh | E40: 0 | F40: 0 | G40: 0 | H40: 0 | I40: 0 | J40: 0 | K40: 0 | L40: 0 | M40: 0 | N40: 0 | O40: 0 | P40: 466.5067199 | Q40: 2071.14301 | R40: 3892.501876 | S40: 6179.12921
C41: Scenario 6: Medium Electric + Medium Hydrogen | D41: GWh | E41: 0 | F41: 0 | G41: 0 | H41: 0 | I41: 0 | J41: 0 | K41: 0 | L41: 0 | M41: 0 | N41: 0 | O41: 0 | P41: 245.5298526 | Q41: 837.6190705 | R41: 1555.476069 | S41: 2499.82036
C43: International - Hydrogen | D43: Units | E43: 2019 | F43: 2020 | G43: 2021 | H43: 2022 | I43: 2023 | J43: 2024 | K43: 2025 | L43: 2026 | M43: 2027 | N43: 2028 | O43: 2029 | P43: 2030 | Q43: 2035 | R43: 2040 | S43: 2045
C44: Scenario 1: Low Electric + High Hydrogen | D44: GWh | E44: 0 | F44: 0 | G44: 0 | H44: 0 | I44: 0 | J44: 0 | K44: 0 | L44: 0 | M44: 0 | N44: 0 | O44: 0 | P44: 58.7282478 | Q44: 357.5472498 | R44: 663.887153 | S44: 979.0636519
C45: Scenario 2: Medium Electric + Low Hydrogen | D45: GWh | E45: 0 | F45: 0 | G45: 0 | H45: 0 | I45: 0 | J45: 0 | K45: 0 | L45: 0 | M45: 0 | N45: 0 | O45: 0 | P45: 9.008873516 | Q45: 54.82147175 | R45: 101.7520525 | S45: 149.9995382
C46: Scenario 3: Medium Electric + High Hydrogen | D46: GWh | E46: 0 | F46: 0 | G46: 0 | H46: 0 | I46: 0 | J46: 0 | K46: 0 | L46: 0 | M46: 0 | N46: 0 | O46: 0 | P46: 58.55767786 | Q46: 356.3395664 | R46: 661.3883413 | S46: 974.9969985
C47: Scenario 4: High Electric + Low Hydrogen | D47: GWh | E47: 0 | F47: 0 | G47: 0 | H47: 0 | I47: 0 | J47: 0 | K47: 0 | L47: 0 | M47: 0 | N47: 0 | O47: 0 | P47: 9.008873516 | Q47: 54.82147175 | R47: 101.7520525 | S47: 149.9995382
C48: Scenario 5: High Electric + High Hydrogen | D48: GWh | E48: 0 | F48: 0 | G48: 0 | H48: 0 | I48: 0 | J48: 0 | K48: 0 | L48: 0 | M48: 0 | N48: 0 | O48: 0 | P48: 58.55767786 | Q48: 356.3395664 | R48: 661.3883413 | S48: 974.9969985
C49: Scenario 6: Medium Electric + Medium Hydrogen | D49: GWh | E49: 0 | F49: 0 | G49: 0 | H49: 0 | I49: 0 | J49: 0 | K49: 0 | L49: 0 | M49: 0 | N49: 0 | O49: 0 | P49: 36.03549407 | Q49: 219.285887 | R49: 407.00821 | S49: 599.9981529
C51: Domestic - Battery | D51: Units | E51: 2019 | F51: 2020 | G51: 2021 | H51: 2022 | I51: 2023 | J51: 2024 | K51: 2025 | L51: 2026 | M51: 2027 | N51: 2028 | O51: 2029 | P51: 2030 | Q51: 2035 | R51: 2040 | S51: 2045
C52: Scenario 1: Low Electric + High Hydrogen | D52: GWh | E52: 0 | F52: 0 | G52: 0 | H52: 0 | I52: 0 | J52: 0 | K52: 0 | L52: 0 | M52: 0.8064531934 | N52: 2.723675833 | O52: 4.640898472 | P52: 6.558121112 | Q52: 10.99616297 | R52: 12.18642235 | S52: 14.02172877
C53: Scenario 2: Medium Electric + Low Hydrogen | D53: GWh | E53: 0 | F53: 0 | G53: 0 | H53: 0 | I53: 0 | J53: 0 | K53: 6.053011111 | L53: 23.58141416 | M53: 41.1098172 | N53: 58.63822024 | O53: 76.16662329 | P53: 93.69502633 | Q53: 192.7206164 | R53: 300.3118612 | S53: 411.3218554
C54: Scenario 3: Medium Electric + High Hydrogen | D54: GWh | E54: 0 | F54: 0 | G54: 0 | H54: 0 | I54: 0 | J54: 0 | K54: 14.28224431 | L54: 34.55372509 | M54: 54.82520587 | N54: 75.09668664 | O54: 95.36816742 | P54: 115.6396482 | Q54: 213.8212143 | R54: 310.8621602 | S54: 411.3218554
C55: Scenario 4: High Electric + Low Hydrogen | D55: GWh | E55: 0 | F55: 0 | G55: 0 | H55: 0 | I55: 0 | J55: 0 | K55: 18.75708704 | L55: 55.7382594 | M55: 92.71943176 | N55: 129.7006041 | O55: 166.6817765 | P55: 203.6629488 | Q55: 416.8968248 | R55: 650.9508266 | S55: 891.7778225
C56: Scenario 5: High Electric + High Hydrogen | D56: GWh | E56: 0 | F56: 0 | G56: 0 | H56: 0 | I56: 0 | J56: 0 | K56: 18.75708704 | L56: 55.7382594 | M56: 92.71943176 | N56: 129.7006041 | O56: 166.6817765 | P56: 203.6629488 | Q56: 416.8968248 | R56: 650.9508266 | S56: 891.7778225
C57: Scenario 6: Medium Electric + Medium Hydrogen | D57: GWh | E57: 0 | F57: 0 | G57: 0 | H57: 0 | I57: 0 | J57: 0 | K57: 6.053011111 | L57: 23.58141416 | M57: 41.1098172 | N57: 58.63822024 | O57: 76.16662329 | P57: 93.69502633 | Q57: 192.7206164 | R57: 300.3118612 | S57: 411.3218554
C59: International - Battery | D59: Units | E59: 2019 | F59: 2020 | G59: 2021 | H59: 2022 | I59: 2023 | J59: 2024 | K59: 2025 | L59: 2026 | M59: 2027 | N59: 2028 | O59: 2029 | P59: 2030 | Q59: 2035 | R59: 2040 | S59: 2045
C60: Scenario 1: Low Electric + High Hydrogen | D60: GWh | E60: 0 | F60: 0 | G60: 0 | H60: 0 | I60: 0 | J60: 0 | K60: 0.369655772 | L60: 0.7624722696 | M60: 1.155288767 | N60: 1.548105265 | O60: 1.940921762 | P60: 2.33373826 | Q60: 4.341389273 | R60: 6.395513416 | S60: 8.510676676
C61: Scenario 2: Medium Electric + Low Hydrogen | D61: GWh | E61: 0 | F61: 0 | G61: 0 | H61: 0 | I61: 0 | J61: 0 | K61: 1.477068817 | L61: 3.043223186 | M61: 4.609377555 | N61: 6.175531923 | O61: 7.741686292 | P61: 9.307840661 | Q61: 17.30690164 | R61: 25.48576511 | S61: 33.90130641
C62: Scenario 3: Medium Electric + High Hydrogen | D62: GWh | E62: 0 | F62: 0 | G62: 0 | H62: 0 | I62: 0 | J62: 0 | K62: 1.477068817 | L62: 3.043223186 | M62: 4.609377555 | N62: 6.175531923 | O62: 7.741686292 | P62: 9.307840661 | Q62: 17.30690164 | R62: 25.48576511 | S62: 33.90130641
C63: Scenario 4: High Electric + Low Hydrogen | D63: GWh | E63: 0 | F63: 0 | G63: 0 | H63: 0 | I63: 0 | J63: 0 | K63: 3.323404838 | L63: 6.847252168 | M63: 10.3710995 | N63: 13.89494683 | O63: 17.41879416 | P63: 20.94264149 | Q63: 38.94052869 | R63: 57.3429715 | S63: 76.27793942
C64: Scenario 5: High Electric + High Hydrogen | D64: GWh | E64: 0 | F64: 0 | G64: 0 | H64: 0 | I64: 0 | J64: 0 | K64: 3.323404838 | L64: 6.847252168 | M64: 10.3710995 | N64: 13.89494683 | O64: 17.41879416 | P64: 20.94264149 | Q64: 38.94052869 | R64: 57.3429715 | S64: 76.27793942
C65: Scenario 6: Medium Electric + Medium Hydrogen | D65: GWh | E65: 0 | F65: 0 | G65: 0 | H65: 0 | I65: 0 | J65: 0 | K65: 1.477068817 | L65: 3.043223186 | M65: 4.609377555 | N65: 6.175531923 | O65: 7.741686292 | P65: 9.307840661 | Q65: 17.30690164 | R65: 25.48576511 | S65: 33.90130641
C67: Domestic - Shore Power | D67: Units | E67: 2019 | F67: 2020 | G67: 2021 | H67: 2022 | I67: 2023 | J67: 2024 | K67: 2025 | L67: 2026 | M67: 2027 | N67: 2028 | O67: 2029 | P67: 2030 | Q67: 2035 | R67: 2040 | S67: 2045
C68: Scenario 1: Low Electric + High Hydrogen | D68: GWh | E68: 0 | F68: 0 | G68: 0 | H68: 0 | I68: 0 | J68: 0 | K68: 6.623766496 | L68: 7.727727578 | M68: 8.831688661 | N68: 9.935649743 | O68: 11.03961083 | P68: 41.74007494 | Q68: 77.61105909 | R68: 114.2883494 | S68: 152.0269976
C69: Scenario 2: Medium Electric + Low Hydrogen | D69: GWh | E69: 0 | F69: 0 | G69: 0 | H69: 0 | I69: 0 | J69: 0 | K69: 4.636636547 | L69: 5.409409305 | M69: 6.182182062 | N69: 6.95495482 | O69: 7.727727578 | P69: 29.21805246 | Q69: 54.32774136 | R69: 80.00184458 | S69: 106.4188983
C70: Scenario 3: Medium Electric + High Hydrogen | D70: GWh | E70: 0 | F70: 0 | G70: 0 | H70: 0 | I70: 0 | J70: 0 | K70: 4.636636547 | L70: 5.409409305 | M70: 6.182182062 | N70: 6.95495482 | O70: 7.727727578 | P70: 29.21805246 | Q70: 54.32774136 | R70: 80.00184458 | S70: 106.4188983
C71: Scenario 4: High Electric + Low Hydrogen | D71: GWh | E71: 0 | F71: 0 | G71: 0 | H71: 0 | I71: 0 | J71: 0 | K71: 3.311883248 | L71: 3.863863789 | M71: 4.41584433 | N71: 4.967824872 | O71: 5.519805413 | P71: 20.87003747 | Q71: 38.80552954 | R71: 57.1441747 | S71: 76.01349881
C72: Scenario 5: High Electric + High Hydrogen | D72: GWh | E72: 0 | F72: 0 | G72: 0 | H72: 0 | I72: 0 | J72: 0 | K72: 3.311883248 | L72: 3.863863789 | M72: 4.41584433 | N72: 4.967824872 | O72: 5.519805413 | P72: 20.87003747 | Q72: 38.80552954 | R72: 57.1441747 | S72: 76.01349881
C73: Scenario 6: Medium Electric + Medium Hydrogen | D73: GWh | E73: 0 | F73: 0 | G73: 0 | H73: 0 | I73: 0 | J73: 0 | K73: 4.636636547 | L73: 5.409409305 | M73: 6.182182062 | N73: 6.95495482 | O73: 7.727727578 | P73: 29.21805246 | Q73: 54.32774136 | R73: 80.00184458 | S73: 106.4188983
C75: International - Shore Power | D75: Units | E75: 2019 | F75: 2020 | G75: 2021 | H75: 2022 | I75: 2023 | J75: 2024 | K75: 2025 | L75: 2026 | M75: 2027 | N75: 2028 | O75: 2029 | P75: 2030 | Q75: 2035 | R75: 2040 | S75: 2045
C76: Scenario 1: Low Electric + High Hydrogen | D76: GWh | E76: 0 | F76: 0 | G76: 0 | H76: 0 | I76: 0 | J76: 0 | K76: 1.216460352 | L76: 2.509137839 | M76: 3.801815327 | N76: 5.094492814 | O76: 6.387170302 | P76: 7.67984779 | Q76: 14.2866102 | R76: 21.04630602 | S76: 28.00686889
C77: Scenario 2: Medium Electric + Low Hydrogen | D77: GWh | E77: 0 | F77: 0 | G77: 0 | H77: 0 | I77: 0 | J77: 0 | K77: 0.7291089935 | L77: 1.502192293 | M77: 2.275275593 | N77: 3.048358893 | O77: 3.821442193 | P77: 4.594525493 | Q77: 8.543012682 | R77: 12.58025376 | S77: 16.73432348
C78: Scenario 3: Medium Electric + High Hydrogen | D78: GWh | E78: 0 | F78: 0 | G78: 0 | H78: 0 | I78: 0 | J78: 0 | K78: 0.7291089935 | L78: 1.502192293 | M78: 2.275275593 | N78: 3.048358893 | O78: 3.821442193 | P78: 4.594525493 | Q78: 8.543012682 | R78: 12.58025376 | S78: 16.73432348
C79: Scenario 4: High Electric + Low Hydrogen | D79: GWh | E79: 0 | F79: 0 | G79: 0 | H79: 0 | I79: 0 | J79: 0 | K79: 0.6075908279 | L79: 1.251826911 | M79: 1.896062995 | N79: 2.540299078 | O79: 3.184535161 | P79: 3.828771244 | Q79: 7.119177235 | R79: 10.4835448 | S79: 13.94526957
C80: Scenario 5: High Electric + High Hydrogen | D80: GWh | E80: 0 | F80: 0 | G80: 0 | H80: 0 | I80: 0 | J80: 0 | K80: 0.6075908279 | L80: 1.251826911 | M80: 1.896062995 | N80: 2.540299078 | O80: 3.184535161 | P80: 3.828771244 | Q80: 7.119177235 | R80: 10.4835448 | S80: 13.94526957
C81: Scenario 6: Medium Electric + Medium Hydrogen | D81: GWh | E81: 0 | F81: 0 | G81: 0 | H81: 0 | I81: 0 | J81: 0 | K81: 0.7291089935 | L81: 1.502192293 | M81: 2.275275593 | N81: 3.048358893 | O81: 3.821442193 | P81: 4.594525493 | Q81: 8.543012682 | R81: 12.58025376 | S81: 16.73432348
C85: Total | D85: Units | E85: 2019 | F85: 2020 | G85: 2021 | H85: 2022 | I85: 2023 | J85: 2024 | K85: 2025 | L85: 2026 | M85: 2027 | N85: 2028 | O85: 2029 | P85: 2030 | Q85: 2035 | R85: 2040 | S85: 2045
B86: Scenario 1: Low Electric + High Hydrogen | C86: Total
C87: Battery Electric | D87: kWh | E87: 0 | F87: 0 | G87: 0 | H87: 0 | I87: 0 | J87: 0 | K87: 0 | L87: 0 | M87: 1958797.582 | N87: 4267558.814 | O87: 6576320.045 | P87: 8885081.277 | Q87: 15322888.38 | R87: 18557863.62 | S87: 22497055.37
C88: Shore Power | D88: kWh | E88: 0 | F88: 0 | G88: 0 | H88: 0 | I88: 0 | J88: 0 | K88: 7838948.151 | L88: 10231381.4 | M88: 12623814.65 | N88: 15016247.9 | O88: 17408681.15 | P88: 49397617.43 | Q88: 91849413.56 | R88: 135255439 | S88: 179917536.8
C89: Hydrogen | D89: kWh | E89: 0 | F89: 0 | G89: 0 | H89: 0 | I89: 0 | J89: 0 | K89: 0 | L89: 0 | M89: 0 | N89: 0 | O89: 0 | P89: 525064397.8 | Q89: 2427482577 | R89: 4553890217 | S89: 7154126208
B90: Scenario 2: Medium Electric + Low Hydrogen | C90: Total
C91: Electricity | D91: kWh | E91: 0 | F91: 0 | G91: 0 | H91: 0 | I91: 0 | J91: 0 | K91: 7530079.928 | L91: 26624637.34 | M91: 45719194.75 | N91: 64813752.17 | O91: 83908309.58 | P91: 103002867 | Q91: 210027518 | R91: 325797626.3 | S91: 445223161.8
C92: Shore Power | D92: kWh | E92: 0 | F92: 0 | G92: 0 | H92: 0 | I92: 0 | J92: 0 | K92: 5365745.54 | L92: 6911601.598 | M92: 8457457.656 | N92: 10003313.71 | O92: 11549169.77 | P92: 33812577.95 | Q92: 62870754.04 | R92: 92582098.34 | S92: 123153221.8
C93: Hydrogen | D93: kWh | E93: 0 | F93: 0 | G93: 0 | H93: 0 | I93: 0 | J93: 0 | K93: 0 | L93: 0 | M93: 0 | N93: 0 | O93: 0 | P93: 131773799.8 | Q93: 272446266.2 | R93: 429471587.9 | S93: 605759425.7
B94: Scenario 3: Medium Electric + High Hydrogen | C94: Total
C95: Battery Electric | D95: kWh | E95: 0 | F95: 0 | G95: 0 | H95: 0 | I95: 0 | J95: 0 | K95: 15759313.13 | L95: 37596948.27 | M95: 59434583.42 | N95: 81272218.57 | O95: 103109853.7 | P95: 124947488.9 | Q95: 231128116 | R95: 336347925.3 | S95: 445223161.8
C96: Shore Power | D96: kWh | E96: 0 | F96: 0 | G96: 0 | H96: 0 | I96: 0 | J96: 0 | K96: 5365745.54 | L96: 6911601.598 | M96: 8457457.656 | N96: 10003313.71 | O96: 11549169.77 | P96: 33812577.95 | Q96: 62870754.04 | R96: 92582098.34 | S96: 123153221.8
C97: Hydrogen | D97: kWh | E97: 0 | F97: 0 | G97: 0 | H97: 0 | I97: 0 | J97: 0 | K97: 0 | L97: 0 | M97: 0 | N97: 0 | O97: 0 | P97: 525064397.8 | Q97: 2427482577 | R97: 4553890217 | S97: 7154126208
B98: Scenario 4: High Electric + Low Hydrogen | C98: Total
C99: Battery Electric | D99: kWh | E99: 0 | F99: 0 | G99: 0 | H99: 0 | I99: 0 | J99: 0 | K99: 22080491.88 | L99: 62585511.57 | M99: 103090531.3 | N99: 143595551 | O99: 184100570.6 | P99: 224605590.3 | Q99: 455837353.5 | R99: 708293798.1 | S99: 968055761.9
C100: Shore Power | D100: kWh | E100: 0 | F100: 0 | G100: 0 | H100: 0 | I100: 0 | J100: 0 | K100: 3919474.076 | L100: 5115690.7 | M100: 6311907.325 | N100: 7508123.949 | O100: 8704340.574 | P100: 24698808.71 | Q100: 45924706.78 | R100: 67627719.5 | S100: 89958768.38
C101: Hydrogen | D101: kWh | E101: 0 | F101: 0 | G101: 0 | H101: 0 | I101: 0 | J101: 0 | K101: 0 | L101: 0 | M101: 0 | N101: 0 | O101: 0 | P101: 131773799.8 | Q101: 272446266.2 | R101: 429471587.9 | S101: 605759425.7
B102: Scenario 5: High Electric + High Hydrogen | C102: Total
C103: Battery Electric | D103: kWh | E103: 0 | F103: 0 | G103: 0 | H103: 0 | I103: 0 | J103: 0 | K103: 22080491.88 | L103: 62585511.57 | M103: 103090531.3 | N103: 143595551 | O103: 184100570.6 | P103: 224605590.3 | Q103: 455837353.5 | R103: 708293798.1 | S103: 968055761.9
C104: Shore Power | D104: kWh | E104: 0 | F104: 0 | G104: 0 | H104: 0 | I104: 0 | J104: 0 | K104: 3919474.076 | L104: 5115690.7 | M104: 6311907.325 | N104: 7508123.949 | O104: 8704340.574 | P104: 24698808.71 | Q104: 45924706.78 | R104: 67627719.5 | S104: 89958768.38
C105: Hydrogen | D105: kWh | E105: 0 | F105: 0 | G105: 0 | H105: 0 | I105: 0 | J105: 0 | K105: 0 | L105: 0 | M105: 0 | N105: 0 | O105: 0 | P105: 525064397.8 | Q105: 2427482577 | R105: 4553890217 | S105: 7154126208
B106: Scenario 6: Medium Electric + Medium Hydrogen | C106: Total
C107: Battery Electric | D107: kWh | E107: 0 | F107: 0 | G107: 0 | H107: 0 | I107: 0 | J107: 0 | K107: 7530079.928 | L107: 26624637.34 | M107: 45719194.75 | N107: 64813752.17 | O107: 83908309.58 | P107: 103002867 | Q107: 210027518 | R107: 325797626.3 | S107: 445223161.8
C108: Shore Power | D108: kWh | E108: 0 | F108: 0 | G108: 0 | H108: 0 | I108: 0 | J108: 0 | K108: 5365745.54 | L108: 6911601.598 | M108: 8457457.656 | N108: 10003313.71 | O108: 11549169.77 | P108: 33812577.95 | Q108: 62870754.04 | R108: 92582098.34 | S108: 123153221.8
C109: Hydrogen | D109: kWh | E109: 0 | F109: 0 | G109: 0 | H109: 0 | I109: 0 | J109: 0 | K109: 0 | L109: 0 | M109: 0 | N109: 0 | O109: 0 | P109: 281565346.7 | Q109: 1056904957 | R109: 1962484279 | S109: 3099818513
C111: Domestic - Hydrogen | D111: Units | E111: 2019 | F111: 2020 | G111: 2021 | H111: 2022 | I111: 2023 | J111: 2024 | K111: 2025 | L111: 2026 | M111: 2027 | N111: 2028 | O111: 2029 | P111: 2030 | Q111: 2035 | R111: 2040 | S111: 2045
C112: Scenario 1: Low Electric + High Hydrogen | D112: kWh | E112: 0 | F112: 0 | G112: 0 | H112: 0 | I112: 0 | J112: 0 | K112: 0 | L112: 0 | M112: 0 | N112: 0 | O112: 0 | P112: 466506719.9 | Q112: 2071143010 | R112: 3892501876 | S112: 6179129210
C113: Scenario 2: Medium Electric + Low Hydrogen | D113: kWh | E113: 0 | F113: 0 | G113: 0 | H113: 0 | I113: 0 | J113: 0 | K113: 0 | L113: 0 | M113: 0 | N113: 0 | O113: 0 | P113: 122764926.3 | Q113: 217624794.5 | R113: 327719535.4 | S113: 455759887.5
C114: Scenario 3: Medium Electric + High Hydrogen | D114: kWh | E114: 0 | F114: 0 | G114: 0 | H114: 0 | I114: 0 | J114: 0 | K114: 0 | L114: 0 | M114: 0 | N114: 0 | O114: 0 | P114: 466506719.9 | Q114: 2071143010 | R114: 3892501876 | S114: 6179129210
C115: Scenario 4: High Electric + Low Hydrogen | D115: kWh | E115: 0 | F115: 0 | G115: 0 | H115: 0 | I115: 0 | J115: 0 | K115: 0 | L115: 0 | M115: 0 | N115: 0 | O115: 0 | P115: 122764926.3 | Q115: 217624794.5 | R115: 327719535.4 | S115: 455759887.5
C116: Scenario 5: High Electric + High Hydrogen | D116: kWh | E116: 0 | F116: 0 | G116: 0 | H116: 0 | I116: 0 | J116: 0 | K116: 0 | L116: 0 | M116: 0 | N116: 0 | O116: 0 | P116: 466506719.9 | Q116: 2071143010 | R116: 3892501876 | S116: 6179129210
C117: Scenario 6: Medium Electric + Medium Hydrogen | D117: kWh | E117: 0 | F117: 0 | G117: 0 | H117: 0 | I117: 0 | J117: 0 | K117: 0 | L117: 0 | M117: 0 | N117: 0 | O117: 0 | P117: 245529852.6 | Q117: 837619070.5 | R117: 1555476069 | S117: 2499820360
C119: International - Hydrogen | D119: Units | E119: 2019 | F119: 2020 | G119: 2021 | H119: 2022 | I119: 2023 | J119: 2024 | K119: 2025 | L119: 2026 | M119: 2027 | N119: 2028 | O119: 2029 | P119: 2030 | Q119: 2035 | R119: 2040 | S119: 2045
C120: Scenario 1: Low Electric + High Hydrogen | D120: kWh | E120: 0 | F120: 0 | G120: 0 | H120: 0 | I120: 0 | J120: 0 | K120: 0 | L120: 0 | M120: 0 | N120: 0 | O120: 0 | P120: 58728247.8 | Q120: 357547249.8 | R120: 663887153 | S120: 979063651.9
C121: Scenario 2: Medium Electric + Low Hydrogen | D121: kWh | E121: 0 | F121: 0 | G121: 0 | H121: 0 | I121: 0 | J121: 0 | K121: 0 | L121: 0 | M121: 0 | N121: 0 | O121: 0 | P121: 9008873.516 | Q121: 54821471.75 | R121: 101752052.5 | S121: 149999538.2
C122: Scenario 3: Medium Electric + High Hydrogen | D122: kWh | E122: 0 | F122: 0 | G122: 0 | H122: 0 | I122: 0 | J122: 0 | K122: 0 | L122: 0 | M122: 0 | N122: 0 | O122: 0 | P122: 58557677.86 | Q122: 356339566.4 | R122: 661388341.3 | S122: 974996998.5
C123: Scenario 4: High Electric + Low Hydrogen | D123: kWh | E123: 0 | F123: 0 | G123: 0 | H123: 0 | I123: 0 | J123: 0 | K123: 0 | L123: 0 | M123: 0 | N123: 0 | O123: 0 | P123: 9008873.516 | Q123: 54821471.75 | R123: 101752052.5 | S123: 149999538.2
C124: Scenario 5: High Electric + High Hydrogen | D124: kWh | E124: 0 | F124: 0 | G124: 0 | H124: 0 | I124: 0 | J124: 0 | K124: 0 | L124: 0 | M124: 0 | N124: 0 | O124: 0 | P124: 58557677.86 | Q124: 356339566.4 | R124: 661388341.3 | S124: 974996998.5
C125: Scenario 6: Medium Electric + Medium Hydrogen | D125: kWh | E125: 0 | F125: 0 | G125: 0 | H125: 0 | I125: 0 | J125: 0 | K125: 0 | L125: 0 | M125: 0 | N125: 0 | O125: 0 | P125: 36035494.07 | Q125: 219285887 | R125: 407008210 | S125: 599998152.9
C127: Domestic - Battery | D127: Units | E127: 2019 | F127: 2020 | G127: 2021 | H127: 2022 | I127: 2023 | J127: 2024 | K127: 2025 | L127: 2026 | M127: 2027 | N127: 2028 | O127: 2029 | P127: 2030 | Q127: 2035 | R127: 2040 | S127: 2045
C128: Scenario 1: Low Electric + High Hydrogen | D128: kWh | E128: 0 | F128: 0 | G128: 0 | H128: 0 | I128: 0 | J128: 0 | K128: 0 | L128: 0 | M128: 806453.1934 | N128: 2723675.833 | O128: 4640898.472 | P128: 6558121.112 | Q128: 10996162.97 | R128: 12186422.35 | S128: 14021728.77
C129: Scenario 2: Medium Electric + Low Hydrogen | D129: kWh | E129: 0 | F129: 0 | G129: 0 | H129: 0 | I129: 0 | J129: 0 | K129: 6053011.111 | L129: 23581414.16 | M129: 41109817.2 | N129: 58638220.24 | O129: 76166623.29 | P129: 93695026.33 | Q129: 192720616.4 | R129: 300311861.2 | S129: 411321855.4
C130: Scenario 3: Medium Electric + High Hydrogen | D130: kWh | E130: 0 | F130: 0 | G130: 0 | H130: 0 | I130: 0 | J130: 0 | K130: 14282244.31 | L130: 34553725.09 | M130: 54825205.87 | N130: 75096686.64 | O130: 95368167.42 | P130: 115639648.2 | Q130: 213821214.3 | R130: 310862160.2 | S130: 411321855.4
C131: Scenario 4: High Electric + Low Hydrogen | D131: kWh | E131: 0 | F131: 0 | G131: 0 | H131: 0 | I131: 0 | J131: 0 | K131: 18757087.04 | L131: 55738259.4 | M131: 92719431.76 | N131: 129700604.1 | O131: 166681776.5 | P131: 203662948.8 | Q131: 416896824.8 | R131: 650950826.6 | S131: 891777822.5
C132: Scenario 5: High Electric + High Hydrogen | D132: kWh | E132: 0 | F132: 0 | G132: 0 | H132: 0 | I132: 0 | J132: 0 | K132: 18757087.04 | L132: 55738259.4 | M132: 92719431.76 | N132: 129700604.1 | O132: 166681776.5 | P132: 203662948.8 | Q132: 416896824.8 | R132: 650950826.6 | S132: 891777822.5
C133: Scenario 6: Medium Electric + Medium Hydrogen | D133: kWh | E133: 0 | F133: 0 | G133: 0 | H133: 0 | I133: 0 | J133: 0 | K133: 6053011.111 | L133: 23581414.16 | M133: 41109817.2 | N133: 58638220.24 | O133: 76166623.29 | P133: 93695026.33 | Q133: 192720616.4 | R133: 300311861.2 | S133: 411321855.4
C135: International - Battery | D135: Units | E135: 2019 | F135: 2020 | G135: 2021 | H135: 2022 | I135: 2023 | J135: 2024 | K135: 2025 | L135: 2026 | M135: 2027 | N135: 2028 | O135: 2029 | P135: 2030 | Q135: 2035 | R135: 2040 | S135: 2045
C136: Scenario 1: Low Electric + High Hydrogen | D136: kWh | E136: 0 | F136: 0 | G136: 0 | H136: 0 | I136: 0 | J136: 0 | K136: 369655.772 | L136: 762472.2696 | M136: 1155288.767 | N136: 1548105.265 | O136: 1940921.762 | P136: 2333738.26 | Q136: 4341389.273 | R136: 6395513.416 | S136: 8510676.676
C137: Scenario 2: Medium Electric + Low Hydrogen | D137: kWh | E137: 0 | F137: 0 | G137: 0 | H137: 0 | I137: 0 | J137: 0 | K137: 1477068.817 | L137: 3043223.186 | M137: 4609377.555 | N137: 6175531.923 | O137: 7741686.292 | P137: 9307840.661 | Q137: 17306901.64 | R137: 25485765.11 | S137: 33901306.41
C138: Scenario 3: Medium Electric + High Hydrogen | D138: kWh | E138: 0 | F138: 0 | G138: 0 | H138: 0 | I138: 0 | J138: 0 | K138: 1477068.817 | L138: 3043223.186 | M138: 4609377.555 | N138: 6175531.923 | O138: 7741686.292 | P138: 9307840.661 | Q138: 17306901.64 | R138: 25485765.11 | S138: 33901306.41
C139: Scenario 4: High Electric + Low Hydrogen | D139: kWh | E139: 0 | F139: 0 | G139: 0 | H139: 0 | I139: 0 | J139: 0 | K139: 3323404.838 | L139: 6847252.168 | M139: 10371099.5 | N139: 13894946.83 | O139: 17418794.16 | P139: 20942641.49 | Q139: 38940528.69 | R139: 57342971.5 | S139: 76277939.42
C140: Scenario 5: High Electric + High Hydrogen | D140: kWh | E140: 0 | F140: 0 | G140: 0 | H140: 0 | I140: 0 | J140: 0 | K140: 3323404.838 | L140: 6847252.168 | M140: 10371099.5 | N140: 13894946.83 | O140: 17418794.16 | P140: 20942641.49 | Q140: 38940528.69 | R140: 57342971.5 | S140: 76277939.42
C141: Scenario 6: Medium Electric + Medium Hydrogen | D141: kWh | E141: 0 | F141: 0 | G141: 0 | H141: 0 | I141: 0 | J141: 0 | K141: 1477068.817 | L141: 3043223.186 | M141: 4609377.555 | N141: 6175531.923 | O141: 7741686.292 | P141: 9307840.661 | Q141: 17306901.64 | R141: 25485765.11 | S141: 33901306.41
C143: Domestic - Shore Power | D143: Units | E143: 2019 | F143: 2020 | G143: 2021 | H143: 2022 | I143: 2023 | J143: 2024 | K143: 2025 | L143: 2026 | M143: 2027 | N143: 2028 | O143: 2029 | P143: 2030 | Q143: 2035 | R143: 2040 | S143: 2045
C144: Scenario 1: Low Electric + High Hydrogen | D144: kWh | E144: 0 | F144: 0 | G144: 0 | H144: 0 | I144: 0 | J144: 0 | K144: 6623766.496 | L144: 7727727.578 | M144: 8831688.661 | N144: 9935649.743 | O144: 11039610.83 | P144: 41740074.94 | Q144: 77611059.09 | R144: 114288349.4 | S144: 152026997.6
C145: Scenario 2: Medium Electric + Low Hydrogen | D145: kWh | E145: 0 | F145: 0 | G145: 0 | H145: 0 | I145: 0 | J145: 0 | K145: 4636636.547 | L145: 5409409.305 | M145: 6182182.062 | N145: 6954954.82 | O145: 7727727.578 | P145: 29218052.46 | Q145: 54327741.36 | R145: 80001844.58 | S145: 106418898.3
C146: Scenario 3: Medium Electric + High Hydrogen | D146: kWh | E146: 0 | F146: 0 | G146: 0 | H146: 0 | I146: 0 | J146: 0 | K146: 4636636.547 | L146: 5409409.305 | M146: 6182182.062 | N146: 6954954.82 | O146: 7727727.578 | P146: 29218052.46 | Q146: 54327741.36 | R146: 80001844.58 | S146: 106418898.3
C147: Scenario 4: High Electric + Low Hydrogen | D147: kWh | E147: 0 | F147: 0 | G147: 0 | H147: 0 | I147: 0 | J147: 0 | K147: 3311883.248 | L147: 3863863.789 | M147: 4415844.33 | N147: 4967824.872 | O147: 5519805.413 | P147: 20870037.47 | Q147: 38805529.54 | R147: 57144174.7 | S147: 76013498.81
C148: Scenario 5: High Electric + High Hydrogen | D148: kWh | E148: 0 | F148: 0 | G148: 0 | H148: 0 | I148: 0 | J148: 0 | K148: 3311883.248 | L148: 3863863.789 | M148: 4415844.33 | N148: 4967824.872 | O148: 5519805.413 | P148: 20870037.47 | Q148: 38805529.54 | R148: 57144174.7 | S148: 76013498.81
C149: Scenario 6: Medium Electric + Medium Hydrogen | D149: kWh | E149: 0 | F149: 0 | G149: 0 | H149: 0 | I149: 0 | J149: 0 | K149: 4636636.547 | L149: 5409409.305 | M149: 6182182.062 | N149: 6954954.82 | O149: 7727727.578 | P149: 29218052.46 | Q149: 54327741.36 | R149: 80001844.58 | S149: 106418898.3
C151: International - Shore Power | D151: Units | E151: 2019 | F151: 2020 | G151: 2021 | H151: 2022 | I151: 2023 | J151: 2024 | K151: 2025 | L151: 2026 | M151: 2027 | N151: 2028 | O151: 2029 | P151: 2030 | Q151: 2035 | R151: 2040 | S151: 2045
C152: Scenario 1: Low Electric + High Hydrogen | D152: kWh | E152: 0 | F152: 0 | G152: 0 | H152: 0 | I152: 0 | J152: 0 | K152: 1216460.352 | L152: 2509137.839 | M152: 3801815.327 | N152: 5094492.814 | O152: 6387170.302 | P152: 7679847.79 | Q152: 14286610.2 | R152: 21046306.02 | S152: 28006868.89
C153: Scenario 2: Medium Electric + Low Hydrogen | D153: kWh | E153: 0 | F153: 0 | G153: 0 | H153: 0 | I153: 0 | J153: 0 | K153: 729108.9935 | L153: 1502192.293 | M153: 2275275.593 | N153: 3048358.893 | O153: 3821442.193 | P153: 4594525.493 | Q153: 8543012.682 | R153: 12580253.76 | S153: 16734323.48
C154: Scenario 3: Medium Electric + High Hydrogen | D154: kWh | E154: 0 | F154: 0 | G154: 0 | H154: 0 | I154: 0 | J154: 0 | K154: 729108.9935 | L154: 1502192.293 | M154: 2275275.593 | N154: 3048358.893 | O154: 3821442.193 | P154: 4594525.493 | Q154: 8543012.682 | R154: 12580253.76 | S154: 16734323.48
C155: Scenario 4: High Electric + Low Hydrogen | D155: kWh | E155: 0 | F155: 0 | G155: 0 | H155: 0 | I155: 0 | J155: 0 | K155: 607590.8279 | L155: 1251826.911 | M155: 1896062.995 | N155: 2540299.078 | O155: 3184535.161 | P155: 3828771.244 | Q155: 7119177.235 | R155: 10483544.8 | S155: 13945269.57
C156: Scenario 5: High Electric + High Hydrogen | D156: kWh | E156: 0 | F156: 0 | G156: 0 | H156: 0 | I156: 0 | J156: 0 | K156: 607590.8279 | L156: 1251826.911 | M156: 1896062.995 | N156: 2540299.078 | O156: 3184535.161 | P156: 3828771.244 | Q156: 7119177.235 | R156: 10483544.8 | S156: 13945269.57
C157: Scenario 6: Medium Electric + Medium Hydrogen | D157: kWh | E157: 0 | F157: 0 | G157: 0 | H157: 0 | I157: 0 | J157: 0 | K157: 729108.9935 | L157: 1502192.293 | M157: 2275275.593 | N157: 3048358.893 | O157: 3821442.193 | P157: 4594525.493 | Q157: 8543012.682 | R157: 12580253.76 | S157: 16734323.48

Sheet Aviation Summary (hidden)
B1: 0
C2: Scotland ATMs Analysis - Scotland ATMs Analysis
C5: Summary Tables for Zero Emission Aircraft
C7: Summary Tables
B9: GWh | C9: Total | D9: 2019 | E9: 2020 | F9: 2021 | G9: 2022 | H9: 2023 | I9: 2024 | J9: 2025 | K9: 2026 | L9: 2027 | M9: 2028 | N9: 2029 | O9: 2030 | P9: 2035 | Q9: 2040 | R9: 2045
B10: Scenario 1: Low Electric + High Hydrogen | C10: Total
C11: Electricity | D11: 0 | E11: 0 | F11: 0 | G11: 0 | H11: 0 | I11: 0 | J11: 0 | K11: 0 | L11: 0 | M11: 0 | N11: 0 | O11: 0 | P11: 4.841940546e-15 | Q11: 1.620667323 | R11: 10.97289107
C12: Hydrogen | D12: 0 | E12: 0 | F12: 0 | G12: 0 | H12: 0 | I12: 0 | J12: 0 | K12: 0 | L12: 0 | M12: 0 | N12: 0 | O12: 5.633868877 | P12: 359.2471897 | Q12: 1085.026127 | R12: 1969.43772
B13: Scenario 2: Medium Electric + Low Hydrogen | C13: Total
C14: Electricity | D14: 0 | E14: 0 | F14: 0 | G14: 0 | H14: 0 | I14: 0 | J14: 0 | K14: 0 | L14: 0 | M14: 0 | N14: 0 | O14: 0 | P14: 3.671420968e-14 | Q14: 11.66880472 | R14: 57.17212449
C15: Hydrogen | D15: 0 | E15: 0 | F15: 0 | G15: 0 | H15: 0 | I15: 0 | J15: 0 | K15: 0 | L15: 0 | M15: 0 | N15: 0 | O15: 0 | P15: 2.92926893 | Q15: 242.4570377 | R15: 736.4221009
B16: Scenario 3: Medium Electric + High Hydrogen | C16: Total
C17: Electricity | D17: 0 | E17: 0 | F17: 0 | G17: 0 | H17: 0 | I17: 0 | J17: 0 | K17: 0 | L17: 0 | M17: 0 | N17: 0 | O17: 0 | P17: 4.841940546e-15 | Q17: 11.66880472 | R17: 49.41574985
C18: Hydrogen | D18: 0 | E18: 0 | F18: 0 | G18: 0 | H18: 0 | I18: 0 | J18: 0 | K18: 0 | L18: 0 | M18: 0 | N18: 0 | O18: 5.633868877 | P18: 359.2471897 | Q18: 1085.026127 | R18: 1969.43772
B19: Scenario 4: High Electric + Low Hydrogen | C19: Total
C20: Electricity | D20: 0 | E20: 0 | F20: 0 | G20: 0 | H20: 0 | I20: 0 | J20: 0 | K20: 0 | L20: 0 | M20: 0 | N20: 0 | O20: 0 | P20: 2.916361188 | Q20: 48.5991661 | R20: 222.3370635
C21: Hydrogen | D21: 0 | E21: 0 | F21: 0 | G21: 0 | H21: 0 | I21: 0 | J21: 0 | K21: 0 | L21: 0 | M21: 0 | N21: 0 | O21: 0 | P21: 2.92926893 | Q21: 242.4570377 | R21: 736.4221009
B22: Scenario 5: High Electric + High Hydrogen | C22: Total
C23: Electricity | D23: 0 | E23: 0 | F23: 0 | G23: 0 | H23: 0 | I23: 0 | J23: 0 | K23: 0 | L23: 0 | M23: 0 | N23: 0 | O23: 0 | P23: 2.916361188 | Q23: 42.80647525 | R23: 172.8090419
C24: Hydrogen | D24: 0 | E24: 0 | F24: 0 | G24: 0 | H24: 0 | I24: 0 | J24: 0 | K24: 0 | L24: 0 | M24: 0 | N24: 0 | O24: 5.633868877 | P24: 359.2471897 | Q24: 1085.026127 | R24: 1969.43772
B25: Scenario 6: Medium Electric + Medium Hydrogen | C25: Total
C26: Electricity | D26: 0 | E26: 0 | F26: 0 | G26: 0 | H26: 0 | I26: 0 | J26: 0 | K26: 0 | L26: 0 | M26: 0 | N26: 0 | O26: 0 | P26: 1.525125493e-14 | Q26: 11.66880472 | R26: 52.94481403
C27: Hydrogen | D27: 0 | E27: 0 | F27: 0 | G27: 0 | H27: 0 | I27: 0 | J27: 0 | K27: 0 | L27: 0 | M27: 0 | N27: 0 | O27: 0 | P27: 105.4198841 | Q27: 678.0724109 | R27: 1392.868595
B29: KWh | C29: Total | D29: 2019 | E29: 2020 | F29: 2021 | G29: 2022 | H29: 2023 | I29: 2024 | J29: 2025 | K29: 2026 | L29: 2027 | M29: 2028 | N29: 2029 | O29: 2030 | P29: 2035 | Q29: 2040 | R29: 2045
B30: Scenario 1: Low Electric + High Hydrogen | C30: Total
C31: Electricity | D31: 0 | E31: 0 | F31: 0 | G31: 0 | H31: 0 | I31: 0 | J31: 0 | K31: 0 | L31: 0 | M31: 0 | N31: 0 | O31: 0 | P31: 4.841940546e-09 | Q31: 1620667.323 | R31: 10972891.07
C32: Hydrogen | D32: 0 | E32: 0 | F32: 0 | G32: 0 | H32: 0 | I32: 0 | J32: 0 | K32: 0 | L32: 0 | M32: 0 | N32: 0 | O32: 5633868.877 | P32: 359247189.7 | Q32: 1085026127 | R32: 1969437720
B33: Scenario 2: Medium Electric + Low Hydrogen | C33: Total
C34: Electricity | D34: 0 | E34: 0 | F34: 0 | G34: 0 | H34: 0 | I34: 0 | J34: 0 | K34: 0 | L34: 0 | M34: 0 | N34: 0 | O34: 0 | P34: 3.671420968e-08 | Q34: 11668804.72 | R34: 57172124.49
C35: Hydrogen | D35: 0 | E35: 0 | F35: 0 | G35: 0 | H35: 0 | I35: 0 | J35: 0 | K35: 0 | L35: 0 | M35: 0 | N35: 0 | O35: 0 | P35: 2929268.93 | Q35: 242457037.7 | R35: 736422100.9
B36: Scenario 3: Medium Electric + High Hydrogen | C36: Total
C37: Electricity | D37: 0 | E37: 0 | F37: 0 | G37: 0 | H37: 0 | I37: 0 | J37: 0 | K37: 0 | L37: 0 | M37: 0 | N37: 0 | O37: 0 | P37: 4.841940546e-09 | Q37: 11668804.72 | R37: 49415749.85
C38: Hydrogen | D38: 0 | E38: 0 | F38: 0 | G38: 0 | H38: 0 | I38: 0 | J38: 0 | K38: 0 | L38: 0 | M38: 0 | N38: 0 | O38: 5633868.877 | P38: 359247189.7 | Q38: 1085026127 | R38: 1969437720
B39: Scenario 4: High Electric + Low Hydrogen | C39: Total
C40: Electricity | D40: 0 | E40: 0 | F40: 0 | G40: 0 | H40: 0 | I40: 0 | J40: 0 | K40: 0 | L40: 0 | M40: 0 | N40: 0 | O40: 0 | P40: 2916361.188 | Q40: 48599166.1 | R40: 222337063.5
C41: Hydrogen | D41: 0 | E41: 0 | F41: 0 | G41: 0 | H41: 0 | I41: 0 | J41: 0 | K41: 0 | L41: 0 | M41: 0 | N41: 0 | O41: 0 | P41: 2929268.93 | Q41: 242457037.7 | R41: 736422100.9
B42: Scenario 5: High Electric + High Hydrogen | C42: Total
C43: Electricity | D43: 0 | E43: 0 | F43: 0 | G43: 0 | H43: 0 | I43: 0 | J43: 0 | K43: 0 | L43: 0 | M43: 0 | N43: 0 | O43: 0 | P43: 2916361.188 | Q43: 42806475.25 | R43: 172809041.9
C44: Hydrogen | D44: 0 | E44: 0 | F44: 0 | G44: 0 | H44: 0 | I44: 0 | J44: 0 | K44: 0 | L44: 0 | M44: 0 | N44: 0 | O44: 5633868.877 | P44: 359247189.7 | Q44: 1085026127 | R44: 1969437720
B45: Scenario 6: Medium Electric + Medium Hydrogen | C45: Total
C46: Electricity | D46: 0 | E46: 0 | F46: 0 | G46: 0 | H46: 0 | I46: 0 | J46: 0 | K46: 0 | L46: 0 | M46: 0 | N46: 0 | O46: 0 | P46: 1.525125493e-08 | Q46: 11668804.72 | R46: 52944814.03
C47: Hydrogen | D47: 0 | E47: 0 | F47: 0 | G47: 0 | H47: 0 | I47: 0 | J47: 0 | K47: 0 | L47: 0 | M47: 0 | N47: 0 | O47: 0 | P47: 105419884.1 | Q47: 678072410.9 | R47: 1392868595
B50: GWh | C50: Hydrogen (Breakdown) | D50: 2019 | E50: 2020 | F50: 2021 | G50: 2022 | H50: 2023 | I50: 2024 | J50: 2025 | K50: 2026 | L50: 2027 | M50: 2028 | N50: 2029 | O50: 2030 | P50: 2035 | Q50: 2040 | R50: 2045
B51: Scenario 1: Low Electric + High Hydrogen | C51: Total
C52: LH2 Narrow Body | D52: 0 | E52: 0 | F52: 0 | G52: 0 | H52: 0 | I52: 0 | J52: 0 | K52: 0 | L52: 0 | M52: 0 | N52: 0 | O52: 0 | P52: 302.7542443 | Q52: 876.4681555 | R52: 1571.044704
C53: LH2 Regional | D53: 0 | E53: 0 | F53: 0 | G53: 0 | H53: 0 | I53: 0 | J53: 0 | K53: 0 | L53: 0 | M53: 0 | N53: 0 | O53: 5.633868877 | P53: 35.665278 | Q53: 68.58468192 | R53: 108.6826485
C54: LH2 Wide Body | D54: 0 | E54: 0 | F54: 0 | G54: 0 | H54: 0 | I54: 0 | J54: 0 | K54: 0 | L54: 0 | M54: 0 | N54: 0 | O54: 0 | P54: 20.82766738 | Q54: 139.9732892 | R54: 289.7103677
B55: Scenario 2: Medium Electric + Low Hydrogen | C55: Total
C56: LH2 Narrow Body | D56: 0 | E56: 0 | F56: 0 | G56: 0 | H56: 0 | I56: 0 | J56: 0 | K56: 0 | L56: 0 | M56: 0 | N56: 0 | O56: 0 | P56: 0 | Q56: 213.4256872 | R56: 627.7900915
C57: LH2 Regional | D57: 0 | E57: 0 | F57: 0 | G57: 0 | H57: 0 | I57: 0 | J57: 0 | K57: 0 | L57: 0 | M57: 0 | N57: 0 | O57: 0 | P57: 2.92926893 | Q57: 18.42731342 | R57: 36.80299257
C58: LH2 Wide Body | D58: 0 | E58: 0 | F58: 0 | G58: 0 | H58: 0 | I58: 0 | J58: 0 | K58: 0 | L58: 0 | M58: 0 | N58: 0 | O58: 0 | P58: 0 | Q58: 10.60403706 | R58: 71.82901679
B59: Scenario 3: Medium Electric + High Hydrogen | C59: Total
C60: LH2 Narrow Body | D60: 0 | E60: 0 | F60: 0 | G60: 0 | H60: 0 | I60: 0 | J60: 0 | K60: 0 | L60: 0 | M60: 0 | N60: 0 | O60: 0 | P60: 302.7542443 | Q60: 876.4681555 | R60: 1571.044704
C61: LH2 Regional | D61: 0 | E61: 0 | F61: 0 | G61: 0 | H61: 0 | I61: 0 | J61: 0 | K61: 0 | L61: 0 | M61: 0 | N61: 0 | O61: 5.633868877 | P61: 35.665278 | Q61: 68.58468192 | R61: 108.6826485
C62: LH2 Wide Body | D62: 0 | E62: 0 | F62: 0 | G62: 0 | H62: 0 | I62: 0 | J62: 0 | K62: 0 | L62: 0 | M62: 0 | N62: 0 | O62: 0 | P62: 20.82766738 | Q62: 139.9732892 | R62: 289.7103677
B63: Scenario 4: High Electric + Low Hydrogen | C63: Total
C64: LH2 Narrow Body | D64: 0 | E64: 0 | F64: 0 | G64: 0 | H64: 0 | I64: 0 | J64: 0 | K64: 0 | L64: 0 | M64: 0 | N64: 0 | O64: 0 | P64: 0 | Q64: 213.4256872 | R64: 627.7900915
C65: LH2 Regional | D65: 0 | E65: 0 | F65: 0 | G65: 0 | H65: 0 | I65: 0 | J65: 0 | K65: 0 | L65: 0 | M65: 0 | N65: 0 | O65: 0 | P65: 2.92926893 | Q65: 18.42731342 | R65: 36.80299257
C66: LH2 Wide Body | D66: 0 | E66: 0 | F66: 0 | G66: 0 | H66: 0 | I66: 0 | J66: 0 | K66: 0 | L66: 0 | M66: 0 | N66: 0 | O66: 0 | P66: 0 | Q66: 10.60403706 | R66: 71.82901679
B67: Scenario 5: High Electric + High Hydrogen | C67: Total
C68: LH2 Narrow Body | D68: 0 | E68: 0 | F68: 0 | G68: 0 | H68: 0 | I68: 0 | J68: 0 | K68: 0 | L68: 0 | M68: 0 | N68: 0 | O68: 0 | P68: 302.7542443 | Q68: 876.4681555 | R68: 1571.044704
C69: LH2 Regional | D69: 0 | E69: 0 | F69: 0 | G69: 0 | H69: 0 | I69: 0 | J69: 0 | K69: 0 | L69: 0 | M69: 0 | N69: 0 | O69: 5.633868877 | P69: 35.665278 | Q69: 68.58468192 | R69: 108.6826485
C70: LH2 Wide Body | D70: 0 | E70: 0 | F70: 0 | G70: 0 | H70: 0 | I70: 0 | J70: 0 | K70: 0 | L70: 0 | M70: 0 | N70: 0 | O70: 0 | P70: 20.82766738 | Q70: 139.9732892 | R70: 289.7103677
B71: Scenario 6: Medium Electric + Medium Hydrogen | C71: Total
C72: LH2 Narrow Body | D72: 0 | E72: 0 | F72: 0 | G72: 0 | H72: 0 | I72: 0 | J72: 0 | K72: 0 | L72: 0 | M72: 0 | N72: 0 | O72: 0 | P72: 86.50121265 | Q72: 563.4438143 | R72: 1139.439016
C73: LH2 Regional | D73: 0 | E73: 0 | F73: 0 | G73: 0 | H73: 0 | I73: 0 | J73: 0 | K73: 0 | L73: 0 | M73: 0 | N73: 0 | O73: 0 | P73: 18.91867143 | Q73: 44.64195196 | R73: 75.65276211
C74: LH2 Wide Body | D74: 0 | E74: 0 | F74: 0 | G74: 0 | H74: 0 | I74: 0 | J74: 0 | K74: 0 | L74: 0 | M74: 0 | N74: 0 | O74: 0 | P74: 0 | Q74: 69.98664462 | R74: 177.7768166
B77: KWh | C77: Hydrogen (Breakdown) | D77: 2019 | E77: 2020 | F77: 2021 | G77: 2022 | H77: 2023 | I77: 2024 | J77: 2025 | K77: 2026 | L77: 2027 | M77: 2028 | N77: 2029 | O77: 2030 | P77: 2035 | Q77: 2040 | R77: 2045
B78: Scenario 1: Low Electric + High Hydrogen | C78: Total
C79: LH2 Narrow Body | D79: =D52*1000000 -> 0 | E79: =E52*1000000 -> 0 | F79: 0 | G79: 0 | H79: 0 | I79: 0 | J79: 0 | K79: 0 | L79: 0 | M79: 0 | N79: 0 | O79: 0 | P79: 302754244.3 | Q79: 876468155.5 | R79: 1571044704
C80: LH2 Regional | D80: =D53*1000000 -> 0 | E80: 0 | F80: 0 | G80: 0 | H80: 0 | I80: 0 | J80: 0 | K80: 0 | L80: 0 | M80: 0 | N80: 0 | O80: 5633868.877 | P80: 35665278 | Q80: 68584681.92 | R80: 108682648.5
C81: LH2 Wide Body | D81: 0 | E81: 0 | F81: 0 | G81: 0 | H81: 0 | I81: 0 | J81: 0 | K81: 0 | L81: 0 | M81: 0 | N81: 0 | O81: 0 | P81: 20827667.38 | Q81: 139973289.2 | R81: 289710367.7
B82: Scenario 2: Medium Electric + Low Hydrogen | C82: Total | D82: 0 | E82: 0 | F82: 0 | G82: 0 | H82: 0 | I82: 0 | J82: 0 | K82: 0 | L82: 0 | M82: 0 | N82: 0 | O82: 0 | P82: 0 | Q82: 0 | R82: 0
C83: LH2 Narrow Body | D83: 0 | E83: 0 | F83: 0 | G83: 0 | H83: 0 | I83: 0 | J83: 0 | K83: 0 | L83: 0 | M83: 0 | N83: 0 | O83: 0 | P83: 0 | Q83: 213425687.2 | R83: 627790091.5
C84: LH2 Regional | D84: 0 | E84: 0 | F84: 0 | G84: 0 | H84: 0 | I84: 0 | J84: 0 | K84: 0 | L84: 0 | M84: 0 | N84: 0 | O84: 0 | P84: 2929268.93 | Q84: 18427313.42 | R84: 36802992.57
C85: LH2 Wide Body | D85: 0 | E85: 0 | F85: 0 | G85: 0 | H85: 0 | I85: 0 | J85: 0 | K85: 0 | L85: 0 | M85: 0 | N85: 0 | O85: 0 | P85: 0 | Q85: 10604037.06 | R85: 71829016.79
B86: Scenario 3: Medium Electric + High Hydrogen | C86: Total | D86: 0 | E86: 0 | F86: 0 | G86: 0 | H86: 0 | I86: 0 | J86: 0 | K86: 0 | L86: 0 | M86: 0 | N86: 0 | O86: 0 | P86: 0 | Q86: 0 | R86: 0
C87: LH2 Narrow Body | D87: 0 | E87: 0 | F87: 0 | G87: 0 | H87: 0 | I87: 0 | J87: 0 | K87: 0 | L87: 0 | M87: 0 | N87: 0 | O87: 0 | P87: 302754244.3 | Q87: 876468155.5 | R87: 1571044704
C88: LH2 Regional | D88: 0 | E88: 0 | F88: 0 | G88: 0 | H88: 0 | I88: 0 | J88: 0 | K88: 0 | L88: 0 | M88: 0 | N88: 0 | O88: 5633868.877 | P88: 35665278 | Q88: 68584681.92 | R88: 108682648.5
C89: LH2 Wide Body | D89: 0 | E89: 0 | F89: 0 | G89: 0 | H89: 0 | I89: 0 | J89: 0 | K89: 0 | L89: 0 | M89: 0 | N89: 0 | O89: 0 | P89: 20827667.38 | Q89: 139973289.2 | R89: 289710367.7
B90: Scenario 4: High Electric + Low Hydrogen | C90: Total | D90: 0 | E90: 0 | F90: 0 | G90: 0 | H90: 0 | I90: 0 | J90: 0 | K90: 0 | L90: 0 | M90: 0 | N90: 0 | O90: 0 | P90: 0 | Q90: 0 | R90: 0
C91: LH2 Narrow Body | D91: 0 | E91: 0 | F91: 0 | G91: 0 | H91: 0 | I91: 0 | J91: 0 | K91: 0 | L91: 0 | M91: 0 | N91: 0 | O91: 0 | P91: 0 | Q91: 213425687.2 | R91: 627790091.5
C92: LH2 Regional | D92: 0 | E92: 0 | F92: 0 | G92: 0 | H92: 0 | I92: 0 | J92: 0 | K92: 0 | L92: 0 | M92: 0 | N92: 0 | O92: 0 | P92: 2929268.93 | Q92: 18427313.42 | R92: 36802992.57
C93: LH2 Wide Body | D93: 0 | E93: 0 | F93: 0 | G93: 0 | H93: 0 | I93: 0 | J93: 0 | K93: 0 | L93: 0 | M93: 0 | N93: 0 | O93: 0 | P93: 0 | Q93: 10604037.06 | R93: 71829016.79
B94: Scenario 5: High Electric + High Hydrogen | C94: Total | D94: 0 | E94: 0 | F94: 0 | G94: 0 | H94: 0 | I94: 0 | J94: 0 | K94: 0 | L94: 0 | M94: 0 | N94: 0 | O94: 0 | P94: 0 | Q94: 0 | R94: 0
C95: LH2 Narrow Body | D95: 0 | E95: 0 | F95: 0 | G95: 0 | H95: 0 | I95: 0 | J95: 0 | K95: 0 | L95: 0 | M95: 0 | N95: 0 | O95: 0 | P95: 302754244.3 | Q95: 876468155.5 | R95: 1571044704
C96: LH2 Regional | D96: 0 | E96: 0 | F96: 0 | G96: 0 | H96: 0 | I96: 0 | J96: =J69*1000000 -> 0 | K96: 0 | L96: 0 | M96: 0 | N96: 0 | O96: 5633868.877 | P96: 35665278 | Q96: 68584681.92 | R96: 108682648.5
C97: LH2 Wide Body | D97: 0 | E97: 0 | F97: 0 | G97: 0 | H97: 0 | I97: 0 | J97: 0 | K97: 0 | L97: 0 | M97: 0 | N97: 0 | O97: 0 | P97: 20827667.38 | Q97: 139973289.2 | R97: 289710367.7
B98: Scenario 6: Medium Electric + Medium Hydrogen | C98: Total | D98: 0 | E98: 0 | F98: 0 | G98: 0 | H98: 0 | I98: 0 | J98: 0 | K98: 0 | L98: 0 | M98: 0 | N98: 0 | O98: 0 | P98: 0 | Q98: 0 | R98: 0
C99: LH2 Narrow Body | D99: 0 | E99: 0 | F99: 0 | G99: 0 | H99: 0 | I99: 0 | J99: 0 | K99: 0 | L99: 0 | M99: 0 | N99: 0 | O99: 0 | P99: 86501212.65 | Q99: 563443814.3 | R99: 1139439016
C100: LH2 Regional | D100: 0 | E100: 0 | F100: 0 | G100: 0 | H100: 0 | I100: 0 | J100: 0 | K100: 0 | L100: 0 | M100: 0 | N100: 0 | O100: 0 | P100: 18918671.43 | Q100: 44641951.96 | R100: 75652762.11
C101: LH2 Wide Body | D101: 0 | E101: 0 | F101: 0 | G101: 0 | H101: 0 | I101: 0 | J101: 0 | K101: 0 | L101: 0 | M101: 0 | N101: 0 | O101: 0 | P101: 0 | Q101: 69986644.62 | R101: 177776816.6
B104: GWh | C104: Electric aircraft breakdown | D104: 2019 | E104: 2020 | F104: 2021 | G104: 2022 | H104: 2023 | I104: 2024 | J104: 2025 | K104: 2026 | L104: 2027 | M104: 2028 | N104: 2029 | O104: 2030 | P104: 2035 | Q104: 2040 | R104: 2045
B105: Scenario 1: Low Electric + High Hydrogen | C105: Total
C106: Elec Regional | D106: 0 | E106: 0 | F106: 0 | G106: 0 | H106: 0 | I106: 0 | J106: 0 | K106: 0 | L106: 0 | M106: 0 | N106: 0 | O106: 0 | P106: 3.895051763e-15 | Q106: 0 | R106: 0
C107: Elec Small Turbo | D107: 0 | E107: 0 | F107: 0 | G107: 0 | H107: 0 | I107: 0 | J107: 0 | K107: 0 | L107: 0 | M107: 0 | N107: 0 | O107: 0 | P107: 0 | Q107: 1.620667323 | R107: 10.97289107
C108: Elec Large Turbo | D108: 0 | E108: 0 | F108: 0 | G108: 0 | H108: 0 | I108: 0 | J108: 0 | K108: 0 | L108: 0 | M108: 0 | N108: 0 | O108: 0 | P108: 9.468887828e-16 | Q108: 2.700277336e-14 | R108: 2.410679219e-14
B109: Scenario 2: Medium Electric + Low Hydrogen | C109: Total
C110: Elec Regional | D110: 0 | E110: 0 | F110: 0 | G110: 0 | H110: 0 | I110: 0 | J110: 0 | K110: 0 | L110: 0 | M110: 0 | N110: 0 | O110: 0 | P110: 3.202780815e-14 | Q110: 6.691970219e-15 | R110: 9.104743276
C111: Elec Small Turbo | D111: 0 | E111: 0 | F111: 0 | G111: 0 | H111: 0 | I111: 0 | J111: 0 | K111: 0 | L111: 0 | M111: 0 | N111: 0 | O111: 0 | P111: 0 | Q111: 11.66880472 | R111: 29.62680589
C112: Elec Large Turbo | D112: 0 | E112: 0 | F112: 0 | G112: 0 | H112: 0 | I112: 0 | J112: 0 | K112: 0 | L112: 0 | M112: 0 | N112: 0 | O112: 0 | P112: 4.686401529e-15 | Q112: 2.745991587e-15 | R112: 18.44057533
B113: Scenario 3: Medium Electric + High Hydrogen | C113: Total
C114: Elec Regional | D114: 0 | E114: 0 | F114: 0 | G114: 0 | H114: 0 | I114: 0 | J114: 0 | K114: 0 | L114: 0 | M114: 0 | N114: 0 | O114: 0 | P114: 3.895051763e-15 | Q114: 0 | R114: 4.338142384
C115: Elec Small Turbo | D115: 0 | E115: 0 | F115: 0 | G115: 0 | H115: 0 | I115: 0 | J115: 0 | K115: 0 | L115: 0 | M115: 0 | N115: 0 | O115: 0 | P115: 0 | Q115: 11.66880472 | R115: 29.62680589
C116: Elec Large Turbo | D116: 0 | E116: 0 | F116: 0 | G116: 0 | H116: 0 | I116: 0 | J116: 0 | K116: 0 | L116: 0 | M116: 0 | N116: 0 | O116: 0 | P116: 9.468887828e-16 | Q116: 2.700277336e-14 | R116: 15.45080158
B117: Scenario 4: High Electric + Low Hydrogen | C117: Total
C118: Elec Regional | D118: 0 | E118: 0 | F118: 0 | G118: 0 | H118: 0 | I118: 0 | J118: 0 | K118: 0 | L118: 0 | M118: 0 | N118: 0 | O118: 0 | P118: 3.202780815e-14 | Q118: 9.652232935 | R118: 54.62845966
C119: Elec Small Turbo | D119: 0 | E119: 0 | F119: 0 | G119: 0 | H119: 0 | I119: 0 | J119: 0 | K119: 0 | L119: 0 | M119: 0 | N119: 0 | O119: 0 | P119: 2.916361188 | Q119: 18.67008756 | R119: 38.62457656
C120: Elec Large Turbo | D120: 0 | E120: 0 | F120: 0 | G120: 0 | H120: 0 | I120: 0 | J120: 0 | K120: 0 | L120: 0 | M120: 0 | N120: 0 | O120: 0 | P120: 4.686401529e-15 | Q120: 20.27684561 | R120: 129.0840273
B121: Scenario 5: High Electric + High Hydrogen | C121: Total
C122: Elec Regional | D122: 0 | E122: 0 | F122: 0 | G122: 0 | H122: 0 | I122: 0 | J122: 0 | K122: 0 | L122: 0 | M122: 0 | N122: 0 | O122: 0 | P122: 3.895051763e-15 | Q122: 6.236827435 | R122: 26.02885431
C123: Elec Small Turbo | D123: 0 | E123: 0 | F123: 0 | G123: 0 | H123: 0 | I123: 0 | J123: 0 | K123: 0 | L123: 0 | M123: 0 | N123: 0 | O123: 0 | P123: 2.916361188 | Q123: 18.67008756 | R123: 38.62457656
C124: Elec Large Turbo | D124: 0 | E124: 0 | F124: 0 | G124: 0 | H124: 0 | I124: 0 | J124: 0 | K124: 0 | L124: 0 | M124: 0 | N124: 0 | O124: 0 | P124: 9.468887828e-16 | Q124: 17.89956026 | R124: 108.1556111
B125: Scenario 6: Medium Electric + Medium Hydrogen | C125: Total
C126: Elec Regional | D126: 0 | E126: 0 | F126: 0 | G126: 0 | H126: 0 | I126: 0 | J126: 0 | K126: 0 | L126: 0 | M126: 0 | N126: 0 | O126: 0 | P126: 6.146443836e-17 | Q126: 2.286792898e-14 | R126: 6.426877607
C127: Elec Small Turbo | D127: 0 | E127: 0 | F127: 0 | G127: 0 | H127: 0 | I127: 0 | J127: 0 | K127: 0 | L127: 0 | M127: 0 | N127: 0 | O127: 0 | P127: 0 | Q127: 11.66880472 | R127: 29.62680589
C128: Elec Large Turbo | D128: 0 | E128: 0 | F128: 0 | G128: 0 | H128: 0 | I128: 0 | J128: 0 | K128: 0 | L128: 0 | M128: 0 | N128: 0 | O128: 0 | P128: 1.518979049e-14 | Q128: 5.347888361e-15 | R128: 16.89113054
B131: KWh | C131: Electric aircraft breakdown | D131: 2019 | E131: 2020 | F131: 2021 | G131: 2022 | H131: 2023 | I131: 2024 | J131: 2025 | K131: 2026 | L131: 2027 | M131: 2028 | N131: 2029 | O131: 2030 | P131: 2035 | Q131: 2040 | R131: 2045
B132: Scenario 1: Low Electric + High Hydrogen | C132: Total
C133: Elec Regional | D133: 0 | E133: 0 | F133: 0 | G133: 0 | H133: 0 | I133: 0 | J133: 0 | K133: 0 | L133: 0 | M133: 0 | N133: 0 | O133: 0 | P133: 3.895051763e-09 | Q133: 0 | R133: 0
C134: Elec Small Turbo | D134: 0 | E134: 0 | F134: 0 | G134: 0 | H134: 0 | I134: 0 | J134: 0 | K134: 0 | L134: 0 | M134: 0 | N134: 0 | O134: 0 | P134: 0 | Q134: 1620667.323 | R134: 10972891.07
C135: Elec Large Turbo | D135: 0 | E135: 0 | F135: 0 | G135: 0 | H135: 0 | I135: 0 | J135: 0 | K135: 0 | L135: 0 | M135: 0 | N135: 0 | O135: 0 | P135: 9.468887828e-10 | Q135: 2.700277336e-08 | R135: 2.410679219e-08
B136: Scenario 2: Medium Electric + Low Hydrogen | C136: Total
C137: Elec Regional | D137: 0 | E137: 0 | F137: 0 | G137: 0 | H137: 0 | I137: 0 | J137: 0 | K137: 0 | L137: 0 | M137: 0 | N137: 0 | O137: 0 | P137: 3.202780815e-08 | Q137: 6.691970219e-09 | R137: 9104743.276
C138: Elec Small Turbo | D138: 0 | E138: 0 | F138: 0 | G138: 0 | H138: 0 | I138: 0 | J138: 0 | K138: 0 | L138: 0 | M138: 0 | N138: 0 | O138: 0 | P138: 0 | Q138: 11668804.72 | R138: 29626805.89
C139: Elec Large Turbo | D139: 0 | E139: 0 | F139: 0 | G139: 0 | H139: 0 | I139: 0 | J139: 0 | K139: 0 | L139: 0 | M139: 0 | N139: 0 | O139: 0 | P139: 4.686401529e-09 | Q139: 2.745991587e-09 | R139: 18440575.33
B140: Scenario 3: Medium Electric + High Hydrogen | C140: Total
C141: Elec Regional | D141: 0 | E141: 0 | F141: 0 | G141: 0 | H141: 0 | I141: 0 | J141: 0 | K141: 0 | L141: 0 | M141: 0 | N141: 0 | O141: 0 | P141: 3.895051763e-09 | Q141: 0 | R141: 4338142.384
C142: Elec Small Turbo | D142: 0 | E142: 0 | F142: 0 | G142: 0 | H142: 0 | I142: 0 | J142: 0 | K142: 0 | L142: 0 | M142: 0 | N142: 0 | O142: 0 | P142: 0 | Q142: 11668804.72 | R142: 29626805.89
C143: Elec Large Turbo | D143: 0 | E143: 0 | F143: 0 | G143: 0 | H143: 0 | I143: 0 | J143: 0 | K143: 0 | L143: 0 | M143: 0 | N143: 0 | O143: 0 | P143: 9.468887828e-10 | Q143: 2.700277336e-08 | R143: 15450801.58
B144: Scenario 4: High Electric + Low Hydrogen | C144: Total
C145: Elec Regional | D145: 0 | E145: 0 | F145: 0 | G145: 0 | H145: 0 | I145: 0 | J145: 0 | K145: 0 | L145: 0 | M145: 0 | N145: 0 | O145: 0 | P145: 3.202780815e-08 | Q145: 9652232.935 | R145: 54628459.66
C146: Elec Small Turbo | D146: 0 | E146: 0 | F146: 0 | G146: 0 | H146: 0 | I146: 0 | J146: 0 | K146: 0 | L146: 0 | M146: 0 | N146: 0 | O146: 0 | P146: 2916361.188 | Q146: 18670087.56 | R146: 38624576.56
C147: Elec Large Turbo | D147: 0 | E147: 0 | F147: 0 | G147: 0 | H147: 0 | I147: 0 | J147: 0 | K147: 0 | L147: 0 | M147: 0 | N147: 0 | O147: 0 | P147: 4.686401529e-09 | Q147: 20276845.61 | R147: 129084027.3
B148: Scenario 5: High Electric + High Hydrogen | C148: Total
C149: Elec Regional | D149: 0 | E149: 0 | F149: 0 | G149: 0 | H149: 0 | I149: 0 | J149: 0 | K149: 0 | L149: 0 | M149: 0 | N149: 0 | O149: 0 | P149: 3.895051763e-09 | Q149: 6236827.435 | R149: 26028854.31
C150: Elec Small Turbo | D150: 0 | E150: 0 | F150: 0 | G150: 0 | H150: 0 | I150: 0 | J150: 0 | K150: 0 | L150: 0 | M150: 0 | N150: 0 | O150: 0 | P150: 2916361.188 | Q150: 18670087.56 | R150: 38624576.56
C151: Elec Large Turbo | D151: 0 | E151: 0 | F151: 0 | G151: 0 | H151: 0 | I151: 0 | J151: 0 | K151: 0 | L151: 0 | M151: 0 | N151: 0 | O151: 0 | P151: 9.468887828e-10 | Q151: 17899560.26 | R151: 108155611.1
B152: Scenario 6: Medium Electric + Medium Hydrogen | C152: Total
C153: Elec Regional | D153: 0 | E153: 0 | F153: 0 | G153: 0 | H153: 0 | I153: 0 | J153: 0 | K153: 0 | L153: 0 | M153: 0 | N153: 0 | O153: 0 | P153: 6.146443836e-11 | Q153: 2.286792898e-08 | R153: 6426877.607
C154: Elec Small Turbo | D154: 0 | E154: 0 | F154: 0 | G154: 0 | H154: 0 | I154: 0 | J154: 0 | K154: 0 | L154: 0 | M154: 0 | N154: 0 | O154: 0 | P154: 0 | Q154: 11668804.72 | R154: 29626805.89
C155: Elec Large Turbo | D155: 0 | E155: 0 | F155: 0 | G155: 0 | H155: 0 | I155: 0 | J155: 0 | K155: 0 | L155: 0 | M155: 0 | N155: 0 | O155: 0 | P155: 1.518979049e-08 | Q155: 5.347888361e-09 | R155: 16891130.54

Sheet Ferries Summary (hidden)
A1: OK
C9: TOtal | D9: Units | E9: 2022 | F9: 2023 | G9: 2024 | H9: 2025 | I9: 2026 | J9: 2027 | K9: 2028 | L9: 2029 | M9: 2030 | N9: 2035 | O9: 2040 | P9: 2045
B10: Scenario 1: Low Electric + High Hydrogen | C10: Total | E10: =E11+E12 -> 0 | F10: =F11+F12 -> 2351209.486 | G10: 4702418.971 | H10: 7053628.457 | I10: 9404837.942 | J10: 11756047.43 | K10: 14107256.91 | L10: 16458466.4 | M10: 18809675.88 | N10: 790474609.1 | O10: 1409814848 | P10: 1638998799
C11: Electricity | D11: kWh | E11: =D33 -> 0 | F11: =E33 -> 2351209.486 | G11: =F33 -> 4702418.971 | H11: 7053628.457 | I11: 9404837.942 | J11: 11756047.43 | K11: 14107256.91 | L11: 16458466.4 | M11: 18809675.88 | N11: 36172453.62 | O11: 57273051.57 | P11: =O33 -> 78373649.52
C12: Hydrogen | D12: kWh | E12: =D51 -> 0 | F12: =E51 -> 0 | G12: 0 | H12: 0 | I12: 0 | J12: 0 | K12: 0 | L12: 0 | M12: 0 | N12: 754302155.5 | O12: 1352541796 | P12: 1560625149
B13: Scenario 2: Medium Electric + Low Hydrogen | C13: Total | D13: kWh | E13: =E14+E15 -> 0 | F13: =F14+F15 -> 5094287.219 | G13: 10188574.44 | H13: 15282861.66 | I13: 20377148.88 | J13: 25471436.09 | K13: 30565723.31 | L13: 35660010.53 | M13: 40754297.75 | N13: 577481434.7 | O13: 1108240117 | P13: 1638998799
C14: Electricity | D14: kWh | E14: =D34 -> 0 | F14: =E34 -> 5094287.219 | G14: 10188574.44 | H14: 15282861.66 | I14: 20377148.88 | J14: 25471436.09 | K14: 30565723.31 | L14: 35660010.53 | M14: 40754297.75 | N14: 57273051.57 | O14: 67823350.55 | P14: 78373649.52
C15: Hydrogen | D15: kWh | E15: =D52 -> 0 | F15: =E52 -> 0 | G15: 0 | H15: 0 | I15: 0 | J15: 0 | K15: 0 | L15: 0 | M15: 0 | N15: 520208383.1 | O15: 1040416766 | P15: 1560625149
B16: Scenario 3: Medium Electric + High Hydrogen | C16: Total | D16: kWh | E16: =E17+E18 -> 0 | F16: =F17+F18 -> 2351209.486 | G16: 4702418.971 | H16: 7053628.457 | I16: 9404837.942 | J16: 11756047.43 | K16: 14107256.91 | L16: 16458466.4 | M16: 18809675.88 | N16: 681230848.7 | O16: 1253752333 | P16: 1638998799
C17: Electricity | D17: kWh | E17: =D35 -> 0 | F17: =E35 -> 2351209.486 | G17: 4702418.971 | H17: 7053628.457 | I17: 9404837.942 | J17: 11756047.43 | K17: 14107256.91 | L17: 16458466.4 | M17: 18809675.88 | N17: 36172453.62 | O17: =N35 -> 57273051.57 | P17: 78373649.52
C18: Hydrogen | D18: kWh | E18: =D53 -> 0 | F18: =E53 -> 0 | G18: 0 | H18: 0 | I18: 0 | J18: 0 | K18: 0 | L18: 0 | M18: 0 | N18: 645058395.1 | O18: 1196479281 | P18: 1560625149
B19: Scenario 4: High Electric + Low Hydrogen | C19: Total | D19: kWh | E19: =E20+E21 -> 0 | F19: =F20+F21 -> 7837364.952 | G19: 15674729.9 | H19: 23512094.86 | I19: 31349459.81 | J19: 39186824.76 | K19: 47024189.71 | L19: 54861554.66 | M19: 62698919.62 | N19: 598582032.6 | O19: 1118790416 | P19: 1638998799
C20: Electricity | D20: kWh | E20: =D36 -> 0 | F20: =E36 -> 7837364.952 | G20: 15674729.9 | H20: 23512094.86 | I20: 31349459.81 | J20: 39186824.76 | K20: 47024189.71 | L20: 54861554.66 | M20: 62698919.62 | N20: 78373649.52 | O20: =N36 -> 78373649.52 | P20: 78373649.52
C21: Hydrogen | D21: kWh | E21: =D54 -> 0 | F21: =E54 -> 0 | G21: 0 | H21: 0 | I21: 0 | J21: 0 | K21: 0 | L21: 0 | M21: 0 | N21: 520208383.1 | O21: 1040416766 | P21: 1560625149
B22: Scenario 5: High Electric + High Hydrogen | C22: Total | D22: kWh | E22: =E23+E24 -> 0 | F22: =F23+F24 -> 7837364.952 | G22: 15674729.9 | H22: 23512094.86 | I22: 31349459.81 | J22: 39186824.76 | K22: 47024189.71 | L22: 54861554.66 | M22: 62698919.62 | N22: 832675805 | O22: =O23+O24 -> 1430915446 | P22: 1638998799
C23: Electricity | D23: kWh | E23: =D37 -> 0 | F23: =E37 -> 7837364.952 | G23: 15674729.9 | H23: 23512094.86 | I23: 31349459.81 | J23: 39186824.76 | K23: 47024189.71 | L23: 54861554.66 | M23: 62698919.62 | N23: 78373649.52 | O23: 78373649.52 | P23: 78373649.52
C24: Hydrogen | D24: kWh | E24: =D55 -> 0 | F24: =E55 -> 0 | G24: 0 | H24: 0 | I24: 0 | J24: 0 | K24: 0 | L24: 0 | M24: 0 | N24: 754302155.5 | O24: 1352541796 | P24: 1560625149
B25: Scenario 6: Medium Electric + Medium Hydrogen | C25: Total | D25: kWh | E25: =E26+E27 -> 0 | F25: =F26+F27 -> 5094287.219 | G25: 10188574.44 | H25: 15282861.66 | I25: 20377148.88 | J25: 25471436.09 | K25: 30565723.31 | L25: 35660010.53 | M25: 40754297.75 | N25: 702331446.6 | O25: 1264302632 | P25: 1638998799
C26: Electricity | D26: kWh | E26: =D38 -> 0 | F26: =E38 -> 5094287.219 | G26: 10188574.44 | H26: 15282861.66 | I26: 20377148.88 | J26: 25471436.09 | K26: 30565723.31 | L26: 35660010.53 | M26: 40754297.75 | N26: 57273051.57 | O26: 67823350.55 | P26: 78373649.52
C27: Hydrogen | D27: kWh | E27: =D56 -> 0 | F27: =E56 -> 0 | G27: 0 | H27: 0 | I27: 0 | J27: 0 | K27: 0 | L27: 0 | M27: 0 | N27: 645058395.1 | O27: 1196479281 | P27: 1560625149
B32: Battery Electric (kWh) | C32: 2021 | D32: 2022 | E32: 2023 | F32: 2024 | G32: 2025 | H32: 2026 | I32: 2027 | J32: 2028 | K32: 2029 | L32: 2030 | M32: 2035 | N32: 2040 | O32: 2045
B33: Scenario 1 | C33: 0 | D33: 0 | E33: 2351209.486 | F33: 4702418.971 | G33: 7053628.457 | H33: 9404837.942 | I33: 11756047.43 | J33: 14107256.91 | K33: 16458466.4 | L33: 18809675.88 | M33: 36172453.62 | N33: 57273051.57 | O33: 78373649.52 | P33: Values are kWh of electricity
B34: Scenario 2 | C34: 0 | D34: 0 | E34: 5094287.219 | F34: 10188574.44 | G34: 15282861.66 | H34: 20377148.88 | I34: 25471436.09 | J34: 30565723.31 | K34: 35660010.53 | L34: 40754297.75 | M34: 57273051.57 | N34: 67823350.55 | O34: 78373649.52
B35: Scenario 3 | C35: 0 | D35: 0 | E35: 2351209.486 | F35: 4702418.971 | G35: 7053628.457 | H35: 9404837.942 | I35: 11756047.43 | J35: 14107256.91 | K35: 16458466.4 | L35: 18809675.88 | M35: 36172453.62 | N35: 57273051.57 | O35: 78373649.52
B36: Scenario 4 | C36: 0 | D36: 0 | E36: 7837364.952 | F36: 15674729.9 | G36: 23512094.86 | H36: 31349459.81 | I36: 39186824.76 | J36: 47024189.71 | K36: 54861554.66 | L36: 62698919.62 | M36: 78373649.52 | N36: 78373649.52 | O36: 78373649.52
B37: Scenario 5 | C37: 0 | D37: 0 | E37: 7837364.952 | F37: 15674729.9 | G37: 23512094.86 | H37: 31349459.81 | I37: 39186824.76 | J37: 47024189.71 | K37: 54861554.66 | L37: 62698919.62 | M37: 78373649.52 | N37: 78373649.52 | O37: 78373649.52
B38: Scenario 6 | C38: 0 | D38: 0 | E38: 5094287.219 | F38: 10188574.44 | G38: 15282861.66 | H38: 20377148.88 | I38: 25471436.09 | J38: 30565723.31 | K38: 35660010.53 | L38: 40754297.75 | M38: 57273051.57 | N38: 67823350.55 | O38: 78373649.52
B41: Hydrogen (kg) | C41: 2021 | D41: 2022 | E41: 2023 | F41: 2024 | G41: 2025 | H41: 2026 | I41: 2027 | J41: 2028 | K41: 2029 | L41: 2030 | M41: 2035 | N41: 2040 | O41: 2045
B42: Scenario 1 | C42: 0 | D42: 0 | E42: 0 | F42: 0 | G42: 0 | H42: 0 | I42: 0 | J42: 0 | K42: 0 | L42: 0 | M42: 22629064.67 | N42: 40576253.88 | O42: 46818754.48 | P42: Values are kg of hydrogen
B43: Scenario 2 | C43: 0 | D43: 0 | E43: 0 | F43: 0 | G43: 0 | H43: 0 | I43: 0 | J43: 0 | K43: 0 | L43: 0 | M43: 15606251.49 | N43: 31212502.99 | O43: 46818754.48
B44: Scenario 3 | C44: 0 | D44: 0 | E44: 0 | F44: 0 | G44: 0 | H44: 0 | I44: 0 | J44: 0 | K44: 0 | L44: 0 | M44: 19351751.85 | N44: 35894378.43 | O44: 46818754.48
B45: Scenario 4 | C45: 0 | D45: 0 | E45: 0 | F45: 0 | G45: 0 | H45: 0 | I45: 0 | J45: 0 | K45: 0 | L45: 0 | M45: 15606251.49 | N45: 31212502.99 | O45: 46818754.48
B46: Scenario 5 | C46: 0 | D46: 0 | E46: 0 | F46: 0 | G46: 0 | H46: 0 | I46: 0 | J46: 0 | K46: 0 | L46: 0 | M46: 22629064.67 | N46: 40576253.88 | O46: 46818754.48
B47: Scenario 6 | C47: 0 | D47: 0 | E47: 0 | F47: 0 | G47: 0 | H47: 0 | I47: 0 | J47: 0 | K47: 0 | L47: 0 | M47: 19351751.85 | N47: 35894378.43 | O47: 46818754.48
B50: Hydrogen (kWh) | C50: 2021 | D50: 2022 | E50: 2023 | F50: 2024 | G50: 2025 | H50: 2026 | I50: 2027 | J50: 2028 | K50: 2029 | L50: 2030 | M50: 2035 | N50: 2040 | O50: 2045
B51: Scenario 1 | C51: 0 | D51: 0 | E51: 0 | F51: 0 | G51: 0 | H51: 0 | I51: 0 | J51: 0 | K51: 0 | L51: 0 | M51: 754302155.5 | N51: 1352541796 | O51: 1560625149 | P51: Values are kg of hydrogen
B52: Scenario 2 | C52: 0 | D52: 0 | E52: 0 | F52: 0 | G52: 0 | H52: 0 | I52: 0 | J52: 0 | K52: 0 | L52: 0 | M52: 520208383.1 | N52: 1040416766 | O52: 1560625149
B53: Scenario 3 | C53: 0 | D53: 0 | E53: 0 | F53: 0 | G53: 0 | H53: 0 | I53: 0 | J53: 0 | K53: 0 | L53: 0 | M53: 645058395.1 | N53: 1196479281 | O53: 1560625149
B54: Scenario 4 | C54: 0 | D54: 0 | E54: 0 | F54: 0 | G54: 0 | H54: 0 | I54: 0 | J54: 0 | K54: 0 | L54: 0 | M54: 520208383.1 | N54: 1040416766 | O54: 1560625149
B55: Scenario 5 | C55: 0 | D55: 0 | E55: 0 | F55: 0 | G55: 0 | H55: 0 | I55: 0 | J55: 0 | K55: 0 | L55: 0 | M55: 754302155.5 | N55: 1352541796 | O55: 1560625149
B56: Scenario 6 | C56: 0 | D56: 0 | E56: 0 | F56: 0 | G56: 0 | H56: 0 | I56: 0 | J56: 0 | K56: 0 | L56: 0 | M56: 645058395.1 | N56: 1196479281 | O56: 1560625149
B59: Total (kWh) | C59: 2021 | D59: 2022 | E59: 2023 | F59: 2024 | G59: 2025 | H59: 2026 | I59: 2027 | J59: 2028 | K59: 2029 | L59: 2030 | M59: 2035 | N59: 2040 | O59: 2045
B60: Scenario 1 | C60: 0 | D60: 0 | E60: 2351209.486 | F60: 4702418.971 | G60: 7053628.457 | H60: 9404837.942 | I60: 11756047.43 | J60: 14107256.91 | K60: 16458466.4 | L60: 18809675.88 | M60: 790474609.1 | N60: 1409814848 | O60: 1638998799 | P60: Values are kg of hydrogen
B61: Scenario 2 | C61: 0 | D61: 0 | E61: 5094287.219 | F61: 10188574.44 | G61: 15282861.66 | H61: 20377148.88 | I61: 25471436.09 | J61: 30565723.31 | K61: 35660010.53 | L61: 40754297.75 | M61: 577481434.7 | N61: 1108240117 | O61: 1638998799
B62: Scenario 3 | C62: 0 | D62: 0 | E62: 2351209.486 | F62: 4702418.971 | G62: 7053628.457 | H62: 9404837.942 | I62: 11756047.43 | J62: 14107256.91 | K62: 16458466.4 | L62: 18809675.88 | M62: 681230848.7 | N62: 1253752333 | O62: 1638998799
B63: Scenario 4 | C63: 0 | D63: 0 | E63: 7837364.952 | F63: 15674729.9 | G63: 23512094.86 | H63: 31349459.81 | I63: 39186824.76 | J63: 47024189.71 | K63: 54861554.66 | L63: 62698919.62 | M63: 598582032.6 | N63: 1118790416 | O63: 1638998799
B64: Scenario 5 | C64: 0 | D64: 0 | E64: 7837364.952 | F64: 15674729.9 | G64: 23512094.86 | H64: 31349459.81 | I64: 39186824.76 | J64: 47024189.71 | K64: 54861554.66 | L64: 62698919.62 | M64: 832675805 | N64: 1430915446 | O64: 1638998799
B65: Scenario 6 | C65: 0 | D65: 0 | E65: 5094287.219 | F65: 10188574.44 | G65: 15282861.66 | H65: 20377148.88 | I65: 25471436.09 | J65: 30565723.31 | K65: 35660010.53 | L65: 40754297.75 | M65: 702331446.6 | N65: 1264302632 | O65: 1638998799
B67: Conversion Factor | C67: 1e-06
B68: Total (gWh) | C68: 2021 | D68: 2022 | E68: 2023 | F68: 2024 | G68: 2025 | H68: 2026 | I68: 2027 | J68: 2028 | K68: 2029 | L68: 2030 | M68: 2035 | N68: 2040 | O68: 2045
B69: Scenario 1 | C69: 0 | D69: 0 | E69: 2.351209486 | F69: 4.702418971 | G69: 7.053628457 | H69: 9.404837942 | I69: 11.75604743 | J69: 14.10725691 | K69: 16.4584664 | L69: 18.80967588 | M69: 790.4746091 | N69: 1409.814848 | O69: 1638.998799 | P69: Values are kg of hydrogen
B70: Scenario 2 | C70: 0 | D70: 0 | E70: 5.094287219 | F70: 10.18857444 | G70: 15.28286166 | H70: 20.37714888 | I70: 25.47143609 | J70: 30.56572331 | K70: 35.66001053 | L70: 40.75429775 | M70: 577.4814347 | N70: 1108.240117 | O70: 1638.998799
B71: Scenario 3 | C71: 0 | D71: 0 | E71: 2.351209486 | F71: 4.702418971 | G71: 7.053628457 | H71: 9.404837942 | I71: 11.75604743 | J71: 14.10725691 | K71: 16.4584664 | L71: 18.80967588 | M71: 681.2308487 | N71: 1253.752333 | O71: 1638.998799
B72: Scenario 4 | C72: 0 | D72: 0 | E72: 7.837364952 | F72: 15.6747299 | G72: 23.51209486 | H72: 31.34945981 | I72: 39.18682476 | J72: 47.02418971 | K72: 54.86155466 | L72: 62.69891962 | M72: 598.5820326 | N72: 1118.790416 | O72: 1638.998799
B73: Scenario 5 | C73: 0 | D73: 0 | E73: 7.837364952 | F73: 15.6747299 | G73: 23.51209486 | H73: 31.34945981 | I73: 39.18682476 | J73: 47.02418971 | K73: 54.86155466 | L73: 62.69891962 | M73: 832.675805 | N73: 1430.915446 | O73: 1638.998799
B74: Scenario 6 | C74: 0 | D74: 0 | E74: 5.094287219 | F74: 10.18857444 | G74: 15.28286166 | H74: 20.37714888 | I74: 25.47143609 | J74: 30.56572331 | K74: 35.66001053 | L74: 40.75429775 | M74: 702.3314466 | N74: 1264.302632 | O74: 1638.998799
B76: Conversion Factor | C76: 1e-09
B77: Total (tWh) | C77: 2021 | D77: 2022 | E77: 2023 | F77: 2024 | G77: 2025 | H77: 2026 | I77: 2027 | J77: 2028 | K77: 2029 | L77: 2030 | M77: 2035 | N77: 2040 | O77: 2045
B78: Scenario 1 | C78: 0 | D78: 0 | E78: 0.002351209486 | F78: 0.004702418971 | G78: 0.007053628457 | H78: 0.009404837942 | I78: 0.01175604743 | J78: 0.01410725691 | K78: 0.0164584664 | L78: 0.01880967588 | M78: 0.7904746091 | N78: 1.409814848 | O78: 1.638998799 | P78: Values are kg of hydrogen
B79: Scenario 2 | C79: 0 | D79: 0 | E79: 0.005094287219 | F79: 0.01018857444 | G79: 0.01528286166 | H79: 0.02037714888 | I79: 0.02547143609 | J79: 0.03056572331 | K79: 0.03566001053 | L79: 0.04075429775 | M79: 0.5774814347 | N79: 1.108240117 | O79: 1.638998799
B80: Scenario 3 | C80: 0 | D80: 0 | E80: 0.002351209486 | F80: 0.004702418971 | G80: 0.007053628457 | H80: 0.009404837942 | I80: 0.01175604743 | J80: 0.01410725691 | K80: 0.0164584664 | L80: 0.01880967588 | M80: 0.6812308487 | N80: 1.253752333 | O80: 1.638998799
B81: Scenario 4 | C81: 0 | D81: 0 | E81: 0.007837364952 | F81: 0.0156747299 | G81: 0.02351209486 | H81: 0.03134945981 | I81: 0.03918682476 | J81: 0.04702418971 | K81: 0.05486155466 | L81: 0.06269891962 | M81: 0.5985820326 | N81: 1.118790416 | O81: 1.638998799
B82: Scenario 5 | C82: 0 | D82: 0 | E82: 0.007837364952 | F82: 0.0156747299 | G82: 0.02351209486 | H82: 0.03134945981 | I82: 0.03918682476 | J82: 0.04702418971 | K82: 0.05486155466 | L82: 0.06269891962 | M82: 0.832675805 | N82: 1.430915446 | O82: 1.638998799
B83: Scenario 6 | C83: 0 | D83: 0 | E83: 0.005094287219 | F83: 0.01018857444 | G83: 0.01528286166 | H83: 0.02037714888 | I83: 0.02547143609 | J83: 0.03056572331 | K83: 0.03566001053 | L83: 0.04075429775 | M83: 0.7023314466 | N83: 1.264302632 | O83: 1.638998799

Sheet Rail Summary (hidden)
D9: Units | E9: 2022 | F9: 2023 | G9: 2024 | H9: 2025 | I9: 2026 | J9: 2027 | K9: 2028 | L9: 2029 | M9: 2030 | N9: 2035 | O9: 2040 | P9: 2045
B10: Scenario 1: Low Electric + High Hydrogen | C10: Total | E10: =SUM(E11:E12) -> 382054269.6 | F10: =SUM(F11:F12) -> 390522548.6 | G10: 401568439.4 | H10: 415523091.7 | I10: 433827501.4 | J10: 473862334.8 | K10: 500436949.1 | L10: 523417037.7 | M10: 620985460.5 | N10: 774829891 | O10: 822814180.2 | P10: 863686845.5
C11: Hydrogen | D11: kWh | E11: =SUM(D135:D138)/0.03 -> 0 | F11: =SUM(E135:E138)/0.03 -> 0 | G11: 0 | H11: 0 | I11: 0 | J11: 0 | K11: 16052500.94 | L11: =SUM(K135:K138)/0.03 -> 21612602.81 | M11: 44836177.4 | N11: 128745668 | O11: 128745668 | P11: =SUM(O135:O138)/0.03 -> 128745668
C12: Electricty | D12: kWh | E12: =SUM(D121:D124)+SUM(D128:D131) -> 382054269.6 | F12: =SUM(E121:E124)+SUM(E128:E131) -> 390522548.6 | G12: 401568439.4 | H12: 415523091.7 | I12: 433827501.4 | J12: 473862334.8 | K12: 484384448.1 | L12: 501804434.9 | M12: 576149283.1 | N12: 646084223 | O12: 694068512.2 | P12: 734941177.5
B13: Scenario 2: Medium Electric + Low Hydrogen | C13: Total | D13: kWh | E13: =SUM(E14:E15) -> 382054269.6 | F13: =SUM(F14:F15) -> 390522548.6 | G13: 401568439.4 | H13: 415523091.7 | I13: 436287132.5 | J13: 478632375.9 | K13: 505256165.9 | L13: 528285430.3 | M13: 625903028.7 | N13: 732358161.4 | O13: 780342450.7 | P13: 821215115.9
C14: Hydrogen | D14: kWh | E14: =SUM(D166:D169)/0.03 -> 0 | F14: =SUM(E166:E169)/0.03 -> 0 | G14: 0 | H14: 0 | I14: 0 | J14: 0 | K14: 16052500.94 | L14: 21612602.81 | M14: 44836177.4 | N14: 44836177.4 | O14: 44836177.4 | P14: 44836177.4
C15: Electricty | D15: kWh | E15: =SUM(D152:D155)+SUM(D159:D162) -> 382054269.6 | F15: =SUM(E152:E155)+SUM(E159:E162) -> 390522548.6 | G15: 401568439.4 | H15: 415523091.7 | I15: 436287132.5 | J15: 478632375.9 | K15: 489203665 | L15: 506672827.5 | M15: 581066851.3 | N15: 687521984 | O15: 735506273.3 | P15: 776378938.5
B16: Scenario 3: Medium Electric + High Hydrogen | C16: Total | D16: kWh | E16: =SUM(E17:E18) -> 382054269.6 | F16: =SUM(F17:F18) -> 390522548.6 | G16: 401568439.4 | H16: 415523091.7 | I16: 436287132.5 | J16: 478632375.9 | K16: 505256165.9 | L16: 528285430.3 | M16: 625903028.7 | N16: 779747459.2 | O16: 827731748.5 | P16: 868604413.7
C17: Hydrogen | D17: kWh | E17: =SUM(D197:D200)/0.03 -> 0 | F17: =SUM(E197:E200)/0.03 -> 0 | G17: 0 | H17: 0 | I17: 0 | J17: 0 | K17: 16052500.94 | L17: 21612602.81 | M17: 44836177.4 | N17: 128745668 | O17: 128745668 | P17: 128745668
C18: Electricty | D18: kWh | E18: =SUM(D183:D186)+SUM(D190:D193) -> 382054269.6 | F18: =SUM(E183:E186)+SUM(E190:E193) -> 390522548.6 | G18: 401568439.4 | H18: 415523091.7 | I18: 436287132.5 | J18: 478632375.9 | K18: 489203665 | L18: 506672827.5 | M18: 581066851.3 | N18: 651001791.2 | O18: 698986080.5 | P18: 739858745.7
B19: Scenario 4: High Electric + Low Hydrogen | C19: Total | D19: kWh | E19: =SUM(E20:E21) -> 382054269.6 | F19: =SUM(F20:F21) -> 390522548.6 | G19: 401568439.4 | H19: 415523091.7 | I19: 436287132.5 | J19: 483309329.7 | K19: 509981335.7 | L19: 535228455.2 | M19: 648138719.9 | N19: 761533555.4 | O19: 809517844.7 | P19: 850390509.9
C20: Hydrogen | D20: kWh | E20: =SUM(D228:D231)/0.03 -> 0 | F20: =SUM(E228:E231)/0.03 -> 0 | G20: 0 | H20: 0 | I20: 0 | J20: 0 | K20: 16052500.94 | L20: 21612602.81 | M20: 44836177.4 | N20: 44836177.4 | O20: 44836177.4 | P20: 44836177.4
C21: Electricty | D21: kWh | E21: =SUM(D214:D217)+SUM(D221:D224) -> 382054269.6 | F21: =SUM(E214:E217)+SUM(E221:E224) -> 390522548.6 | G21: 401568439.4 | H21: 415523091.7 | I21: 436287132.5 | J21: 483309329.7 | K21: 493928834.8 | L21: 513615852.4 | M21: 603302542.5 | N21: 716697378 | O21: 764681667.3 | P21: 805554332.5
B22: Scenario 5: High Electric + High Hydrogen | C22: Total | D22: kWh | E22: =SUM(E23:E24) -> 382054269.6 | F22: =SUM(F23:F24) -> 390522548.6 | G22: 401568439.4 | H22: 415523091.7 | I22: 436287132.5 | J22: 483309329.7 | K22: 509981335.7 | L22: 535228455.2 | M22: 648138719.9 | N22: 808922853.2 | O22: 856907142.5 | P22: 897779807.7
C23: Hydrogen | D23: kWh | E23: =SUM(D259:D262)/0.03 -> 0 | F23: =SUM(E259:E262)/0.03 -> 0 | G23: 0 | H23: 0 | I23: 0 | J23: 0 | K23: 16052500.94 | L23: 21612602.81 | M23: 44836177.4 | N23: 128745668 | O23: 128745668 | P23: 128745668
C24: Electricty | D24: kWh | E24: =SUM(D245:D248)+SUM(D252:D255) -> 382054269.6 | F24: =SUM(E245:E248)+SUM(E252:E255) -> 390522548.6 | G24: 401568439.4 | H24: 415523091.7 | I24: 436287132.5 | J24: 483309329.7 | K24: 493928834.8 | L24: 513615852.4 | M24: 603302542.5 | N24: 680177185.2 | O24: 728161474.5 | P24: 769034139.7
B25: Scenario 6: Medium Electric + Medium Hydrogen | C25: Total | D25: kWh | E25: =SUM(E26:E27) -> 382054269.6 | F25: =SUM(F26:F27) -> 390522548.6 | G25: 401568439.4 | H25: 415523091.7 | I25: 436287132.5 | J25: 478632375.9 | K25: 505256165.9 | L25: 528285430.3 | M25: 625903028.7 | N25: 755003209.4 | O25: 802987498.6 | P25: 843860163.8
C26: Hydrogen | D26: kWh | E26: =SUM(D290:D293)/0.03 -> 0 | F26: =SUM(E290:E293)/0.03 -> 0 | G26: 0 | H26: 0 | I26: 0 | J26: 0 | K26: 16052500.94 | L26: 21612602.81 | M26: 44836177.4 | N26: 84932454.93 | O26: 84932454.93 | P26: 84932454.93
C27: Electricty | D27: kWh | E27: =SUM(D276:D279)+SUM(D283:D286) -> 382054269.6 | F27: =SUM(E276:E279)+SUM(E283:E286) -> 390522548.6 | G27: 401568439.4 | H27: 415523091.7 | I27: 436287132.5 | J27: 478632375.9 | K27: 489203665 | L27: 506672827.5 | M27: 581066851.3 | N27: 670070754.4 | O27: 718055043.7 | P27: 758927708.9
B34: Diesel | C34: Base | D34: 2022 | E34: 2023 | F34: 2024 | G34: 2025 | H34: 2026 | I34: 2027 | J34: 2028 | K34: 2029 | L34: 2030 | M34: 2035 | N34: 2040 | O34: 2045
B35: Scenario 1 | C35: 221610381.3 | D35: 201964295.4 | E35: 204159559.5 | F35: 203387096.9 | G35: 199265639.3 | H35: 190136099.9 | I35: 160305400.2 | J35: 153011483.8 | K35: 142619208.6 | L35: 65296690.35 | M35: 0 | N35: 0 | O35: 0 | P35: Values are litres of diesel
B36: Scenario 2 | C36: 221610381.3 | D36: 201964295.4 | E36: 204159559.5 | F36: 203387096.9 | G36: 199265639.3 | H36: 190136099.9 | I36: 160305400.2 | J36: 153011483.8 | K36: 142619208.6 | L36: 65296690.35 | M36: 0 | N36: 0 | O36: 0
B37: Scenario 3 | C37: 221610381.3 | D37: 201964295.4 | E37: 204159559.5 | F37: 203387096.9 | G37: 199265639.3 | H37: 190136099.9 | I37: 160305400.2 | J37: 153011483.8 | K37: 142619208.6 | L37: 65296690.35 | M37: 0 | N37: 0 | O37: 0
B38: Scenario 4 | C38: 221610381.3 | D38: 201964295.4 | E38: 204159559.5 | F38: 203387096.9 | G38: 199265639.3 | H38: 190136099.9 | I38: 160305400.2 | J38: 153011483.8 | K38: 142619208.6 | L38: 65296690.35 | M38: 0 | N38: 0 | O38: 0
B39: Scenario 5 | C39: 221610381.3 | D39: 201964295.4 | E39: 204159559.5 | F39: 203387096.9 | G39: 199265639.3 | H39: 190136099.9 | I39: 160305400.2 | J39: 153011483.8 | K39: 142619208.6 | L39: 65296690.35 | M39: 0 | N39: 0 | O39: 0
B40: Scenario 6 | C40: 221610381.3 | D40: 201964295.4 | E40: 204159559.5 | F40: 203387096.9 | G40: 199265639.3 | H40: 190136099.9 | I40: 160305400.2 | J40: 153011483.8 | K40: 142619208.6 | L40: 65296690.35 | M40: 0 | N40: 0 | O40: 0
B43: Overhead Electric | C43: Base | D43: 2022 | E43: 2023 | F43: 2024 | G43: 2025 | H43: 2026 | I43: 2027 | J43: 2028 | K43: 2029 | L43: 2030 | M43: 2035 | N43: 2040 | O43: 2045
B44: Scenario 1 | C44: 390181524.6 | D44: 382054269.6 | E44: 390522548.6 | F44: 401568439.4 | G44: 415523091.7 | H44: 433827501.4 | I44: 473862334.8 | J44: 484384448.1 | K44: 501804434.9 | L44: 576149283.1 | M44: 646084223 | N44: 694068512.2 | O44: 734941177.5 | P44: Values are kWh of electricity
B45: Scenario 2 | C45: 390181524.6 | D45: 382054269.6 | E45: 390522548.6 | F45: 401568439.4 | G45: 415523091.7 | H45: 433827501.4 | I45: 473862334.8 | J45: 484384448.1 | K45: 501804434.9 | L45: 576149283.1 | M45: 646084223 | N45: 694068512.2 | O45: 734941177.5
B46: Scenario 3 | C46: 390181524.6 | D46: 382054269.6 | E46: 390522548.6 | F46: 401568439.4 | G46: 415523091.7 | H46: 433827501.4 | I46: 473862334.8 | J46: 484384448.1 | K46: 501804434.9 | L46: 576149283.1 | M46: 661315625.5 | N46: 709299914.7 | O46: 750172579.9
B47: Scenario 4 | C47: 390181524.6 | D47: 382054269.6 | E47: 390522548.6 | F47: 401568439.4 | G47: 415523091.7 | H47: 424065145.9 | I47: 436368674.6 | J47: 446504255.4 | K47: 454926342.1 | L47: 468378942.5 | M47: 510769978 | N47: 558754267.3 | O47: 599626932.5
B48: Scenario 5 | C48: 390181524.6 | D48: 382054269.6 | E48: 390522548.6 | F48: 401568439.4 | G48: 415523091.7 | H48: 424065145.9 | I48: 436368674.6 | J48: 446504255.4 | K48: 454926342.1 | L48: 468378942.5 | M48: 510769978 | N48: 558754267.3 | O48: 599626932.5
B49: Scenario 6 | C49: 390181524.6 | D49: 382054269.6 | E49: 390522548.6 | F49: 401568439.4 | G49: 415523091.7 | H49: 433827501.4 | I49: 473862334.8 | J49: 484384448.1 | K49: 501804434.9 | L49: 576149283.1 | M49: 646084223 | N49: 694068512.2 | O49: 734941177.5
B52: Battery Electric | C52: Base | D52: 2022 | E52: 2023 | F52: 2024 | G52: 2025 | H52: 2026 | I52: 2027 | J52: 2028 | K52: 2029 | L52: 2030 | M52: 2035 | N52: 2040 | O52: 2045
B53: Scenario 1 | C53: 0 | D53: 0 | E53: 0 | F53: 0 | G53: 0 | H53: 0 | I53: 0 | J53: 0 | K53: 0 | L53: 0 | M53: 0 | N53: 0 | O53: 0 | P53: Values are kWh of electricity
B54: Scenario 2 | C54: 0 | D54: 0 | E54: 0 | F54: 0 | G54: 0 | H54: 0 | I54: 0 | J54: 0 | K54: 0 | L54: 0 | M54: 36520192.8 | N54: 36520192.8 | O54: 36520192.8
B55: Scenario 3 | C55: 0 | D55: 0 | E55: 0 | F55: 0 | G55: 0 | H55: 0 | I55: 0 | J55: 0 | K55: 0 | L55: 0 | M55: 0 | N55: 0 | O55: 0
B56: Scenario 4 | C56: 0 | D56: 0 | E56: 0 | F56: 0 | G56: 0 | H56: 12221986.56 | I56: 46940655.16 | J56: 47424579.44 | K56: 58689510.26 | L56: 134923600 | M56: 205927400 | N56: 205927400 | O56: 205927400
B57: Scenario 5 | C57: 0 | D57: 0 | E57: 0 | F57: 0 | G57: 0 | H57: 12221986.56 | I57: 46940655.16 | J57: 47424579.44 | K57: 58689510.26 | L57: 134923600 | M57: 169407207.2 | N57: 169407207.2 | O57: 169407207.2
B58: Scenario 6 | C58: 0 | D58: 0 | E58: 0 | F58: 0 | G58: 0 | H58: 0 | I58: 0 | J58: 0 | K58: 0 | L58: 0 | M58: 19068963.2 | N58: 19068963.2 | O58: 19068963.2
B61: Total Electric (kWh, exc Hydrogen) | C61: Base | D61: 2022 | E61: 2023 | F61: 2024 | G61: 2025 | H61: 2026 | I61: 2027 | J61: 2028 | K61: 2029 | L61: 2030 | M61: 2035 | N61: 2040 | O61: 2045
B62: Scenario 1 | C62: 390181524.6 | D62: 382054269.6 | E62: 390522548.6 | F62: 401568439.4 | G62: 415523091.7 | H62: 433827501.4 | I62: 473862334.8 | J62: 484384448.1 | K62: 501804434.9 | L62: 576149283.1 | M62: 646084223 | N62: 694068512.2 | O62: 734941177.5 | P62: Values are kWh of electricity
B63: Scenario 2 | C63: 390181524.6 | D63: 382054269.6 | E63: 390522548.6 | F63: 401568439.4 | G63: 415523091.7 | H63: 433827501.4 | I63: 473862334.8 | J63: 484384448.1 | K63: 501804434.9 | L63: 576149283.1 | M63: 682604415.8 | N63: 730588705 | O63: 771461370.3
B64: Scenario 3 | C64: 390181524.6 | D64: 382054269.6 | E64: 390522548.6 | F64: 401568439.4 | G64: 415523091.7 | H64: 433827501.4 | I64: 473862334.8 | J64: 484384448.1 | K64: 501804434.9 | L64: 576149283.1 | M64: 661315625.5 | N64: 709299914.7 | O64: 750172579.9
B65: Scenario 4 | C65: 390181524.6 | D65: 382054269.6 | E65: 390522548.6 | F65: 401568439.4 | G65: 415523091.7 | H65: 436287132.5 | I65: 483309329.7 | J65: 493928834.8 | K65: 513615852.4 | L65: 603302542.5 | M65: 716697378 | N65: 764681667.3 | O65: 805554332.5
B66: Scenario 5 | C66: 390181524.6 | D66: 382054269.6 | E66: 390522548.6 | F66: 401568439.4 | G66: 415523091.7 | H66: 436287132.5 | I66: 483309329.7 | J66: 493928834.8 | K66: 513615852.4 | L66: 603302542.5 | M66: 680177185.2 | N66: 728161474.5 | O66: 769034139.7
B67: Scenario 6 | C67: 390181524.6 | D67: 382054269.6 | E67: 390522548.6 | F67: 401568439.4 | G67: 415523091.7 | H67: 433827501.4 | I67: 473862334.8 | J67: 484384448.1 | K67: 501804434.9 | L67: 576149283.1 | M67: 665153186.2 | N67: 713137475.4 | O67: 754010140.7
B70: Hydrogen (kg) | C70: Base | D70: 2022 | E70: 2023 | F70: 2024 | G70: 2025 | H70: 2026 | I70: 2027 | J70: 2028 | K70: 2029 | L70: 2030 | M70: 2035 | N70: 2040 | O70: 2045
B71: Scenario 1 | C71: 0 | D71: 0 | E71: 0 | F71: 0 | G71: 0 | H71: 0 | I71: 0 | J71: 481575.0282 | K71: 648378.0844 | L71: 1345085.322 | M71: 3862370.04 | N71: 3862370.04 | O71: 3862370.04 | P71: Values are kg of hydrogen
B72: Scenario 2 | C72: 0 | D72: 0 | E72: 0 | F72: 0 | G72: 0 | H72: 0 | I72: 0 | J72: 481575.0282 | K72: 648378.0844 | L72: 1345085.322 | M72: 1345085.322 | N72: 1345085.322 | O72: 1345085.322
B73: Scenario 3 | C73: 0 | D73: 0 | E73: 0 | F73: 0 | G73: 0 | H73: 0 | I73: 0 | J73: 481575.0282 | K73: 648378.0844 | L73: 1345085.322 | M73: 2547973.648 | N73: 2547973.648 | O73: 2547973.648
B74: Scenario 4 | C74: 0 | D74: 0 | E74: 0 | F74: 0 | G74: 0 | H74: 0 | I74: 0 | J74: 481575.0282 | K74: 648378.0844 | L74: 1345085.322 | M74: 1345085.322 | N74: 1345085.322 | O74: 1345085.322
B75: Scenario 5 | C75: 0 | D75: 0 | E75: 0 | F75: 0 | G75: 0 | H75: 0 | I75: 0 | J75: 481575.0282 | K75: 648378.0844 | L75: 1345085.322 | M75: 3862370.04 | N75: 3862370.04 | O75: 3862370.04
B76: Scenario 6 | C76: 0 | D76: 0 | E76: 0 | F76: 0 | G76: 0 | H76: 0 | I76: 0 | J76: 481575.0282 | K76: 648378.0844 | L76: 1345085.322 | M76: 2547973.648 | N76: 2547973.648 | O76: 2547973.648
B79: Hydrogen (kWh) | C79: Base | D79: 2022 | E79: 2023 | F79: 2024 | G79: 2025 | H79: 2026 | I79: 2027 | J79: 2028 | K79: 2029 | L79: 2030 | M79: 2035 | N79: 2040 | O79: 2045
B80: Scenario 1 | C80: 0 | D80: 0 | E80: 0 | F80: 0 | G80: 0 | H80: 0 | I80: 0 | J80: 16052500.94 | K80: 21612602.81 | L80: 44836177.4 | M80: 128745668 | N80: 128745668 | O80: 128745668 | P80: Values are kg of hydrogen
B81: Scenario 2 | C81: 0 | D81: 0 | E81: 0 | F81: 0 | G81: 0 | H81: 0 | I81: 0 | J81: 16052500.94 | K81: 21612602.81 | L81: 44836177.4 | M81: 44836177.4 | N81: 44836177.4 | O81: 44836177.4
B82: Scenario 3 | C82: 0 | D82: 0 | E82: 0 | F82: 0 | G82: 0 | H82: 0 | I82: 0 | J82: 16052500.94 | K82: 21612602.81 | L82: 44836177.4 | M82: 84932454.93 | N82: 84932454.93 | O82: 84932454.93
B83: Scenario 4 | C83: 0 | D83: 0 | E83: 0 | F83: 0 | G83: 0 | H83: 0 | I83: 0 | J83: 16052500.94 | K83: 21612602.81 | L83: 44836177.4 | M83: 44836177.4 | N83: 44836177.4 | O83: 44836177.4
B84: Scenario 5 | C84: 0 | D84: 0 | E84: 0 | F84: 0 | G84: 0 | H84: 0 | I84: 0 | J84: 16052500.94 | K84: 21612602.81 | L84: 44836177.4 | M84: 128745668 | N84: 128745668 | O84: 128745668
B85: Scenario 6 | C85: 0 | D85: 0 | E85: 0 | F85: 0 | G85: 0 | H85: 0 | I85: 0 | J85: 16052500.94 | K85: 21612602.81 | L85: 44836177.4 | M85: 84932454.93 | N85: 84932454.93 | O85: 84932454.93
B88: Total Electric (kWh, inc Hydrogen) | C88: Base | D88: 2022 | E88: 2023 | F88: 2024 | G88: 2025 | H88: 2026 | I88: 2027 | J88: 2028 | K88: 2029 | L88: 2030 | M88: 2035 | N88: 2040 | O88: 2045
B89: Scenario 1 | C89: 390181524.6 | D89: 382054269.6 | E89: 390522548.6 | F89: 401568439.4 | G89: 415523091.7 | H89: 433827501.4 | I89: 473862334.8 | J89: 500436949.1 | K89: 523417037.7 | L89: 620985460.5 | M89: 774829891 | N89: 822814180.2 | O89: 863686845.5 | P89: Values are kWh of electricity
B90: Scenario 2 | C90: 390181524.6 | D90: 382054269.6 | E90: 390522548.6 | F90: 401568439.4 | G90: 415523091.7 | H90: 433827501.4 | I90: 473862334.8 | J90: 500436949.1 | K90: 523417037.7 | L90: 620985460.5 | M90: 727440593.2 | N90: 775424882.4 | O90: 816297547.7
B91: Scenario 3 | C91: 390181524.6 | D91: 382054269.6 | E91: 390522548.6 | F91: 401568439.4 | G91: 415523091.7 | H91: 433827501.4 | I91: 473862334.8 | J91: 500436949.1 | K91: 523417037.7 | L91: 620985460.5 | M91: 746248080.4 | N91: 794232369.6 | O91: 835105034.9
B92: Scenario 4 | C92: 390181524.6 | D92: 382054269.6 | E92: 390522548.6 | F92: 401568439.4 | G92: 415523091.7 | H92: 436287132.5 | I92: 483309329.7 | J92: 509981335.7 | K92: 535228455.2 | L92: 648138719.9 | M92: 761533555.4 | N92: 809517844.7 | O92: 850390509.9
B93: Scenario 5 | C93: 390181524.6 | D93: 382054269.6 | E93: 390522548.6 | F93: 401568439.4 | G93: 415523091.7 | H93: 436287132.5 | I93: 483309329.7 | J93: 509981335.7 | K93: 535228455.2 | L93: 648138719.9 | M93: 808922853.2 | N93: 856907142.5 | O93: 897779807.7
B94: Scenario 6 | C94: 390181524.6 | D94: 382054269.6 | E94: 390522548.6 | F94: 401568439.4 | G94: 415523091.7 | H94: 433827501.4 | I94: 473862334.8 | J94: 500436949.1 | K94: 523417037.7 | L94: 620985460.5 | M94: 750085641.2 | N94: 798069930.4 | O94: 838942595.6
B96: Conversion Factor | C96: 1e-06
B97: Total Electric (GWh, inc Hydrogen) | C97: Base | D97: 2022 | E97: 2023 | F97: 2024 | G97: 2025 | H97: 2026 | I97: 2027 | J97: 2028 | K97: 2029 | L97: 2030 | M97: 2035 | N97: 2040 | O97: 2045
B98: Scenario 1 | C98: 390.1815246 | D98: 382.0542696 | E98: 390.5225486 | F98: 401.5684394 | G98: 415.5230917 | H98: 433.8275014 | I98: 473.8623348 | J98: 500.4369491 | K98: 523.4170377 | L98: 620.9854605 | M98: 774.829891 | N98: 822.8141802 | O98: 863.6868455 | P98: Values are kWh of electricity
B99: Scenario 2 | C99: 390.1815246 | D99: 382.0542696 | E99: 390.5225486 | F99: 401.5684394 | G99: 415.5230917 | H99: 433.8275014 | I99: 473.8623348 | J99: 500.4369491 | K99: 523.4170377 | L99: 620.9854605 | M99: 727.4405932 | N99: 775.4248824 | O99: 816.2975477
B100: Scenario 3 | C100: 390.1815246 | D100: 382.0542696 | E100: 390.5225486 | F100: 401.5684394 | G100: 415.5230917 | H100: 433.8275014 | I100: 473.8623348 | J100: 500.4369491 | K100: 523.4170377 | L100: 620.9854605 | M100: 746.2480804 | N100: 794.2323696 | O100: 835.1050349
B101: Scenario 4 | C101: 390.1815246 | D101: 382.0542696 | E101: 390.5225486 | F101: 401.5684394 | G101: 415.5230917 | H101: 436.2871325 | I101: 483.3093297 | J101: 509.9813357 | K101: 535.2284552 | L101: 648.1387199 | M101: 761.5335554 | N101: 809.5178447 | O101: 850.3905099
B102: Scenario 5 | C102: 390.1815246 | D102: 382.0542696 | E102: 390.5225486 | F102: 401.5684394 | G102: 415.5230917 | H102: 436.2871325 | I102: 483.3093297 | J102: 509.9813357 | K102: 535.2284552 | L102: 648.1387199 | M102: 808.9228532 | N102: 856.9071425 | O102: 897.7798077
B103: Scenario 6 | C103: 390.1815246 | D103: 382.0542696 | E103: 390.5225486 | F103: 401.5684394 | G103: 415.5230917 | H103: 433.8275014 | I103: 473.8623348 | J103: 500.4369491 | K103: 523.4170377 | L103: 620.9854605 | M103: 750.0856412 | N103: 798.0699304 | O103: 838.9425956
B105: Conversion Factor | C105: 1e-09
B106: Total Electric (TWh, inc Hydrogen) | C106: Base | D106: 2022 | E106: 2023 | F106: 2024 | G106: 2025 | H106: 2026 | I106: 2027 | J106: 2028 | K106: 2029 | L106: 2030 | M106: 2035 | N106: 2040 | O106: 2045
B107: Scenario 1 | C107: 0.3901815246 | D107: 0.3820542696 | E107: 0.3905225486 | F107: 0.4015684394 | G107: 0.4155230917 | H107: 0.4338275014 | I107: 0.4738623348 | J107: 0.5004369491 | K107: 0.5234170377 | L107: 0.6209854605 | M107: 0.774829891 | N107: 0.8228141802 | O107: 0.8636868455 | P107: Values are kWh of electricity
B108: Scenario 2 | C108: 0.3901815246 | D108: 0.3820542696 | E108: 0.3905225486 | F108: 0.4015684394 | G108: 0.4155230917 | H108: 0.4338275014 | I108: 0.4738623348 | J108: 0.5004369491 | K108: 0.5234170377 | L108: 0.6209854605 | M108: 0.7274405932 | N108: 0.7754248824 | O108: 0.8162975477
B109: Scenario 3 | C109: 0.3901815246 | D109: 0.3820542696 | E109: 0.3905225486 | F109: 0.4015684394 | G109: 0.4155230917 | H109: 0.4338275014 | I109: 0.4738623348 | J109: 0.5004369491 | K109: 0.5234170377 | L109: 0.6209854605 | M109: 0.7462480804 | N109: 0.7942323696 | O109: 0.8351050349
B110: Scenario 4 | C110: 0.3901815246 | D110: 0.3820542696 | E110: 0.3905225486 | F110: 0.4015684394 | G110: 0.4155230917 | H110: 0.4362871325 | I110: 0.4833093297 | J110: 0.5099813357 | K110: 0.5352284552 | L110: 0.6481387199 | M110: 0.7615335554 | N110: 0.8095178447 | O110: 0.8503905099
B111: Scenario 5 | C111: 0.3901815246 | D111: 0.3820542696 | E111: 0.3905225486 | F111: 0.4015684394 | G111: 0.4155230917 | H111: 0.4362871325 | I111: 0.4833093297 | J111: 0.5099813357 | K111: 0.5352284552 | L111: 0.6481387199 | M111: 0.8089228532 | N111: 0.8569071425 | O111: 0.8977798077
B112: Scenario 6 | C112: 0.3901815246 | D112: 0.3820542696 | E112: 0.3905225486 | F112: 0.4015684394 | G112: 0.4155230917 | H112: 0.4338275014 | I112: 0.4738623348 | J112: 0.5004369491 | K112: 0.5234170377 | L112: 0.6209854605 | M112: 0.7500856412 | N112: 0.7980699304 | O112: 0.8389425956
A117: Scenario 1
B120: Overhead Electric | C120: Base | D120: 2022 | E120: 2023 | F120: 2024 | G120: 2025 | H120: 2026 | I120: 2027 | J120: 2028 | K120: 2029 | L120: 2030 | M120: 2035 | N120: 2040 | O120: 2045
B121: Network Rail | C121: 3676.748836 | D121: 3676.748836 | E121: 3676.748836 | F121: 3676.748836 | G121: 3676.748836 | H121: 3676.748836 | I121: 3676.748836 | J121: 3676.748836 | K121: 3676.748836 | L121: 3676.748836 | M121: 3676.748836 | N121: 3676.748836 | O121: 3676.748836
B122: ScotRail | C122: 262398988.7 | D122: 242609290.7 | E122: 245246348.2 | F122: 250461017.5 | G122: 258584448.3 | H122: 271057636.5 | I122: 301510767.1 | J122: 306201658.9 | K122: 317790424.2 | L122: 381412298.6 | M122: 408954946.1 | N122: 408954946.1 | O122: 408954946.1
A123: Total | B123: Other TOCs | C123: 107957840.4 | D123: 107957840.4 | E123: 107957840.4 | F123: 107957840.4 | G123: 107957840.4 | H123: 107957840.4 | I123: 111708321.7 | J123: 111708321.7 | K123: 111708321.7 | L123: 116600074 | M123: 118119701.2 | N123: 125231325.2 | O123: 125231325.2
A124: Total | B124: FOCs | C124: 19821018.65 | D124: 31483461.67 | E124: 37314683.18 | F124: 43145904.69 | G124: 48977126.2 | H124: 54808347.71 | I124: 60639569.22 | J124: 66470790.73 | K124: 72302012.24 | L124: 78133233.75 | M124: 119005899 | N124: 159878564.2 | O124: 200751229.4
B127: Battery Electric | C127: Base | D127: 2022 | E127: 2023 | F127: 2024 | G127: 2025 | H127: 2026 | I127: 2027 | J127: 2028 | K127: 2029 | L127: 2030 | M127: 2035 | N127: 2040 | O127: 2045
B128: Network Rail | C128: 0 | D128: 0 | E128: 0 | F128: 0 | G128: 0 | H128: 0 | I128: 0 | J128: 0 | K128: 0 | L128: 0 | M128: 0 | N128: 0 | O128: 0
B129: ScotRail | C129: 0 | D129: 0 | E129: 0 | F129: 0 | G129: 0 | H129: 0 | I129: 0 | J129: 0 | K129: 0 | L129: 0 | M129: 0 | N129: 0 | O129: 0
B130: Other TOCs | C130: 0 | D130: 0 | E130: 0 | F130: 0 | G130: 0 | H130: 0 | I130: 0 | J130: 0 | K130: 0 | L130: 0 | M130: 0 | N130: 0 | O130: 0
B131: FOCs | C131: 0 | D131: 0 | E131: 0 | F131: 0 | G131: 0 | H131: 0 | I131: 0 | J131: 0 | K131: 0 | L131: 0 | M131: 0 | N131: 0 | O131: 0
B134: Hydrogen | C134: Base | D134: 2022 | E134: 2023 | F134: 2024 | G134: 2025 | H134: 2026 | I134: 2027 | J134: 2028 | K134: 2029 | L134: 2030 | M134: 2035 | N134: 2040 | O134: 2045
B135: Network Rail | C135: 0 | D135: 0 | E135: 0 | F135: 0 | G135: 0 | H135: 0 | I135: 0 | J135: 0 | K135: 0 | L135: 0 | M135: 0 | N135: 0 | O135: 0
B136: ScotRail | C136: 0 | D136: 0 | E136: 0 | F136: 0 | G136: 0 | H136: 0 | I136: 0 | J136: 481575.0282 | K136: 648378.0844 | L136: 1345085.322 | M136: 3862370.04 | N136: 3862370.04 | O136: 3862370.04
B137: Other TOCs | C137: 0 | D137: 0 | E137: 0 | F137: 0 | G137: 0 | H137: 0 | I137: 0 | J137: 0 | K137: 0 | L137: 0 | M137: 0 | N137: 0 | O137: 0
B138: FOCs | C138: 0 | D138: 0 | E138: 0 | F138: 0 | G138: 0 | H138: 0 | I138: 0 | J138: 0 | K138: 0 | L138: 0 | M138: 0 | N138: 0 | O138: 0
B141: Total Electric (exc Hydrogen production) | C141: Base | D141: 2022 | E141: 2023 | F141: 2024 | G141: 2025 | H141: 2026 | I141: 2027 | J141: 2028 | K141: 2029 | L141: 2030 | M141: 2035 | N141: 2040 | O141: 2045
B142: Network Rail | C142: 3676.748836 | D142: 3676.748836 | E142: 3676.748836 | F142: 3676.748836 | G142: 3676.748836 | H142: 3676.748836 | I142: 3676.748836 | J142: 3676.748836 | K142: 3676.748836 | L142: 3676.748836 | M142: 3676.748836 | N142: 3676.748836 | O142: 3676.748836
B143: ScotRail | C143: 262398988.7 | D143: 242609290.7 | E143: 245246348.2 | F143: 250461017.5 | G143: 258584448.3 | H143: 271057636.5 | I143: 301510767.1 | J143: 306201658.9 | K143: 317790424.2 | L143: 381412298.6 | M143: 408954946.1 | N143: 408954946.1 | O143: 408954946.1
B144: Other TOCs | C144: 107957840.4 | D144: 107957840.4 | E144: 107957840.4 | F144: 107957840.4 | G144: 107957840.4 | H144: 107957840.4 | I144: 111708321.7 | J144: 111708321.7 | K144: 111708321.7 | L144: 116600074 | M144: 118119701.2 | N144: 125231325.2 | O144: 125231325.2
B145: FOCs | C145: 19821018.65 | D145: 31483461.67 | E145: 37314683.18 | F145: 43145904.69 | G145: 48977126.2 | H145: 54808347.71 | I145: 60639569.22 | J145: 66470790.73 | K145: 72302012.24 | L145: 78133233.75 | M145: 119005899 | N145: 159878564.2 | O145: 200751229.4
A148: Scenario 2
B151: Overhead Electric | C151: Base | D151: 2022 | E151: 2023 | F151: 2024 | G151: 2025 | H151: 2026 | I151: 2027 | J151: 2028 | K151: 2029 | L151: 2030 | M151: 2035 | N151: 2040 | O151: 2045
B152: Network Rail | C152: 3676.748836 | D152: 3676.748836 | E152: 3676.748836 | F152: 3676.748836 | G152: 3676.748836 | H152: 3676.748836 | I152: 3676.748836 | J152: 3676.748836 | K152: 3676.748836 | L152: 3676.748836 | M152: 3676.748836 | N152: 3676.748836 | O152: 3676.748836
B153: ScotRail | C153: 262398988.7 | D153: 242609290.7 | E153: 245246348.2 | F153: 250461017.5 | G153: 258584448.3 | H153: 261295281 | I153: 282578319.7 | J153: 287074031.7 | K153: 298467617.1 | L153: 361894311.6 | M153: 389436959.1 | N153: 389436959.1 | O153: 389436959.1
A154: Total | B154: Other TOCs | C154: 107957840.4 | D154: 107957840.4 | E154: 107957840.4 | F154: 107957840.4 | G154: 107957840.4 | H154: 107957840.4 | I154: 111708321.7 | J154: 111708321.7 | K154: 111708321.7 | L154: 116600074 | M154: 118119701.2 | N154: 125231325.2 | O154: 125231325.2
A155: Total | B155: FOCs | C155: 19821018.65 | D155: 31483461.67 | E155: 37314683.18 | F155: 43145904.69 | G155: 48977126.2 | H155: 54808347.71 | I155: 60639569.22 | J155: 66470790.73 | K155: 72302012.24 | L155: 78133233.75 | M155: 119005899 | N155: 159878564.2 | O155: 200751229.4
B158: Battery Electric | C158: Base | D158: 2022 | E158: 2023 | F158: 2024 | G158: 2025 | H158: 2026 | I158: 2027 | J158: 2028 | K158: 2029 | L158: 2030 | M158: 2035 | N158: 2040 | O158: 2045
B159: Network Rail | C159: 0 | D159: 0 | E159: 0 | F159: 0 | G159: 0 | H159: 0 | I159: 0 | J159: 0 | K159: 0 | L159: 0 | M159: 0 | N159: 0 | O159: 0
B160: ScotRail | C160: 0 | D160: 0 | E160: 0 | F160: 0 | G160: 0 | H160: 12221986.56 | I160: 23702488.54 | J160: 23946844.1 | K160: 24191199.65 | L160: 24435555.2 | M160: 60955748 | N160: 60955748 | O160: 60955748
B161: Other TOCs | C161: 0 | D161: 0 | E161: 0 | F161: 0 | G161: 0 | H161: 0 | I161: 0 | J161: 0 | K161: 0 | L161: 0 | M161: 0 | N161: 0 | O161: 0
B162: FOCs | C162: 0 | D162: 0 | E162: 0 | F162: 0 | G162: 0 | H162: 0 | I162: 0 | J162: 0 | K162: 0 | L162: 0 | M162: 0 | N162: 0 | O162: 0
B165: Hydrogen | C165: Base | D165: 2022 | E165: 2023 | F165: 2024 | G165: 2025 | H165: 2026 | I165: 2027 | J165: 2028 | K165: 2029 | L165: 2030 | M165: 2035 | N165: 2040 | O165: 2045
B166: Network Rail | C166: 0 | D166: 0 | E166: 0 | F166: 0 | G166: 0 | H166: 0 | I166: 0 | J166: 0 | K166: 0 | L166: 0 | M166: 0 | N166: 0 | O166: 0
B167: ScotRail | C167: 0 | D167: 0 | E167: 0 | F167: 0 | G167: 0 | H167: 0 | I167: 0 | J167: 481575.0282 | K167: 648378.0844 | L167: 1345085.322 | M167: 1345085.322 | N167: 1345085.322 | O167: 1345085.322
B168: Other TOCs | C168: 0 | D168: 0 | E168: 0 | F168: 0 | G168: 0 | H168: 0 | I168: 0 | J168: 0 | K168: 0 | L168: 0 | M168: 0 | N168: 0 | O168: 0
B169: FOCs | C169: 0 | D169: 0 | E169: 0 | F169: 0 | G169: 0 | H169: 0 | I169: 0 | J169: 0 | K169: 0 | L169: 0 | M169: 0 | N169: 0 | O169: 0
B172: Total Electric (exc Hydrogen production) | C172: Base | D172: 2022 | E172: 2023 | F172: 2024 | G172: 2025 | H172: 2026 | I172: 2027 | J172: 2028 | K172: 2029 | L172: 2030 | M172: 2035 | N172: 2040 | O172: 2045
B173: Network Rail | C173: 3676.748836 | D173: 3676.748836 | E173: 3676.748836 | F173: 3676.748836 | G173: 3676.748836 | H173: 3676.748836 | I173: 3676.748836 | J173: 3676.748836 | K173: 3676.748836 | L173: 3676.748836 | M173: 3676.748836 | N173: 3676.748836 | O173: 3676.748836
B174: ScotRail | C174: 262398988.7 | D174: 242609290.7 | E174: 245246348.2 | F174: 250461017.5 | G174: 258584448.3 | H174: 273517267.6 | I174: 306280808.2 | J174: 311020875.8 | K174: 322658816.7 | L174: 386329866.8 | M174: 450392707.1 | N174: 450392707.1 | O174: 450392707.1
B175: Other TOCs | C175: 107957840.4 | D175: 107957840.4 | E175: 107957840.4 | F175: 107957840.4 | G175: 107957840.4 | H175: 107957840.4 | I175: 111708321.7 | J175: 111708321.7 | K175: 111708321.7 | L175: 116600074 | M175: 118119701.2 | N175: 125231325.2 | O175: 125231325.2
B176: FOCs | C176: 19821018.65 | D176: 31483461.67 | E176: 37314683.18 | F176: 43145904.69 | G176: 48977126.2 | H176: 54808347.71 | I176: 60639569.22 | J176: 66470790.73 | K176: 72302012.24 | L176: 78133233.75 | M176: 119005899 | N176: 159878564.2 | O176: 200751229.4
A179: Scenario 3
B182: Overhead Electric | C182: Base | D182: 2022 | E182: 2023 | F182: 2024 | G182: 2025 | H182: 2026 | I182: 2027 | J182: 2028 | K182: 2029 | L182: 2030 | M182: 2035 | N182: 2040 | O182: 2045
B183: Network Rail | C183: 3676.748836 | D183: 3676.748836 | E183: 3676.748836 | F183: 3676.748836 | G183: 3676.748836 | H183: 3676.748836 | I183: 3676.748836 | J183: 3676.748836 | K183: 3676.748836 | L183: 3676.748836 | M183: 3676.748836 | N183: 3676.748836 | O183: 3676.748836
B184: ScotRail | C184: 262398988.7 | D184: 242609290.7 | E184: 245246348.2 | F184: 250461017.5 | G184: 258584448.3 | H184: 261295281 | I184: 282578319.7 | J184: 287074031.7 | K184: 298467617.1 | L184: 361894311.6 | M184: 389436959.1 | N184: 389436959.1 | O184: 389436959.1
A185: Total | B185: Other TOCs | C185: 107957840.4 | D185: 107957840.4 | E185: 107957840.4 | F185: 107957840.4 | G185: 107957840.4 | H185: 107957840.4 | I185: 111708321.7 | J185: 111708321.7 | K185: 111708321.7 | L185: 116600074 | M185: 118119701.2 | N185: 125231325.2 | O185: 125231325.2
A186: Total | B186: FOCs | C186: 19821018.65 | D186: 31483461.67 | E186: 37314683.18 | F186: 43145904.69 | G186: 48977126.2 | H186: 54808347.71 | I186: 60639569.22 | J186: 66470790.73 | K186: 72302012.24 | L186: 78133233.75 | M186: 119005899 | N186: 159878564.2 | O186: 200751229.4
B189: Battery Electric | C189: Base | D189: 2022 | E189: 2023 | F189: 2024 | G189: 2025 | H189: 2026 | I189: 2027 | J189: 2028 | K189: 2029 | L189: 2030 | M189: 2035 | N189: 2040 | O189: 2045
B190: Network Rail | C190: 0 | D190: 0 | E190: 0 | F190: 0 | G190: 0 | H190: 0 | I190: 0 | J190: 0 | K190: 0 | L190: 0 | M190: 0 | N190: 0 | O190: 0
B191: ScotRail | C191: 0 | D191: 0 | E191: 0 | F191: 0 | G191: 0 | H191: 12221986.56 | I191: 23702488.54 | J191: 23946844.1 | K191: 24191199.65 | L191: 24435555.2 | M191: 24435555.2 | N191: 24435555.2 | O191: 24435555.2
B192: Other TOCs | C192: 0 | D192: 0 | E192: 0 | F192: 0 | G192: 0 | H192: 0 | I192: 0 | J192: 0 | K192: 0 | L192: 0 | M192: 0 | N192: 0 | O192: 0
B193: FOCs | C193: 0 | D193: 0 | E193: 0 | F193: 0 | G193: 0 | H193: 0 | I193: 0 | J193: 0 | K193: 0 | L193: 0 | M193: 0 | N193: 0 | O193: 0
B196: Hydrogen | C196: Base | D196: 2022 | E196: 2023 | F196: 2024 | G196: 2025 | H196: 2026 | I196: 2027 | J196: 2028 | K196: 2029 | L196: 2030 | M196: 2035 | N196: 2040 | O196: 2045
B197: Network Rail | C197: 0 | D197: 0 | E197: 0 | F197: 0 | G197: 0 | H197: 0 | I197: 0 | J197: 0 | K197: 0 | L197: 0 | M197: 0 | N197: 0 | O197: 0
B198: ScotRail | C198: 0 | D198: 0 | E198: 0 | F198: 0 | G198: 0 | H198: 0 | I198: 0 | J198: 481575.0282 | K198: 648378.0844 | L198: 1345085.322 | M198: 3862370.04 | N198: 3862370.04 | O198: 3862370.04
B199: Other TOCs | C199: 0 | D199: 0 | E199: 0 | F199: 0 | G199: 0 | H199: 0 | I199: 0 | J199: 0 | K199: 0 | L199: 0 | M199: 0 | N199: 0 | O199: 0
B200: FOCs | C200: 0 | D200: 0 | E200: 0 | F200: 0 | G200: 0 | H200: 0 | I200: 0 | J200: 0 | K200: 0 | L200: 0 | M200: 0 | N200: 0 | O200: 0
B203: Total Electric (exc Hydrogen production) | C203: Base | D203: 2022 | E203: 2023 | F203: 2024 | G203: 2025 | H203: 2026 | I203: 2027 | J203: 2028 | K203: 2029 | L203: 2030 | M203: 2035 | N203: 2040 | O203: 2045
B204: Network Rail | C204: 3676.748836 | D204: 3676.748836 | E204: 3676.748836 | F204: 3676.748836 | G204: 3676.748836 | H204: 3676.748836 | I204: 3676.748836 | J204: 3676.748836 | K204: 3676.748836 | L204: 3676.748836 | M204: 3676.748836 | N204: 3676.748836 | O204: 3676.748836
B205: ScotRail | C205: 262398988.7 | D205: 242609290.7 | E205: 245246348.2 | F205: 250461017.5 | G205: 258584448.3 | H205: 273517267.6 | I205: 306280808.2 | J205: 311020875.8 | K205: 322658816.7 | L205: 386329866.8 | M205: 413872514.3 | N205: 413872514.3 | O205: 413872514.3
B206: Other TOCs | C206: 107957840.4 | D206: 107957840.4 | E206: 107957840.4 | F206: 107957840.4 | G206: 107957840.4 | H206: 107957840.4 | I206: 111708321.7 | J206: 111708321.7 | K206: 111708321.7 | L206: 116600074 | M206: 118119701.2 | N206: 125231325.2 | O206: 125231325.2
B207: FOCs | C207: 19821018.65 | D207: 31483461.67 | E207: 37314683.18 | F207: 43145904.69 | G207: 48977126.2 | H207: 54808347.71 | I207: 60639569.22 | J207: 66470790.73 | K207: 72302012.24 | L207: 78133233.75 | M207: 119005899 | N207: 159878564.2 | O207: 200751229.4
A210: Scenario 4
B213: Overhead Electric | C213: Base | D213: 2022 | E213: 2023 | F213: 2024 | G213: 2025 | H213: 2026 | I213: 2027 | J213: 2028 | K213: 2029 | L213: 2030 | M213: 2035 | N213: 2040 | O213: 2045
B214: Network Rail | C214: 3676.748836 | D214: 3676.748836 | E214: 3676.748836 | F214: 3676.748836 | G214: 3676.748836 | H214: 3676.748836 | I214: 3676.748836 | J214: 3676.748836 | K214: 3676.748836 | L214: 3676.748836 | M214: 3676.748836 | N214: 3676.748836 | O214: 3676.748836
B215: ScotRail | C215: 262398988.7 | D215: 242609290.7 | E215: 245246348.2 | F215: 250461017.5 | G215: 258584448.3 | H215: 261295281 | I215: 264017106.9 | J215: 268321466.2 | K215: 270912331.4 | L215: 273641958 | M215: 273640701.1 | N215: 273640701.1 | O215: 273640701.1
A216: Total | B216: Other TOCs | C216: 107957840.4 | D216: 107957840.4 | E216: 107957840.4 | F216: 107957840.4 | G216: 107957840.4 | H216: 107957840.4 | I216: 111708321.7 | J216: 111708321.7 | K216: 111708321.7 | L216: 116600074 | M216: 118119701.2 | N216: 125231325.2 | O216: 125231325.2
A217: Total | B217: FOCs | C217: 19821018.65 | D217: 31483461.67 | E217: 37314683.18 | F217: 43145904.69 | G217: 48977126.2 | H217: 54808347.71 | I217: 60639569.22 | J217: 66470790.73 | K217: 72302012.24 | L217: 78133233.75 | M217: 119005899 | N217: 159878564.2 | O217: 200751229.4
B220: Battery Electric | C220: Base | D220: 2022 | E220: 2023 | F220: 2024 | G220: 2025 | H220: 2026 | I220: 2027 | J220: 2028 | K220: 2029 | L220: 2030 | M220: 2035 | N220: 2040 | O220: 2045
B221: Network Rail | C221: 0 | D221: 0 | E221: 0 | F221: 0 | G221: 0 | H221: 0 | I221: 0 | J221: 0 | K221: 0 | L221: 0 | M221: 0 | N221: 0 | O221: 0
B222: ScotRail | C222: 0 | D222: 0 | E222: 0 | F222: 0 | G222: 0 | H222: 12221986.56 | I222: 46940655.16 | J222: 47424579.44 | K222: 58689510.26 | L222: 134923600 | M222: 205927400 | N222: 205927400 | O222: 205927400
B223: Other TOCs | C223: 0 | D223: 0 | E223: 0 | F223: 0 | G223: 0 | H223: 0 | I223: 0 | J223: 0 | K223: 0 | L223: 0 | M223: 0 | N223: 0 | O223: 0
B224: FOCs | C224: 0 | D224: 0 | E224: 0 | F224: 0 | G224: 0 | H224: 0 | I224: 0 | J224: 0 | K224: 0 | L224: 0 | M224: 0 | N224: 0 | O224: 0
B227: Hydrogen | C227: Base | D227: 2022 | E227: 2023 | F227: 2024 | G227: 2025 | H227: 2026 | I227: 2027 | J227: 2028 | K227: 2029 | L227: 2030 | M227: 2035 | N227: 2040 | O227: 2045
B228: Network Rail | C228: 0 | D228: 0 | E228: 0 | F228: 0 | G228: 0 | H228: 0 | I228: 0 | J228: 0 | K228: 0 | L228: 0 | M228: 0 | N228: 0 | O228: 0
B229: ScotRail | C229: 0 | D229: 0 | E229: 0 | F229: 0 | G229: 0 | H229: 0 | I229: 0 | J229: 481575.0282 | K229: 648378.0844 | L229: 1345085.322 | M229: 1345085.322 | N229: 1345085.322 | O229: 1345085.322
B230: Other TOCs | C230: 0 | D230: 0 | E230: 0 | F230: 0 | G230: 0 | H230: 0 | I230: 0 | J230: 0 | K230: 0 | L230: 0 | M230: 0 | N230: 0 | O230: 0
B231: FOCs | C231: 0 | D231: 0 | E231: 0 | F231: 0 | G231: 0 | H231: 0 | I231: 0 | J231: 0 | K231: 0 | L231: 0 | M231: 0 | N231: 0 | O231: 0
B234: Total Electric (exc Hydrogen production) | C234: Base | D234: 2022 | E234: 2023 | F234: 2024 | G234: 2025 | H234: 2026 | I234: 2027 | J234: 2028 | K234: 2029 | L234: 2030 | M234: 2035 | N234: 2040 | O234: 2045
B235: Network Rail | C235: 3676.748836 | D235: 3676.748836 | E235: 3676.748836 | F235: 3676.748836 | G235: 3676.748836 | H235: 3676.748836 | I235: 3676.748836 | J235: 3676.748836 | K235: 3676.748836 | L235: 3676.748836 | M235: 3676.748836 | N235: 3676.748836 | O235: 3676.748836
B236: ScotRail | C236: 262398988.7 | D236: 242609290.7 | E236: 245246348.2 | F236: 250461017.5 | G236: 258584448.3 | H236: 273517267.6 | I236: 310957762 | J236: 315746045.6 | K236: 329601841.7 | L236: 408565558 | M236: 479568101.1 | N236: 479568101.1 | O236: 479568101.1
B237: Other TOCs | C237: 107957840.4 | D237: 107957840.4 | E237: 107957840.4 | F237: 107957840.4 | G237: 107957840.4 | H237: 107957840.4 | I237: 111708321.7 | J237: 111708321.7 | K237: 111708321.7 | L237: 116600074 | M237: 118119701.2 | N237: 125231325.2 | O237: 125231325.2
B238: FOCs | C238: 19821018.65 | D238: 31483461.67 | E238: 37314683.18 | F238: 43145904.69 | G238: 48977126.2 | H238: 54808347.71 | I238: 60639569.22 | J238: 66470790.73 | K238: 72302012.24 | L238: 78133233.75 | M238: 119005899 | N238: 159878564.2 | O238: 200751229.4
A241: Scenario 5
B244: Overhead Electric | C244: Base | D244: 2022 | E244: 2023 | F244: 2024 | G244: 2025 | H244: 2026 | I244: 2027 | J244: 2028 | K244: 2029 | L244: 2030 | M244: 2035 | N244: 2040 | O244: 2045
B245: Network Rail | C245: 3676.748836 | D245: 3676.748836 | E245: 3676.748836 | F245: 3676.748836 | G245: 3676.748836 | H245: 3676.748836 | I245: 3676.748836 | J245: 3676.748836 | K245: 3676.748836 | L245: 3676.748836 | M245: 3676.748836 | N245: 3676.748836 | O245: 3676.748836
B246: ScotRail | C246: 262398988.7 | D246: 242609290.7 | E246: 245246348.2 | F246: 250461017.5 | G246: 258584448.3 | H246: 261295281 | I246: 264017106.9 | J246: 268321466.2 | K246: 270912331.4 | L246: 273641958 | M246: 273640701.1 | N246: 273640701.1 | O246: 273640701.1
A247: Total | B247: Other TOCs | C247: 107957840.4 | D247: 107957840.4 | E247: 107957840.4 | F247: 107957840.4 | G247: 107957840.4 | H247: 107957840.4 | I247: 111708321.7 | J247: 111708321.7 | K247: 111708321.7 | L247: 116600074 | M247: 118119701.2 | N247: 125231325.2 | O247: 125231325.2
A248: Total | B248: FOCs | C248: 19821018.65 | D248: 31483461.67 | E248: 37314683.18 | F248: 43145904.69 | G248: 48977126.2 | H248: 54808347.71 | I248: 60639569.22 | J248: 66470790.73 | K248: 72302012.24 | L248: 78133233.75 | M248: 119005899 | N248: 159878564.2 | O248: 200751229.4
B251: Battery Electric | C251: Base | D251: 2022 | E251: 2023 | F251: 2024 | G251: 2025 | H251: 2026 | I251: 2027 | J251: 2028 | K251: 2029 | L251: 2030 | M251: 2035 | N251: 2040 | O251: 2045
B252: Network Rail | C252: 0 | D252: 0 | E252: 0 | F252: 0 | G252: 0 | H252: 0 | I252: 0 | J252: 0 | K252: 0 | L252: 0 | M252: 0 | N252: 0 | O252: 0
B253: ScotRail | C253: 0 | D253: 0 | E253: 0 | F253: 0 | G253: 0 | H253: 12221986.56 | I253: 46940655.16 | J253: 47424579.44 | K253: 58689510.26 | L253: 134923600 | M253: 169407207.2 | N253: 169407207.2 | O253: 169407207.2
B254: Other TOCs | C254: 0 | D254: 0 | E254: 0 | F254: 0 | G254: 0 | H254: 0 | I254: 0 | J254: 0 | K254: 0 | L254: 0 | M254: 0 | N254: 0 | O254: 0
B255: FOCs | C255: 0 | D255: 0 | E255: 0 | F255: 0 | G255: 0 | H255: 0 | I255: 0 | J255: 0 | K255: 0 | L255: 0 | M255: 0 | N255: 0 | O255: 0
B258: Hydrogen | C258: Base | D258: 2022 | E258: 2023 | F258: 2024 | G258: 2025 | H258: 2026 | I258: 2027 | J258: 2028 | K258: 2029 | L258: 2030 | M258: 2035 | N258: 2040 | O258: 2045
B259: Network Rail | C259: 0 | D259: 0 | E259: 0 | F259: 0 | G259: 0 | H259: 0 | I259: 0 | J259: 0 | K259: 0 | L259: 0 | M259: 0 | N259: 0 | O259: 0
B260: ScotRail | C260: 0 | D260: 0 | E260: 0 | F260: 0 | G260: 0 | H260: 0 | I260: 0 | J260: 481575.0282 | K260: 648378.0844 | L260: 1345085.322 | M260: 3862370.04 | N260: 3862370.04 | O260: 3862370.04
B261: Other TOCs | C261: 0 | D261: 0 | E261: 0 | F261: 0 | G261: 0 | H261: 0 | I261: 0 | J261: 0 | K261: 0 | L261: 0 | M261: 0 | N261: 0 | O261: 0
B262: FOCs | C262: 0 | D262: 0 | E262: 0 | F262: 0 | G262: 0 | H262: 0 | I262: 0 | J262: 0 | K262: 0 | L262: 0 | M262: 0 | N262: 0 | O262: 0
B265: Total Electric (exc Hydrogen production) | C265: Base | D265: 2022 | E265: 2023 | F265: 2024 | G265: 2025 | H265: 2026 | I265: 2027 | J265: 2028 | K265: 2029 | L265: 2030 | M265: 2035 | N265: 2040 | O265: 2045
B266: Network Rail | C266: 3676.748836 | D266: 3676.748836 | E266: 3676.748836 | F266: 3676.748836 | G266: 3676.748836 | H266: 3676.748836 | I266: 3676.748836 | J266: 3676.748836 | K266: 3676.748836 | L266: 3676.748836 | M266: 3676.748836 | N266: 3676.748836 | O266: 3676.748836
B267: ScotRail | C267: 262398988.7 | D267: 242609290.7 | E267: 245246348.2 | F267: 250461017.5 | G267: 258584448.3 | H267: 273517267.6 | I267: 310957762 | J267: 315746045.6 | K267: 329601841.7 | L267: 408565558 | M267: 443047908.3 | N267: 443047908.3 | O267: 443047908.3
B268: Other TOCs | C268: 107957840.4 | D268: 107957840.4 | E268: 107957840.4 | F268: 107957840.4 | G268: 107957840.4 | H268: 107957840.4 | I268: 111708321.7 | J268: 111708321.7 | K268: 111708321.7 | L268: 116600074 | M268: 118119701.2 | N268: 125231325.2 | O268: 125231325.2
B269: FOCs | C269: 19821018.65 | D269: 31483461.67 | E269: 37314683.18 | F269: 43145904.69 | G269: 48977126.2 | H269: 54808347.71 | I269: 60639569.22 | J269: 66470790.73 | K269: 72302012.24 | L269: 78133233.75 | M269: 119005899 | N269: 159878564.2 | O269: 200751229.4
A272: Scenario 6
B275: Overhead Electric | C275: Base | D275: 2022 | E275: 2023 | F275: 2024 | G275: 2025 | H275: 2026 | I275: 2027 | J275: 2028 | K275: 2029 | L275: 2030 | M275: 2035 | N275: 2040 | O275: 2045
B276: Network Rail | C276: 3676.748836 | D276: 3676.748836 | E276: 3676.748836 | F276: 3676.748836 | G276: 3676.748836 | H276: 3676.748836 | I276: 3676.748836 | J276: 3676.748836 | K276: 3676.748836 | L276: 3676.748836 | M276: 3676.748836 | N276: 3676.748836 | O276: 3676.748836
B277: ScotRail | C277: 262398988.7 | D277: 242609290.7 | E277: 245246348.2 | F277: 250461017.5 | G277: 258584448.3 | H277: 261295281 | I277: 282578319.7 | J277: 287074031.7 | K277: 298467617.1 | L277: 361894311.6 | M277: 389436959.1 | N277: 389436959.1 | O277: 389436959.1
A278: Total | B278: Other TOCs | C278: 107957840.4 | D278: 107957840.4 | E278: 107957840.4 | F278: 107957840.4 | G278: 107957840.4 | H278: 107957840.4 | I278: 111708321.7 | J278: 111708321.7 | K278: 111708321.7 | L278: 116600074 | M278: 118119701.2 | N278: 125231325.2 | O278: 125231325.2
A279: Total | B279: FOCs | C279: 19821018.65 | D279: 31483461.67 | E279: 37314683.18 | F279: 43145904.69 | G279: 48977126.2 | H279: 54808347.71 | I279: 60639569.22 | J279: 66470790.73 | K279: 72302012.24 | L279: 78133233.75 | M279: 119005899 | N279: 159878564.2 | O279: 200751229.4
B282: Battery Electric | C282: Base | D282: 2022 | E282: 2023 | F282: 2024 | G282: 2025 | H282: 2026 | I282: 2027 | J282: 2028 | K282: 2029 | L282: 2030 | M282: 2035 | N282: 2040 | O282: 2045
B283: Network Rail | C283: 0 | D283: 0 | E283: 0 | F283: 0 | G283: 0 | H283: 0 | I283: 0 | J283: 0 | K283: 0 | L283: 0 | M283: 0 | N283: 0 | O283: 0
B284: ScotRail | C284: 0 | D284: 0 | E284: 0 | F284: 0 | G284: 0 | H284: 12221986.56 | I284: 23702488.54 | J284: 23946844.1 | K284: 24191199.65 | L284: 24435555.2 | M284: 43504518.4 | N284: 43504518.4 | O284: 43504518.4
B285: Other TOCs | C285: 0 | D285: 0 | E285: 0 | F285: 0 | G285: 0 | H285: 0 | I285: 0 | J285: 0 | K285: 0 | L285: 0 | M285: 0 | N285: 0 | O285: 0
B286: FOCs | C286: 0 | D286: 0 | E286: 0 | F286: 0 | G286: 0 | H286: 0 | I286: 0 | J286: 0 | K286: 0 | L286: 0 | M286: 0 | N286: 0 | O286: 0
... 10 more rows

Sheet Capacity Summary (hidden)
B7: Hydrogen
B11: Forecast Hydrogen Transport Demand | C11: Units | D11: 2022 | E11: 2023 | F11: 2024 | G11: 2025 | H11: 2026 | I11: 2027 | J11: 2028 | K11: 2029 | L11: 2030 | M11: 2035 | N11: 2040 | O11: 2045
B12: Scenario 1: Low Electric + High Hydrogen | C12: TWh | D12: 0.009900893466 | E12: 0.01516070107 | F12: 0.02148804604 | G12: 0.03063555002 | H12: 0.1196650421 | I12: 0.2234660949 | J12: 0.3485725974 | K12: 0.472431892 | L12: 1.17391099 | M12: 5.572741815 | N12: 10.20418588 | O12: 14.85800573
B13: Scenario 2: Medium Electric + Low Hydrogen | C13: TWh | D13: 0.003919432014 | E13: 0.00515422905 | F13: 0.00664878992 | G13: 0.008617707543 | H13: 0.08748546567 | I13: 0.1817138247 | J13: 0.2975727107 | K13: 0.416209917 | L13: 0.7004160285 | M13: 2.563120884 | N13: 4.413508204 | O13: 6.17329466
B14: Scenario 3: Medium Electric + High Hydrogen | C14: TWh | D14: 0.01337582188 | E14: 0.02332649087 | F14: 0.0272225705 | G14: 0.03324408752 | H14: 0.1208620387 | I14: 0.2253325914 | J14: 0.3531347756 | K14: 0.4786421286 | L14: 1.186087818 | M14: 5.567449105 | N14: 10.01914873 | O14: 14.45211585
B15: Scenario 4: High Electric + Low Hydrogen | C15: TWh | D15: 0.004788231192 | E15: 0.007065527293 | F15: 0.007865474843 | G15: 0.009139816008 | H15: 0.04687519083 | I15: 0.09033492013 | J15: 0.1519009109 | K15: 0.2096803794 | L15: 0.4299928977 | M15: 1.499510194 | N15: 2.869513253 | O15: 4.474073208
B16: Scenario 5: High Electric + High Hydrogen | C16: TWh | D16: 0.01355029027 | E16: 0.02332798332 | F16: 0.02722472119 | G16: 0.03324700862 | H16: 0.0763689917 | I16: 0.1257293041 | J16: 0.1929825302 | K16: 0.2604884745 | L16: 0.9052737112 | M16: 4.534060199 | N16: 8.579267864 | O16: 12.74577619
B17: Scenario 6: Medium Electric + Medium Hydrogen | C17: TWh | D17: 0.009083030987 | E17: 0.01519796661 | F17: 0.01772032227 | G17: 0.02128379313 | H17: 0.1016969601 | I17: 0.1975756686 | J17: 0.3186288125 | K17: 0.44066522 | L17: 0.8906894793 | M17: 3.765925775 | N17: 6.783274766 | O17: 9.586132
B19: Estimated Excess Hydrogen Production
B20: Scenario 1: Low Electric + High Hydrogen | C20: TWh | D20: 1.135637568 | E20: 1.703146991 | F20: 4.274281185 | G20: 7.128979835 | H20: 10.19018111 | I20: 14.09576467 | J20: 18.2664274 | K20: 23.01110657 | L20: 26.32608901 | M20: 43.42725819 | N20: 65.49581412 | O20: 92.64199427
B21: Scenario 2: Medium Electric + Low Hydrogen | C21: TWh | D21: 1.14161903 | E21: 1.713153463 | F21: 4.289120441 | G21: 7.150997677 | H21: 10.22236069 | I21: 14.13751694 | J21: 18.31742729 | K21: 23.06732854 | L21: 26.79958397 | M21: 46.43687912 | N21: 71.2864918 | O21: 101.3267053
B22: Scenario 3: Medium Electric + High Hydrogen | C22: TWh | D22: 1.13216264 | E22: 1.694981201 | F22: 4.26854666 | G22: 7.126371297 | H22: 10.18898412 | I22: 14.09389818 | J22: 18.26186522 | K22: 23.00489633 | L22: 26.31391218 | M22: 43.43255089 | N22: 65.68085127 | O22: 93.04788415
B23: Scenario 4: High Electric + Low Hydrogen | C23: TWh | D23: 1.14075023 | E23: 1.711242165 | F23: 4.287903756 | G23: 7.150475569 | H23: 10.26297096 | I23: 14.22889585 | J23: 18.46309909 | K23: 23.27385808 | L23: 27.0700071 | M23: 47.50048981 | N23: 72.83048675 | O23: 103.0259268
B24: Scenario 5: High Electric + High Hydrogen | C24: TWh | D24: 1.131988171 | E24: 1.694979709 | F24: 4.26854451 | G24: 7.126368376 | H24: 10.23347716 | I24: 14.19350147 | J24: 18.42201747 | K24: 23.22304999 | L24: 26.59472629 | M24: 44.4659398 | N24: 67.12073214 | O24: 94.75422381
B25: Scenario 6: Medium Electric + Medium Hydrogen | C25: TWh | D25: 1.136455431 | E25: 1.703109726 | F25: 4.278048909 | G25: 7.138331591 | H25: 10.20814919 | I25: 14.1216551 | J25: 18.29637119 | K25: 23.04287324 | L25: 26.60931052 | M25: 45.23407423 | N25: 68.91672523 | O25: 97.913868
B27: Forecast Hydrogen Transport Demand | C27: Units
B28: Scenario 1: Low Electric + High Hydrogen | C28: % | D28: 0.008643003966 | E28: 0.008823042077 | F28: 0.005002141616 | G28: 0.004278937956 | H28: 0.01160686981 | I28: 0.01560601254 | J28: 0.01872536113 | K28: 0.02011757695 | L28: 0.04268767236 | M28: 0.1137294248 | N28: 0.1347976999 | O28: 0.1382140068
B29: Scenario 2: Medium Electric + Low Hydrogen | C29: % | D29: 0.003421475703 | E29: 0.002999596099 | F29: 0.001547753048 | G29: 0.001203655096 | H29: 0.008485622808 | I29: 0.01269019458 | J29: 0.01598564119 | K29: 0.01772347543 | L29: 0.02546967376 | M29: 0.05230858947 | N29: 0.05830261828 | O29: 0.05742599683
B30: Scenario 3: Medium Electric + High Hydrogen | C30: % | D30: 0.0116764494 | E30: 0.01357527 | F30: 0.006337065386 | G30: 0.004643278407 | H30: 0.01172297209 | I30: 0.01573636147 | J30: 0.01897044188 | K30: 0.02038202758 | L30: 0.0431304661 | M30: 0.1136214103 | N30: 0.1323533518 | O30: 0.134438287
B31: Scenario 4: High Electric + Low Hydrogen | C31: % | D31: 0.004179895615 | E31: 0.004111910413 | F31: 0.001830981699 | G31: 0.00127657919 | H31: 0.004546643095 | I31: 0.006308643361 | J31: 0.008160134887 | K31: 0.008928823897 | L31: 0.01563610537 | M31: 0.03060224885 | N31: 0.03790638379 | O31: 0.04161928565
B32: Scenario 5: High Electric + High Hydrogen | C32: % | D32: 0.01182875192 | E32: 0.01357613856 | F32: 0.00633756604 | G32: 0.004643686405 | H32: 0.007407384219 | I32: 0.008780450998 | J32: 0.01036704433 | K32: 0.01109238605 | L32: 0.03291904404 | M32: 0.09253184079 | N32: 0.1133324685 | O32: 0.1185653599
B33: Scenario 6: Medium Electric + Medium Hydrogen | C33: % | D33: 0.007929049344 | E33: 0.008844729429 | F33: 0.004125063828 | G33: 0.002972756495 | H33: 0.009864061845 | I33: 0.01379792475 | J33: 0.01711677747 | K33: 0.0187648561 | L33: 0.03238870834 | M33: 0.07685562806 | N33: 0.08960732848 | O33: 0.08917332093
B35: Estimated Excess Hydrogen Production
B36: Scenario 1: Low Electric + High Hydrogen | C36: % | D36: 0.991356996 | E36: 0.9911769579 | F36: 0.9949978584 | G36: 0.995721062 | H36: 0.9883931302 | I36: 0.9843939875 | J36: 0.9812746389 | K36: 0.9798824231 | L36: 0.9573123276 | M36: 0.8862705752 | N36: 0.8652023001 | O36: 0.8617859932
B37: Scenario 2: Medium Electric + Low Hydrogen | C37: % | D37: 0.9965785243 | E37: 0.9970004039 | F37: 0.998452247 | G37: 0.9987963449 | H37: 0.9915143772 | I37: 0.9873098054 | J37: 0.9840143588 | K37: 0.9822765246 | L37: 0.9745303262 | M37: 0.9476914105 | N37: 0.9416973817 | O37: 0.9425740032
B38: Scenario 3: Medium Electric + High Hydrogen | C38: % | D38: 0.9883235506 | E38: 0.98642473 | F38: 0.9936629346 | G38: 0.9953567216 | H38: 0.9882770279 | I38: 0.9842636385 | J38: 0.9810295581 | K38: 0.9796179724 | L38: 0.9568695339 | M38: 0.8863785897 | N38: 0.8676466482 | O38: 0.865561713
B39: Scenario 4: High Electric + Low Hydrogen | C39: % | D39: 0.9958201044 | E39: 0.9958880896 | F39: 0.9981690183 | G39: 0.9987234208 | H39: 0.9954533569 | I39: 0.9936913566 | J39: 0.9918398651 | K39: 0.9910711761 | L39: 0.9843638946 | M39: 0.9693977511 | N39: 0.9620936162 | O39: 0.9583807143
B40: Scenario 5: High Electric + High Hydrogen | C40: % | D40: 0.9881712481 | E40: 0.9864238614 | F40: 0.993662434 | G40: 0.9953563136 | H40: 0.9925926158 | I40: 0.991219549 | J40: 0.9896329557 | K40: 0.9889076139 | L40: 0.967080956 | M40: 0.9074681592 | N40: 0.8866675315 | O40: 0.8814346401
B41: Scenario 6: Medium Electric + Medium Hydrogen | C41: % | D41: 0.9920709507 | E41: 0.9911552706 | F41: 0.9958749362 | G41: 0.9970272435 | H41: 0.9901359382 | I41: 0.9862020753 | J41: 0.9828832225 | K41: 0.9812351439 | L41: 0.9676112917 | M41: 0.9231443719 | N41: 0.9103926715 | O41: 0.9108266791
B43: Electricity
B45: Forecast Electricity Transport Demand | D45: 2022 | E45: 2023 | F45: 2024 | G45: 2025 | H45: 2026 | I45: 2027 | J45: 2028 | K45: 2029 | L45: 2030 | M45: 2035 | N45: 2040 | O45: 2045
B46: Scenario 1: Low Electric + High Hydrogen | C46: TWh | D46: 0.5776948601 | E46: 0.7320389262 | F46: 0.9267645017 | G46: 1.167331503 | H46: 1.375694663 | I46: 1.651520537 | J46: 1.954143725 | K46: 2.311141858 | L46: 2.816915823 | M46: 5.683640769 | N46: 9.045974124 | O46: 11.20471969
B47: Scenario 2: Medium Electric + Low Hydrogen | C47: TWh | D47: 0.598170536 | E47: 0.7809094942 | F47: 1.013238859 | G47: 1.307906249 | H47: 1.591309558 | I47: 1.94407308 | J47: 2.325760771 | K47: 2.782686742 | L47: 3.394302232 | M47: 6.744773193 | N47: 10.24341124 | O47: 12.45059424
B48: Scenario 3: Medium Electric + High Hydrogen | C48: TWh | D48: 0.6067227999 | E48: 0.7976362432 | F48: 1.020645064 | G48: 1.312366893 | H48: 1.595936075 | I48: 1.954819799 | J48: 2.348956508 | K48: 2.805963808 | L48: 3.432566791 | M48: 6.9858009 | N48: 10.11456076 | O48: 12.15835398
B49: Scenario 4: High Electric + Low Hydrogen | C49: TWh | D49: 0.7152258507 | E49: 1.012419327 | F49: 1.276830761 | G49: 1.626479851 | H49: 1.997142295 | I49: 2.458803766 | J49: 2.950322251 | K49: 3.552886737 | L49: 4.363863963 | M49: 8.615252381 | N49: 12.1246077 | O49: 14.16773989
B50: Scenario 5: High Electric + High Hydrogen | C50: TWh | D50: 0.7146595488 | E50: 1.011325848 | F50: 1.275213757 | G50: 1.623741769 | H50: 1.992836603 | I50: 2.453058356 | J50: 2.94323166 | K50: 3.594269262 | L50: 4.444709283 | M50: 8.474118954 | N50: 11.87480086 | O50: 13.83762587
B51: Scenario 6: Medium Electric + Medium Hydrogen | C51: TWh | D51: 0.6069800042 | E51: 0.8008575714 | F51: 1.026823244 | G51: 1.313521592 | H51: 1.586062298 | I51: 1.929377357 | J51: 2.317705266 | K51: 2.77352427 | L51: 3.412883546 | M51: 7.029920119 | N51: 10.24448588 | O51: 12.29565551
B53: Forecast Electricity Transport Demand (Hydrogen)
B54: Scenario 1: Low Electric + High Hydrogen | C54: TWh | D54: 0.01514254295 | E54: 0.02318695458 | F54: 0.03286407042 | G54: 0.04685437061 | H54: 0.1830171232 | I54: 0.3417716745 | J54: 0.5331110313 | K54: 0.7225428937 | L54: 1.795393279 | M54: 8.523016893 | N54: 15.60640194 | O54: 22.72400876
B55: Scenario 2: Medium Electric + Low Hydrogen | C55: TWh | D55: 0.005994425432 | E55: 0.007882938547 | F55: 0.01016873752 | G55: 0.0131800233 | H55: 0.1338013004 | I55: 0.2779152612 | J55: 0.4551112045 | K55: 0.6365563437 | L55: 1.071224514 | M55: 3.920067235 | N55: 6.75007137 | O55: 9.441509479
B56: Scenario 3: Medium Electric + High Hydrogen | C56: TWh | D56: 0.02045713934 | E56: 0.03567580957 | F56: 0.04163451958 | G56: 0.05084389855 | H56: 0.1848478239 | I56: 0.3446263162 | J56: 0.5400884803 | K56: 0.7320409026 | L56: 1.814016662 | M56: 8.514922161 | N56: 15.32340394 | O56: 22.10323601
B57: Scenario 4: High Electric + Low Hydrogen | C57: TWh | D57: 0.007323177118 | E57: 0.01080610057 | F57: 0.01202954976 | G57: 0.01397854213 | H57: 0.07169146832 | I57: 0.1381592896 | J57: 0.2323190402 | K57: 0.3206876391 | L57: 0.6576361965 | M57: 2.293368532 | N57: 4.388667328 | O57: 6.8427002
B58: Scenario 5: High Electric + High Hydrogen | C58: TWh | D58: 0.02072397336 | E58: 0.03567809213 | F58: 0.04163780888 | G58: 0.05084836613 | H58: 0.1167996344 | I58: 0.1922918769 | J58: 0.2951497521 | K58: 0.3983941375 | L58: 1.384536264 | M58: 6.93444501 | N58: 13.1212332 | O58: 19.49354006
B59: Scenario 6: Medium Electric + Medium Hydrogen | C59: TWh | D59: 0.01389169445 | E59: 0.02324394894 | F59: 0.02710166935 | G59: 0.03255168362 | H59: 0.1555365272 | I59: 0.302174552 | J59: 0.4873146544 | K59: 0.6739585718 | L59: 1.362230968 | M59: 5.759651185 | N59: 10.37442023 | O59: 14.66114306
B61: Estimated Excess Electricity Generation Capacity
B62: Scenario 1: Low Electric + High Hydrogen | C62: TWh | D62: 39.34114831 | E62: 43.21442034 | F62: 47.04567815 | G62: 50.82678135 | H62: 54.51791594 | I62: 58.11899602 | J62: 61.66069398 | K62: 65.14992449 | L62: 67.60696065 | M62: 64.2479062 | N62: 60.03748192 | O62: 56.99642365
B63: Scenario 2: Medium Electric + Low Hydrogen | C63: TWh | D63: 39.32982075 | E63: 43.18085379 | F63: 46.98189913 | G63: 50.71988095 | H63: 54.35151687 | I63: 57.89029989 | J63: 61.36707676 | K63: 64.76436616 | L63: 67.753743 | M63: 67.78972344 | N63: 67.69637537 | O63: 69.03304838
B64: Scenario 3: Medium Electric + High Hydrogen | C64: TWh | D64: 39.30680578 | E64: 43.13633417 | F64: 46.94302714 | G64: 50.67775643 | H64: 54.29584383 | I64: 57.81284212 | J64: 61.25890375 | K64: 64.64560453 | L64: 66.97268629 | M64: 62.9538408 | N64: 59.25189328 | O64: 56.66356211
B65: Scenario 4: High Electric + Low Hydrogen | C65: TWh | D65: 39.21143669 | E65: 42.94642079 | F65: 46.71644641 | G65: 50.40050883 | H65: 54.00779397 | I65: 57.51532518 | J65: 60.96530745 | K65: 64.31003487 | L65: 67.19776959 | M65: 67.54594295 | N65: 68.17658295 | O65: 69.91471202
B66: Scenario 5: High Electric + High Hydrogen | C66: TWh | D66: 39.19860219 | E66: 42.92264228 | F66: 46.68845516 | G66: 50.36637709 | H66: 53.96699149 | I66: 57.466938 | J66: 60.90956733 | K66: 64.19094584 | L66: 66.3900242 | M66: 63.0459999 | N66: 59.69382392 | O66: 57.59398617
B67: Scenario 6: Medium Electric + Medium Hydrogen | C67: TWh | D67: 39.31311402 | E67: 43.1455447 | F67: 46.95138181 | G67: 50.69489395 | H67: 54.33502891 | I67: 57.88073633 | J67: 61.34292882 | K67: 64.7361264 | L67: 67.44415523 | M67: 65.66499256 | N67: 64.07095187 | O67: 63.96835353
B69: Forecast Electricity Transport Demand
B70: Scenario 1: Low Electric + High Hydrogen | C70: % | D70: 0.01446624597 | E70: 0.0166487336 | F70: 0.01930545944 | G70: 0.0224310109 | H70: 0.02453240716 | I70: 0.02747392564 | J70: 0.03046307424 | K70: 0.03389585685 | L70: 0.0390050444 | M70: 0.07244499859 | N70: 0.1068129566 | O70: 0.1232301452
B71: Scenario 2: Medium Electric + Low Hydrogen | C71: % | D71: 0.01497898407 | E71: 0.01776019507 | F71: 0.02110680939 | G71: 0.02513224328 | H71: 0.02837741181 | I71: 0.03234069335 | J71: 0.03625619863 | K71: 0.04081166681 | L71: 0.04699995228 | M71: 0.08597043768 | N71: 0.1209520418 | O71: 0.1369323444
B72: Scenario 3: Medium Electric + High Hydrogen | C72: % | D72: 0.01519314411 | E72: 0.01814061089 | F72: 0.02126108828 | G72: 0.02521795738 | H72: 0.02845991529 | I72: 0.03251947075 | J72: 0.03661779611 | K72: 0.0411530548 | L72: 0.04752979092 | M72: 0.08904263252 | N72: 0.1194306024 | O72: 0.1337182693
B73: Scenario 4: High Electric + Low Hydrogen | C73: % | D73: 0.0179102045 | E73: 0.02302541443 | F73: 0.0265977003 | G73: 0.03125383593 | H73: 0.03561452205 | I73: 0.04090351305 | J73: 0.04599246443 | K73: 0.05210763666 | L73: 0.06042520201 | M73: 0.1098119976 | N73: 0.1431648133 | O73: 0.15581761
B74: Scenario 5: High Electric + High Hydrogen | C74: % | D74: 0.01789602355 | E74: 0.02300054548 | F74: 0.02656401644 | G74: 0.03120122196 | H74: 0.03553773977 | I74: 0.04080793508 | J74: 0.04588192948 | K74: 0.05271456443 | L74: 0.06154464451 | M74: 0.1080130783 | N74: 0.1402151467 | O74: 0.1521869972
B75: Scenario 6: Medium Electric + Medium Hydrogen | C75: % | D75: 0.01519958485 | E75: 0.01821387344 | F75: 0.02138978613 | G75: 0.02524014564 | H75: 0.02828383879 | I75: 0.03209622215 | J75: 0.03613062166 | K75: 0.04067728741 | L75: 0.04725724253 | M75: 0.08960498628 | N75: 0.1209647309 | O75: 0.1352283195
B77: Forecast Electricity Transport Demand (Hydrogen)
B78: Scenario 1: Low Electric + High Hydrogen | C78: % | D78: 0.0003791893716 | E78: 0.0005273400305 | F78: 0.0006845924474 | G78: 0.0009003362756 | H78: 0.003263697027 | I78: 0.005685554228 | J78: 0.008310648147 | K78: 0.0105970174 | L78: 0.02486030785 | M78: 0.1086363428 | N78: 0.184277106 | O78: 0.2499199422
B79: Scenario 2: Medium Electric + Low Hydrogen | C79: % | D79: 0.0001501083682 | E79: 0.0001792813731 | F79: 0.0002118252797 | G79: 0.0002532624585 | H79: 0.002386043988 | I79: 0.004623268709 | J79: 0.007094711733 | K79: 0.009335914463 | L79: 0.0148329458 | M79: 0.04996608281 | N79: 0.07970342059 | O79: 0.1038382588
B80: Scenario 3: Medium Electric + High Hydrogen | C80: % | D80: 0.0005122739185 | E80: 0.000811373587 | F80: 0.0008672899399 | G80: 0.0009769975706 | H80: 0.003296343439 | I80: 0.005733042716 | J80: 0.008419419341 | K80: 0.01073631787 | L80: 0.02511818063 | M80: 0.1085331655 | N80: 0.1809355253 | O80: 0.2430926482
B81: Scenario 4: High Electric + Low Hydrogen | C81: % | D81: 0.0001833820739 | E81: 0.0002457627362 | F81: 0.0002505879158 | G81: 0.0002686065013 | H81: 0.001278455414 | I81: 0.002298353526 | J81: 0.003621612924 | K81: 0.004703295156 | L81: 0.009106104213 | M81: 0.02923180525 | N81: 0.05182045917 | O81: 0.07525640642
B82: Scenario 5: High Electric + High Hydrogen | C82: % | D82: 0.0005189557964 | E82: 0.0008114254992 | F82: 0.0008673584594 | G82: 0.0009770834179 | H82: 0.002082857673 | I82: 0.003198878008 | J82: 0.004601078567 | K82: 0.005842960529 | L82: 0.01917128585 | M82: 0.08838803848 | N82: 0.1549327572 | O82: 0.2143910635
B83: Scenario 6: Medium Electric + Medium Hydrogen | C83: % | D83: 0.0003478664652 | E83: 0.0005286362511 | F83: 0.000564555696 | G83: 0.0006255011263 | H83: 0.002773642665 | I83: 0.005026834959 | J83: 0.007596730122 | K83: 0.009884466065 | L83: 0.01886243067 | M83: 0.07341384492 | N83: 0.1224989683 | O83: 0.1612440862
B85: Estimated Excess Electricity Generation Capacity
B86: Scenario 1: Low Electric + High Hydrogen | C86: % | D86: 0.9851545647 | E86: 0.9828239264 | F86: 0.9800099481 | G86: 0.9766686528 | H86: 0.9722038958 | I86: 0.9668405201 | J86: 0.9612262776 | K86: 0.9555071258 | L86: 0.9361346478 | M86: 0.8189186586 | N86: 0.7089099374 | O86: 0.6268499126
B87: Scenario 2: Medium Electric + Low Hydrogen | C87: % | D87: 0.9848709076 | E87: 0.9820605236 | F87: 0.9786813653 | G87: 0.9746144943 | H87: 0.9692365442 | I87: 0.9630360379 | J87: 0.9566490896 | K87: 0.9498524187 | L87: 0.9381671019 | M87: 0.8640634795 | N87: 0.7993445377 | O87: 0.7592293968
B88: Scenario 3: Medium Electric + High Hydrogen | C88: % | D88: 0.984294582 | E88: 0.9810480155 | F88: 0.9778716218 | G88: 0.9738050451 | H88: 0.9682437413 | I88: 0.9617474865 | J88: 0.9549627845 | K88: 0.9481106273 | L88: 0.9273520285 | M88: 0.802424202 | N88: 0.6996338723 | O88: 0.6231890825
B89: Scenario 4: High Electric + Low Hydrogen | C89: % | D89: 0.9819064134 | E89: 0.9767288228 | F89: 0.9731517118 | G89: 0.9684775576 | H89: 0.9631070225 | I89: 0.9567981334 | J89: 0.9503859226 | K89: 0.9431890682 | L89: 0.9304686938 | M89: 0.8609561971 | N89: 0.8050147276 | O89: 0.7689259836
B90: Scenario 5: High Electric + High Hydrogen | C90: % | D90: 0.9815850207 | E90: 0.976188029 | F90: 0.9725686251 | G90: 0.9678216946 | H90: 0.9623794026 | I90: 0.9559931869 | J90: 0.949516992 | K90: 0.941442475 | L90: 0.9192840696 | M90: 0.8035988832 | N90: 0.7048520961 | O90: 0.6334219392
B91: Scenario 6: Medium Electric + Medium Hydrogen | C91: % | D91: 0.9844525487 | E91: 0.9812574903 | F91: 0.9780456582 | G91: 0.9741343532 | H91: 0.9689425185 | I91: 0.9628769429 | J91: 0.9562726482 | K91: 0.9494382465 | L91: 0.9338803268 | M91: 0.8369811688 | N91: 0.7565363008 | O91: 0.7035275944

Sheet Bus Summary (hidden)
C3: =MID(CELL("filename",B1),FIND("]",CELL("filename",B1))+1,99) -> Bus Summary
B7: Bus + Coach | C7: Summary of total fuel usage split by fuel type
D9: Units | E9: 2022 | F9: 2023 | G9: 2024 | H9: 2025 | I9: 2026 | J9: 2027 | K9: 2028 | L9: 2029 | M9: 2030 | N9: 2035 | O9: 2040 | P9: 2045
B10: Scenario 1: Low Electric + High Hydrogen | C10: Total
C11: Hydrogen | D11: kWh | E11: 5463136.602 | F11: 8937309.322 | G11: 13627442.49 | H11: 19533536.12 | I11: 26335966.3 | J11: 34326563.56 | K11: 43015469.53 | L11: 47952268.97 | M11: 47952268.97 | N11: 71229226.19 | O11: 116562837.5 | P11: 111351578.4
C12: Electricity/kWh | D12: kWh | E12: 6461961.259 | F12: 10005617.43 | G12: 14591525.42 | H12: 20219685.23 | I12: 29495726.39 | J12: 42732324.46 | K12: 59616803.87 | L12: 72436501.21 | M12: 72436501.21 | N12: 157484249.4 | O12: 450875530 | P12: 511013459.7
B13: Scenario 2: Medium Electric + Low Hydrogen | C13: Total
C14: Hydrogen | E14: 773003.4302 | F14: 1294129.338 | G14: 2162672.518 | H14: 3031215.698 | I14: 4622386.804 | J14: 6706890.436 | K14: 9312519.976 | L14: 12341998.59 | M14: 12341998.59 | N14: 12341998.59 | O14: 39266837.17 | P14: 42215541.26
C15: Electricity/kWh | D15: kWh | E15: 11881670.7 | F15: 18760532.69 | G15: 27828123.49 | H15: 39084443.1 | I15: 53988644.07 | J15: 70456222.76 | K15: 90154782.08 | L15: 113188547.2 | M15: 113188547.2 | N15: 113188547.2 | O15: 418255653.8 | P15: 552495082
B16: Scenario 3: Medium Electric + High Hydrogen | C16: Total
C17: Hydrogen | E17: 8937309.322 | F17: 17101615.21 | G17: 19359827.48 | H17: 22139165.66 | I17: 29526993.95 | J17: 39254677.56 | K17: 51417756.26 | L17: 58887227.6 | M17: 65835573.04 | N17: 140736324.3 | O17: 131671146.1 | P17: 80600807.1
C18: Electricity/kWh | D18: kWh | E18: 20949261.5 | F18: 39188668.28 | G18: 42106973.37 | H18: 45859079.9 | I18: 62222433.41 | J18: 85985774.82 | K18: 119233607.7 | L18: 143518075.1 | M18: 166551840.2 | N18: 472869648.9 | O18: 498821719.1 | P18: 529463922.5
B19: Scenario 4: High Electric + Low Hydrogen | C19: Total
C20: Hydrogen | E20: 1641546.61 | F20: 3204924.334 | G20: 3378632.97 | H20: 3552341.606 | I20: 3991824.455 | J20: 4686658.999 | K20: 5558676.352 | L20: 7295762.712 | M20: 9206557.708 | N20: 20806916.92 | O20: 28835633.58 | P20: 24753480.63
C21: Electricity/kWh | D21: kWh | E21: 114335024.2 | F21: 210951767.6 | G21: 219289782.1 | H21: 229712300.2 | I21: 241177070.2 | J21: 257748874.1 | K21: 275571380.1 | L21: 312779770 | M21: 349883934.6 | N21: 549058256.7 | O21: 560523026.6 | P21: 562972318.4
B22: Scenario 5: High Electric + High Hydrogen | C22: Total
C23: Hydrogen | E23: 9111017.958 | F23: 17101615.21 | G23: 19359827.48 | H23: 22139165.66 | I23: 25010569.41 | J23: 29005868.04 | K23: 33178349.48 | L23: 42211198.55 | M23: 52286299.44 | N23: 70004580.31 | O23: 68962328.49 | P23: 55586763.52
C24: Electricity/kWh | D24: kWh | E24: 114335024.2 | F24: 210951767.6 | G24: 219289782.1 | H24: 229712300.2 | I24: 241177070.2 | J24: 257748874.1 | K24: 275571380.1 | L24: 362703632 | M24: 449106307.5 | N24: 535821658.6 | O24: 536447009.7 | P24: 544472348.7
B25: Scenario 6: Medium Electric + Medium Hydrogen | C25: Total
C26: Hydrogen | E26: 5289427.966 | F26: 10153269.77 | G26: 11542938.86 | H26: 12932607.95 | I26: 14588051.25 | J26: 17019972.15 | K26: 23624374.5 | L26: 28835633.58 | M26: 36131396.29 | N26: 84617276.47 | O26: 89112530.27 | P26: 73478753.03
C27: Electricity/kWh | D27: kWh | E27: 20949261.5 | F27: 39188668.28 | G27: 42106973.37 | H27: 45859079.9 | I27: 50549213.08 | J27: 58157651.33 | K27: 85047748.18 | L27: 107560387.4 | M27: 139349067.8 | N27: 457235871.7 | O27: 524356888.6 | P27: 533737155
B31: Bus | E31: 2022 | F31: 2023 | G31: 2024 | H31: 2025 | I31: 2026 | J31: 2027 | K31: 2028 | L31: 2029 | M31: 2030 | N31: 2035 | O31: 2040 | P31: 2045
B32: Scenario 1: Low Electric + High Hydrogen | C32: Total
C33: Hydrogen | E33: 2779338.176 | F33: 4690133.172 | G33: 7122054.076 | H33: 10248809.52 | I33: 14006127.32 | J33: 18001425.95 | K33: 22517850.48 | L33: 27454649.92 | M33: 27454649.92 | N33: 50731607.14 | O33: 75915016.65 | P33: 65145081.21
C34: Electricity/kWh | D34: kWh | E34: 4690133.172 | F34: 7087312.349 | G34: 10214067.8 | H34: 13966174.33 | I34: 20428135.59 | J34: 28453474.58 | K34: 38875992.74 | L34: 51695690.07 | M34: 51695690.07 | N34: 136743438.3 | O34: 341855990 | P34: 348317951.3
B35: Scenario 2: Medium Electric + Low Hydrogen | C35: Total
C36: Hydrogen | E36: 694834.544 | F36: 1042251.816 | G36: 1563377.724 | H36: 2258212.268 | I36: 3409900.525 | J36: 4973278.249 | K36: 6884073.245 | L36: 9215243.14 | M36: 9215243.14 | N36: 9215243.14 | O36: 23459351.29 | P36: 23455008.58
C37: Electricity/kWh | D37: kWh | E37: 8233789.346 | F37: 12923922.52 | G37: 19073208.23 | H37: 26577421.31 | I37: 36791489.1 | J37: 48152033.9 | K37: 61909757.87 | L37: 78064661.02 | M37: 78064661.02 | N37: 78064661.02 | O37: 290371355.9 | P37: 373331994.9
B38: Scenario 3: Medium Electric + High Hydrogen | C38: Total
C39: Hydrogen | E39: 6427219.532 | F39: 12854439.06 | G39: 12854439.06 | H39: 12854439.06 | I39: 17197154.96 | J39: 22755831.32 | K39: 30746428.57 | L39: 38215899.92 | M39: 45164245.36 | N39: 88765112.99 | O39: 80427098.47 | P39: 58887227.6
C40: Electricity/kWh | D40: kWh | E40: 17301380.15 | F40: 33352058.11 | G40: 33352058.11 | H40: 33352058.11 | I40: 45025278.45 | J40: 61180181.6 | K40: 85464648.91 | L40: 109749116.2 | M40: 132782881.4 | N40: 334145932.2 | O40: 339148740.9 | P40: 352072663.4
B41: Scenario 4: High Electric + Low Hydrogen | C41: Total
C42: Hydrogen | E42: 1215960.452 | F42: 2605629.54 | G42: 2605629.54 | H42: 2605629.54 | I42: 2605629.54 | J42: 2605629.54 | K42: 2605629.54 | L42: 4342715.9 | M42: 6253510.896 | N42: 11985895.88 | O42: 17718280.87 | P42: 16502320.42
C43: Electricity/kWh | D43: kWh | E43: 104329406.8 | F43: 194692639.2 | G43: 194692639.2 | H43: 194692639.2 | I43: 194692639.2 | J43: 194692639.2 | K43: 194692639.2 | L43: 231901029.1 | M43: 269005193.7 | N43: 380213462.5 | O43: 376774031.5 | P43: 377503607.7
B44: Scenario 5: High Electric + High Hydrogen | C44: Total
C45: Hydrogen | E45: 6427219.532 | F45: 12854439.06 | G45: 12854439.06 | H45: 12854439.06 | I45: 12854439.06 | J45: 12854439.06 | K45: 12854439.06 | L45: 21887288.14 | M45: 31962389.02 | N45: 31962389.02 | O45: 34394309.93 | P45: 26751129.94
C46: Electricity/kWh | D46: kWh | E46: 104329406.8 | F46: 194692639.2 | G46: 194692639.2 | H46: 194692639.2 | I46: 194692639.2 | J46: 194692639.2 | K46: 194692639.2 | L46: 281824891 | M46: 368227566.6 | N46: 368227566.6 | O46: 366768414 | P46: 371354322
B47: Scenario 6: Medium Electric + Medium Hydrogen | C47: Total
C48: Hydrogen | E48: 3821589.992 | F48: 7643179.984 | G48: 7643179.984 | H48: 7643179.984 | I48: 7643179.984 | J48: 7643179.984 | K48: 11812187.25 | L48: 17023446.33 | M48: 24319209.04 | N48: 58366101.69 | O48: 53849677.16 | P48: 42211198.55
C49: Electricity/kWh | D49: kWh | E49: 17301380.15 | F49: 33352058.11 | G49: 33352058.11 | H49: 33352058.11 | I49: 33352058.11 | J49: 33352058.11 | K49: 51278789.35 | L49: 73791428.57 | M49: 105580109 | N49: 352385339 | O49: 355095193.7 | P49: 362078280.9
B53: Coach | E53: 2022 | F53: 2023 | G53: 2024 | H53: 2025 | I53: 2026 | J53: 2027 | K53: 2028 | L53: 2029 | M53: 2030 | N53: 2035 | O53: 2040 | P53: 2045
B54: Scenario 1: Low Electric + High Hydrogen | C54: Total
C55: Hydrogen | E55: 2683798.426 | F55: 4247176.15 | G55: 6505388.418 | H55: 9284726.594 | I55: 12329838.98 | J55: 16325137.61 | K55: 20497619.05 | L55: 20497619.05 | M55: 20497619.05 | N55: 20497619.05 | O55: 40647820.82 | P55: 46206497.18
C56: Electricity/kWh | D56: kWh | E56: 1771828.087 | F56: 2918305.085 | G56: 4377457.627 | H56: 6253510.896 | I56: 9067590.799 | J56: 14278849.88 | K56: 20740811.14 | L56: 20740811.14 | M56: 20740811.14 | N56: 20740811.14 | O56: 109019540 | P56: 162695508.5
B57: Scenario 2: Medium Electric + Low Hydrogen | C57: Total
C58: Hydrogen | E58: 78168.8862 | F58: 251877.5222 | G58: 599294.7942 | H58: 773003.4302 | I58: 1212486.279 | J58: 1733612.187 | K58: 2428446.731 | L58: 3126755.448 | M58: 3126755.448 | N58: 3126755.448 | O58: 15807485.88 | P58: 18760532.69
C59: Electricity/kWh | D59: kWh | E59: 3647881.356 | F59: 5836610.169 | G59: 8754915.254 | H59: 12507021.79 | I59: 17197154.96 | J59: 22304188.86 | K59: 28245024.21 | L59: 35123886.2 | M59: 35123886.2 | N59: 35123886.2 | O59: 127884297.8 | P59: 179163087.2
B60: Scenario 3: Medium Electric + High Hydrogen | C60: Total
C61: Hydrogen | E61: 2510089.79 | F61: 4247176.15 | G61: 6505388.418 | H61: 9284726.594 | I61: 12329838.98 | J61: 16498846.25 | K61: 20671327.68 | L61: 20671327.68 | M61: 20671327.68 | N61: 51971211.27 | O61: 51244047.62 | P61: 21713579.5
C62: Electricity/kWh | D62: kWh | E62: 3647881.356 | F62: 5836610.169 | G62: 8754915.254 | H62: 12507021.79 | I62: 17197154.96 | J62: 24805593.22 | K62: 33768958.84 | L62: 33768958.84 | M62: 33768958.84 | N62: 138723716.7 | O62: 159672978.2 | P62: 177391259.1
B63: Scenario 4: High Electric + Low Hydrogen | C63: Total
C64: Hydrogen | E64: 425586.1582 | F64: 599294.7942 | G64: 773003.4302 | H64: 946712.0662 | I64: 1386194.915 | J64: 2081029.459 | K64: 2953046.812 | L64: 2953046.812 | M64: 2953046.812 | N64: 8821021.041 | O64: 11117352.7 | P64: 8251160.21
C65: Electricity/kWh | D65: kWh | E65: 10005617.43 | F65: 16259128.33 | G65: 24597142.86 | H65: 35019661.02 | I65: 46484430.99 | J65: 63056234.87 | K65: 80878740.92 | L65: 80878740.92 | M65: 80878740.92 | N65: 168844794.2 | O65: 183748995.2 | P65: 185468710.7
B66: Scenario 5: High Electric + High Hydrogen | C66: Total
C67: Hydrogen | E67: 2683798.426 | F67: 4247176.15 | G67: 6505388.418 | H67: 9284726.594 | I67: 12156130.35 | J67: 16151428.97 | K67: 20323910.41 | L67: 20323910.41 | M67: 20323910.41 | N67: 38042191.28 | O67: 34568018.56 | P67: 28835633.58
C68: Electricity/kWh | D68: kWh | E68: 10005617.43 | F68: 16259128.33 | G68: 24597142.86 | H68: 35019661.02 | I68: 46484430.99 | J68: 63056234.87 | K68: 80878740.92 | L68: 80878740.92 | M68: 80878740.92 | N68: 167594092 | O68: 169678595.6 | P68: 173118026.6
B69: Scenario 6: Medium Electric + Medium Hydrogen | C69: Total
C70: Hydrogen | E70: 1467837.974 | F70: 2510089.79 | G70: 3899758.878 | H70: 5289427.966 | I70: 6944871.267 | J70: 9376792.171 | K70: 11812187.25 | L70: 11812187.25 | M70: 11812187.25 | N70: 26251174.78 | O70: 35262853.11 | P70: 31267554.48
C71: Electricity/kWh | D71: kWh | E71: 3647881.356 | F71: 5836610.169 | G71: 8754915.254 | H71: 12507021.79 | I71: 17197154.96 | J71: 24805593.22 | K71: 33768958.84 | L71: 33768958.84 | M71: 33768958.84 | N71: 104850532.7 | O71: 169261694.9 | P71: 171658874.1

Sheet Car Summary (hidden)
C9: TOtal | D9: Units | E9: 2022 | F9: 2023 | G9: 2024 | H9: 2025 | I9: 2026 | J9: 2027 | K9: 2028 | L9: 2029 | M9: 2030 | N9: 2035 | O9: 2040 | P9: 2045
B10: Scenario 1: Low Electric + High Hydrogen | C10: Total | E10: =E11+E12 -> 125280473.1 | F10: =F11+F12 -> 210349491.4 | G10: 312541913.6 | H10: 424107259 | I10: 551004626.7 | J10: 692251048.8 | K10: 852922429.3 | L10: 1037122263 | M10: 1283825500 | N10: 3163898047 | O10: 5268417329 | P10: 6547072014
C11: Electricity | D11: kWh | E11: =TRANSPOSE(C34:C45) -> 121124185.5 | F11: 204643513.3 | G11: 305498916.8 | H11: 414294476.7 | I11: 537457789.4 | J11: 675618080 | K11: 833557179.3 | L11: 1014852810 | M11: 1240593892 | N11: 2962100861 | O11: 4858901179 | P11: 6043634235
C12: Hydrogen | D12: kWh | E12: =TRANSPOSE(C51:C62) -> 4156287.561 | F12: 5705978.036 | G12: 7042996.836 | H12: 9812782.29 | I12: 13546837.3 | J12: 16632968.84 | K12: 19365250 | L12: 22269453.14 | M12: 43231607.76 | N12: 201797186.3 | O12: 409516150.2 | P12: 503437779
B13: Scenario 2: Medium Electric + Low Hydrogen | C13: Total | D13: kWh
C14: Electricity | D14: kWh | E14: =TRANSPOSE(D34:D45) -> 134170007.8 | F14: 237327200.6 | G14: 363777308.7 | H14: 505015452.2 | I14: 663429191.4 | J14: 840841295.1 | K14: 1041388066 | L14: 1277397517 | M14: 1576453661 | N14: 3665302552 | O14: 5569393368 | P14: 6469928464
C15: Hydrogen | D15: kWh | E15: =TRANSPOSE(D51:D62) -> 3051845.711 | F15: 3686136.004 | G15: 4211431.107 | H15: 5153826.838 | I15: 6377758.291 | J15: 7357643.811 | K15: 8205780.73 | L15: 9112752.119 | M15: 16161180.33 | N15: 70209361.35 | O15: 141910362.7 | P15: 175970753.7
B16: Scenario 3: Medium Electric + High Hydrogen | C16: Total | D16: kWh
C17: Electricity | D17: kWh | E17: =TRANSPOSE(F34:F45) -> 133743128.1 | F17: 236523417.9 | G17: 362628946.9 | H17: 503065120.7 | I17: 660364588.3 | J17: 836800704.1 | K17: 1036447029 | L17: 1271456823 | M17: 1563887736 | N17: 3595126959 | O17: 5417252497 | P17: 6273272017
C18: Hydrogen | D18: kWh | E18: =TRANSPOSE(F51:F62) -> 4156287.561 | F18: 5705978.036 | G18: 7042996.836 | H18: 9812782.29 | I18: 13546837.3 | J18: 16632968.84 | K18: 19365250 | L18: 22269453.14 | M18: 43231607.76 | N18: 201797186.3 | O18: 409516150.2 | P18: 503437779
B19: Scenario 4: High Electric + Low Hydrogen | C19: Total | D19: kWh
C20: Electricity | D20: kWh | E20: =TRANSPOSE(G34:G45) -> 146829227.4 | F20: 269315443.3 | G20: 421088256.4 | H20: 594130250.7 | I20: 786906373.1 | J20: 1002802209 | K20: 1245245149 | L20: 1535200475 | M20: 1902345190 | N20: 4050170682 | O20: 5861093692 | P20: 6469928464
C21: Hydrogen | D21: kWh | E21: =TRANSPOSE(G51:G62) -> 3051845.711 | F21: 3686136.004 | G21: 4211431.107 | H21: 5153826.838 | I21: 6377758.291 | J21: 7357643.811 | K21: 8205780.73 | L21: 9112752.119 | M21: 16161180.33 | N21: 70209361.35 | O21: 141910362.7 | P21: 175970753.7
B22: Scenario 5: High Electric + High Hydrogen | C22: Total | D22: kWh
C23: Electricity | D23: kWh | E23: =TRANSPOSE(H34:H45) -> 146362070.6 | F23: 268403322.4 | G23: 419758977 | H23: 591835764.7 | I23: 783271387.3 | J23: 997983328.3 | K23: 1239336879 | L23: 1528060836 | M23: 1887181580 | N23: 3972626433 | O23: 5700378740 | P23: 6273272017
C24: Hydrogen | D24: kWh | E24: =TRANSPOSE(H51:H62) -> 4156287.561 | F24: 5705978.036 | G24: 7042996.836 | H24: 9812782.29 | I24: 13546837.3 | J24: 16632968.84 | K24: 19365250 | L24: 22269453.14 | M24: 43231607.76 | N24: 201797186.3 | O24: 409516150.2 | P24: 503437779
B25: Scenario 6: Medium Electric + Medium Hydrogen | C25: Total | D25: kWh
C26: Electricity | D26: kWh | E26: =TRANSPOSE(E34:E45) -> 133956227.9 | F26: 236924627.5 | G26: 363202220.1 | H26: 504038399.8 | I26: 661893342.6 | J26: 838816133.8 | K26: 1038911673 | L26: 1274420247 | M26: 1570145558 | N26: 3629875615 | O26: 5492286759 | P26: 6369736956
C27: Hydrogen | D27: kWh | E27: =TRANSPOSE(E51:E62) -> 3604946.518 | F27: 4697770.127 | G27: 5629452.156 | H27: 7487811.4 | I27: 9970596.06 | J27: 12006476.11 | K27: 13798783.83 | L27: 15706434.99 | M27: 29750554.55 | N27: 136639204.1 | O27: 277539005.9 | P27: 342812393.4
B32: Electricity kWh
A33: kWh | B33: Year | C33: Low BEV - HH | D33: Medium BEV - LH | E33: Medium BEV - MH | F33: Medium BEV - HH | G33: High BEV - LH | H33: High BEV - HH
B34: 2022 | C34: 121124185.5 | D34: 134170007.8 | E34: 133956227.9 | F34: 133743128.1 | G34: 146829227.4 | H34: 146362070.6
B35: 2023 | C35: 204643513.3 | D35: 237327200.6 | E35: 236924627.5 | F35: 236523417.9 | G35: 269315443.3 | H35: 268403322.4
B36: 2024 | C36: 305498916.8 | D36: 363777308.7 | E36: 363202220.1 | F36: 362628946.9 | G36: 421088256.4 | H36: 419758977
B37: 2025 | C37: 414294476.7 | D37: 505015452.2 | E37: 504038399.8 | F37: 503065120.7 | G37: 594130250.7 | H37: 591835764.7
B38: 2026 | C38: 537457789.4 | D38: 663429191.4 | E38: 661893342.6 | F38: 660364588.3 | G38: 786906373.1 | H38: 783271387.3
B39: 2027 | C39: 675618080 | D39: 840841295.1 | E39: 838816133.8 | F39: 836800704.1 | G39: 1002802209 | H39: 997983328.3
B40: 2028 | C40: 833557179.3 | D40: 1041388066 | E40: 1038911673 | F40: 1036447029 | G40: 1245245149 | H40: 1239336879
B41: 2029 | C41: 1014852810 | D41: 1277397517 | E41: 1274420247 | F41: 1271456823 | G41: 1535200475 | H41: 1528060836
B42: 2030 | C42: 1240593892 | D42: 1576453661 | E42: 1570145558 | F42: 1563887736 | G42: 1902345190 | H42: 1887181580
B43: 2035 | C43: 2962100861 | D43: 3665302552 | E43: 3629875615 | F43: 3595126959 | G43: 4050170682 | H43: 3972626433
B44: 2040 | C44: 4858901179 | D44: 5569393368 | E44: 5492286759 | F44: 5417252497 | G44: 5861093692 | H44: 5700378740
B45: 2045 | C45: 6043634235 | D45: 6469928464 | E45: 6369736956 | F45: 6273272017 | G45: 6469928464 | H45: 6273272017
A47: Hydrogen
B49: hydrogen kwh
B50: Year | C50: Low BEV - HH | D50: Medium BEV - LH | E50: Medium BEV - MH | F50: Medium BEV - HH | G50: High BEV - LH | H50: High BEV - HH
B51: 2022 | C51: 4156287.561 | D51: 3051845.711 | E51: 3604946.518 | F51: 4156287.561 | G51: 3051845.711 | H51: 4156287.561
B52: 2023 | C52: 5705978.036 | D52: 3686136.004 | E52: 4697770.127 | F52: 5705978.036 | G52: 3686136.004 | H52: 5705978.036
B53: 2024 | C53: 7042996.836 | D53: 4211431.107 | E53: 5629452.156 | F53: 7042996.836 | G53: 4211431.107 | H53: 7042996.836
B54: 2025 | C54: 9812782.29 | D54: 5153826.838 | E54: 7487811.4 | F54: 9812782.29 | G54: 5153826.838 | H54: 9812782.29
B55: 2026 | C55: 13546837.3 | D55: 6377758.291 | E55: 9970596.06 | F55: 13546837.3 | G55: 6377758.291 | H55: 13546837.3
B56: 2027 | C56: 16632968.84 | D56: 7357643.811 | E56: 12006476.11 | F56: 16632968.84 | G56: 7357643.811 | H56: 16632968.84
B57: 2028 | C57: 19365250 | D57: 8205780.73 | E57: 13798783.83 | F57: 19365250 | G57: 8205780.73 | H57: 19365250
B58: 2029 | C58: 22269453.14 | D58: 9112752.119 | E58: 15706434.99 | F58: 22269453.14 | G58: 9112752.119 | H58: 22269453.14
B59: 2030 | C59: 43231607.76 | D59: 16161180.33 | E59: 29750554.55 | F59: 43231607.76 | G59: 16161180.33 | H59: 43231607.76
B60: 2035 | C60: 201797186.3 | D60: 70209361.35 | E60: 136639204.1 | F60: 201797186.3 | G60: 70209361.35 | H60: 201797186.3
B61: 2040 | C61: 409516150.2 | D61: 141910362.7 | E61: 277539005.9 | F61: 409516150.2 | G61: 141910362.7 | H61: 409516150.2
B62: 2045 | C62: 503437779 | D62: 175970753.7 | E62: 342812393.4 | F62: 503437779 | G62: 175970753.7 | H62: 503437779

Sheet HGV Summary (hidden)
C9: TOtal | D9: Units | E9: 2022 | F9: 2023 | G9: 2024 | H9: 2025 | I9: 2026 | J9: 2027 | K9: 2028 | L9: 2029 | M9: 2030 | N9: 2035 | O9: 2040 | P9: 2045
B10: Scenario 1: Low Electric + High Hydrogen | C10: Total | E10: =E11+E12 -> 53592816.03 | F10: =F11+F12 -> 102264647.6 | G10: 164375832.9 | H10: 239490787.1 | I10: 345649070.8 | J10: 483295027.1 | K10: 652244500.9 | L10: 860311285.9 | M10: 1097639399 | N10: 2733912673 | O10: 4301135010 | P10: 5637576450
C11: Electricity | D11: kWh | E11: =TRANSPOSE(C32:C43) -> 53592816.03 | F11: 102264647.6 | G11: 164375832.9 | H11: 239490787.1 | I11: 267821195.8 | J11: 313481990.7 | K11: 385551214.6 | L11: 483809194.5 | M11: 599722093.7 | N11: 1140329120 | O11: 1801262827 | P11: 2279053917
C12: Hydrogen | D12: kWh | E12: =TRANSPOSE(C48:C59) -> 0 | F12: 0 | G12: 0 | H12: 0 | I12: 77827875.03 | J12: 169813036.4 | K12: 266693286.3 | L12: 376502091.4 | M12: 497917305.2 | N12: 1593583553 | O12: 2499872183 | P12: 3358522533
B13: Scenario 2: Medium Electric + Low Hydrogen | C13: Total | D13: kWh
C14: Electricity | D14: kWh | E14: =TRANSPOSE(D32:D43) -> 53592816.03 | F14: 102264647.6 | G14: 164375832.9 | H14: 239490787.1 | I14: 269289415.9 | J14: 315656940.3 | K14: 388184709.1 | L14: 486958514.4 | M14: 603461938.9 | N14: 1119480979 | O14: 1827770898 | P14: 2504961084
C15: Hydrogen | D15: kWh | E15: =TRANSPOSE(D48:D59) -> 0 | F15: 0 | G15: 0 | H15: 0 | I15: 75829208.7 | J15: 166745125.5 | K15: 262845501.2 | L15: 371768854 | M15: 492176539.2 | N15: 1627765351 | O15: 2455294925 | P15: 2982727844
B16: Scenario 3: Medium Electric + High Hydrogen | C16: Total | D16: kWh
C17: Electricity | D17: kWh | E17: =TRANSPOSE(D32:D43) -> 53592816.03 | F17: 102264647.6 | G17: 164375832.9 | H17: 239490787.1 | I17: 269289415.9 | J17: 315656940.3 | K17: 388184709.1 | L17: 486958514.4 | M17: 603461938.9 | N17: 1119480979 | O17: 1827770898 | P17: 2504961084
C18: Hydrogen | D18: kWh | E18: =TRANSPOSE(D48:D59) -> 0 | F18: 0 | G18: 0 | H18: 0 | I18: 75829208.7 | J18: 166745125.5 | K18: 262845501.2 | L18: 371768854 | M18: 492176539.2 | N18: 1627765351 | O18: 2455294925 | P18: 2982727844
B19: Scenario 4: High Electric + Low Hydrogen | C19: Total | D19: kWh
C20: Electricity | D20: kWh | E20: =TRANSPOSE(E32:E43) -> 53592816.03 | F20: 102264647.6 | G20: 164375832.9 | H20: 239490787.1 | I20: 292662807.6 | J20: 368542038.6 | K20: 472664262.2 | L20: 607252553.8 | M20: 763318570.7 | N20: 1764090365 | O20: 2749401784 | P20: 3514770844
C21: Hydrogen | D21: kWh | E21: =TRANSPOSE(E48:E59) -> 0 | F21: 0 | G21: 0 | H21: 0 | I21: 35847928.91 | J21: 77384324.91 | K21: 120924951.7 | L21: 170282678.1 | M21: 224877162.1 | N21: 555598464 | O21: 921557574.6 | P21: 1300734681
B22: Scenario 5: High Electric + High Hydrogen | C22: Total | D22: kWh
C23: Electricity | D23: kWh | E23: =TRANSPOSE(E32:E43) -> 53592816.03 | F23: 102264647.6 | G23: 164375832.9 | H23: 239490787.1 | I23: 292662807.6 | J23: 368542038.6 | K23: 472664262.2 | L23: 607252553.8 | M23: 763318570.7 | N23: 1764090365 | O23: 2749401784 | P23: 3514770844
C24: Hydrogen | D24: kWh | E24: =TRANSPOSE(E48:E59) -> 0 | F24: 0 | G24: 0 | H24: 0 | I24: 35847928.91 | J24: 77384324.91 | K24: 120924951.7 | L24: 170282678.1 | M24: 224877162.1 | N24: 555598464 | O24: 921557574.6 | P24: 1300734681
B25: Scenario 6: Medium Electric + Medium Hydrogen | C25: Total | D25: kWh
C26: Electricity | D26: kWh | E26: =TRANSPOSE(D32:D43) -> 53592816.03 | F26: 102264647.6 | G26: 164375832.9 | H26: 239490787.1 | I26: 269289415.9 | J26: 315656940.3 | K26: 388184709.1 | L26: 486958514.4 | M26: 603461938.9 | N26: 1119480979 | O26: 1827770898 | P26: 2504961084
C27: Hydrogen | D27: kWh | E27: =TRANSPOSE(D48:D59) -> 0 | F27: 0 | G27: 0 | H27: 0 | I27: 75829208.7 | J27: 166745125.5 | K27: 262845501.2 | L27: 371768854 | M27: 492176539.2 | N27: 1627765351 | O27: 2455294925 | P27: 2982727844
A30: kWh
A31: Electricity | B31: Year | C31: Low BEV | D31: Medium BEV | E31: High BEV
B32: 2022 | C32: 53592816.03 | D32: 53592816.03 | E32: 53592816.03
B33: 2023 | C33: 102264647.6 | D33: 102264647.6 | E33: 102264647.6
B34: 2024 | C34: 164375832.9 | D34: 164375832.9 | E34: 164375832.9
B35: 2025 | C35: 239490787.1 | D35: 239490787.1 | E35: 239490787.1
B36: 2026 | C36: 267821195.8 | D36: 269289415.9 | E36: 292662807.6
B37: 2027 | C37: 313481990.7 | D37: 315656940.3 | E37: 368542038.6
B38: 2028 | C38: 385551214.6 | D38: 388184709.1 | E38: 472664262.2
B39: 2029 | C39: 483809194.5 | D39: 486958514.4 | E39: 607252553.8
B40: 2030 | C40: 599722093.7 | D40: 603461938.9 | E40: 763318570.7
B41: 2035 | C41: 1140329120 | D41: 1119480979 | E41: 1764090365
B42: 2040 | C42: 1801262827 | D42: 1827770898 | E42: 2749401784
B43: 2045 | C43: 2279053917 | D43: 2504961084 | E43: 3514770844
A47: Hydrogen Generation | B47: Year | C47: Low BEV | D47: Medium BEV | E47: High BEV
B48: 2022 | C48: 0 | D48: 0 | E48: 0
B49: 2023 | C49: 0 | D49: 0 | E49: 0
B50: 2024 | C50: 0 | D50: 0 | E50: 0
B51: 2025 | C51: 0 | D51: 0 | E51: 0
B52: 2026 | C52: 77827875.03 | D52: 75829208.7 | E52: 35847928.91
B53: 2027 | C53: 169813036.4 | D53: 166745125.5 | E53: 77384324.91
B54: 2028 | C54: 266693286.3 | D54: 262845501.2 | E54: 120924951.7
B55: 2029 | C55: 376502091.4 | D55: 371768854 | E55: 170282678.1
B56: 2030 | C56: 497917305.2 | D56: 492176539.2 | E56: 224877162.1
B57: 2035 | C57: 1593583553 | D57: 1627765351 | E57: 555598464
B58: 2040 | C58: 2499872183 | D58: 2455294925 | E58: 921557574.6
B59: 2045 | C59: 3358522533 | D59: 2982727844 | E59: 1300734681

Sheet Van Summary (hidden)
C9: TOtal | D9: Units | E9: 2022 | F9: 2023 | G9: 2024 | H9: 2025 | I9: 2026 | J9: 2027 | K9: 2028 | L9: 2029 | M9: 2030 | N9: 2035 | O9: 2040 | P9: 2045
B10: Scenario 1: Low Electric + High Hydrogen | C10: Total | E10: =E11+E12 -> 14743096.95 | F10: =F11+F12 -> 22768803.44 | G10: 36844974.94 | H10: 64200117.4 | I10: 89410594.59 | J10: 122180673.7 | K10: 161089106 | L10: 201890926.1 | M10: 260197042.5 | N10: 670651818.5 | O10: 1086189958 | P10: 1416074860
C11: Electricity | D11: kWh | E11: =TRANSPOSE(D32:D43) -> 14461627.65 | F11: 22251389.73 | G11: 36027368.23 | H11: 62910885.79 | I11: 87456231.14 | J11: 119487147.6 | K11: 157643015.4 | L11: 197795450.4 | M11: 250921678.6 | N11: 634297559.4 | O11: 1028159055 | P11: 1344315770
C12: Hydrogen | D12: kWh | E12: =TRANSPOSE(C49:C60) -> 281469.3035 | F12: 517413.713 | G12: 817606.7103 | H12: 1289231.609 | I12: 1954363.444 | J12: 2693526.126 | K12: 3446090.592 | L12: 4095475.688 | M12: 9275363.836 | N12: 36354259.17 | O12: 58030903.61 | P12: 71759090.11
B13: Scenario 2: Medium Electric + Low Hydrogen | C13: Total | D13: kWh
C14: Electricity | D14: kWh | E14: =TRANSPOSE(E32:E43) -> 16471771.86 | F14: 26940277.49 | G14: 45500579.61 | H14: 80613787.9 | I14: 114401786.2 | J14: 158838157.5 | K14: 211446759.9 | L14: 267351846.4 | M14: 342561490.6 | N14: 829107806.7 | O14: 1194613166 | P14: 1442908516
C15: Hydrogen | D15: kWh | E15: =TRANSPOSE(D49:D60) -> 94582.87239 | F15: 173963.7084 | G15: 274686.2944 | H15: 432665.0071 | I15: 656111.8728 | J15: 904164.943 | K15: 1156407.847 | L15: 1373709.528 | M15: 3126333.144 | N15: 12384077.89 | O15: 19854509.22 | P15: 24737667.7
B16: Scenario 3: Medium Electric + High Hydrogen | C16: Total | D16: kWh
C17: Electricity | D17: kWh | E17: =TRANSPOSE(G32:G43) -> 16383324.72 | F17: 26785751.43 | G17: 45262452.75 | H17: 80250126.87 | I17: 113859116.9 | J17: 158095915 | K17: 210504707.9 | L17: 266240078.2 | M17: 340028682.5 | N17: 817150197.6 | O17: 1173857682 | P17: 1414632427
C18: Hydrogen | D18: kWh | E18: =TRANSPOSE(F49:F60) -> 282224.9951 | F18: 518897.6231 | G18: 819746.1788 | H18: 1292139.569 | I18: 1958998.743 | J18: 2699819.481 | K18: 3453767.22 | L18: 4103991.094 | M18: 9309653.617 | N18: 36616414.47 | O18: 58525217.47 | P18: 72414675.82
B19: Scenario 4: High Electric + Low Hydrogen | C19: Total | D19: kWh
C20: Electricity | D20: kWh | E20: =TRANSPOSE(H32:H43) -> 18414513.46 | F20: 31527554.7 | G20: 54833720.47 | H20: 98111360.53 | I20: 141058249.6 | J20: 197812052 | K20: 264784760.2 | L20: 336371619.9 | M20: 433010407.2 | N20: 952183628.8 | O20: 1286013200 | P20: 1455788683
C21: Hydrogen | D21: kWh | E21: =TRANSPOSE(G49:G60) -> 94838.87133 | F21: 174466.9553 | G21: 275410.7658 | H21: 433647.5645 | I21: 657679.1705 | J21: 906292.4134 | K21: 1159001.232 | L21: 1376583.704 | M21: 3138020.398 | N21: 12475355.74 | O21: 20028112.52 | P21: 24971439.58
B22: Scenario 5: High Electric + High Hydrogen | C22: Total | D22: kWh
C23: Electricity | D23: kWh | E23: =TRANSPOSE(I32:I43) -> 18315368.35 | F23: 31346196.47 | G23: 54545995.81 | H23: 97667764.72 | I23: 140387543.6 | J23: 196885521.7 | K23: 263602439.3 | L23: 334969922.3 | M23: 429796964.4 | N23: 938351240.9 | O23: 1263310207 | P23: 1426879299
C24: Hydrogen | D24: kWh | E24: =TRANSPOSE(H49:H60) -> 282984.7553 | F24: 520390.0692 | G24: 821896.8736 | H24: 1295060.676 | I24: 1963656.082 | J24: 2706142.312 | K24: 3461478.126 | L24: 4112541.986 | M24: 9344197.867 | N24: 36882378.11 | O24: 59028003.18 | P24: 73082224.67
B25: Scenario 6: Medium Electric + Medium Hydrogen | C25: Total | D25: kWh
C26: Electricity | D26: kWh | E26: =TRANSPOSE(F32:F43) -> 16427429.24 | F26: 26862792.24 | G26: 45381203.8 | H26: 80431546.33 | I26: 114129806.5 | J26: 158466167.1 | K26: 210974682.3 | L26: 266794804.1 | M26: 341290387.4 | N26: 823085575 | O26: 1184144409 | P26: 1428597764
C27: Hydrogen | D27: kWh | E27: =TRANSPOSE(E49:E60) -> 188656.5035 | F27: 346926.7128 | G27: 547931.2491 | H27: 863373.7841 | I27: 1309104.055 | J27: 1804094.875 | K27: 2307652.084 | L27: 2741694.657 | M27: 6229465.245 | N27: 24588252.07 | O27: 39359878.6 | P27: 48868298.37
B31: kWh | C31: Year | D31: Low BEV - HH | E31: Medium BEV - LH | F31: Medium BEV - MH | G31: Medium BEV - HH | H31: High BEV - LH | I31: High BEV - HH
C32: 2022 | D32: 14461627.65 | E32: 16471771.86 | F32: 16427429.24 | G32: 16383324.72 | H32: 18414513.46 | I32: 18315368.35
C33: 2023 | D33: 22251389.73 | E33: 26940277.49 | F33: 26862792.24 | G33: 26785751.43 | H33: 31527554.7 | I33: 31346196.47
C34: 2024 | D34: 36027368.23 | E34: 45500579.61 | F34: 45381203.8 | G34: 45262452.75 | H34: 54833720.47 | I34: 54545995.81
C35: 2025 | D35: 62910885.79 | E35: 80613787.9 | F35: 80431546.33 | G35: 80250126.87 | H35: 98111360.53 | I35: 97667764.72
C36: 2026 | D36: 87456231.14 | E36: 114401786.2 | F36: 114129806.5 | G36: 113859116.9 | H36: 141058249.6 | I36: 140387543.6
C37: 2027 | D37: 119487147.6 | E37: 158838157.5 | F37: 158466167.1 | G37: 158095915 | H37: 197812052 | I37: 196885521.7
C38: 2028 | D38: 157643015.4 | E38: 211446759.9 | F38: 210974682.3 | G38: 210504707.9 | H38: 264784760.2 | I38: 263602439.3
C39: 2029 | D39: 197795450.4 | E39: 267351846.4 | F39: 266794804.1 | G39: 266240078.2 | H39: 336371619.9 | I39: 334969922.3
C40: 2030 | D40: 250921678.6 | E40: 342561490.6 | F40: 341290387.4 | G40: 340028682.5 | H40: 433010407.2 | I40: 429796964.4
C41: 2035 | D41: 634297559.4 | E41: 829107806.7 | F41: 823085575 | G41: 817150197.6 | H41: 952183628.8 | I41: 938351240.9
C42: 2040 | D42: 1028159055 | E42: 1194613166 | F42: 1184144409 | G42: 1173857682 | H42: 1286013200 | I42: 1263310207
C43: 2045 | D43: 1344315770 | E43: 1442908516 | F43: 1428597764 | G43: 1414632427 | H43: 1455788683 | I43: 1426879299
A48: Hydrogen Generation | B48: Year | C48: Low BEV - HH | D48: Medium BEV - LH | E48: Medium BEV - MH | F48: Medium BEV - HH | G48: High BEV - LH | H48: High BEV - HH
B49: 2022 | C49: 281469.3035 | D49: 94582.87239 | E49: 188656.5035 | F49: 282224.9951 | G49: 94838.87133 | H49: 282984.7553
B50: 2023 | C50: 517413.713 | D50: 173963.7084 | E50: 346926.7128 | F50: 518897.6231 | G50: 174466.9553 | H50: 520390.0692
B51: 2024 | C51: 817606.7103 | D51: 274686.2944 | E51: 547931.2491 | F51: 819746.1788 | G51: 275410.7658 | H51: 821896.8736
B52: 2025 | C52: 1289231.609 | D52: 432665.0071 | E52: 863373.7841 | F52: 1292139.569 | G52: 433647.5645 | H52: 1295060.676
B53: 2026 | C53: 1954363.444 | D53: 656111.8728 | E53: 1309104.055 | F53: 1958998.743 | G53: 657679.1705 | H53: 1963656.082
B54: 2027 | C54: 2693526.126 | D54: 904164.943 | E54: 1804094.875 | F54: 2699819.481 | G54: 906292.4134 | H54: 2706142.312
B55: 2028 | C55: 3446090.592 | D55: 1156407.847 | E55: 2307652.084 | F55: 3453767.22 | G55: 1159001.232 | H55: 3461478.126
B56: 2029 | C56: 4095475.688 | D56: 1373709.528 | E56: 2741694.657 | F56: 4103991.094 | G56: 1376583.704 | H56: 4112541.986
B57: 2030 | C57: 9275363.836 | D57: 3126333.144 | E57: 6229465.245 | F57: 9309653.617 | G57: 3138020.398 | H57: 9344197.867
B58: 2035 | C58: 36354259.17 | D58: 12384077.89 | E58: 24588252.07 | F58: 36616414.47 | G58: 12475355.74 | H58: 36882378.11
B59: 2040 | C59: 58030903.61 | D59: 19854509.22 | E59: 39359878.6 | F59: 58525217.47 | G59: 20028112.52 | H59: 59028003.18
B60: 2045 | C60: 71759090.11 | D60: 24737667.7 | E60: 48868298.37 | F60: 72414675.82 | G60: 24971439.58 | H60: 73082224.67

Sheet Results_Backend (hidden)
A1: Year | B1: Scenario | C1: Electricity | G1: Year | H1: Scenario | I1: Hydrogen
A2: 2022 | B2: Scenario 1: Low Electric + High Hydrogen | C2: =N8 -> 577694860.1 | G2: 2022 | H2: Scenario 1: Low Electric + High Hydrogen | I2: =N9 -> 9900893.466
A3: 2023 | B3: Scenario 1: Low Electric + High Hydrogen | C3: =O8 -> 732038926.2 | G3: 2023 | H3: Scenario 1: Low Electric + High Hydrogen | I3: =O9 -> 15160701.07
A4: 2024 | B4: Scenario 1: Low Electric + High Hydrogen | C4: =P8 -> 926764501.7 | G4: 2024 | H4: Scenario 1: Low Electric + High Hydrogen | I4: =P9 -> 21488046.04
A5: 2025 | B5: Scenario 1: Low Electric + High Hydrogen | C5: =Q8 -> 1167331503 | G5: 2025 | H5: Scenario 1: Low Electric + High Hydrogen | I5: =Q9 -> 30635550.02
A6: 2026 | B6: Scenario 1: Low Electric + High Hydrogen | C6: =R8 -> 1375694663 | G6: 2026 | H6: Scenario 1: Low Electric + High Hydrogen | I6: =R9 -> 119665042.1
A7: 2027 | B7: Scenario 1: Low Electric + High Hydrogen | C7: =S8 -> 1651520537 | G7: 2027 | H7: Scenario 1: Low Electric + High Hydrogen | I7: =S9 -> 223466094.9 | N7: 2022 | O7: 2023 | P7: 2024 | Q7: 2025 | R7: 2026 | S7: 2027 | T7: 2028 | U7: 2029 | V7: 2030 | W7: 2035 | X7: 2040 | Y7: 2045 | Z7: Units
A8: 2028 | B8: Scenario 1: Low Electric + High Hydrogen | C8: =T8 -> 1954143725 | G8: 2028 | H8: Scenario 1: Low Electric + High Hydrogen | I8: =T9 -> 348572597.4 | L8: Scenario 1: Low Electric + High Hydrogen | M8: Electricity | N8: =SUM(SUM('Shipping Summary'!H87:H88)+'Aviation Summary'!G31+'Ferries Summary'!E11+'Rail Summary'!E12+'Bus Summary'!E12+'Car Summary'!E11+'HGV Summary'!E11+'Van Summary'!E11) -> 577694860.1 | O8: =SUM(SUM('Shipping Summary'!I87:I88)+'Aviation Summary'!H31+'Ferries Summary'!F11+'Rail Summary'!F12+'Bus Summary'!F12+'Car Summary'!F11+'HGV Summary'!F11+'Van Summary'!F11) -> 732038926.2 | P8: =SUM(SUM('Shipping Summary'!J87:J88)+'Aviation Summary'!I31+'Ferries Summary'!G11+'Rail Summary'!G12+'Bus Summary'!G12+'Car Summary'!G11+'HGV Summary'!G11+'Van Summary'!G11) -> 926764501.7 | Q8: =SUM(SUM('Shipping Summary'!K87:K88)+'Aviation Summary'!J31+'Ferries Summary'!H11+'Rail Summary'!H12+'Bus Summary'!H12+'Car Summary'!H11+'HGV Summary'!H11+'Van Summary'!H11) -> 1167331503 | R8: =SUM(SUM('Shipping Summary'!L87:L88)+'Aviation Summary'!K31+'Ferries Summary'!I11+'Rail Summary'!I12+'Bus Summary'!I12+'Car Summary'!I11+'HGV Summary'!I11+'Van Summary'!I11) -> 1375694663 | S8: =SUM(SUM('Shipping Summary'!M87:M88)+'Aviation Summary'!L31+'Ferries Summary'!J11+'Rail Summary'!J12+'Bus Summary'!J12+'Car Summary'!J11+'HGV Summary'!J11+'Van Summary'!J11) -> 1651520537 | T8: =SUM(SUM('Shipping Summary'!N87:N88)+'Aviation Summary'!M31+'Ferries Summary'!K11+'Rail Summary'!K12+'Bus Summary'!K12+'Car Summary'!K11+'HGV Summary'!K11+'Van Summary'!K11) -> 1954143725 | U8: =SUM(SUM('Shipping Summary'!O87:O88)+'Aviation Summary'!N31+'Ferries Summary'!L11+'Rail Summary'!L12+'Bus Summary'!L12+'Car Summary'!L11+'HGV Summary'!L11+'Van Summary'!L11) -> 2311141858 | V8: =SUM(SUM('Shipping Summary'!P87:P88)+'Aviation Summary'!O31+'Ferries Summary'!M11+'Rail Summary'!M12+'Bus Summary'!M12+'Car Summary'!M11+'HGV Summary'!M11+'Van Summary'!M11) -> 2816915823 | W8: =SUM(SUM('Shipping Summary'!Q87:Q88)+'Aviation Summary'!P31+'Ferries Summary'!N11+'Rail Summary'!N12+'Bus Summary'!N12+'Car Summary'!N11+'HGV Summary'!N11+'Van Summary'!N11) -> 5683640769 | X8: =SUM(SUM('Shipping Summary'!R87:R88)+'Aviation Summary'!Q31+'Ferries Summary'!O11+'Rail Summary'!O12+'Bus Summary'!O12+'Car Summary'!O11+'HGV Summary'!O11+'Van Summary'!O11) -> 9045974124 | Y8: =SUM(SUM('Shipping Summary'!S87:S88)+'Aviation Summary'!R31+'Ferries Summary'!P11+'Rail Summary'!P12+'Bus Summary'!P12+'Car Summary'!P11+'HGV Summary'!P11+'Van Summary'!P11) -> 1.120471969e+10 | Z8: kWh
